Workbook

Sheet Datu_ievade
J1: Elektrostacijas veids | K1: OI sākuma gads | L1: Mēnesis | M1: Atbalsta noteikumi
B2: Komersanta nosaukums | J2: Biogāze | K2: 2006 | L2: 1 | M2: 221 | O2: Jā
B3: Elektrostacijas adrese | J3: Biomasa | K3: 2007 | L3: 2 | M3: 262 | O3: Nē
B4: Elektrostacijas veids | C4: HES | F4: =IF($C$4=$J$5,"Stacijas minimālā efektivitāte DRN aprēķinam"," ") -> Stacijas minimālā efektivitāte DRN aprēķinam | G4: 0.75 | J4: Dabasgāze | K4: 2008 | L4: 3
B5: Līgumā ar publisko tirgotāju norādītā stacijas uzstādītā elektriskā jauda (MW) | F5: =IF($C$4=$J$5,"Kritums, m"," ") -> Kritums, m | J5: HES | K5: 2009 | L5: 4
B6: =IF(OR($C$4=$J$2,$C$4=$J$3,$C$4=$J$4),"Stacijas uzstādītā bruto siltuma jauda (MW)"," ") ->  | D6: Poligongāze? | E6: Nē | G6: Gads | H6: Mēnesis | J6: VES | K6: 2010 | L6: 5
B7: Stacijai šobrīd piemērojamie atbalsta MK noteikumi | C7: 262 | F7: =IF($C$4=$J$5,"Sākotnējā lēmuma par obligātā iepirkuma tiesību piešķiršanu datums"," ") -> Sākotnējā lēmuma par obligātā iepirkuma tiesību piešķiršanu datums | K7: 2011 | L7: 6
F8: =IF($C$4=$J$5,"Kvota, MWh"," ") -> Kvota, MWh | K8: 2012 | L8: 7
B9: Obligātā iepirkuma sākuma datums | C9: Gads | D9: Mēnesis | K9: 2013 | L9: 8
K10: 2014 | L10: 9
B11: Obligātā iepirkuma beigu datums | C11: Gads | D11: Mēnesis | K11: 2015 | L11: 10
C12: =IF($C$4=$J$5,IF($H$7=1,$G$7+19,$G$7+20),IF(AND($C$7=262,$D$10=1),$C$10+19,IF($C$7=262,$C$10+20,IF(AND($C$7=221,$D$10=1),$C$10+9,$C$10+10)))) -> 20 | D12: =IF($C$4=$J$5,IF($H$7=1,12,$H$7-1),IF($D$10=1,12,$D$10-1)) -> -1 | K12: 2016 | L12: 11
K13: 2017 | L13: 12
B14: AST pieslēguma izbūves investīcijas (EUR) | K14: 2018
K15: 2019
A16: 1 | B16: Fondu atbalsts investīcijām (EUR) | K16: 2020
B17: Gads, kurā saņemts investīciju atbalsts no fondiem | K17: 2021
K18: 2022
A19: 2 | B19: Fondu atbalsts investīcijām (EUR) | K19: 2023
B20: Gads, kurā saņemts investīciju atbalsts no fondiem | K20: 2024
K21: 2025
A22: 3 | B22: Fondu atbalsts investīcijām (EUR) | K22: 2026
B23: Gads, kurā saņemts investīciju atbalsts no fondiem | K23: 2027
K24: 2028
A25: 4 | B25: Fondu atbalsts investīcijām (EUR) | K25: 2029
B26: Gads, kurā saņemts investīciju atbalsts no fondiem | K26: 2030
A28: 5 | B28: Fondu atbalsts investīcijām (EUR)
B29: Gads, kurā saņemts investīciju atbalsts no fondiem
A31: Kopā | B31: Fondu atbalsts investīcijām (EUR) | C31: =C16+C19+C22+C25+C28 -> 0
B32: Gads, kurā atmaksāts investīciju atbalsts no fondiem

Sheet HES
A1: Hidroelektrostacijas
A2: Komersanta nosaukums | B2: =IF(Datu_ievade!$C$4=Datu_ievade!$J$5,Datu_ievade!$C$2," ") -> 0 | Q2: Stacijai piemērojamās līmeņatzīmes | QD2: -1
A3: Elektrostacijas adrese | B3: =IF(Datu_ievade!$C$4=Datu_ievade!$J$5,Datu_ievade!$C$3," ") -> 0 | QD3: 0
A4: Atbalsta noteikumi | C4: =IF(Datu_ievade!$C$4=Datu_ievade!$J$5,Datu_ievade!$C$7," ") -> 262 | Q4: Elektroenerģijas bāzes cena (Sākot no 07.2009-) | AQ4: Īpatnējās inv. | BD4: Darba stundu sk. | BQ4: Darba slodzes | CD4: Ekspluatācijas un pārējās darbības izmaksas | CQ4: k koeficients | QD4: 20
A5: Lēmums (gads un mēnesis) | B5: =IF(Datu_ievade!$C$4=Datu_ievade!$J$5,Datu_ievade!$G$7,0) -> 0 | C5: =IF(Datu_ievade!$C$4=Datu_ievade!$J$5,Datu_ievade!$H$7,0) -> 0 | Q5: 1-10.gads | AD5: 11.-20.gads | AQ5: EUR/kWe | BD5: h | BQ5: sk. | CD5: % | QD5: 11
A6: Atbalsta perioda sākums (gads un mēnesis) | B6: =IF(Datu_ievade!$C$4=Datu_ievade!$J$5,Datu_ievade!$C$10,0) -> 0 | C6: =IF(Datu_ievade!$C$4=Datu_ievade!$J$5,Datu_ievade!$D$10,0) -> 0 | Q6: 159 | AD6: =Q6*0.8 -> 127.2 | AQ6: =IF($C$8<=$B$64,$D$64,IF(AND($C$8>$A$65,$C$8<=$B$65),$D$65,$D$66)) -> 2500 | BD6: =IF($C$8<=$B$64,$C$64,IF(AND($C$8>$A$65,$C$8<=$B$65),$C$65,$C$66)) -> 2500 | BQ6: =IF($C$8<=$B$65,$Q$64,$Q$66) -> 0.4 | CD6: =IF($C$8<=$B$64,$AD$64,IF(AND($C$8>$A$65,$C$8<=$B$65),$AD$65,$AD$66)) -> 0.036 | CQ6: =VLOOKUP($C$8,k_koef!$A$2:$B$16933,2,FALSE) -> 1.24 | QD6: 21
A7: Atbalsta perioda beigas (gads un mēnesis) | B7: =IF(Datu_ievade!$C$4=Datu_ievade!$J$5,Datu_ievade!$C$12,0) -> 20 | C7: =IF(Datu_ievade!$C$4=Datu_ievade!$J$5,Datu_ievade!$D$12,0) -> -1
A8: Līgumā ar publisko tirgotāju norādītā stacijas uzstādītā elektriskā jauda (MW) | B8: MW | C8: =IF(Datu_ievade!$C$4=Datu_ievade!$J$5,Datu_ievade!$C$5,0) -> 0
A9: Investīcijas kopā | B9: EUR | C9: =IF($C$8=" ",0,$C$8*$AQ$6*1000) -> 0
A10: Investīcijas pieslēgumam AST | B10: EUR | C10: =IF(Datu_ievade!$C$4=Datu_ievade!$J$5,Datu_ievade!$C$14,0) -> 0
A11: Subsīdijas no fondiem | B11: EUR | C11: =IF(Datu_ievade!$C$4=Datu_ievade!$J$5,Datu_ievade!$C$31,0) -> 0
A12: Ūdens kritums (līmeņu starpība) | B12: m | C12: =IF(Datu_ievade!$C$4=Datu_ievade!$J$5,Datu_ievade!$G$5,0) -> 0
A13: Stacijas lietderības koeficients | B13: % | C13: =IF(Datu_ievade!$C$4=Datu_ievade!$J$5,Datu_ievade!$G$4,0) -> 0.75 | JD13: =IF(JD12-$B$6<-1," ",IF(JD12-$B$6=-1,0,IF(IQ13<$QD$4,IQ13+1,IF(IQ13=$QD$4,21," ")))) -> 1
A14: Kvota | B14: MWh | C14: =Datu_ievade!G8 -> 0
A15: IRR aprēķins (pirms pārkompensācijas koeficienta)
A16: Gads | C16: 2006 | D16: =C16+1 -> 2007 | E16: 2007 | F16: 2007 | G16: 2007 | H16: 2007 | I16: 2007 | J16: 2007 | K16: 2007 | L16: 2007 | M16: 2007 | N16: 2007 | O16: 2007 | P16: 2007 | Q16: =D16+1 -> 2008 | R16: 2008 | S16: 2008 | T16: 2008 | U16: 2008 | V16: 2008 | W16: 2008 | X16: 2008 | Y16: 2008 | Z16: 2008 | AA16: 2008 | AB16: 2008 | AC16: 2008 | AD16: =Q16+1 -> 2009 | AE16: 2009 | AF16: 2009 | AG16: 2009 | AH16: 2009 | AI16: 2009 | AJ16: 2009 | AK16: 2009 | AL16: 2009 | AM16: 2009 | AN16: 2009 | AO16: 2009 | AP16: 2009 | AQ16: =AD16+1 -> 2010 | AR16: 2010 | AS16: 2010 | AT16: 2010 | AU16: 2010 | AV16: 2010 | AW16: 2010 | AX16: 2010 | AY16: 2010 | AZ16: 2010 | BA16: 2010 | BB16: 2010 | BC16: 2010 | BD16: =AQ16+1 -> 2011 | BE16: 2011 | BF16: 2011 | BG16: 2011 | BH16: 2011 | BI16: 2011 | BJ16: 2011 | BK16: 2011 | BL16: 2011 | BM16: 2011 | BN16: 2011 | BO16: 2011 | BP16: 2011 | BQ16: 2012 | BR16: 2012 | BS16: 2012 | BT16: 2012 | BU16: 2012 | BV16: 2012 | BW16: 2012 | BX16: 2012 | BY16: 2012 | BZ16: 2012 | CA16: 2012 | CB16: 2012 | CC16: 2012 | CD16: 2013 | CE16: 2013 | CF16: 2013 | CG16: 2013 | CH16: 2013 | CI16: 2013 | CJ16: 2013 | CK16: 2013 | CL16: 2013 | CM16: 2013 | CN16: 2013 | CO16: 2013 | CP16: 2013 | CQ16: 2014 | CR16: 2014 | CS16: 2014 | CT16: 2014 | CU16: 2014 | CV16: 2014 | CW16: 2014 | CX16: 2014 | CY16: 2014 | CZ16: 2014 | DA16: 2014 | DB16: 2014 | DC16: 2014 | DD16: 2015 | DE16: 2015 | DF16: 2015 | DG16: 2015 | DH16: 2015 | DI16: 2015 | DJ16: 2015 | DK16: 2015 | DL16: 2015 | DM16: 2015 | DN16: 2015 | DO16: 2015 | DP16: 2015 | DQ16: 2016 | DR16: 2016 | DS16: 2016 | DT16: 2016 | DU16: 2016 | DV16: 2016 | DW16: 2016 | DX16: 2016 | DY16: 2016 | DZ16: 2016 | EA16: 2016 | EB16: 2016 | EC16: 2016 | ED16: 2017 | EE16: 2017 | EF16: 2017 | EG16: 2017 | EH16: 2017 | EI16: 2017 | EJ16: 2017 | EK16: 2017 | EL16: 2017 | EM16: 2017 | EN16: 2017 | EO16: 2017 | EP16: 2017 | EQ16: 2018 | ER16: 2018 | ES16: 2018 | ET16: 2018 | EU16: 2018 | EV16: 2018 | EW16: 2018 | EX16: 2018 | EY16: 2018 | EZ16: 2018 | FA16: 2018 | FB16: 2018 | FC16: 2018 | FD16: 2019 | FE16: 2019 | FF16: 2019 | FG16: 2019 | FH16: 2019 | FI16: 2019 | FJ16: 2019 | FK16: 2019 | FL16: 2019 | FM16: 2019 | FN16: 2019 | FO16: 2019 | FP16: 2019 | FQ16: 2020 | FR16: 2020 | FS16: 2020 | FT16: 2020 | FU16: 2020 | FV16: 2020 | FW16: 2020 | FX16: 2020 | FY16: 2020 | FZ16: 2020 | GA16: 2020 | GB16: 2020 | GC16: 2020 | GD16: 2021 | GE16: 2021 | GF16: 2021 | GG16: 2021 | GH16: 2021 | GI16: 2021 | GJ16: 2021 | GK16: 2021 | GL16: 2021 | GM16: 2021 | GN16: 2021 | GO16: 2021 | GP16: 2021 | GQ16: 2022 | GR16: 2022 | GS16: 2022 | GT16: 2022 | GU16: 2022 | GV16: 2022 | GW16: 2022 | GX16: 2022 | GY16: 2022 | GZ16: 2022 | HA16: 2022 | HB16: 2022 | HC16: 2022 | HD16: 2023 | HE16: 2023 | HF16: 2023 | HG16: 2023 | HH16: 2023 | HI16: 2023 | HJ16: 2023 | HK16: 2023 | HL16: 2023 | HM16: 2023 | HN16: 2023 | HO16: 2023 | HP16: 2023 | HQ16: 2024 | HR16: 2024 | HS16: 2024 | HT16: 2024 | HU16: 2024 | HV16: 2024 | HW16: 2024 | HX16: 2024 | HY16: 2024 | HZ16: 2024 | IA16: 2024 | IB16: 2024 | IC16: 2024 | ID16: 2025 | IE16: 2025 | IF16: 2025 | IG16: 2025 | IH16: 2025 | II16: 2025 | IJ16: 2025 | IK16: 2025 | IL16: 2025 | IM16: 2025 | IN16: 2025 | IO16: 2025 | IP16: 2025 | IQ16: 2026 | IR16: 2026 | IS16: 2026 | IT16: 2026 | IU16: 2026 | IV16: 2026 | IW16: 2026 | IX16: 2026 | IY16: 2026 | IZ16: 2026 | JA16: 2026 | JB16: 2026 | JC16: 2026 | JD16: 2027 | JE16: 2027 | JF16: 2027 | JG16: 2027 | JH16: 2027 | JI16: 2027 | JJ16: 2027 | JK16: 2027 | JL16: 2027 | JM16: 2027 | JN16: 2027 | JO16: 2027 | JP16: 2027 | JQ16: 2028 | JR16: 2028 | JS16: 2028 | JT16: 2028 | JU16: 2028 | JV16: 2028 | JW16: 2028 | JX16: 2028 | JY16: 2028 | JZ16: 2028 | KA16: 2028 | KB16: 2028 | KC16: 2028 | KD16: 2029 | KE16: 2029 | KF16: 2029 | KG16: 2029 | KH16: 2029 | KI16: 2029 | KJ16: 2029 | KK16: 2029 | KL16: 2029 | KM16: 2029 | KN16: 2029 | KO16: 2029 | KP16: 2029 | KQ16: 2030 | KR16: 2030 | KS16: 2030 | KT16: 2030 | KU16: 2030 | KV16: 2030 | KW16: 2030 | KX16: 2030 | KY16: 2030 | KZ16: 2030 | LA16: 2030 | LB16: 2030 | LC16: 2030 | LD16: 2031 | LE16: 2031 | LF16: 2031 | LG16: 2031 | LH16: 2031 | LI16: 2031 | LJ16: 2031 | LK16: 2031 | LL16: 2031 | LM16: 2031 | LN16: 2031 | LO16: 2031 | LP16: 2031 | LQ16: 2032 | LR16: 2032 | LS16: 2032 | LT16: 2032 | LU16: 2032 | LV16: 2032 | LW16: 2032 | LX16: 2032 | LY16: 2032 | LZ16: 2032 | MA16: 2032 | MB16: 2032 | MC16: 2032 | MD16: 2033 | ME16: 2033 | MF16: 2033 | MG16: 2033 | MH16: 2033 | MI16: 2033 | MJ16: 2033 | MK16: 2033 | ML16: 2033 | MM16: 2033 | MN16: 2033 | MO16: 2033 | MP16: 2033 | MQ16: 2034 | MR16: 2034 | MS16: 2034 | MT16: 2034 | MU16: 2034 | MV16: 2034 | MW16: 2034 | MX16: 2034 | MY16: 2034 | MZ16: 2034 | NA16: 2034 | NB16: 2034 | NC16: 2034 | ND16: 2035 | NE16: 2035 | NF16: 2035 | NG16: 2035 | NH16: 2035 | NI16: 2035 | NJ16: 2035 | NK16: 2035 | NL16: 2035 | NM16: 2035 | NN16: 2035 | NO16: 2035 | NP16: 2035 | NQ16: 2036 | NR16: 2036 | NS16: 2036 | NT16: 2036 | NU16: 2036 | NV16: 2036 | NW16: 2036 | NX16: 2036 | NY16: 2036 | NZ16: 2036 | OA16: 2036 | OB16: 2036 | OC16: 2036 | OD16: 2037 | OE16: 2037 | OF16: 2037 | OG16: 2037 | OH16: 2037 | OI16: 2037 | OJ16: 2037 | OK16: 2037 | OL16: 2037 | OM16: 2037 | ON16: 2037 | OO16: 2037 | OP16: 2037 | OQ16: 2038 | OR16: 2038 | OS16: 2038 | OT16: 2038 | OU16: 2038 | OV16: 2038 | OW16: 2038 | OX16: 2038 | OY16: 2038 | OZ16: 2038 | PA16: 2038 | PB16: 2038 | PC16: 2038 | PD16: 2039 | PE16: 2039 | PF16: 2039 | PG16: 2039 | PH16: 2039 | PI16: 2039 | PJ16: 2039 | PK16: 2039 | PL16: 2039 | PM16: 2039 | PN16: 2039 | PO16: 2039 | PP16: 2039 | PQ16: 2040 | PR16: 2040 | PS16: 2040 | PT16: 2040 | PU16: 2040 | PV16: 2040 | PW16: 2040 | PX16: 2040 | PY16: 2040 | PZ16: 2040 | QA16: 2040 | QB16: 2040 | QC16: 2040 | QD16: 2040 | QE16: 2040
A17: Gads no lēmuma | D17: =IF(D16-$B$5<-1," ",IF(D16-$B$5=-1,0,IF(AND(D16>=$B$5,D16<$B$7),C17+1,IF(D16=$B$7,IF($C$7=12,$QD$4,IF($C$7<12,$QD$6," "))," ")))) ->  | E17: =D17 ->  | F17: =E17 ->  | G17: =F17 ->  | H17: =G17 ->  | I17: =H17 ->  | J17: =I17 ->  | K17: =J17 ->  | L17: =K17 ->  | M17: =L17 ->  | N17: =M17 ->  | O17: =N17 ->  | P17: =O17 ->  | Q17: =IF(Q16-$B$5<-1," ",IF(Q16-$B$5=-1,0,IF(AND(Q16>=$B$5,Q16<$B$7),P17+1,IF(Q16=$B$7,IF($C$7=12,$QD$4,IF($C$7<12,$QD$6," "))," ")))) ->  | R17: =Q17 ->  | S17: =R17 ->  | T17: =S17 ->  | U17: =T17 ->  | V17: =U17 ->  | W17: =V17 ->  | X17: =W17 ->  | Y17: =X17 ->  | Z17: =Y17 ->  | AA17: =Z17 ->  | AB17: =AA17 ->  | AC17: =AB17 ->  | AD17: =IF(AD16-$B$5<-1," ",IF(AD16-$B$5=-1,0,IF(AND(AD16>=$B$5,AD16<$B$7),AC17+1,IF(AD16=$B$7,IF($C$7=12,$QD$4,IF($C$7<12,$QD$6," "))," ")))) ->  | AE17: =AD17 ->  | AF17: =AE17 ->  | AG17: =AF17 ->  | AH17: =AG17 ->  | AI17: =AH17 ->  | AJ17: =AI17 ->  | AK17: =AJ17 ->  | AL17: =AK17 ->  | AM17: =AL17 ->  | AN17: =AM17 ->  | AO17: =AN17 ->  | AP17: =AO17 ->  | AQ17: =IF(AQ16-$B$5<-1," ",IF(AQ16-$B$5=-1,0,IF(AND(AQ16>=$B$5,AQ16<$B$7),AP17+1,IF(AQ16=$B$7,IF($C$7=12,$QD$4,IF($C$7<12,$QD$6," "))," ")))) ->  | AR17: =AQ17 ->  | AS17: =AR17 ->  | AT17: =AS17 ->  | AU17: =AT17 ->  | AV17: =AU17 ->  | AW17: =AV17 ->  | AX17: =AW17 ->  | AY17: =AX17 ->  | AZ17: =AY17 ->  | BA17: =AZ17 ->  | BB17: =BA17 ->  | BC17: =BB17 ->  | BD17: =IF(BD16-$B$5<-1," ",IF(BD16-$B$5=-1,0,IF(AND(BD16>=$B$5,BD16<$B$7),BC17+1,IF(BD16=$B$7,IF($C$7=12,$QD$4,IF($C$7<12,$QD$6," "))," ")))) ->  | BE17: =BD17 ->  | BF17: =BE17 ->  | BG17: =BF17 ->  | BH17: =BG17 ->  | BI17: =BH17 ->  | BJ17: =BI17 ->  | BK17: =BJ17 ->  | BL17: =BK17 ->  | BM17: =BL17 ->  | BN17: =BM17 ->  | BO17: =BN17 ->  | BP17: =BO17 ->  | BQ17: =IF(BQ16-$B$5<-1," ",IF(BQ16-$B$5=-1,0,IF(AND(BQ16>=$B$5,BQ16<$B$7),BP17+1,IF(BQ16=$B$7,IF($C$7=12,$QD$4,IF($C$7<12,$QD$6," "))," ")))) ->  | BR17: =BQ17 ->  | BS17: =BR17 ->  | BT17: =BS17 ->  | BU17: =BT17 ->  | BV17: =BU17 ->  | BW17: =BV17 ->  | BX17: =BW17 ->  | BY17: =BX17 ->  | BZ17: =BY17 ->  | CA17: =BZ17 ->  | CB17: =CA17 ->  | CC17: =CB17 ->  | CD17: =IF(CD16-$B$5<-1," ",IF(CD16-$B$5=-1,0,IF(AND(CD16>=$B$5,CD16<$B$7),CC17+1,IF(CD16=$B$7,IF($C$7=12,$QD$4,IF($C$7<12,$QD$6," "))," ")))) ->  | CE17: =CD17 ->  | CF17: =CE17 ->  | CG17: =CF17 ->  | CH17: =CG17 ->  | CI17: =CH17 ->  | CJ17: =CI17 ->  | CK17: =CJ17 ->  | CL17: =CK17 ->  | CM17: =CL17 ->  | CN17: =CM17 ->  | CO17: =CN17 ->  | CP17: =CO17 ->  | CQ17: =IF(CQ16-$B$5<-1," ",IF(CQ16-$B$5=-1,0,IF(AND(CQ16>=$B$5,CQ16<$B$7),CP17+1,IF(CQ16=$B$7,IF($C$7=12,$QD$4,IF($C$7<12,$QD$6," "))," ")))) ->  | CR17: =CQ17 ->  | CS17: =CR17 ->  | CT17: =CS17 ->  | CU17: =CT17 ->  | CV17: =CU17 ->  | CW17: =CV17 ->  | CX17: =CW17 ->  | CY17: =CX17 ->  | CZ17: =CY17 ->  | DA17: =CZ17 ->  | DB17: =DA17 ->  | DC17: =DB17 ->  | DD17: =IF(DD16-$B$5<-1," ",IF(DD16-$B$5=-1,0,IF(AND(DD16>=$B$5,DD16<$B$7),DC17+1,IF(DD16=$B$7,IF($C$7=12,$QD$4,IF($C$7<12,$QD$6," "))," ")))) ->  | DE17: =DD17 ->  | DF17: =DE17 ->  | DG17: =DF17 ->  | DH17: =DG17 ->  | DI17: =DH17 ->  | DJ17: =DI17 ->  | DK17: =DJ17 ->  | DL17: =DK17 ->  | DM17: =DL17 ->  | DN17: =DM17 ->  | DO17: =DN17 ->  | DP17: =DO17 ->  | DQ17: =IF(DQ16-$B$5<-1," ",IF(DQ16-$B$5=-1,0,IF(AND(DQ16>=$B$5,DQ16<$B$7),DP17+1,IF(DQ16=$B$7,IF($C$7=12,$QD$4,IF($C$7<12,$QD$6," "))," ")))) ->  | DR17: =DQ17 ->  | DS17: =DR17 ->  | DT17: =DS17 ->  | DU17: =DT17 ->  | DV17: =DU17 ->  | DW17: =DV17 ->  | DX17: =DW17 ->  | DY17: =DX17 ->  | DZ17: =DY17 ->  | EA17: =DZ17 ->  | EB17: =EA17 ->  | EC17: =EB17 ->  | ED17: =IF(ED16-$B$5<-1," ",IF(ED16-$B$5=-1,0,IF(AND(ED16>=$B$5,ED16<$B$7),EC17+1,IF(ED16=$B$7,IF($C$7=12,$QD$4,IF($C$7<12,$QD$6," "))," ")))) ->  | EE17: =ED17 ->  | EF17: =EE17 ->  | EG17: =EF17 ->  | EH17: =EG17 ->  | EI17: =EH17 ->  | EJ17: =EI17 ->  | EK17: =EJ17 ->  | EL17: =EK17 ->  | EM17: =EL17 ->  | EN17: =EM17 ->  | EO17: =EN17 ->  | EP17: =EO17 ->  | EQ17: =IF(EQ16-$B$5<-1," ",IF(EQ16-$B$5=-1,0,IF(AND(EQ16>=$B$5,EQ16<$B$7),EP17+1,IF(EQ16=$B$7,IF($C$7=12,$QD$4,IF($C$7<12,$QD$6," "))," ")))) ->  | ER17: =EQ17 ->  | ES17: =ER17 ->  | ET17: =ES17 ->  | EU17: =ET17 ->  | EV17: =EU17 ->  | EW17: =EV17 ->  | EX17: =EW17 ->  | EY17: =EX17 ->  | EZ17: =EY17 ->  | FA17: =EZ17 ->  | FB17: =FA17 ->  | FC17: =FB17 ->  | FD17: =IF(FD16-$B$5<-1," ",IF(FD16-$B$5=-1,0,IF(AND(FD16>=$B$5,FD16<$B$7),FC17+1,IF(FD16=$B$7,IF($C$7=12,$QD$4,IF($C$7<12,$QD$6," "))," ")))) ->  | FE17: =FD17 ->  | FF17: =FE17 ->  | FG17: =FF17 ->  | FH17: =FG17 ->  | FI17: =FH17 ->  | FJ17: =FI17 ->  | FK17: =FJ17 ->  | FL17: =FK17 ->  | FM17: =FL17 ->  | FN17: =FM17 ->  | FO17: =FN17 ->  | FP17: =FO17 ->  | FQ17: =IF(FQ16-$B$5<-1," ",IF(FQ16-$B$5=-1,0,IF(AND(FQ16>=$B$5,FQ16<$B$7),FP17+1,IF(FQ16=$B$7,IF($C$7=12,$QD$4,IF($C$7<12,$QD$6," "))," ")))) ->  | FR17: =FQ17 ->  | FS17: =FR17 ->  | FT17: =FS17 ->  | FU17: =FT17 ->  | FV17: =FU17 ->  | FW17: =FV17 ->  | FX17: =FW17 ->  | FY17: =FX17 ->  | FZ17: =FY17 ->  | GA17: =FZ17 ->  | GB17: =GA17 ->  | GC17: =GB17 ->  | GD17: =IF(GD16-$B$5<-1," ",IF(GD16-$B$5=-1,0,IF(AND(GD16>=$B$5,GD16<$B$7),GC17+1,IF(GD16=$B$7,IF($C$7=12,$QD$4,IF($C$7<12,$QD$6," "))," ")))) ->  | GE17: =GD17 ->  | GF17: =GE17 ->  | GG17: =GF17 ->  | GH17: =GG17 ->  | GI17: =GH17 ->  | GJ17: =GI17 ->  | GK17: =GJ17 ->  | GL17: =GK17 ->  | GM17: =GL17 ->  | GN17: =GM17 ->  | GO17: =GN17 ->  | GP17: =GO17 ->  | GQ17: =IF(GQ16-$B$5<-1," ",IF(GQ16-$B$5=-1,0,IF(AND(GQ16>=$B$5,GQ16<$B$7),GP17+1,IF(GQ16=$B$7,IF($C$7=12,$QD$4,IF($C$7<12,$QD$6," "))," ")))) ->  | GR17: =GQ17 ->  | GS17: =GR17 ->  | GT17: =GS17 ->  | GU17: =GT17 ->  | GV17: =GU17 ->  | GW17: =GV17 ->  | GX17: =GW17 ->  | GY17: =GX17 ->  | GZ17: =GY17 ->  | HA17: =GZ17 ->  | HB17: =HA17 ->  | HC17: =HB17 ->  | HD17: =IF(HD16-$B$5<-1," ",IF(HD16-$B$5=-1,0,IF(AND(HD16>=$B$5,HD16<$B$7),HC17+1,IF(HD16=$B$7,IF($C$7=12,$QD$4,IF($C$7<12,$QD$6," "))," ")))) ->  | HE17: =HD17 ->  | HF17: =HE17 ->  | HG17: =HF17 ->  | HH17: =HG17 ->  | HI17: =HH17 ->  | HJ17: =HI17 ->  | HK17: =HJ17 ->  | HL17: =HK17 ->  | HM17: =HL17 ->  | HN17: =HM17 ->  | HO17: =HN17 ->  | HP17: =HO17 ->  | HQ17: =IF(HQ16-$B$5<-1," ",IF(HQ16-$B$5=-1,0,IF(AND(HQ16>=$B$5,HQ16<$B$7),HP17+1,IF(HQ16=$B$7,IF($C$7=12,$QD$4,IF($C$7<12,$QD$6," "))," ")))) ->  | HR17: =HQ17 ->  | HS17: =HR17 ->  | HT17: =HS17 ->  | HU17: =HT17 ->  | HV17: =HU17 ->  | HW17: =HV17 ->  | HX17: =HW17 ->  | HY17: =HX17 ->  | HZ17: =HY17 ->  | IA17: =HZ17 ->  | IB17: =IA17 ->  | IC17: =IB17 ->  | ID17: =IF(ID16-$B$5<-1," ",IF(ID16-$B$5=-1,0,IF(AND(ID16>=$B$5,ID16<$B$7),IC17+1,IF(ID16=$B$7,IF($C$7=12,$QD$4,IF($C$7<12,$QD$6," "))," ")))) ->  | IE17: =ID17 ->  | IF17: =IE17 ->  | IG17: =IF17 ->  | IH17: =IG17 ->  | II17: =IH17 ->  | IJ17: =II17 ->  | IK17: =IJ17 ->  | IL17: =IK17 ->  | IM17: =IL17 ->  | IN17: =IM17 ->  | IO17: =IN17 ->  | IP17: =IO17 ->  | IQ17: =IF(IQ16-$B$5<-1," ",IF(IQ16-$B$5=-1,0,IF(AND(IQ16>=$B$5,IQ16<$B$7),IP17+1,IF(IQ16=$B$7,IF($C$7=12,$QD$4,IF($C$7<12,$QD$6," "))," ")))) ->  | IR17: =IQ17 ->  | IS17: =IR17 ->  | IT17: =IS17 ->  | IU17: =IT17 ->  | IV17: =IU17 ->  | IW17: =IV17 ->  | IX17: =IW17 ->  | IY17: =IX17 ->  | IZ17: =IY17 ->  | JA17: =IZ17 ->  | JB17: =JA17 ->  | JC17: =JB17 ->  | JD17: =IF(JD16-$B$5<-1," ",IF(JD16-$B$5=-1,0,IF(AND(JD16>=$B$5,JD16<$B$7),JC17+1,IF(JD16=$B$7,IF($C$7=12,$QD$4,IF($C$7<12,$QD$6," "))," ")))) ->  | JE17: =JD17 ->  | JF17: =JE17 ->  | JG17: =JF17 ->  | JH17: =JG17 ->  | JI17: =JH17 ->  | JJ17: =JI17 ->  | JK17: =JJ17 ->  | JL17: =JK17 ->  | JM17: =JL17 ->  | JN17: =JM17 ->  | JO17: =JN17 ->  | JP17: =JO17 ->  | JQ17: =IF(JQ16-$B$5<-1," ",IF(JQ16-$B$5=-1,0,IF(AND(JQ16>=$B$5,JQ16<$B$7),JP17+1,IF(JQ16=$B$7,IF($C$7=12,$QD$4,IF($C$7<12,$QD$6," "))," ")))) ->  | JR17: =JQ17 ->  | JS17: =JR17 ->  | JT17: =JS17 ->  | JU17: =JT17 ->  | JV17: =JU17 ->  | JW17: =JV17 ->  | JX17: =JW17 ->  | JY17: =JX17 ->  | JZ17: =JY17 ->  | KA17: =JZ17 ->  | KB17: =KA17 ->  | KC17: =KB17 ->  | KD17: =IF(KD16-$B$5<-1," ",IF(KD16-$B$5=-1,0,IF(AND(KD16>=$B$5,KD16<$B$7),KC17+1,IF(KD16=$B$7,IF($C$7=12,$QD$4,IF($C$7<12,$QD$6," "))," ")))) ->  | KE17: =KD17 ->  | KF17: =KE17 ->  | KG17: =KF17 ->  | KH17: =KG17 ->  | KI17: =KH17 ->  | KJ17: =KI17 ->  | KK17: =KJ17 ->  | KL17: =KK17 ->  | KM17: =KL17 ->  | KN17: =KM17 ->  | KO17: =KN17 ->  | KP17: =KO17 ->  | KQ17: =IF(KQ16-$B$5<-1," ",IF(KQ16-$B$5=-1,0,IF(AND(KQ16>=$B$5,KQ16<$B$7),KP17+1,IF(KQ16=$B$7,IF($C$7=12,$QD$4,IF($C$7<12,$QD$6," "))," ")))) ->  | KR17: =KQ17 ->  | KS17: =KR17 ->  | KT17: =KS17 ->  | KU17: =KT17 ->  | KV17: =KU17 ->  | KW17: =KV17 ->  | KX17: =KW17 ->  | KY17: =KX17 ->  | KZ17: =KY17 ->  | LA17: =KZ17 ->  | LB17: =LA17 ->  | LC17: =LB17 ->  | LD17: =IF(LD16-$B$5<-1," ",IF(LD16-$B$5=-1,0,IF(AND(LD16>=$B$5,LD16<$B$7),LC17+1,IF(LD16=$B$7,IF($C$7=12,$QD$4,IF($C$7<12,$QD$6," "))," ")))) ->  | LE17: =LD17 ->  | LF17: =LE17 ->  | LG17: =LF17 ->  | LH17: =LG17 ->  | LI17: =LH17 ->  | LJ17: =LI17 ->  | LK17: =LJ17 ->  | LL17: =LK17 ->  | LM17: =LL17 ->  | LN17: =LM17 ->  | LO17: =LN17 ->  | LP17: =LO17 ->  | LQ17: =IF(LQ16-$B$5<-1," ",IF(LQ16-$B$5=-1,0,IF(AND(LQ16>=$B$5,LQ16<$B$7),LP17+1,IF(LQ16=$B$7,IF($C$7=12,$QD$4,IF($C$7<12,$QD$6," "))," ")))) ->  | LR17: =LQ17 ->  | LS17: =LR17 ->  | LT17: =LS17 ->  | LU17: =LT17 ->  | LV17: =LU17 ->  | LW17: =LV17 ->  | LX17: =LW17 ->  | LY17: =LX17 ->  | LZ17: =LY17 ->  | MA17: =LZ17 ->  | MB17: =MA17 ->  | MC17: =MB17 ->  | MD17: =IF(MD16-$B$5<-1," ",IF(MD16-$B$5=-1,0,IF(AND(MD16>=$B$5,MD16<$B$7),MC17+1,IF(MD16=$B$7,IF($C$7=12,$QD$4,IF($C$7<12,$QD$6," "))," ")))) ->  | ME17: =MD17 ->  | MF17: =ME17 ->  | MG17: =MF17 ->  | MH17: =MG17 ->  | MI17: =MH17 ->  | MJ17: =MI17 ->  | MK17: =MJ17 ->  | ML17: =MK17 ->  | MM17: =ML17 ->  | MN17: =MM17 ->  | MO17: =MN17 ->  | MP17: =MO17 ->  | MQ17: =IF(MQ16-$B$5<-1," ",IF(MQ16-$B$5=-1,0,IF(AND(MQ16>=$B$5,MQ16<$B$7),MP17+1,IF(MQ16=$B$7,IF($C$7=12,$QD$4,IF($C$7<12,$QD$6," "))," ")))) ->  | MR17: =MQ17 ->  | MS17: =MR17 ->  | MT17: =MS17 ->  | MU17: =MT17 ->  | MV17: =MU17 ->  | MW17: =MV17 ->  | MX17: =MW17 ->  | MY17: =MX17 ->  | MZ17: =MY17 ->  | NA17: =MZ17 ->  | NB17: =NA17 ->  | NC17: =NB17 ->  | ND17: =IF(ND16-$B$5<-1," ",IF(ND16-$B$5=-1,0,IF(AND(ND16>=$B$5,ND16<$B$7),NC17+1,IF(ND16=$B$7,IF($C$7=12,$QD$4,IF($C$7<12,$QD$6," "))," ")))) ->  | NE17: =ND17 ->  | NF17: =NE17 ->  | NG17: =NF17 ->  | NH17: =NG17 ->  | NI17: =NH17 ->  | NJ17: =NI17 ->  | NK17: =NJ17 ->  | NL17: =NK17 ->  | NM17: =NL17 ->  | NN17: =NM17 ->  | NO17: =NN17 ->  | NP17: =NO17 ->  | NQ17: =IF(NQ16-$B$5<-1," ",IF(NQ16-$B$5=-1,0,IF(AND(NQ16>=$B$5,NQ16<$B$7),NP17+1,IF(NQ16=$B$7,IF($C$7=12,$QD$4,IF($C$7<12,$QD$6," "))," ")))) ->  | NR17: =NQ17 ->  | NS17: =NR17 ->  | NT17: =NS17 ->  | NU17: =NT17 ->  | NV17: =NU17 ->  | NW17: =NV17 ->  | NX17: =NW17 ->  | NY17: =NX17 ->  | NZ17: =NY17 ->  | OA17: =NZ17 ->  | OB17: =OA17 ->  | OC17: =OB17 ->  | OD17: =IF(OD16-$B$5<-1," ",IF(OD16-$B$5=-1,0,IF(AND(OD16>=$B$5,OD16<$B$7),OC17+1,IF(OD16=$B$7,IF($C$7=12,$QD$4,IF($C$7<12,$QD$6," "))," ")))) ->  | OE17: =OD17 ->  | OF17: =OE17 ->  | OG17: =OF17 ->  | OH17: =OG17 ->  | OI17: =OH17 ->  | OJ17: =OI17 ->  | OK17: =OJ17 ->  | OL17: =OK17 ->  | OM17: =OL17 ->  | ON17: =OM17 ->  | OO17: =ON17 ->  | OP17: =OO17 ->  | OQ17: =IF(OQ16-$B$5<-1," ",IF(OQ16-$B$5=-1,0,IF(AND(OQ16>=$B$5,OQ16<$B$7),OP17+1,IF(OQ16=$B$7,IF($C$7=12,$QD$4,IF($C$7<12,$QD$6," "))," ")))) ->  | OR17: =OQ17 ->  | OS17: =OR17 ->  | OT17: =OS17 ->  | OU17: =OT17 ->  | OV17: =OU17 ->  | OW17: =OV17 ->  | OX17: =OW17 ->  | OY17: =OX17 ->  | OZ17: =OY17 ->  | PA17: =OZ17 ->  | PB17: =PA17 ->  | PC17: =PB17 ->  | PD17: =IF(PD16-$B$5<-1," ",IF(PD16-$B$5=-1,0,IF(AND(PD16>=$B$5,PD16<$B$7),PC17+1,IF(PD16=$B$7,IF($C$7=12,$QD$4,IF($C$7<12,$QD$6," "))," ")))) ->  | PE17: =PD17 ->  | PF17: =PE17 ->  | PG17: =PF17 ->  | PH17: =PG17 ->  | PI17: =PH17 ->  | PJ17: =PI17 ->  | PK17: =PJ17 ->  | PL17: =PK17 ->  | PM17: =PL17 ->  | PN17: =PM17 ->  | PO17: =PN17 ->  | PP17: =PO17 ->  | PQ17: =IF(PQ16-$B$5<-1," ",IF(PQ16-$B$5=-1,0,IF(AND(PQ16>=$B$5,PQ16<$B$7),PP17+1,IF(PQ16=$B$7,IF($C$7=12,$QD$4,IF($C$7<12,$QD$6," "))," ")))) ->  | PR17: =PQ17 ->  | PS17: =PR17 ->  | PT17: =PS17 ->  | PU17: =PT17 ->  | PV17: =PU17 ->  | PW17: =PV17 ->  | PX17: =PW17 ->  | PY17: =PX17 ->  | PZ17: =PY17 ->  | QA17: =PZ17 ->  | QB17: =QA17 ->  | QC17: =QB17 -> 
A18: Projekta gads | C18: =IF(C16-$B$6<-1," ",IF(C16-$B$6=-1,0,IF(AND(C16>=$B$6,C16<$B$7),#REF!+1,IF(C16=$B$7,IF($C$7=12,$QD$4,IF($C$7<12,$QD$6," "))," ")))) ->  | D18: =IF(D16-$B$6<-1," ",IF(D16-$B$6=-1,0,IF(AND(D16>=$B$6,D16<=$B$7),C18+1," "))) ->  | E18: =IF(OR(E16<$B$7,AND(E16=$B$7,E19<=$C$7)),D18," ") ->  | Q18: =IF(Q16-$B$6<-1," ",IF(Q16-$B$6=-1,0,IF(AND(Q16>=$B$6,Q16<=$B$7),P18+1," "))) ->  | R18: =IF(OR(R16<$B$7,AND(R16=$B$7,R19<=$C$7)),Q18," ") ->  | AD18: =IF(AD16-$B$6<-1," ",IF(AD16-$B$6=-1,0,IF(AND(AD16>=$B$6,AD16<=$B$7),AC18+1," "))) ->  | AE18: =IF(OR(AE16<$B$7,AND(AE16=$B$7,AE19<=$C$7)),AD18," ") ->  | AQ18: =IF(AQ16-$B$6<-1," ",IF(AQ16-$B$6=-1,0,IF(AND(AQ16>=$B$6,AQ16<=$B$7),AP18+1," "))) ->  | AR18: =IF(OR(AR16<$B$7,AND(AR16=$B$7,AR19<=$C$7)),AQ18," ") ->  | BD18: =IF(BD16-$B$6<-1," ",IF(BD16-$B$6=-1,0,IF(AND(BD16>=$B$6,BD16<=$B$7),BC18+1," "))) ->  | BE18: =IF(OR(BE16<$B$7,AND(BE16=$B$7,BE19<=$C$7)),BD18," ") ->  | BQ18: =IF(BQ16-$B$6<-1," ",IF(BQ16-$B$6=-1,0,IF(AND(BQ16>=$B$6,BQ16<=$B$7),BP18+1," "))) ->  | BR18: =IF(OR(BR16<$B$7,AND(BR16=$B$7,BR19<=$C$7)),BQ18," ") ->  | CD18: =IF(CD16-$B$6<-1," ",IF(CD16-$B$6=-1,0,IF(AND(CD16>=$B$6,CD16<=$B$7),CC18+1," "))) ->  | CE18: =IF(OR(CE16<$B$7,AND(CE16=$B$7,CE19<=$C$7)),CD18," ") ->  | CQ18: =IF(CQ16-$B$6<-1," ",IF(CQ16-$B$6=-1,0,IF(AND(CQ16>=$B$6,CQ16<=$B$7),CP18+1," "))) ->  | CR18: =IF(OR(CR16<$B$7,AND(CR16=$B$7,CR19<=$C$7)),CQ18," ") ->  | DD18: =IF(DD16-$B$6<-1," ",IF(DD16-$B$6=-1,0,IF(AND(DD16>=$B$6,DD16<=$B$7),DC18+1," "))) ->  | DE18: =IF(OR(DE16<$B$7,AND(DE16=$B$7,DE19<=$C$7)),DD18," ") ->  | DQ18: =IF(DQ16-$B$6<-1," ",IF(DQ16-$B$6=-1,0,IF(AND(DQ16>=$B$6,DQ16<=$B$7),DP18+1," "))) ->  | DR18: =IF(OR(DR16<$B$7,AND(DR16=$B$7,DR19<=$C$7)),DQ18," ") ->  | ED18: =IF(ED16-$B$6<-1," ",IF(ED16-$B$6=-1,0,IF(AND(ED16>=$B$6,ED16<=$B$7),EC18+1," "))) ->  | EE18: =IF(OR(EE16<$B$7,AND(EE16=$B$7,EE19<=$C$7)),ED18," ") ->  | EQ18: =IF(EQ16-$B$6<-1," ",IF(EQ16-$B$6=-1,0,IF(AND(EQ16>=$B$6,EQ16<=$B$7),EP18+1," "))) ->  | ER18: =IF(OR(ER16<$B$7,AND(ER16=$B$7,ER19<=$C$7)),EQ18," ") ->  | FD18: =IF(FD16-$B$6<-1," ",IF(FD16-$B$6=-1,0,IF(AND(FD16>=$B$6,FD16<=$B$7),FC18+1," "))) ->  | FE18: =IF(OR(FE16<$B$7,AND(FE16=$B$7,FE19<=$C$7)),FD18," ") ->  | FQ18: =IF(FQ16-$B$6<-1," ",IF(FQ16-$B$6=-1,0,IF(AND(FQ16>=$B$6,FQ16<=$B$7),FP18+1," "))) ->  | FR18: =IF(OR(FR16<$B$7,AND(FR16=$B$7,FR19<=$C$7)),FQ18," ") ->  | GD18: =IF(GD16-$B$6<-1," ",IF(GD16-$B$6=-1,0,IF(AND(GD16>=$B$6,GD16<=$B$7),GC18+1," "))) ->  | GE18: =IF(OR(GE16<$B$7,AND(GE16=$B$7,GE19<=$C$7)),GD18," ") ->  | GQ18: =IF(GQ16-$B$6<-1," ",IF(GQ16-$B$6=-1,0,IF(AND(GQ16>=$B$6,GQ16<=$B$7),GP18+1," "))) ->  | GR18: =IF(OR(GR16<$B$7,AND(GR16=$B$7,GR19<=$C$7)),GQ18," ") ->  | HD18: =IF(HD16-$B$6<-1," ",IF(HD16-$B$6=-1,0,IF(AND(HD16>=$B$6,HD16<=$B$7),HC18+1," "))) ->  | HE18: =IF(OR(HE16<$B$7,AND(HE16=$B$7,HE19<=$C$7)),HD18," ") ->  | HQ18: =IF(HQ16-$B$6<-1," ",IF(HQ16-$B$6=-1,0,IF(AND(HQ16>=$B$6,HQ16<=$B$7),HP18+1," "))) ->  | HR18: =IF(OR(HR16<$B$7,AND(HR16=$B$7,HR19<=$C$7)),HQ18," ") ->  | ID18: =IF(ID16-$B$6<-1," ",IF(ID16-$B$6=-1,0,IF(AND(ID16>=$B$6,ID16<=$B$7),IC18+1," "))) ->  | IE18: =IF(OR(IE16<$B$7,AND(IE16=$B$7,IE19<=$C$7)),ID18," ") ->  | IQ18: =IF(IQ16-$B$6<-1," ",IF(IQ16-$B$6=-1,0,IF(AND(IQ16>=$B$6,IQ16<=$B$7),IP18+1," "))) ->  | IR18: =IF(OR(IR16<$B$7,AND(IR16=$B$7,IR19<=$C$7)),IQ18," ") ->  | JD18: =IF(JD16-$B$6<-1," ",IF(JD16-$B$6=-1,0,IF(AND(JD16>=$B$6,JD16<=$B$7),JC18+1," "))) ->  | JE18: =IF(OR(JE16<$B$7,AND(JE16=$B$7,JE19<=$C$7)),JD18," ") ->  | JQ18: =IF(JQ16-$B$6<-1," ",IF(JQ16-$B$6=-1,0,IF(AND(JQ16>=$B$6,JQ16<=$B$7),JP18+1," "))) ->  | JR18: =IF(OR(JR16<$B$7,AND(JR16=$B$7,JR19<=$C$7)),JQ18," ") ->  | KD18: =IF(KD16-$B$6<-1," ",IF(KD16-$B$6=-1,0,IF(AND(KD16>=$B$6,KD16<=$B$7),KC18+1," "))) ->  | KE18: =IF(OR(KE16<$B$7,AND(KE16=$B$7,KE19<=$C$7)),KD18," ") ->  | KQ18: =IF(KQ16-$B$6<-1," ",IF(KQ16-$B$6=-1,0,IF(AND(KQ16>=$B$6,KQ16<=$B$7),KP18+1," "))) ->  | KR18: =IF(OR(KR16<$B$7,AND(KR16=$B$7,KR19<=$C$7)),KQ18," ") ->  | LD18: =IF(LD16-$B$6<-1," ",IF(LD16-$B$6=-1,0,IF(AND(LD16>=$B$6,LD16<=$B$7),LC18+1," "))) ->  | LE18: =IF(OR(LE16<$B$7,AND(LE16=$B$7,LE19<=$C$7)),LD18," ") ->  | LQ18: =IF(LQ16-$B$6<-1," ",IF(LQ16-$B$6=-1,0,IF(AND(LQ16>=$B$6,LQ16<=$B$7),LP18+1," "))) ->  | LR18: =IF(OR(LR16<$B$7,AND(LR16=$B$7,LR19<=$C$7)),LQ18," ") ->  | MD18: =IF(MD16-$B$6<-1," ",IF(MD16-$B$6=-1,0,IF(AND(MD16>=$B$6,MD16<=$B$7),MC18+1," "))) ->  | ME18: =IF(OR(ME16<$B$7,AND(ME16=$B$7,ME19<=$C$7)),MD18," ") ->  | MQ18: =IF(MQ16-$B$6<-1," ",IF(MQ16-$B$6=-1,0,IF(AND(MQ16>=$B$6,MQ16<=$B$7),MP18+1," "))) ->  | MR18: =IF(OR(MR16<$B$7,AND(MR16=$B$7,MR19<=$C$7)),MQ18," ") ->  | ND18: =IF(ND16-$B$6<-1," ",IF(ND16-$B$6=-1,0,IF(AND(ND16>=$B$6,ND16<=$B$7),NC18+1," "))) ->  | NE18: =IF(OR(NE16<$B$7,AND(NE16=$B$7,NE19<=$C$7)),ND18," ") ->  | NQ18: =IF(NQ16-$B$6<-1," ",IF(NQ16-$B$6=-1,0,IF(AND(NQ16>=$B$6,NQ16<=$B$7),NP18+1," "))) ->  | NR18: =IF(OR(NR16<$B$7,AND(NR16=$B$7,NR19<=$C$7)),NQ18," ") ->  | OD18: =IF(OD16-$B$6<-1," ",IF(OD16-$B$6=-1,0,IF(AND(OD16>=$B$6,OD16<=$B$7),OC18+1," "))) ->  | OE18: =IF(OR(OE16<$B$7,AND(OE16=$B$7,OE19<=$C$7)),OD18," ") ->  | OQ18: =IF(OQ16-$B$6<-1," ",IF(OQ16-$B$6=-1,0,IF(AND(OQ16>=$B$6,OQ16<=$B$7),OP18+1," "))) ->  | OR18: =IF(OR(OR16<$B$7,AND(OR16=$B$7,OR19<=$C$7)),OQ18," ") ->  | PD18: =IF(PD16-$B$6<-1," ",IF(PD16-$B$6=-1,0,IF(AND(PD16>=$B$6,PD16<=$B$7),PC18+1," "))) ->  | PE18: =IF(OR(PE16<$B$7,AND(PE16=$B$7,PE19<=$C$7)),PD18," ") ->  | PQ18: =IF(PQ16-$B$6<-1," ",IF(PQ16-$B$6=-1,0,IF(AND(PQ16>=$B$6,PQ16<=$B$7),PP18+1," "))) ->  | PR18: =IF(OR(PR16<$B$7,AND(PR16=$B$7,PR19<=$C$7)),PQ18," ") -> 
A19: Mēnesis | C19: =IF(C18=1,0," ") ->  | D19: =IF(Q18=1,0," ") ->  | E19: 1 | F19: 2 | G19: 3 | H19: 4 | I19: 5 | J19: 6 | K19: 7 | L19: 8 | M19: 9 | N19: 10 | O19: 11 | P19: 12 | R19: 1 | S19: 2 | T19: 3 | U19: 4 | V19: 5 | W19: 6 | X19: 7 | Y19: 8 | Z19: 9 | AA19: 10 | AB19: 11 | AC19: 12 | AE19: 1 | AF19: 2 | AG19: 3 | AH19: 4 | AI19: 5 | AJ19: 6 | AK19: 7 | AL19: 8 | AM19: 9 | AN19: 10 | AO19: 11 | AP19: 12 | AR19: 1 | AS19: 2 | AT19: 3 | AU19: 4 | AV19: 5 | AW19: 6 | AX19: 7 | AY19: 8 | AZ19: 9 | BA19: 10 | BB19: 11 | BC19: 12 | BE19: 1 | BF19: 2 | BG19: 3 | BH19: 4 | BI19: 5 | BJ19: 6 | BK19: 7 | BL19: 8 | BM19: 9 | BN19: 10 | BO19: 11 | BP19: 12 | BR19: 1 | BS19: 2 | BT19: 3 | BU19: 4 | BV19: 5 | BW19: 6 | BX19: 7 | BY19: 8 | BZ19: 9 | CA19: 10 | CB19: 11 | CC19: 12 | CE19: 1 | CF19: 2 | CG19: 3 | CH19: 4 | CI19: 5 | CJ19: 6 | CK19: 7 | CL19: 8 | CM19: 9 | CN19: 10 | CO19: 11 | CP19: 12 | CR19: 1 | CS19: 2 | CT19: 3 | CU19: 4 | CV19: 5 | CW19: 6 | CX19: 7 | CY19: 8 | CZ19: 9 | DA19: 10 | DB19: 11 | DC19: 12 | DE19: 1 | DF19: 2 | DG19: 3 | DH19: 4 | DI19: 5 | DJ19: 6 | DK19: 7 | DL19: 8 | DM19: 9 | DN19: 10 | DO19: 11 | DP19: 12 | DR19: 1 | DS19: 2 | DT19: 3 | DU19: 4 | DV19: 5 | DW19: 6 | DX19: 7 | DY19: 8 | DZ19: 9 | EA19: 10 | EB19: 11 | EC19: 12 | EE19: 1 | EF19: 2 | EG19: 3 | EH19: 4 | EI19: 5 | EJ19: 6 | EK19: 7 | EL19: 8 | EM19: 9 | EN19: 10 | EO19: 11 | EP19: 12 | ER19: 1 | ES19: 2 | ET19: 3 | EU19: 4 | EV19: 5 | EW19: 6 | EX19: 7 | EY19: 8 | EZ19: 9 | FA19: 10 | FB19: 11 | FC19: 12 | FE19: 1 | FF19: 2 | FG19: 3 | FH19: 4 | FI19: 5 | FJ19: 6 | FK19: 7 | FL19: 8 | FM19: 9 | FN19: 10 | FO19: 11 | FP19: 12 | FR19: 1 | FS19: 2 | FT19: 3 | FU19: 4 | FV19: 5 | FW19: 6 | FX19: 7 | FY19: 8 | FZ19: 9 | GA19: 10 | GB19: 11 | GC19: 12 | GE19: 1 | GF19: 2 | GG19: 3 | GH19: 4 | GI19: 5 | GJ19: 6 | GK19: 7 | GL19: 8 | GM19: 9 | GN19: 10 | GO19: 11 | GP19: 12 | GR19: 1 | GS19: 2 | GT19: 3 | GU19: 4 | GV19: 5 | GW19: 6 | GX19: 7 | GY19: 8 | GZ19: 9 | HA19: 10 | HB19: 11 | HC19: 12 | HE19: 1 | HF19: 2 | HG19: 3 | HH19: 4 | HI19: 5 | HJ19: 6 | HK19: 7 | HL19: 8 | HM19: 9 | HN19: 10 | HO19: 11 | HP19: 12 | HR19: 1 | HS19: 2 | HT19: 3 | HU19: 4 | HV19: 5 | HW19: 6 | HX19: 7 | HY19: 8 | HZ19: 9 | IA19: 10 | IB19: 11 | IC19: 12 | IE19: 1 | IF19: 2 | IG19: 3 | IH19: 4 | II19: 5 | IJ19: 6 | IK19: 7 | IL19: 8 | IM19: 9 | IN19: 10 | IO19: 11 | IP19: 12 | IR19: 1 | IS19: 2 | IT19: 3 | IU19: 4 | IV19: 5 | IW19: 6 | IX19: 7 | IY19: 8 | IZ19: 9 | JA19: 10 | JB19: 11 | JC19: 12 | JE19: 1 | JF19: 2 | JG19: 3 | JH19: 4 | JI19: 5 | JJ19: 6 | JK19: 7 | JL19: 8 | JM19: 9 | JN19: 10 | JO19: 11 | JP19: 12 | JR19: 1 | JS19: 2 | JT19: 3 | JU19: 4 | JV19: 5 | JW19: 6 | JX19: 7 | JY19: 8 | JZ19: 9 | KA19: 10 | KB19: 11 | KC19: 12 | KE19: 1 | KF19: 2 | KG19: 3 | KH19: 4 | KI19: 5 | KJ19: 6 | KK19: 7 | KL19: 8 | KM19: 9 | KN19: 10 | KO19: 11 | KP19: 12 | KR19: 1 | KS19: 2 | KT19: 3 | KU19: 4 | KV19: 5 | KW19: 6 | KX19: 7 | KY19: 8 | KZ19: 9 | LA19: 10 | LB19: 11 | LC19: 12 | LE19: 1 | LF19: 2 | LG19: 3 | LH19: 4 | LI19: 5 | LJ19: 6 | LK19: 7 | LL19: 8 | LM19: 9 | LN19: 10 | LO19: 11 | LP19: 12 | LR19: 1 | LS19: 2 | LT19: 3 | LU19: 4 | LV19: 5 | LW19: 6 | LX19: 7 | LY19: 8 | LZ19: 9 | MA19: 10 | MB19: 11 | MC19: 12 | ME19: 1 | MF19: 2 | MG19: 3 | MH19: 4 | MI19: 5 | MJ19: 6 | MK19: 7 | ML19: 8 | MM19: 9 | MN19: 10 | MO19: 11 | MP19: 12 | MR19: 1 | MS19: 2 | MT19: 3 | MU19: 4 | MV19: 5 | MW19: 6 | MX19: 7 | MY19: 8 | MZ19: 9 | NA19: 10 | NB19: 11 | NC19: 12 | NE19: 1 | NF19: 2 | NG19: 3 | NH19: 4 | NI19: 5 | NJ19: 6 | NK19: 7 | NL19: 8 | NM19: 9 | NN19: 10 | NO19: 11 | NP19: 12 | NR19: 1 | NS19: 2 | NT19: 3 | NU19: 4 | NV19: 5 | NW19: 6 | NX19: 7 | NY19: 8 | NZ19: 9 | OA19: 10 | OB19: 11 | OC19: 12 | OE19: 1 | OF19: 2 | OG19: 3 | OH19: 4 | OI19: 5 | OJ19: 6 | OK19: 7 | OL19: 8 | OM19: 9 | ON19: 10 | OO19: 11 | OP19: 12 | OR19: 1 | OS19: 2 | OT19: 3 | OU19: 4 | OV19: 5 | OW19: 6 | OX19: 7 | OY19: 8 | OZ19: 9 | PA19: 10 | PB19: 11 | PC19: 12 | PE19: 1 | PF19: 2 | PG19: 3 | PH19: 4 | PI19: 5 | PJ19: 6 | PK19: 7 | PL19: 8 | PM19: 9 | PN19: 10 | PO19: 11 | PP19: 12 | PR19: 1 | PS19: 2 | PT19: 3 | PU19: 4 | PV19: 5 | PW19: 6 | PX19: 7 | PY19: 8 | PZ19: 9 | QA19: 10 | QB19: 11 | QC19: 12
E20: =E16&E19 -> 20071 | F20: =F16&F19 -> 20072 | G20: 20073 | H20: 20074 | I20: 20075 | J20: 20076 | K20: 20077 | L20: 20078 | M20: 20079 | N20: 200710 | O20: 200711 | P20: 200712 | R20: =R16&R19 -> 20081 | S20: =S16&S19 -> 20082 | T20: =T16&T19 -> 20083 | U20: =U16&U19 -> 20084 | V20: =V16&V19 -> 20085 | W20: =W16&W19 -> 20086 | X20: =X16&X19 -> 20087 | Y20: =Y16&Y19 -> 20088 | Z20: =Z16&Z19 -> 20089 | AA20: =AA16&AA19 -> 200810 | AB20: =AB16&AB19 -> 200811 | AC20: =AC16&AC19 -> 200812 | AE20: =AE16&AE19 -> 20091 | AF20: =AF16&AF19 -> 20092 | AG20: =AG16&AG19 -> 20093 | AH20: =AH16&AH19 -> 20094 | AI20: =AI16&AI19 -> 20095 | AJ20: =AJ16&AJ19 -> 20096 | AK20: =AK16&AK19 -> 20097 | AL20: =AL16&AL19 -> 20098 | AM20: =AM16&AM19 -> 20099 | AN20: =AN16&AN19 -> 200910 | AO20: =AO16&AO19 -> 200911 | AP20: =AP16&AP19 -> 200912 | AR20: =AR16&AR19 -> 20101 | AS20: =AS16&AS19 -> 20102 | AT20: =AT16&AT19 -> 20103 | AU20: =AU16&AU19 -> 20104 | AV20: =AV16&AV19 -> 20105 | AW20: =AW16&AW19 -> 20106 | AX20: =AX16&AX19 -> 20107 | AY20: =AY16&AY19 -> 20108 | AZ20: =AZ16&AZ19 -> 20109 | BA20: =BA16&BA19 -> 201010 | BB20: =BB16&BB19 -> 201011 | BC20: =BC16&BC19 -> 201012 | BE20: =BE16&BE19 -> 20111 | BF20: =BF16&BF19 -> 20112 | BG20: =BG16&BG19 -> 20113 | BH20: =BH16&BH19 -> 20114 | BI20: =BI16&BI19 -> 20115 | BJ20: =BJ16&BJ19 -> 20116 | BK20: =BK16&BK19 -> 20117 | BL20: =BL16&BL19 -> 20118 | BM20: =BM16&BM19 -> 20119 | BN20: =BN16&BN19 -> 201110 | BO20: =BO16&BO19 -> 201111 | BP20: =BP16&BP19 -> 201112 | BR20: =BR16&BR19 -> 20121 | BS20: =BS16&BS19 -> 20122 | BT20: =BT16&BT19 -> 20123 | BU20: =BU16&BU19 -> 20124 | BV20: =BV16&BV19 -> 20125 | BW20: =BW16&BW19 -> 20126 | BX20: =BX16&BX19 -> 20127 | BY20: =BY16&BY19 -> 20128 | BZ20: =BZ16&BZ19 -> 20129 | CA20: =CA16&CA19 -> 201210 | CB20: =CB16&CB19 -> 201211 | CC20: =CC16&CC19 -> 201212 | CE20: =CE16&CE19 -> 20131 | CF20: =CF16&CF19 -> 20132 | CG20: =CG16&CG19 -> 20133 | CH20: =CH16&CH19 -> 20134 | CI20: =CI16&CI19 -> 20135 | CJ20: =CJ16&CJ19 -> 20136 | CK20: =CK16&CK19 -> 20137 | CL20: =CL16&CL19 -> 20138 | CM20: =CM16&CM19 -> 20139 | CN20: =CN16&CN19 -> 201310 | CO20: =CO16&CO19 -> 201311 | CP20: =CP16&CP19 -> 201312 | CR20: =CR16&CR19 -> 20141 | CS20: =CS16&CS19 -> 20142 | CT20: =CT16&CT19 -> 20143 | CU20: =CU16&CU19 -> 20144 | CV20: =CV16&CV19 -> 20145 | CW20: =CW16&CW19 -> 20146 | CX20: =CX16&CX19 -> 20147 | CY20: =CY16&CY19 -> 20148 | CZ20: =CZ16&CZ19 -> 20149 | DA20: =DA16&DA19 -> 201410 | DB20: =DB16&DB19 -> 201411 | DC20: =DC16&DC19 -> 201412 | DE20: =DE16&DE19 -> 20151 | DF20: =DF16&DF19 -> 20152 | DG20: =DG16&DG19 -> 20153 | DH20: =DH16&DH19 -> 20154 | DI20: =DI16&DI19 -> 20155 | DJ20: =DJ16&DJ19 -> 20156 | DK20: =DK16&DK19 -> 20157 | DL20: =DL16&DL19 -> 20158 | DM20: =DM16&DM19 -> 20159 | DN20: =DN16&DN19 -> 201510 | DO20: =DO16&DO19 -> 201511 | DP20: =DP16&DP19 -> 201512 | DR20: =DR16&DR19 -> 20161 | DS20: =DS16&DS19 -> 20162 | DT20: =DT16&DT19 -> 20163 | DU20: =DU16&DU19 -> 20164 | DV20: =DV16&DV19 -> 20165 | DW20: =DW16&DW19 -> 20166 | DX20: =DX16&DX19 -> 20167 | DY20: =DY16&DY19 -> 20168 | DZ20: =DZ16&DZ19 -> 20169 | EA20: =EA16&EA19 -> 201610 | EB20: =EB16&EB19 -> 201611 | EC20: =EC16&EC19 -> 201612 | EE20: =EE16&EE19 -> 20171 | EF20: =EF16&EF19 -> 20172 | EG20: =EG16&EG19 -> 20173 | EH20: =EH16&EH19 -> 20174 | EI20: =EI16&EI19 -> 20175 | EJ20: =EJ16&EJ19 -> 20176 | EK20: =EK16&EK19 -> 20177 | EL20: =EL16&EL19 -> 20178 | EM20: =EM16&EM19 -> 20179 | EN20: =EN16&EN19 -> 201710 | EO20: =EO16&EO19 -> 201711 | EP20: =EP16&EP19 -> 201712 | ER20: =ER16&ER19 -> 20181 | ES20: =ES16&ES19 -> 20182 | ET20: =ET16&ET19 -> 20183 | EU20: =EU16&EU19 -> 20184 | EV20: =EV16&EV19 -> 20185 | EW20: =EW16&EW19 -> 20186 | EX20: =EX16&EX19 -> 20187 | EY20: =EY16&EY19 -> 20188 | EZ20: =EZ16&EZ19 -> 20189 | FA20: =FA16&FA19 -> 201810 | FB20: =FB16&FB19 -> 201811 | FC20: =FC16&FC19 -> 201812 | FE20: =FE16&FE19 -> 20191 | FF20: =FF16&FF19 -> 20192 | FG20: =FG16&FG19 -> 20193 | FH20: =FH16&FH19 -> 20194 | FI20: =FI16&FI19 -> 20195 | FJ20: =FJ16&FJ19 -> 20196 | FK20: =FK16&FK19 -> 20197 | FL20: =FL16&FL19 -> 20198 | FM20: =FM16&FM19 -> 20199 | FN20: =FN16&FN19 -> 201910 | FO20: =FO16&FO19 -> 201911 | FP20: =FP16&FP19 -> 201912 | FR20: =FR16&FR19 -> 20201 | FS20: =FS16&FS19 -> 20202 | FT20: =FT16&FT19 -> 20203 | FU20: =FU16&FU19 -> 20204 | FV20: =FV16&FV19 -> 20205 | FW20: =FW16&FW19 -> 20206 | FX20: =FX16&FX19 -> 20207 | FY20: =FY16&FY19 -> 20208 | FZ20: =FZ16&FZ19 -> 20209 | GA20: =GA16&GA19 -> 202010 | GB20: =GB16&GB19 -> 202011 | GC20: =GC16&GC19 -> 202012 | GE20: =GE16&GE19 -> 20211 | GF20: =GF16&GF19 -> 20212 | GG20: =GG16&GG19 -> 20213 | GH20: =GH16&GH19 -> 20214 | GI20: =GI16&GI19 -> 20215 | GJ20: =GJ16&GJ19 -> 20216 | GK20: =GK16&GK19 -> 20217 | GL20: =GL16&GL19 -> 20218 | GM20: =GM16&GM19 -> 20219 | GN20: =GN16&GN19 -> 202110 | GO20: =GO16&GO19 -> 202111 | GP20: =GP16&GP19 -> 202112 | GR20: =GR16&GR19 -> 20221 | GS20: =GS16&GS19 -> 20222 | GT20: =GT16&GT19 -> 20223 | GU20: =GU16&GU19 -> 20224 | GV20: =GV16&GV19 -> 20225 | GW20: =GW16&GW19 -> 20226 | GX20: =GX16&GX19 -> 20227 | GY20: =GY16&GY19 -> 20228 | GZ20: =GZ16&GZ19 -> 20229 | HA20: =HA16&HA19 -> 202210 | HB20: =HB16&HB19 -> 202211 | HC20: =HC16&HC19 -> 202212 | HE20: =HE16&HE19 -> 20231 | HF20: =HF16&HF19 -> 20232 | HG20: =HG16&HG19 -> 20233 | HH20: =HH16&HH19 -> 20234 | HI20: =HI16&HI19 -> 20235 | HJ20: =HJ16&HJ19 -> 20236 | HK20: =HK16&HK19 -> 20237 | HL20: =HL16&HL19 -> 20238 | HM20: =HM16&HM19 -> 20239 | HN20: =HN16&HN19 -> 202310 | HO20: =HO16&HO19 -> 202311 | HP20: =HP16&HP19 -> 202312 | HR20: =HR16&HR19 -> 20241 | HS20: =HS16&HS19 -> 20242 | HT20: =HT16&HT19 -> 20243 | HU20: =HU16&HU19 -> 20244 | HV20: =HV16&HV19 -> 20245 | HW20: =HW16&HW19 -> 20246 | HX20: =HX16&HX19 -> 20247 | HY20: =HY16&HY19 -> 20248 | HZ20: =HZ16&HZ19 -> 20249 | IA20: =IA16&IA19 -> 202410 | IB20: =IB16&IB19 -> 202411 | IC20: =IC16&IC19 -> 202412 | IE20: =IE16&IE19 -> 20251 | IF20: =IF16&IF19 -> 20252 | IG20: =IG16&IG19 -> 20253 | IH20: =IH16&IH19 -> 20254 | II20: =II16&II19 -> 20255 | IJ20: =IJ16&IJ19 -> 20256 | IK20: =IK16&IK19 -> 20257 | IL20: =IL16&IL19 -> 20258 | IM20: =IM16&IM19 -> 20259 | IN20: =IN16&IN19 -> 202510 | IO20: =IO16&IO19 -> 202511 | IP20: =IP16&IP19 -> 202512 | IR20: =IR16&IR19 -> 20261 | IS20: =IS16&IS19 -> 20262 | IT20: =IT16&IT19 -> 20263 | IU20: =IU16&IU19 -> 20264 | IV20: =IV16&IV19 -> 20265 | IW20: =IW16&IW19 -> 20266 | IX20: =IX16&IX19 -> 20267 | IY20: =IY16&IY19 -> 20268 | IZ20: =IZ16&IZ19 -> 20269 | JA20: =JA16&JA19 -> 202610 | JB20: =JB16&JB19 -> 202611 | JC20: =JC16&JC19 -> 202612 | JE20: =JE16&JE19 -> 20271 | JF20: =JF16&JF19 -> 20272 | JG20: =JG16&JG19 -> 20273 | JH20: =JH16&JH19 -> 20274 | JI20: =JI16&JI19 -> 20275 | JJ20: =JJ16&JJ19 -> 20276 | JK20: =JK16&JK19 -> 20277 | JL20: =JL16&JL19 -> 20278 | JM20: =JM16&JM19 -> 20279 | JN20: =JN16&JN19 -> 202710 | JO20: =JO16&JO19 -> 202711 | JP20: =JP16&JP19 -> 202712 | JR20: =JR16&JR19 -> 20281 | JS20: =JS16&JS19 -> 20282 | JT20: =JT16&JT19 -> 20283 | JU20: =JU16&JU19 -> 20284 | JV20: =JV16&JV19 -> 20285 | JW20: =JW16&JW19 -> 20286 | JX20: =JX16&JX19 -> 20287 | JY20: =JY16&JY19 -> 20288 | JZ20: =JZ16&JZ19 -> 20289 | KA20: =KA16&KA19 -> 202810 | KB20: =KB16&KB19 -> 202811 | KC20: =KC16&KC19 -> 202812 | KE20: =KE16&KE19 -> 20291 | KF20: =KF16&KF19 -> 20292 | KG20: =KG16&KG19 -> 20293 | KH20: =KH16&KH19 -> 20294 | KI20: =KI16&KI19 -> 20295 | KJ20: =KJ16&KJ19 -> 20296 | KK20: =KK16&KK19 -> 20297 | KL20: =KL16&KL19 -> 20298 | KM20: =KM16&KM19 -> 20299 | KN20: =KN16&KN19 -> 202910 | KO20: =KO16&KO19 -> 202911 | KP20: =KP16&KP19 -> 202912 | KR20: =KR16&KR19 -> 20301 | KS20: =KS16&KS19 -> 20302 | KT20: =KT16&KT19 -> 20303 | KU20: =KU16&KU19 -> 20304 | KV20: =KV16&KV19 -> 20305 | KW20: =KW16&KW19 -> 20306 | KX20: =KX16&KX19 -> 20307 | KY20: =KY16&KY19 -> 20308 | KZ20: =KZ16&KZ19 -> 20309 | LA20: =LA16&LA19 -> 203010 | LB20: =LB16&LB19 -> 203011 | LC20: =LC16&LC19 -> 203012 | LE20: =LE16&LE19 -> 20311 | LF20: =LF16&LF19 -> 20312 | LG20: =LG16&LG19 -> 20313 | LH20: =LH16&LH19 -> 20314 | LI20: =LI16&LI19 -> 20315 | LJ20: =LJ16&LJ19 -> 20316 | LK20: =LK16&LK19 -> 20317 | LL20: =LL16&LL19 -> 20318 | LM20: =LM16&LM19 -> 20319 | LN20: =LN16&LN19 -> 203110 | LO20: =LO16&LO19 -> 203111 | LP20: =LP16&LP19 -> 203112 | LR20: =LR16&LR19 -> 20321 | LS20: =LS16&LS19 -> 20322 | LT20: =LT16&LT19 -> 20323 | LU20: =LU16&LU19 -> 20324 | LV20: =LV16&LV19 -> 20325 | LW20: =LW16&LW19 -> 20326 | LX20: =LX16&LX19 -> 20327 | LY20: =LY16&LY19 -> 20328 | LZ20: =LZ16&LZ19 -> 20329 | MA20: =MA16&MA19 -> 203210 | MB20: =MB16&MB19 -> 203211 | MC20: =MC16&MC19 -> 203212 | ME20: =ME16&ME19 -> 20331 | MF20: =MF16&MF19 -> 20332 | MG20: =MG16&MG19 -> 20333 | MH20: =MH16&MH19 -> 20334 | MI20: =MI16&MI19 -> 20335 | MJ20: =MJ16&MJ19 -> 20336 | MK20: =MK16&MK19 -> 20337 | ML20: =ML16&ML19 -> 20338 | MM20: =MM16&MM19 -> 20339 | MN20: =MN16&MN19 -> 203310 | MO20: =MO16&MO19 -> 203311 | MP20: =MP16&MP19 -> 203312 | MR20: =MR16&MR19 -> 20341 | MS20: =MS16&MS19 -> 20342 | MT20: =MT16&MT19 -> 20343 | MU20: =MU16&MU19 -> 20344 | MV20: =MV16&MV19 -> 20345 | MW20: =MW16&MW19 -> 20346 | MX20: =MX16&MX19 -> 20347 | MY20: =MY16&MY19 -> 20348 | MZ20: =MZ16&MZ19 -> 20349 | NA20: =NA16&NA19 -> 203410 | NB20: =NB16&NB19 -> 203411 | NC20: =NC16&NC19 -> 203412 | NE20: =NE16&NE19 -> 20351 | NF20: =NF16&NF19 -> 20352 | NG20: =NG16&NG19 -> 20353 | NH20: =NH16&NH19 -> 20354 | NI20: =NI16&NI19 -> 20355 | NJ20: =NJ16&NJ19 -> 20356 | NK20: =NK16&NK19 -> 20357 | NL20: =NL16&NL19 -> 20358 | NM20: =NM16&NM19 -> 20359 | NN20: =NN16&NN19 -> 203510 | NO20: =NO16&NO19 -> 203511 | NP20: =NP16&NP19 -> 203512 | NR20: =NR16&NR19 -> 20361 | NS20: =NS16&NS19 -> 20362 | NT20: =NT16&NT19 -> 20363 | NU20: =NU16&NU19 -> 20364 | NV20: =NV16&NV19 -> 20365 | NW20: =NW16&NW19 -> 20366 | NX20: =NX16&NX19 -> 20367 | NY20: =NY16&NY19 -> 20368 | NZ20: =NZ16&NZ19 -> 20369 | OA20: =OA16&OA19 -> 203610 | OB20: =OB16&OB19 -> 203611 | OC20: =OC16&OC19 -> 203612 | OE20: =OE16&OE19 -> 20371 | OF20: =OF16&OF19 -> 20372 | OG20: =OG16&OG19 -> 20373 | OH20: =OH16&OH19 -> 20374 | OI20: =OI16&OI19 -> 20375 | OJ20: =OJ16&OJ19 -> 20376 | OK20: =OK16&OK19 -> 20377 | OL20: =OL16&OL19 -> 20378 | OM20: =OM16&OM19 -> 20379 | ON20: =ON16&ON19 -> 203710 | OO20: =OO16&OO19 -> 203711 | OP20: =OP16&OP19 -> 203712 | OR20: =OR16&OR19 -> 20381 | OS20: =OS16&OS19 -> 20382 | OT20: =OT16&OT19 -> 20383 | OU20: =OU16&OU19 -> 20384 | OV20: =OV16&OV19 -> 20385 | OW20: =OW16&OW19 -> 20386 | OX20: =OX16&OX19 -> 20387 | OY20: =OY16&OY19 -> 20388 | OZ20: =OZ16&OZ19 -> 20389 | PA20: =PA16&PA19 -> 203810 | PB20: =PB16&PB19 -> 203811 | PC20: =PC16&PC19 -> 203812 | PE20: =PE16&PE19 -> 20391 | PF20: =PF16&PF19 -> 20392 | PG20: =PG16&PG19 -> 20393 | PH20: =PH16&PH19 -> 20394 | PI20: =PI16&PI19 -> 20395 | PJ20: =PJ16&PJ19 -> 20396 | PK20: =PK16&PK19 -> 20397 | PL20: =PL16&PL19 -> 20398 | PM20: =PM16&PM19 -> 20399 | PN20: =PN16&PN19 -> 203910 | PO20: =PO16&PO19 -> 203911 | PP20: =PP16&PP19 -> 203912 | PR20: =PR16&PR19 -> 20401 | PS20: =PS16&PS19 -> 20402 | PT20: =PT16&PT19 -> 20403 | PU20: =PU16&PU19 -> 20404 | PV20: =PV16&PV19 -> 20405 | PW20: =PW16&PW19 -> 20406 | PX20: =PX16&PX19 -> 20407 | PY20: =PY16&PY19 -> 20408 | PZ20: =PZ16&PZ19 -> 20409 | QA20: =QA16&QA19 -> 204010 | QB20: =QB16&QB19 -> 204011 | QC20: =QC16&QC19 -> 204012 | QE20: =$E$16&QE19 -> 2007
A21: Ieņēmumi kopā | D21: =IF(D24=" "," ",SUM(E21:P21)) ->  | E21: =IF(E24=" "," ",(E22*(1-E25))) -> 0 | F21: =IF(F24=" "," ",(F22*(1-F25))) -> 0 | G21: 0 | H21: 0 | I21: 0 | J21: 0 | K21: 0 | L21: 0 | M21: 0 | N21: 0 | O21: =IF(O24=" "," ",(O22*(1-O25))) -> 0 | P21: 0 | Q21: =IF(Q24=" "," ",SUM(R21:AC21)) ->  | R21: =IF(R24=" "," ",(R22*(1-R25))) ->  | AD21: =IF(AD24=" "," ",SUM(AE21:AP21)) ->  | AE21: =IF(AE24=" "," ",(AE22*(1-AE25))) ->  | AQ21: =IF(AQ24=" "," ",SUM(AR21:BC21)) ->  | AR21: =IF(AR24=" "," ",(AR22*(1-AR25))) ->  | BD21: =IF(BD24=" "," ",SUM(BE21:BP21)) ->  | BE21: =IF(BE24=" "," ",(BE22*(1-BE25))) ->  | BQ21: =IF(BQ24=" "," ",SUM(BR21:CC21)) ->  | BR21: =IF(BR24=" "," ",(BR22*(1-BR25))) ->  | CQ21: =IF(CQ24=" "," ",SUM(CR21:DC21)) ->  | CR21: =IF(CR24=" "," ",(CR22*(1-CR25))) ->  | DD21: =IF(DD24=" "," ",SUM(DE21:DP21)) ->  | DE21: =IF(DE24=" "," ",(DE22*(1-DE25))) ->  | DQ21: =IF(DQ24=" "," ",SUM(DR21:EC21)) ->  | DR21: =IF(DR24=" "," ",(DR22*(1-DR25))) ->  | ED21: =IF(ED24=" "," ",SUM(EE21:EP21)) ->  | EE21: =IF(EE24=" "," ",(EE22*(1-EE25))) ->  | EQ21: =IF(EQ24=" "," ",SUM(ER21:FC21)) ->  | ER21: =IF(ER24=" "," ",(ER22*(1-ER25))) ->  | FD21: =IF(FD24=" "," ",SUM(FE21:FP21)) ->  | FE21: =IF(FE24=" "," ",(FE22*(1-FE25))) ->  | FQ21: =IF(FQ24=" "," ",SUM(FR21:GC21)) ->  | FR21: =IF(FR24=" "," ",(FR22*(1-FR25))) ->  | GD21: =IF(GD24=" "," ",SUM(GE21:GP21)) ->  | GE21: =IF(GE24=" "," ",(GE22*(1-GE25))) ->  | GQ21: =IF(GQ24=" "," ",SUM(GR21:HC21)) ->  | GR21: =IF(GR24=" "," ",(GR22*(1-GR25))) ->  | HD21: =IF(HD24=" "," ",SUM(HE21:HP21)) ->  | HE21: =IF(HE24=" "," ",(HE22*(1-HE25))) ->  | HQ21: =IF(HQ24=" "," ",SUM(HR21:IC21)) ->  | HR21: =IF(HR24=" "," ",(HR22*(1-HR25))) ->  | ID21: =IF(ID24=" "," ",SUM(IE21:IP21)) ->  | IE21: =IF(IE24=" "," ",(IE22*(1-IE25))) ->  | IQ21: =IF(IQ24=" "," ",SUM(IR21:JC21)) ->  | IR21: =IF(IR24=" "," ",(IR22*(1-IR25))) ->  | JD21: =IF(JD24=" "," ",SUM(JE21:JP21)) ->  | JE21: =IF(JE24=" "," ",(JE22*(1-JE25))) ->  | KK21: =IF(KK24=" "," ",(KK22*(1-KK25))) ->  | LQ21: =IF(LQ24=" "," ",(LQ22*(1-LQ25))) ->  | MW21: =IF(MW24=" "," ",(MW22*(1-MW25))) ->  | OC21: =IF(OC24=" "," ",(OC22*(1-OC25))) ->  | PI21: =IF(PI24=" "," ",(PI22*(1-PI25))) -> 
A22: Ieņēmumi no elektroenerģijas pārdošanas OI ietvaros | B22: EUR | D22: =IF(OR(D$18=" ",D$18=0)," ",SUM(E22:P22)) ->  | E22: =IF(OR(E24=" ",E24=0)," ",E23*ROUND(E24,2)) -> 0 | F22: =IF(OR(F24=" ",F24=0)," ",F23*ROUND(F24,2)) -> 0 | G22: 0 | H22: 0 | I22: 0 | J22: 0 | K22: 0 | L22: 0 | M22: 0 | N22: 0 | O22: 0 | P22: 0 | Q22: =IF(OR(Q$18=" ",Q$18=0)," ",SUM(R22:AC22)) ->  | R22: =IF(OR(R24=" ",R24=0)," ",R23*ROUND(R24,2)) ->  | S22: =IF(OR(S24=" ",S24=0)," ",S23*ROUND(S24,2)) ->  | T22: =IF(OR(T24=" ",T24=0)," ",T23*ROUND(T24,2)) ->  | U22: =IF(OR(U24=" ",U24=0)," ",U23*ROUND(U24,2)) ->  | V22: =IF(OR(V24=" ",V24=0)," ",V23*ROUND(V24,2)) ->  | W22: =IF(OR(W24=" ",W24=0)," ",W23*ROUND(W24,2)) ->  | X22: =IF(OR(X24=" ",X24=0)," ",X23*ROUND(X24,2)) ->  | Y22: =IF(OR(Y24=" ",Y24=0)," ",Y23*ROUND(Y24,2)) ->  | Z22: =IF(OR(Z24=" ",Z24=0)," ",Z23*ROUND(Z24,2)) ->  | AA22: =IF(OR(AA24=" ",AA24=0)," ",AA23*ROUND(AA24,2)) ->  | AB22: =IF(OR(AB24=" ",AB24=0)," ",AB23*ROUND(AB24,2)) ->  | AC22: =IF(OR(AC24=" ",AC24=0)," ",AC23*ROUND(AC24,2)) ->  | AD22: =IF(OR(AD$18=" ",AD$18=0)," ",SUM(AE22:AP22)) ->  | AE22: =IF(OR(AE24=" ",AE24=0)," ",AE23*ROUND(AE24,2)) ->  | AF22: =IF(OR(AF24=" ",AF24=0)," ",AF23*ROUND(AF24,2)) ->  | AG22: =IF(OR(AG24=" ",AG24=0)," ",AG23*ROUND(AG24,2)) ->  | AH22: =IF(OR(AH24=" ",AH24=0)," ",AH23*ROUND(AH24,2)) ->  | AI22: =IF(OR(AI24=" ",AI24=0)," ",AI23*ROUND(AI24,2)) ->  | AJ22: =IF(OR(AJ24=" ",AJ24=0)," ",AJ23*ROUND(AJ24,2)) ->  | AK22: =IF(OR(AK24=" ",AK24=0)," ",AK23*ROUND(AK24,2)) ->  | AL22: =IF(OR(AL24=" ",AL24=0)," ",AL23*ROUND(AL24,2)) ->  | AM22: =IF(OR(AM24=" ",AM24=0)," ",AM23*ROUND(AM24,2)) ->  | AN22: =IF(OR(AN24=" ",AN24=0)," ",AN23*ROUND(AN24,2)) ->  | AO22: =IF(OR(AO24=" ",AO24=0)," ",AO23*ROUND(AO24,2)) ->  | AP22: =IF(OR(AP24=" ",AP24=0)," ",AP23*ROUND(AP24,2)) ->  | AQ22: =IF(OR(AQ$18=" ",AQ$18=0)," ",SUM(AR22:BC22)) ->  | AR22: =IF(OR(AR24=" ",AR24=0)," ",AR23*ROUND(AR24,2)) ->  | AS22: =IF(OR(AS24=" ",AS24=0)," ",AS23*ROUND(AS24,2)) ->  | AT22: =IF(OR(AT24=" ",AT24=0)," ",AT23*ROUND(AT24,2)) ->  | AU22: =IF(OR(AU24=" ",AU24=0)," ",AU23*ROUND(AU24,2)) ->  | AV22: =IF(OR(AV24=" ",AV24=0)," ",AV23*ROUND(AV24,2)) ->  | AW22: =IF(OR(AW24=" ",AW24=0)," ",AW23*ROUND(AW24,2)) ->  | AX22: =IF(OR(AX24=" ",AX24=0)," ",AX23*ROUND(AX24,2)) ->  | AY22: =IF(OR(AY24=" ",AY24=0)," ",AY23*ROUND(AY24,2)) ->  | AZ22: =IF(OR(AZ24=" ",AZ24=0)," ",AZ23*ROUND(AZ24,2)) ->  | BA22: =IF(OR(BA24=" ",BA24=0)," ",BA23*ROUND(BA24,2)) ->  | BB22: =IF(OR(BB24=" ",BB24=0)," ",BB23*ROUND(BB24,2)) ->  | BC22: =IF(OR(BC24=" ",BC24=0)," ",BC23*ROUND(BC24,2)) ->  | BD22: =IF(OR(BD$18=" ",BD$18=0)," ",SUM(BE22:BP22)) ->  | BE22: =IF(OR(BE24=" ",BE24=0)," ",BE23*ROUND(BE24,2)) ->  | BF22: =IF(OR(BF24=" ",BF24=0)," ",BF23*ROUND(BF24,2)) ->  | BG22: =IF(OR(BG24=" ",BG24=0)," ",BG23*ROUND(BG24,2)) ->  | BH22: =IF(OR(BH24=" ",BH24=0)," ",BH23*ROUND(BH24,2)) ->  | BI22: =IF(OR(BI24=" ",BI24=0)," ",BI23*ROUND(BI24,2)) ->  | BJ22: =IF(OR(BJ24=" ",BJ24=0)," ",BJ23*ROUND(BJ24,2)) ->  | BK22: =IF(OR(BK24=" ",BK24=0)," ",BK23*ROUND(BK24,2)) ->  | BL22: =IF(OR(BL24=" ",BL24=0)," ",BL23*ROUND(BL24,2)) ->  | BM22: =IF(OR(BM24=" ",BM24=0)," ",BM23*ROUND(BM24,2)) ->  | BN22: =IF(OR(BN24=" ",BN24=0)," ",BN23*ROUND(BN24,2)) ->  | BO22: =IF(OR(BO24=" ",BO24=0)," ",BO23*ROUND(BO24,2)) ->  | BP22: =IF(OR(BP24=" ",BP24=0)," ",BP23*ROUND(BP24,2)) ->  | BQ22: =IF(OR(BQ$18=" ",BQ$18=0)," ",SUM(BR22:CC22)) ->  | BR22: =IF(OR(BR24=" ",BR24=0)," ",BR23*ROUND(BR24,2)) ->  | BS22: =IF(OR(BS24=" ",BS24=0)," ",BS23*ROUND(BS24,2)) ->  | BT22: =IF(OR(BT24=" ",BT24=0)," ",BT23*ROUND(BT24,2)) ->  | BU22: =IF(OR(BU24=" ",BU24=0)," ",BU23*ROUND(BU24,2)) ->  | BV22: =IF(OR(BV24=" ",BV24=0)," ",BV23*ROUND(BV24,2)) ->  | BW22: =IF(OR(BW24=" ",BW24=0)," ",BW23*ROUND(BW24,2)) ->  | BX22: =IF(OR(BX24=" ",BX24=0)," ",BX23*ROUND(BX24,2)) ->  | BY22: =IF(OR(BY24=" ",BY24=0)," ",BY23*ROUND(BY24,2)) ->  | BZ22: =IF(OR(BZ24=" ",BZ24=0)," ",BZ23*ROUND(BZ24,2)) ->  | CA22: =IF(OR(CA24=" ",CA24=0)," ",CA23*ROUND(CA24,2)) ->  | CB22: =IF(OR(CB24=" ",CB24=0)," ",CB23*ROUND(CB24,2)) ->  | CC22: =IF(OR(CC24=" ",CC24=0)," ",CC23*ROUND(CC24,2)) ->  | CD22: =IF(OR(CD$18=" ",CD$18=0)," ",SUM(CE22:CP22)) ->  | CE22: =IF(OR(CE24=" ",CE24=0)," ",CE23*ROUND(CE24,2)) ->  | CF22: =IF(OR(CF24=" ",CF24=0)," ",CF23*ROUND(CF24,2)) ->  | CG22: =IF(OR(CG24=" ",CG24=0)," ",CG23*ROUND(CG24,2)) ->  | CH22: =IF(OR(CH24=" ",CH24=0)," ",CH23*ROUND(CH24,2)) ->  | CI22: =IF(OR(CI24=" ",CI24=0)," ",CI23*ROUND(CI24,2)) ->  | CJ22: =IF(OR(CJ24=" ",CJ24=0)," ",CJ23*ROUND(CJ24,2)) ->  | CK22: =IF(OR(CK24=" ",CK24=0)," ",CK23*ROUND(CK24,2)) ->  | CL22: =IF(OR(CL24=" ",CL24=0)," ",CL23*ROUND(CL24,2)) ->  | CM22: =IF(OR(CM24=" ",CM24=0)," ",CM23*ROUND(CM24,2)) ->  | CN22: =IF(OR(CN24=" ",CN24=0)," ",CN23*ROUND(CN24,2)) ->  | CO22: =IF(OR(CO24=" ",CO24=0)," ",CO23*ROUND(CO24,2)) ->  | CP22: =IF(OR(CP24=" ",CP24=0)," ",CP23*ROUND(CP24,2)) ->  | CQ22: =IF(OR(CQ$18=" ",CQ$18=0)," ",SUM(CR22:DC22)) ->  | CR22: =IF(OR(CR24=" ",CR24=0)," ",CR23*ROUND(CR24,2)) ->  | CS22: =IF(OR(CS24=" ",CS24=0)," ",CS23*ROUND(CS24,2)) ->  | CT22: =IF(OR(CT24=" ",CT24=0)," ",CT23*ROUND(CT24,2)) ->  | CU22: =IF(OR(CU24=" ",CU24=0)," ",CU23*ROUND(CU24,2)) ->  | CV22: =IF(OR(CV24=" ",CV24=0)," ",CV23*ROUND(CV24,2)) ->  | CW22: =IF(OR(CW24=" ",CW24=0)," ",CW23*ROUND(CW24,2)) ->  | CX22: =IF(OR(CX24=" ",CX24=0)," ",CX23*ROUND(CX24,2)) ->  | CY22: =IF(OR(CY24=" ",CY24=0)," ",CY23*ROUND(CY24,2)) ->  | CZ22: =IF(OR(CZ24=" ",CZ24=0)," ",CZ23*ROUND(CZ24,2)) ->  | DA22: =IF(OR(DA24=" ",DA24=0)," ",DA23*ROUND(DA24,2)) ->  | DB22: =IF(OR(DB24=" ",DB24=0)," ",DB23*ROUND(DB24,2)) ->  | DC22: =IF(OR(DC24=" ",DC24=0)," ",DC23*ROUND(DC24,2)) ->  | DD22: =IF(OR(DD$18=" ",DD$18=0)," ",SUM(DE22:DP22)) ->  | DE22: =IF(OR(DE24=" ",DE24=0)," ",DE23*ROUND(DE24,2)) ->  | DF22: =IF(OR(DF24=" ",DF24=0)," ",DF23*ROUND(DF24,2)) ->  | DG22: =IF(OR(DG24=" ",DG24=0)," ",DG23*ROUND(DG24,2)) ->  | DH22: =IF(OR(DH24=" ",DH24=0)," ",DH23*ROUND(DH24,2)) ->  | DI22: =IF(OR(DI24=" ",DI24=0)," ",DI23*ROUND(DI24,2)) ->  | DJ22: =IF(OR(DJ24=" ",DJ24=0)," ",DJ23*ROUND(DJ24,2)) ->  | DK22: =IF(OR(DK24=" ",DK24=0)," ",DK23*ROUND(DK24,2)) ->  | DL22: =IF(OR(DL24=" ",DL24=0)," ",DL23*ROUND(DL24,2)) ->  | DM22: =IF(OR(DM24=" ",DM24=0)," ",DM23*ROUND(DM24,2)) ->  | DN22: =IF(OR(DN24=" ",DN24=0)," ",DN23*ROUND(DN24,2)) ->  | DO22: =IF(OR(DO24=" ",DO24=0)," ",DO23*ROUND(DO24,2)) ->  | DP22: =IF(OR(DP24=" ",DP24=0)," ",DP23*ROUND(DP24,2)) ->  | DQ22: =IF(OR(DQ$18=" ",DQ$18=0)," ",SUM(DR22:EC22)) ->  | DR22: =IF(OR(DR24=" ",DR24=0)," ",DR23*ROUND(DR24,2)) ->  | DS22: =IF(OR(DS24=" ",DS24=0)," ",DS23*ROUND(DS24,2)) ->  | DT22: =IF(OR(DT24=" ",DT24=0)," ",DT23*ROUND(DT24,2)) ->  | DU22: =IF(OR(DU24=" ",DU24=0)," ",DU23*ROUND(DU24,2)) ->  | DV22: =IF(OR(DV24=" ",DV24=0)," ",DV23*ROUND(DV24,2)) ->  | DW22: =IF(OR(DW24=" ",DW24=0)," ",DW23*ROUND(DW24,2)) ->  | DX22: =IF(OR(DX24=" ",DX24=0)," ",DX23*ROUND(DX24,2)) ->  | DY22: =IF(OR(DY24=" ",DY24=0)," ",DY23*ROUND(DY24,2)) ->  | DZ22: =IF(OR(DZ24=" ",DZ24=0)," ",DZ23*ROUND(DZ24,2)) ->  | EA22: =IF(OR(EA24=" ",EA24=0)," ",EA23*ROUND(EA24,2)) ->  | EB22: =IF(OR(EB24=" ",EB24=0)," ",EB23*ROUND(EB24,2)) ->  | EC22: =IF(OR(EC24=" ",EC24=0)," ",EC23*ROUND(EC24,2)) ->  | ED22: =IF(OR(ED$18=" ",ED$18=0)," ",SUM(EE22:EP22)) ->  | EE22: =IF(OR(EE24=" ",EE24=0)," ",EE23*ROUND(EE24,2)) ->  | EF22: =IF(OR(EF24=" ",EF24=0)," ",EF23*ROUND(EF24,2)) ->  | EG22: =IF(OR(EG24=" ",EG24=0)," ",EG23*ROUND(EG24,2)) ->  | EH22: =IF(OR(EH24=" ",EH24=0)," ",EH23*ROUND(EH24,2)) ->  | EI22: =IF(OR(EI24=" ",EI24=0)," ",EI23*ROUND(EI24,2)) ->  | EJ22: =IF(OR(EJ24=" ",EJ24=0)," ",EJ23*ROUND(EJ24,2)) ->  | EK22: =IF(OR(EK24=" ",EK24=0)," ",EK23*ROUND(EK24,2)) ->  | EL22: =IF(OR(EL24=" ",EL24=0)," ",EL23*ROUND(EL24,2)) ->  | EM22: =IF(OR(EM24=" ",EM24=0)," ",EM23*ROUND(EM24,2)) ->  | EN22: =IF(OR(EN24=" ",EN24=0)," ",EN23*ROUND(EN24,2)) ->  | EO22: =IF(OR(EO24=" ",EO24=0)," ",EO23*ROUND(EO24,2)) ->  | EP22: =IF(OR(EP24=" ",EP24=0)," ",EP23*ROUND(EP24,2)) ->  | EQ22: =IF(OR(EQ$18=" ",EQ$18=0)," ",SUM(ER22:FC22)) ->  | ER22: =IF(OR(ER24=" ",ER24=0)," ",ER23*ROUND(ER24,2)) ->  | ES22: =IF(OR(ES24=" ",ES24=0)," ",ES23*ROUND(ES24,2)) ->  | ET22: =IF(OR(ET24=" ",ET24=0)," ",ET23*ROUND(ET24,2)) ->  | EU22: =IF(OR(EU24=" ",EU24=0)," ",EU23*ROUND(EU24,2)) ->  | EV22: =IF(OR(EV24=" ",EV24=0)," ",EV23*ROUND(EV24,2)) ->  | EW22: =IF(OR(EW24=" ",EW24=0)," ",EW23*ROUND(EW24,2)) ->  | EX22: =IF(OR(EX24=" ",EX24=0)," ",EX23*ROUND(EX24,2)) ->  | EY22: =IF(OR(EY24=" ",EY24=0)," ",EY23*ROUND(EY24,2)) ->  | EZ22: =IF(OR(EZ24=" ",EZ24=0)," ",EZ23*ROUND(EZ24,2)) ->  | FA22: =IF(OR(FA24=" ",FA24=0)," ",FA23*ROUND(FA24,2)) ->  | FB22: =IF(OR(FB24=" ",FB24=0)," ",FB23*ROUND(FB24,2)) ->  | FC22: =IF(OR(FC24=" ",FC24=0)," ",FC23*ROUND(FC24,2)) ->  | FD22: =IF(OR(FD$18=" ",FD$18=0)," ",SUM(FE22:FP22)) ->  | FE22: =IF(OR(FE24=" ",FE24=0)," ",FE23*ROUND(FE24,2)) ->  | FF22: =IF(OR(FF24=" ",FF24=0)," ",FF23*ROUND(FF24,2)) ->  | FG22: =IF(OR(FG24=" ",FG24=0)," ",FG23*ROUND(FG24,2)) ->  | FH22: =IF(OR(FH24=" ",FH24=0)," ",FH23*ROUND(FH24,2)) ->  | FI22: =IF(OR(FI24=" ",FI24=0)," ",FI23*ROUND(FI24,2)) ->  | FJ22: =IF(OR(FJ24=" ",FJ24=0)," ",FJ23*ROUND(FJ24,2)) ->  | FK22: =IF(OR(FK24=" ",FK24=0)," ",FK23*ROUND(FK24,2)) ->  | FL22: =IF(OR(FL24=" ",FL24=0)," ",FL23*ROUND(FL24,2)) ->  | FM22: =IF(OR(FM24=" ",FM24=0)," ",FM23*ROUND(FM24,2)) ->  | FN22: =IF(OR(FN24=" ",FN24=0)," ",FN23*ROUND(FN24,2)) ->  | FO22: =IF(OR(FO24=" ",FO24=0)," ",FO23*ROUND(FO24,2)) ->  | FP22: =IF(OR(FP24=" ",FP24=0)," ",FP23*ROUND(FP24,2)) ->  | FQ22: =IF(OR(FQ$18=" ",FQ$18=0)," ",SUM(FR22:GC22)) ->  | FR22: =IF(OR(FR24=" ",FR24=0)," ",FR23*ROUND(FR24,2)) ->  | FS22: =IF(OR(FS24=" ",FS24=0)," ",FS23*ROUND(FS24,2)) ->  | FT22: =IF(OR(FT24=" ",FT24=0)," ",FT23*ROUND(FT24,2)) ->  | FU22: =IF(OR(FU24=" ",FU24=0)," ",FU23*ROUND(FU24,2)) ->  | FV22: =IF(OR(FV24=" ",FV24=0)," ",FV23*ROUND(FV24,2)) ->  | FW22: =IF(OR(FW24=" ",FW24=0)," ",FW23*ROUND(FW24,2)) ->  | FX22: =IF(OR(FX24=" ",FX24=0)," ",FX23*ROUND(FX24,2)) ->  | FY22: =IF(OR(FY24=" ",FY24=0)," ",FY23*ROUND(FY24,2)) ->  | FZ22: =IF(OR(FZ24=" ",FZ24=0)," ",FZ23*ROUND(FZ24,2)) ->  | GA22: =IF(OR(GA24=" ",GA24=0)," ",GA23*ROUND(GA24,2)) ->  | GB22: =IF(OR(GB24=" ",GB24=0)," ",GB23*ROUND(GB24,2)) ->  | GC22: =IF(OR(GC24=" ",GC24=0)," ",GC23*ROUND(GC24,2)) ->  | GD22: =IF(OR(GD$18=" ",GD$18=0)," ",SUM(GE22:GP22)) ->  | GE22: =IF(OR(GE24=" ",GE24=0)," ",GE23*ROUND(GE24,2)) ->  | GF22: =IF(OR(GF24=" ",GF24=0)," ",GF23*ROUND(GF24,2)) ->  | GG22: =IF(OR(GG24=" ",GG24=0)," ",GG23*ROUND(GG24,2)) ->  | GH22: =IF(OR(GH24=" ",GH24=0)," ",GH23*ROUND(GH24,2)) ->  | GI22: =IF(OR(GI24=" ",GI24=0)," ",GI23*ROUND(GI24,2)) ->  | GJ22: =IF(OR(GJ24=" ",GJ24=0)," ",GJ23*ROUND(GJ24,2)) ->  | GK22: =IF(OR(GK24=" ",GK24=0)," ",GK23*ROUND(GK24,2)) ->  | GL22: =IF(OR(GL24=" ",GL24=0)," ",GL23*ROUND(GL24,2)) ->  | GM22: =IF(OR(GM24=" ",GM24=0)," ",GM23*ROUND(GM24,2)) ->  | GN22: =IF(OR(GN24=" ",GN24=0)," ",GN23*ROUND(GN24,2)) ->  | GO22: =IF(OR(GO24=" ",GO24=0)," ",GO23*ROUND(GO24,2)) ->  | GP22: =IF(OR(GP24=" ",GP24=0)," ",GP23*ROUND(GP24,2)) ->  | GQ22: =IF(OR(GQ$18=" ",GQ$18=0)," ",SUM(GR22:HC22)) ->  | GR22: =IF(OR(GR24=" ",GR24=0)," ",GR23*ROUND(GR24,2)) ->  | GS22: =IF(OR(GS24=" ",GS24=0)," ",GS23*ROUND(GS24,2)) ->  | GT22: =IF(OR(GT24=" ",GT24=0)," ",GT23*ROUND(GT24,2)) ->  | GU22: =IF(OR(GU24=" ",GU24=0)," ",GU23*ROUND(GU24,2)) ->  | GV22: =IF(OR(GV24=" ",GV24=0)," ",GV23*ROUND(GV24,2)) ->  | GW22: =IF(OR(GW24=" ",GW24=0)," ",GW23*ROUND(GW24,2)) ->  | GX22: =IF(OR(GX24=" ",GX24=0)," ",GX23*ROUND(GX24,2)) ->  | GY22: =IF(OR(GY24=" ",GY24=0)," ",GY23*ROUND(GY24,2)) ->  | GZ22: =IF(OR(GZ24=" ",GZ24=0)," ",GZ23*ROUND(GZ24,2)) ->  | HA22: =IF(OR(HA24=" ",HA24=0)," ",HA23*ROUND(HA24,2)) ->  | HB22: =IF(OR(HB24=" ",HB24=0)," ",HB23*ROUND(HB24,2)) ->  | HC22: =IF(OR(HC24=" ",HC24=0)," ",HC23*ROUND(HC24,2)) ->  | HD22: =IF(OR(HD$18=" ",HD$18=0)," ",SUM(HE22:HP22)) ->  | HE22: =IF(OR(HE24=" ",HE24=0)," ",HE23*ROUND(HE24,2)) ->  | HF22: =IF(OR(HF24=" ",HF24=0)," ",HF23*ROUND(HF24,2)) ->  | HG22: =IF(OR(HG24=" ",HG24=0)," ",HG23*ROUND(HG24,2)) ->  | HH22: =IF(OR(HH24=" ",HH24=0)," ",HH23*ROUND(HH24,2)) ->  | HI22: =IF(OR(HI24=" ",HI24=0)," ",HI23*ROUND(HI24,2)) ->  | HJ22: =IF(OR(HJ24=" ",HJ24=0)," ",HJ23*ROUND(HJ24,2)) ->  | HK22: =IF(OR(HK24=" ",HK24=0)," ",HK23*ROUND(HK24,2)) ->  | HL22: =IF(OR(HL24=" ",HL24=0)," ",HL23*ROUND(HL24,2)) ->  | HM22: =IF(OR(HM24=" ",HM24=0)," ",HM23*ROUND(HM24,2)) ->  | HN22: =IF(OR(HN24=" ",HN24=0)," ",HN23*ROUND(HN24,2)) ->  | HO22: =IF(OR(HO24=" ",HO24=0)," ",HO23*ROUND(HO24,2)) ->  | HP22: =IF(OR(HP24=" ",HP24=0)," ",HP23*ROUND(HP24,2)) ->  | HQ22: =IF(OR(HQ$18=" ",HQ$18=0)," ",SUM(HR22:IC22)) ->  | HR22: =IF(OR(HR24=" ",HR24=0)," ",HR23*ROUND(HR24,2)) ->  | HS22: =IF(OR(HS24=" ",HS24=0)," ",HS23*ROUND(HS24,2)) ->  | HT22: =IF(OR(HT24=" ",HT24=0)," ",HT23*ROUND(HT24,2)) ->  | HU22: =IF(OR(HU24=" ",HU24=0)," ",HU23*ROUND(HU24,2)) ->  | HV22: =IF(OR(HV24=" ",HV24=0)," ",HV23*ROUND(HV24,2)) ->  | HW22: =IF(OR(HW24=" ",HW24=0)," ",HW23*ROUND(HW24,2)) ->  | HX22: =IF(OR(HX24=" ",HX24=0)," ",HX23*ROUND(HX24,2)) ->  | HY22: =IF(OR(HY24=" ",HY24=0)," ",HY23*ROUND(HY24,2)) ->  | HZ22: =IF(OR(HZ24=" ",HZ24=0)," ",HZ23*ROUND(HZ24,2)) ->  | IA22: =IF(OR(IA24=" ",IA24=0)," ",IA23*ROUND(IA24,2)) ->  | IB22: =IF(OR(IB24=" ",IB24=0)," ",IB23*ROUND(IB24,2)) ->  | IC22: =IF(OR(IC24=" ",IC24=0)," ",IC23*ROUND(IC24,2)) ->  | ID22: =IF(OR(ID$18=" ",ID$18=0)," ",SUM(IE22:IP22)) ->  | IE22: =IF(OR(IE24=" ",IE24=0)," ",IE23*ROUND(IE24,2)) ->  | IF22: =IF(OR(IF24=" ",IF24=0)," ",IF23*ROUND(IF24,2)) ->  | IG22: =IF(OR(IG24=" ",IG24=0)," ",IG23*ROUND(IG24,2)) ->  | IH22: =IF(OR(IH24=" ",IH24=0)," ",IH23*ROUND(IH24,2)) ->  | II22: =IF(OR(II24=" ",II24=0)," ",II23*ROUND(II24,2)) ->  | IJ22: =IF(OR(IJ24=" ",IJ24=0)," ",IJ23*ROUND(IJ24,2)) ->  | IK22: =IF(OR(IK24=" ",IK24=0)," ",IK23*ROUND(IK24,2)) ->  | IL22: =IF(OR(IL24=" ",IL24=0)," ",IL23*ROUND(IL24,2)) ->  | IM22: =IF(OR(IM24=" ",IM24=0)," ",IM23*ROUND(IM24,2)) ->  | IN22: =IF(OR(IN24=" ",IN24=0)," ",IN23*ROUND(IN24,2)) ->  | IO22: =IF(OR(IO24=" ",IO24=0)," ",IO23*ROUND(IO24,2)) ->  | IP22: =IF(OR(IP24=" ",IP24=0)," ",IP23*ROUND(IP24,2)) ->  | IQ22: =IF(OR(IQ$18=" ",IQ$18=0)," ",SUM(IR22:JC22)) ->  | IR22: =IF(OR(IR24=" ",IR24=0)," ",IR23*ROUND(IR24,2)) ->  | IS22: =IF(OR(IS24=" ",IS24=0)," ",IS23*ROUND(IS24,2)) ->  | IT22: =IF(OR(IT24=" ",IT24=0)," ",IT23*ROUND(IT24,2)) ->  | IU22: =IF(OR(IU24=" ",IU24=0)," ",IU23*ROUND(IU24,2)) ->  | IV22: =IF(OR(IV24=" ",IV24=0)," ",IV23*ROUND(IV24,2)) ->  | IW22: =IF(OR(IW24=" ",IW24=0)," ",IW23*ROUND(IW24,2)) ->  | IX22: =IF(OR(IX24=" ",IX24=0)," ",IX23*ROUND(IX24,2)) ->  | IY22: =IF(OR(IY24=" ",IY24=0)," ",IY23*ROUND(IY24,2)) ->  | IZ22: =IF(OR(IZ24=" ",IZ24=0)," ",IZ23*ROUND(IZ24,2)) ->  | JA22: =IF(OR(JA24=" ",JA24=0)," ",JA23*ROUND(JA24,2)) ->  | JB22: =IF(OR(JB24=" ",JB24=0)," ",JB23*ROUND(JB24,2)) ->  | JC22: =IF(OR(JC24=" ",JC24=0)," ",JC23*ROUND(JC24,2)) ->  | JD22: =IF(OR(JD$18=" ",JD$18=0)," ",SUM(JE22:JP22)) ->  | JE22: =IF(OR(JE24=" ",JE24=0)," ",JE23*ROUND(JE24,2)) ->  | JF22: =IF(OR(JF24=" ",JF24=0)," ",JF23*ROUND(JF24,2)) ->  | JG22: =IF(OR(JG24=" ",JG24=0)," ",JG23*ROUND(JG24,2)) ->  | JH22: =IF(OR(JH24=" ",JH24=0)," ",JH23*ROUND(JH24,2)) ->  | JI22: =IF(OR(JI24=" ",JI24=0)," ",JI23*ROUND(JI24,2)) ->  | JJ22: =IF(OR(JJ24=" ",JJ24=0)," ",JJ23*ROUND(JJ24,2)) ->  | JK22: =IF(OR(JK24=" ",JK24=0)," ",JK23*ROUND(JK24,2)) ->  | JL22: =IF(OR(JL24=" ",JL24=0)," ",JL23*ROUND(JL24,2)) ->  | JM22: =IF(OR(JM24=" ",JM24=0)," ",JM23*ROUND(JM24,2)) ->  | JN22: =IF(OR(JN24=" ",JN24=0)," ",JN23*ROUND(JN24,2)) ->  | JO22: =IF(OR(JO24=" ",JO24=0)," ",JO23*ROUND(JO24,2)) ->  | JP22: =IF(OR(JP24=" ",JP24=0)," ",JP23*ROUND(JP24,2)) ->  | JQ22: =IF(OR(JQ$18=" ",JQ$18=0)," ",SUM(JR22:KC22)) ->  | JR22: =IF(OR(JR24=" ",JR24=0)," ",JR23*ROUND(JR24,2)) ->  | JS22: =IF(OR(JS24=" ",JS24=0)," ",JS23*ROUND(JS24,2)) ->  | JT22: =IF(OR(JT24=" ",JT24=0)," ",JT23*ROUND(JT24,2)) ->  | JU22: =IF(OR(JU24=" ",JU24=0)," ",JU23*ROUND(JU24,2)) ->  | JV22: =IF(OR(JV24=" ",JV24=0)," ",JV23*ROUND(JV24,2)) ->  | JW22: =IF(OR(JW24=" ",JW24=0)," ",JW23*ROUND(JW24,2)) ->  | JX22: =IF(OR(JX24=" ",JX24=0)," ",JX23*ROUND(JX24,2)) ->  | JY22: =IF(OR(JY24=" ",JY24=0)," ",JY23*ROUND(JY24,2)) ->  | JZ22: =IF(OR(JZ24=" ",JZ24=0)," ",JZ23*ROUND(JZ24,2)) ->  | KA22: =IF(OR(KA24=" ",KA24=0)," ",KA23*ROUND(KA24,2)) ->  | KB22: =IF(OR(KB24=" ",KB24=0)," ",KB23*ROUND(KB24,2)) ->  | KC22: =IF(OR(KC24=" ",KC24=0)," ",KC23*ROUND(KC24,2)) ->  | KD22: =IF(OR(KD$18=" ",KD$18=0)," ",SUM(KE22:KP22)) ->  | KE22: =IF(OR(KE24=" ",KE24=0)," ",KE23*ROUND(KE24,2)) ->  | KF22: =IF(OR(KF24=" ",KF24=0)," ",KF23*ROUND(KF24,2)) ->  | KG22: =IF(OR(KG24=" ",KG24=0)," ",KG23*ROUND(KG24,2)) ->  | KH22: =IF(OR(KH24=" ",KH24=0)," ",KH23*ROUND(KH24,2)) ->  | KI22: =IF(OR(KI24=" ",KI24=0)," ",KI23*ROUND(KI24,2)) ->  | KJ22: =IF(OR(KJ24=" ",KJ24=0)," ",KJ23*ROUND(KJ24,2)) ->  | KK22: =IF(OR(KK24=" ",KK24=0)," ",KK23*ROUND(KK24,2)) ->  | KL22: =IF(OR(KL24=" ",KL24=0)," ",KL23*ROUND(KL24,2)) ->  | KM22: =IF(OR(KM24=" ",KM24=0)," ",KM23*ROUND(KM24,2)) ->  | KN22: =IF(OR(KN24=" ",KN24=0)," ",KN23*ROUND(KN24,2)) ->  | KO22: =IF(OR(KO24=" ",KO24=0)," ",KO23*ROUND(KO24,2)) ->  | KP22: =IF(OR(KP24=" ",KP24=0)," ",KP23*ROUND(KP24,2)) ->  | KQ22: =IF(OR(KQ$18=" ",KQ$18=0)," ",SUM(KR22:LC22)) ->  | KR22: =IF(OR(KR24=" ",KR24=0)," ",KR23*ROUND(KR24,2)) ->  | KS22: =IF(OR(KS24=" ",KS24=0)," ",KS23*ROUND(KS24,2)) ->  | KT22: =IF(OR(KT24=" ",KT24=0)," ",KT23*ROUND(KT24,2)) ->  | KU22: =IF(OR(KU24=" ",KU24=0)," ",KU23*ROUND(KU24,2)) ->  | KV22: =IF(OR(KV24=" ",KV24=0)," ",KV23*ROUND(KV24,2)) ->  | KW22: =IF(OR(KW24=" ",KW24=0)," ",KW23*ROUND(KW24,2)) ->  | KX22: =IF(OR(KX24=" ",KX24=0)," ",KX23*ROUND(KX24,2)) ->  | KY22: =IF(OR(KY24=" ",KY24=0)," ",KY23*ROUND(KY24,2)) ->  | KZ22: =IF(OR(KZ24=" ",KZ24=0)," ",KZ23*ROUND(KZ24,2)) ->  | LA22: =IF(OR(LA24=" ",LA24=0)," ",LA23*ROUND(LA24,2)) ->  | LB22: =IF(OR(LB24=" ",LB24=0)," ",LB23*ROUND(LB24,2)) ->  | LC22: =IF(OR(LC24=" ",LC24=0)," ",LC23*ROUND(LC24,2)) ->  | LD22: =IF(OR(LD$18=" ",LD$18=0)," ",SUM(LE22:LP22)) ->  | LE22: =IF(OR(LE24=" ",LE24=0)," ",LE23*ROUND(LE24,2)) ->  | LF22: =IF(OR(LF24=" ",LF24=0)," ",LF23*ROUND(LF24,2)) ->  | LG22: =IF(OR(LG24=" ",LG24=0)," ",LG23*ROUND(LG24,2)) ->  | LH22: =IF(OR(LH24=" ",LH24=0)," ",LH23*ROUND(LH24,2)) ->  | LI22: =IF(OR(LI24=" ",LI24=0)," ",LI23*ROUND(LI24,2)) ->  | LJ22: =IF(OR(LJ24=" ",LJ24=0)," ",LJ23*ROUND(LJ24,2)) ->  | LK22: =IF(OR(LK24=" ",LK24=0)," ",LK23*ROUND(LK24,2)) ->  | LL22: =IF(OR(LL24=" ",LL24=0)," ",LL23*ROUND(LL24,2)) ->  | LM22: =IF(OR(LM24=" ",LM24=0)," ",LM23*ROUND(LM24,2)) ->  | LN22: =IF(OR(LN24=" ",LN24=0)," ",LN23*ROUND(LN24,2)) ->  | LO22: =IF(OR(LO24=" ",LO24=0)," ",LO23*ROUND(LO24,2)) ->  | LP22: =IF(OR(LP24=" ",LP24=0)," ",LP23*ROUND(LP24,2)) ->  | LQ22: =IF(OR(LQ$18=" ",LQ$18=0)," ",SUM(LR22:MC22)) ->  | LR22: =IF(OR(LR24=" ",LR24=0)," ",LR23*ROUND(LR24,2)) ->  | LS22: =IF(OR(LS24=" ",LS24=0)," ",LS23*ROUND(LS24,2)) ->  | LT22: =IF(OR(LT24=" ",LT24=0)," ",LT23*ROUND(LT24,2)) ->  | LU22: =IF(OR(LU24=" ",LU24=0)," ",LU23*ROUND(LU24,2)) ->  | LV22: =IF(OR(LV24=" ",LV24=0)," ",LV23*ROUND(LV24,2)) ->  | LW22: =IF(OR(LW24=" ",LW24=0)," ",LW23*ROUND(LW24,2)) ->  | LX22: =IF(OR(LX24=" ",LX24=0)," ",LX23*ROUND(LX24,2)) ->  | LY22: =IF(OR(LY24=" ",LY24=0)," ",LY23*ROUND(LY24,2)) ->  | LZ22: =IF(OR(LZ24=" ",LZ24=0)," ",LZ23*ROUND(LZ24,2)) ->  | MA22: =IF(OR(MA24=" ",MA24=0)," ",MA23*ROUND(MA24,2)) ->  | MB22: =IF(OR(MB24=" ",MB24=0)," ",MB23*ROUND(MB24,2)) ->  | MC22: =IF(OR(MC24=" ",MC24=0)," ",MC23*ROUND(MC24,2)) ->  | MD22: =IF(OR(MD$18=" ",MD$18=0)," ",SUM(ME22:MP22)) ->  | ME22: =IF(OR(ME24=" ",ME24=0)," ",ME23*ROUND(ME24,2)) ->  | MF22: =IF(OR(MF24=" ",MF24=0)," ",MF23*ROUND(MF24,2)) ->  | MG22: =IF(OR(MG24=" ",MG24=0)," ",MG23*ROUND(MG24,2)) ->  | MH22: =IF(OR(MH24=" ",MH24=0)," ",MH23*ROUND(MH24,2)) ->  | MI22: =IF(OR(MI24=" ",MI24=0)," ",MI23*ROUND(MI24,2)) ->  | MJ22: =IF(OR(MJ24=" ",MJ24=0)," ",MJ23*ROUND(MJ24,2)) ->  | MK22: =IF(OR(MK24=" ",MK24=0)," ",MK23*ROUND(MK24,2)) ->  | ML22: =IF(OR(ML24=" ",ML24=0)," ",ML23*ROUND(ML24,2)) ->  | MM22: =IF(OR(MM24=" ",MM24=0)," ",MM23*ROUND(MM24,2)) ->  | MN22: =IF(OR(MN24=" ",MN24=0)," ",MN23*ROUND(MN24,2)) ->  | MO22: =IF(OR(MO24=" ",MO24=0)," ",MO23*ROUND(MO24,2)) ->  | MP22: =IF(OR(MP24=" ",MP24=0)," ",MP23*ROUND(MP24,2)) ->  | MQ22: =IF(OR(MQ$18=" ",MQ$18=0)," ",SUM(MR22:NC22)) ->  | MR22: =IF(OR(MR24=" ",MR24=0)," ",MR23*ROUND(MR24,2)) ->  | MS22: =IF(OR(MS24=" ",MS24=0)," ",MS23*ROUND(MS24,2)) ->  | MT22: =IF(OR(MT24=" ",MT24=0)," ",MT23*ROUND(MT24,2)) ->  | MU22: =IF(OR(MU24=" ",MU24=0)," ",MU23*ROUND(MU24,2)) ->  | MV22: =IF(OR(MV24=" ",MV24=0)," ",MV23*ROUND(MV24,2)) ->  | MW22: =IF(OR(MW24=" ",MW24=0)," ",MW23*ROUND(MW24,2)) ->  | MX22: =IF(OR(MX24=" ",MX24=0)," ",MX23*ROUND(MX24,2)) ->  | MY22: =IF(OR(MY24=" ",MY24=0)," ",MY23*ROUND(MY24,2)) ->  | MZ22: =IF(OR(MZ24=" ",MZ24=0)," ",MZ23*ROUND(MZ24,2)) ->  | NA22: =IF(OR(NA24=" ",NA24=0)," ",NA23*ROUND(NA24,2)) ->  | NB22: =IF(OR(NB24=" ",NB24=0)," ",NB23*ROUND(NB24,2)) ->  | NC22: =IF(OR(NC24=" ",NC24=0)," ",NC23*ROUND(NC24,2)) ->  | ND22: =IF(OR(ND$18=" ",ND$18=0)," ",SUM(NE22:NP22)) ->  | NE22: =IF(OR(NE24=" ",NE24=0)," ",NE23*ROUND(NE24,2)) ->  | NF22: =IF(OR(NF24=" ",NF24=0)," ",NF23*ROUND(NF24,2)) ->  | NG22: =IF(OR(NG24=" ",NG24=0)," ",NG23*ROUND(NG24,2)) ->  | NH22: =IF(OR(NH24=" ",NH24=0)," ",NH23*ROUND(NH24,2)) ->  | NI22: =IF(OR(NI24=" ",NI24=0)," ",NI23*ROUND(NI24,2)) ->  | NJ22: =IF(OR(NJ24=" ",NJ24=0)," ",NJ23*ROUND(NJ24,2)) ->  | NK22: =IF(OR(NK24=" ",NK24=0)," ",NK23*ROUND(NK24,2)) ->  | NL22: =IF(OR(NL24=" ",NL24=0)," ",NL23*ROUND(NL24,2)) ->  | NM22: =IF(OR(NM24=" ",NM24=0)," ",NM23*ROUND(NM24,2)) ->  | NN22: =IF(OR(NN24=" ",NN24=0)," ",NN23*ROUND(NN24,2)) ->  | NO22: =IF(OR(NO24=" ",NO24=0)," ",NO23*ROUND(NO24,2)) ->  | NP22: =IF(OR(NP24=" ",NP24=0)," ",NP23*ROUND(NP24,2)) ->  | NQ22: =IF(OR(NQ$18=" ",NQ$18=0)," ",SUM(NR22:OC22)) ->  | NR22: =IF(OR(NR24=" ",NR24=0)," ",NR23*ROUND(NR24,2)) ->  | NS22: =IF(OR(NS24=" ",NS24=0)," ",NS23*ROUND(NS24,2)) ->  | NT22: =IF(OR(NT24=" ",NT24=0)," ",NT23*ROUND(NT24,2)) ->  | NU22: =IF(OR(NU24=" ",NU24=0)," ",NU23*ROUND(NU24,2)) ->  | NV22: =IF(OR(NV24=" ",NV24=0)," ",NV23*ROUND(NV24,2)) ->  | NW22: =IF(OR(NW24=" ",NW24=0)," ",NW23*ROUND(NW24,2)) ->  | NX22: =IF(OR(NX24=" ",NX24=0)," ",NX23*ROUND(NX24,2)) ->  | NY22: =IF(OR(NY24=" ",NY24=0)," ",NY23*ROUND(NY24,2)) ->  | NZ22: =IF(OR(NZ24=" ",NZ24=0)," ",NZ23*ROUND(NZ24,2)) ->  | OA22: =IF(OR(OA24=" ",OA24=0)," ",OA23*ROUND(OA24,2)) ->  | OB22: =IF(OR(OB24=" ",OB24=0)," ",OB23*ROUND(OB24,2)) ->  | OC22: =IF(OR(OC24=" ",OC24=0)," ",OC23*ROUND(OC24,2)) ->  | OD22: =IF(OR(OD$18=" ",OD$18=0)," ",SUM(OE22:OP22)) ->  | OE22: =IF(OR(OE24=" ",OE24=0)," ",OE23*ROUND(OE24,2)) ->  | OF22: =IF(OR(OF24=" ",OF24=0)," ",OF23*ROUND(OF24,2)) ->  | OG22: =IF(OR(OG24=" ",OG24=0)," ",OG23*ROUND(OG24,2)) ->  | OH22: =IF(OR(OH24=" ",OH24=0)," ",OH23*ROUND(OH24,2)) ->  | OI22: =IF(OR(OI24=" ",OI24=0)," ",OI23*ROUND(OI24,2)) ->  | OJ22: =IF(OR(OJ24=" ",OJ24=0)," ",OJ23*ROUND(OJ24,2)) ->  | OK22: =IF(OR(OK24=" ",OK24=0)," ",OK23*ROUND(OK24,2)) ->  | OL22: =IF(OR(OL24=" ",OL24=0)," ",OL23*ROUND(OL24,2)) ->  | OM22: =IF(OR(OM24=" ",OM24=0)," ",OM23*ROUND(OM24,2)) ->  | ON22: =IF(OR(ON24=" ",ON24=0)," ",ON23*ROUND(ON24,2)) ->  | OO22: =IF(OR(OO24=" ",OO24=0)," ",OO23*ROUND(OO24,2)) ->  | OP22: =IF(OR(OP24=" ",OP24=0)," ",OP23*ROUND(OP24,2)) ->  | OQ22: =IF(OR(OQ$18=" ",OQ$18=0)," ",SUM(OR22:PC22)) ->  | OR22: =IF(OR(OR24=" ",OR24=0)," ",OR23*ROUND(OR24,2)) ->  | OS22: =IF(OR(OS24=" ",OS24=0)," ",OS23*ROUND(OS24,2)) ->  | OT22: =IF(OR(OT24=" ",OT24=0)," ",OT23*ROUND(OT24,2)) ->  | OU22: =IF(OR(OU24=" ",OU24=0)," ",OU23*ROUND(OU24,2)) ->  | OV22: =IF(OR(OV24=" ",OV24=0)," ",OV23*ROUND(OV24,2)) ->  | OW22: =IF(OR(OW24=" ",OW24=0)," ",OW23*ROUND(OW24,2)) ->  | OX22: =IF(OR(OX24=" ",OX24=0)," ",OX23*ROUND(OX24,2)) ->  | OY22: =IF(OR(OY24=" ",OY24=0)," ",OY23*ROUND(OY24,2)) ->  | OZ22: =IF(OR(OZ24=" ",OZ24=0)," ",OZ23*ROUND(OZ24,2)) ->  | PA22: =IF(OR(PA24=" ",PA24=0)," ",PA23*ROUND(PA24,2)) ->  | PB22: =IF(OR(PB24=" ",PB24=0)," ",PB23*ROUND(PB24,2)) ->  | PC22: =IF(OR(PC24=" ",PC24=0)," ",PC23*ROUND(PC24,2)) ->  | PD22: =IF(OR(PD$18=" ",PD$18=0)," ",SUM(PE22:PP22)) ->  | PE22: =IF(OR(PE24=" ",PE24=0)," ",PE23*ROUND(PE24,2)) ->  | PF22: =IF(OR(PF24=" ",PF24=0)," ",PF23*ROUND(PF24,2)) ->  | PG22: =IF(OR(PG24=" ",PG24=0)," ",PG23*ROUND(PG24,2)) ->  | PH22: =IF(OR(PH24=" ",PH24=0)," ",PH23*ROUND(PH24,2)) ->  | PI22: =IF(OR(PI24=" ",PI24=0)," ",PI23*ROUND(PI24,2)) ->  | PJ22: =IF(OR(PJ24=" ",PJ24=0)," ",PJ23*ROUND(PJ24,2)) ->  | PK22: =IF(OR(PK24=" ",PK24=0)," ",PK23*ROUND(PK24,2)) ->  | PL22: =IF(OR(PL24=" ",PL24=0)," ",PL23*ROUND(PL24,2)) ->  | PM22: =IF(OR(PM24=" ",PM24=0)," ",PM23*ROUND(PM24,2)) ->  | PN22: =IF(OR(PN24=" ",PN24=0)," ",PN23*ROUND(PN24,2)) ->  | PO22: =IF(OR(PO24=" ",PO24=0)," ",PO23*ROUND(PO24,2)) ->  | PP22: =IF(OR(PP24=" ",PP24=0)," ",PP23*ROUND(PP24,2)) ->  | PQ22: =IF(OR(PQ$18=" ",PQ$18=0)," ",SUM(PR22:QC22)) ->  | PR22: =IF(OR(PR24=" ",PR24=0)," ",PR23*ROUND(PR24,2)) ->  | PS22: =IF(OR(PS24=" ",PS24=0)," ",PS23*ROUND(PS24,2)) ->  | PT22: =IF(OR(PT24=" ",PT24=0)," ",PT23*ROUND(PT24,2)) ->  | PU22: =IF(OR(PU24=" ",PU24=0)," ",PU23*ROUND(PU24,2)) ->  | PV22: =IF(OR(PV24=" ",PV24=0)," ",PV23*ROUND(PV24,2)) ->  | PW22: =IF(OR(PW24=" ",PW24=0)," ",PW23*ROUND(PW24,2)) ->  | PX22: =IF(OR(PX24=" ",PX24=0)," ",PX23*ROUND(PX24,2)) ->  | PY22: =IF(OR(PY24=" ",PY24=0)," ",PY23*ROUND(PY24,2)) ->  | PZ22: =IF(OR(PZ24=" ",PZ24=0)," ",PZ23*ROUND(PZ24,2)) ->  | QA22: =IF(OR(QA24=" ",QA24=0)," ",QA23*ROUND(QA24,2)) ->  | QB22: =IF(OR(QB24=" ",QB24=0)," ",QB23*ROUND(QB24,2)) ->  | QC22: =IF(OR(QC24=" ",QC24=0)," ",QC23*ROUND(QC24,2)) -> 
A23: Pārdotais elektroenerģijas apjoms | B23: MWh | D23: =IF(OR(D$18=" ",D$18=0)," ",SUM(E23:P23)) ->  | E23: =IF(OR(E24=" ",E24=0)," ",MIN($C$14/12,$BD$6*$C$8/12)) -> 0 | F23: =IF(OR(F24=" ",F24=0)," ",MIN($C$14/12,$BD$6*$C$8/12)) -> 0 | G23: 0 | H23: 0 | I23: 0 | J23: 0 | K23: 0 | L23: 0 | M23: 0 | N23: 0 | O23: 0 | P23: 0 | Q23: =IF(OR(Q$18=" ",Q$18=0)," ",SUM(R23:AC23)) ->  | R23: =IF(OR(R24=" ",R24=0)," ",MIN($C$14/12,$BD$6*$C$8/12)) ->  | S23: =IF(OR(S24=" ",S24=0)," ",MIN($C$14/12,$BD$6*$C$8/12)) ->  | T23: =IF(OR(T24=" ",T24=0)," ",MIN($C$14/12,$BD$6*$C$8/12)) ->  | U23: =IF(OR(U24=" ",U24=0)," ",MIN($C$14/12,$BD$6*$C$8/12)) ->  | V23: =IF(OR(V24=" ",V24=0)," ",MIN($C$14/12,$BD$6*$C$8/12)) ->  | W23: =IF(OR(W24=" ",W24=0)," ",MIN($C$14/12,$BD$6*$C$8/12)) ->  | X23: =IF(OR(X24=" ",X24=0)," ",MIN($C$14/12,$BD$6*$C$8/12)) ->  | Y23: =IF(OR(Y24=" ",Y24=0)," ",MIN($C$14/12,$BD$6*$C$8/12)) ->  | Z23: =IF(OR(Z24=" ",Z24=0)," ",MIN($C$14/12,$BD$6*$C$8/12)) ->  | AA23: =IF(OR(AA24=" ",AA24=0)," ",MIN($C$14/12,$BD$6*$C$8/12)) ->  | AB23: =IF(OR(AB24=" ",AB24=0)," ",MIN($C$14/12,$BD$6*$C$8/12)) ->  | AC23: =IF(OR(AC24=" ",AC24=0)," ",MIN($C$14/12,$BD$6*$C$8/12)) ->  | AD23: =IF(OR(AD$18=" ",AD$18=0)," ",SUM(AE23:AP23)) ->  | AE23: =IF(OR(AE24=" ",AE24=0)," ",MIN($C$14/12,$BD$6*$C$8/12)) ->  | AF23: =IF(OR(AF24=" ",AF24=0)," ",MIN($C$14/12,$BD$6*$C$8/12)) ->  | AG23: =IF(OR(AG24=" ",AG24=0)," ",MIN($C$14/12,$BD$6*$C$8/12)) ->  | AH23: =IF(OR(AH24=" ",AH24=0)," ",MIN($C$14/12,$BD$6*$C$8/12)) ->  | AI23: =IF(OR(AI24=" ",AI24=0)," ",MIN($C$14/12,$BD$6*$C$8/12)) ->  | AJ23: =IF(OR(AJ24=" ",AJ24=0)," ",MIN($C$14/12,$BD$6*$C$8/12)) ->  | AK23: =IF(OR(AK24=" ",AK24=0)," ",MIN($C$14/12,$BD$6*$C$8/12)) ->  | AL23: =IF(OR(AL24=" ",AL24=0)," ",MIN($C$14/12,$BD$6*$C$8/12)) ->  | AM23: =IF(OR(AM24=" ",AM24=0)," ",MIN($C$14/12,$BD$6*$C$8/12)) ->  | AN23: =IF(OR(AN24=" ",AN24=0)," ",MIN($C$14/12,$BD$6*$C$8/12)) ->  | AO23: =IF(OR(AO24=" ",AO24=0)," ",MIN($C$14/12,$BD$6*$C$8/12)) ->  | AP23: =IF(OR(AP24=" ",AP24=0)," ",MIN($C$14/12,$BD$6*$C$8/12)) ->  | AQ23: =IF(OR(AQ$18=" ",AQ$18=0)," ",SUM(AR23:BC23)) ->  | AR23: =IF(OR(AR24=" ",AR24=0)," ",MIN($C$14/12,$BD$6*$C$8/12)) ->  | AS23: =IF(OR(AS24=" ",AS24=0)," ",MIN($C$14/12,$BD$6*$C$8/12)) ->  | AT23: =IF(OR(AT24=" ",AT24=0)," ",MIN($C$14/12,$BD$6*$C$8/12)) ->  | AU23: =IF(OR(AU24=" ",AU24=0)," ",MIN($C$14/12,$BD$6*$C$8/12)) ->  | AV23: =IF(OR(AV24=" ",AV24=0)," ",MIN($C$14/12,$BD$6*$C$8/12)) ->  | AW23: =IF(OR(AW24=" ",AW24=0)," ",MIN($C$14/12,$BD$6*$C$8/12)) ->  | AX23: =IF(OR(AX24=" ",AX24=0)," ",MIN($C$14/12,$BD$6*$C$8/12)) ->  | AY23: =IF(OR(AY24=" ",AY24=0)," ",MIN($C$14/12,$BD$6*$C$8/12)) ->  | AZ23: =IF(OR(AZ24=" ",AZ24=0)," ",MIN($C$14/12,$BD$6*$C$8/12)) ->  | BA23: =IF(OR(BA24=" ",BA24=0)," ",MIN($C$14/12,$BD$6*$C$8/12)) ->  | BB23: =IF(OR(BB24=" ",BB24=0)," ",MIN($C$14/12,$BD$6*$C$8/12)) ->  | BC23: =IF(OR(BC24=" ",BC24=0)," ",MIN($C$14/12,$BD$6*$C$8/12)) ->  | BD23: =IF(OR(BD$18=" ",BD$18=0)," ",SUM(BE23:BP23)) ->  | BE23: =IF(OR(BE24=" ",BE24=0)," ",MIN($C$14/12,$BD$6*$C$8/12)) ->  | BF23: =IF(OR(BF24=" ",BF24=0)," ",MIN($C$14/12,$BD$6*$C$8/12)) ->  | BG23: =IF(OR(BG24=" ",BG24=0)," ",MIN($C$14/12,$BD$6*$C$8/12)) ->  | BH23: =IF(OR(BH24=" ",BH24=0)," ",MIN($C$14/12,$BD$6*$C$8/12)) ->  | BI23: =IF(OR(BI24=" ",BI24=0)," ",MIN($C$14/12,$BD$6*$C$8/12)) ->  | BJ23: =IF(OR(BJ24=" ",BJ24=0)," ",MIN($C$14/12,$BD$6*$C$8/12)) ->  | BK23: =IF(OR(BK24=" ",BK24=0)," ",MIN($C$14/12,$BD$6*$C$8/12)) ->  | BL23: =IF(OR(BL24=" ",BL24=0)," ",MIN($C$14/12,$BD$6*$C$8/12)) ->  | BM23: =IF(OR(BM24=" ",BM24=0)," ",MIN($C$14/12,$BD$6*$C$8/12)) ->  | BN23: =IF(OR(BN24=" ",BN24=0)," ",MIN($C$14/12,$BD$6*$C$8/12)) ->  | BO23: =IF(OR(BO24=" ",BO24=0)," ",MIN($C$14/12,$BD$6*$C$8/12)) ->  | BP23: =IF(OR(BP24=" ",BP24=0)," ",MIN($C$14/12,$BD$6*$C$8/12)) ->  | BQ23: =IF(OR(BQ$18=" ",BQ$18=0)," ",SUM(BR23:CC23)) ->  | BR23: =IF(OR(BR24=" ",BR24=0)," ",MIN($C$14/12,$BD$6*$C$8/12)) ->  | BS23: =IF(OR(BS24=" ",BS24=0)," ",MIN($C$14/12,$BD$6*$C$8/12)) ->  | BT23: =IF(OR(BT24=" ",BT24=0)," ",MIN($C$14/12,$BD$6*$C$8/12)) ->  | BU23: =IF(OR(BU24=" ",BU24=0)," ",MIN($C$14/12,$BD$6*$C$8/12)) ->  | BV23: =IF(OR(BV24=" ",BV24=0)," ",MIN($C$14/12,$BD$6*$C$8/12)) ->  | BW23: =IF(OR(BW24=" ",BW24=0)," ",MIN($C$14/12,$BD$6*$C$8/12)) ->  | BX23: =IF(OR(BX24=" ",BX24=0)," ",MIN($C$14/12,$BD$6*$C$8/12)) ->  | BY23: =IF(OR(BY24=" ",BY24=0)," ",MIN($C$14/12,$BD$6*$C$8/12)) ->  | BZ23: =IF(OR(BZ24=" ",BZ24=0)," ",MIN($C$14/12,$BD$6*$C$8/12)) ->  | CA23: =IF(OR(CA24=" ",CA24=0)," ",MIN($C$14/12,$BD$6*$C$8/12)) ->  | CB23: =IF(OR(CB24=" ",CB24=0)," ",MIN($C$14/12,$BD$6*$C$8/12)) ->  | CC23: =IF(OR(CC24=" ",CC24=0)," ",MIN($C$14/12,$BD$6*$C$8/12)) ->  | CD23: =IF(OR(CD$18=" ",CD$18=0)," ",SUM(CE23:CP23)) ->  | CE23: =IF(OR(CE24=" ",CE24=0)," ",MIN($C$14/12,$BD$6*$C$8/12)) ->  | CF23: =IF(OR(CF24=" ",CF24=0)," ",MIN($C$14/12,$BD$6*$C$8/12)) ->  | CG23: =IF(OR(CG24=" ",CG24=0)," ",MIN($C$14/12,$BD$6*$C$8/12)) ->  | CH23: =IF(OR(CH24=" ",CH24=0)," ",MIN($C$14/12,$BD$6*$C$8/12)) ->  | CI23: =IF(OR(CI24=" ",CI24=0)," ",MIN($C$14/12,$BD$6*$C$8/12)) ->  | CJ23: =IF(OR(CJ24=" ",CJ24=0)," ",MIN($C$14/12,$BD$6*$C$8/12)) ->  | CK23: =IF(OR(CK24=" ",CK24=0)," ",MIN($C$14/12,$BD$6*$C$8/12)) ->  | CL23: =IF(OR(CL24=" ",CL24=0)," ",MIN($C$14/12,$BD$6*$C$8/12)) ->  | CM23: =IF(OR(CM24=" ",CM24=0)," ",MIN($C$14/12,$BD$6*$C$8/12)) ->  | CN23: =IF(OR(CN24=" ",CN24=0)," ",MIN($C$14/12,$BD$6*$C$8/12)) ->  | CO23: =IF(OR(CO24=" ",CO24=0)," ",MIN($C$14/12,$BD$6*$C$8/12)) ->  | CP23: =IF(OR(CP24=" ",CP24=0)," ",MIN($C$14/12,$BD$6*$C$8/12)) ->  | CQ23: =IF(OR(CQ$18=" ",CQ$18=0)," ",SUM(CR23:DC23)) ->  | CR23: =IF(OR(CR24=" ",CR24=0)," ",MIN($C$14/12,$BD$6*$C$8/12)) ->  | CS23: =IF(OR(CS24=" ",CS24=0)," ",MIN($C$14/12,$BD$6*$C$8/12)) ->  | CT23: =IF(OR(CT24=" ",CT24=0)," ",MIN($C$14/12,$BD$6*$C$8/12)) ->  | CU23: =IF(OR(CU24=" ",CU24=0)," ",MIN($C$14/12,$BD$6*$C$8/12)) ->  | CV23: =IF(OR(CV24=" ",CV24=0)," ",MIN($C$14/12,$BD$6*$C$8/12)) ->  | CW23: =IF(OR(CW24=" ",CW24=0)," ",MIN($C$14/12,$BD$6*$C$8/12)) ->  | CX23: =IF(OR(CX24=" ",CX24=0)," ",MIN($C$14/12,$BD$6*$C$8/12)) ->  | CY23: =IF(OR(CY24=" ",CY24=0)," ",MIN($C$14/12,$BD$6*$C$8/12)) ->  | CZ23: =IF(OR(CZ24=" ",CZ24=0)," ",MIN($C$14/12,$BD$6*$C$8/12)) ->  | DA23: =IF(OR(DA24=" ",DA24=0)," ",MIN($C$14/12,$BD$6*$C$8/12)) ->  | DB23: =IF(OR(DB24=" ",DB24=0)," ",MIN($C$14/12,$BD$6*$C$8/12)) ->  | DC23: =IF(OR(DC24=" ",DC24=0)," ",MIN($C$14/12,$BD$6*$C$8/12)) ->  | DD23: =IF(OR(DD$18=" ",DD$18=0)," ",SUM(DE23:DP23)) ->  | DE23: =IF(OR(DE24=" ",DE24=0)," ",MIN($C$14/12,$BD$6*$C$8/12)) ->  | DF23: =IF(OR(DF24=" ",DF24=0)," ",MIN($C$14/12,$BD$6*$C$8/12)) ->  | DG23: =IF(OR(DG24=" ",DG24=0)," ",MIN($C$14/12,$BD$6*$C$8/12)) ->  | DH23: =IF(OR(DH24=" ",DH24=0)," ",MIN($C$14/12,$BD$6*$C$8/12)) ->  | DI23: =IF(OR(DI24=" ",DI24=0)," ",MIN($C$14/12,$BD$6*$C$8/12)) ->  | DJ23: =IF(OR(DJ24=" ",DJ24=0)," ",MIN($C$14/12,$BD$6*$C$8/12)) ->  | DK23: =IF(OR(DK24=" ",DK24=0)," ",MIN($C$14/12,$BD$6*$C$8/12)) ->  | DL23: =IF(OR(DL24=" ",DL24=0)," ",MIN($C$14/12,$BD$6*$C$8/12)) ->  | DM23: =IF(OR(DM24=" ",DM24=0)," ",MIN($C$14/12,$BD$6*$C$8/12)) ->  | DN23: =IF(OR(DN24=" ",DN24=0)," ",MIN($C$14/12,$BD$6*$C$8/12)) ->  | DO23: =IF(OR(DO24=" ",DO24=0)," ",MIN($C$14/12,$BD$6*$C$8/12)) ->  | DP23: =IF(OR(DP24=" ",DP24=0)," ",MIN($C$14/12,$BD$6*$C$8/12)) ->  | DQ23: =IF(OR(DQ$18=" ",DQ$18=0)," ",SUM(DR23:EC23)) ->  | DR23: =IF(OR(DR24=" ",DR24=0)," ",MIN($C$14/12,$BD$6*$C$8/12)) ->  | DS23: =IF(OR(DS24=" ",DS24=0)," ",MIN($C$14/12,$BD$6*$C$8/12)) ->  | DT23: =IF(OR(DT24=" ",DT24=0)," ",MIN($C$14/12,$BD$6*$C$8/12)) ->  | DU23: =IF(OR(DU24=" ",DU24=0)," ",MIN($C$14/12,$BD$6*$C$8/12)) ->  | DV23: =IF(OR(DV24=" ",DV24=0)," ",MIN($C$14/12,$BD$6*$C$8/12)) ->  | DW23: =IF(OR(DW24=" ",DW24=0)," ",MIN($C$14/12,$BD$6*$C$8/12)) ->  | DX23: =IF(OR(DX24=" ",DX24=0)," ",MIN($C$14/12,$BD$6*$C$8/12)) ->  | DY23: =IF(OR(DY24=" ",DY24=0)," ",MIN($C$14/12,$BD$6*$C$8/12)) ->  | DZ23: =IF(OR(DZ24=" ",DZ24=0)," ",MIN($C$14/12,$BD$6*$C$8/12)) ->  | EA23: =IF(OR(EA24=" ",EA24=0)," ",MIN($C$14/12,$BD$6*$C$8/12)) ->  | EB23: =IF(OR(EB24=" ",EB24=0)," ",MIN($C$14/12,$BD$6*$C$8/12)) ->  | EC23: =IF(OR(EC24=" ",EC24=0)," ",MIN($C$14/12,$BD$6*$C$8/12)) ->  | ED23: =IF(OR(ED$18=" ",ED$18=0)," ",SUM(EE23:EP23)) ->  | EE23: =IF(OR(EE24=" ",EE24=0)," ",MIN($C$14/12,$BD$6*$C$8/12)) ->  | EF23: =IF(OR(EF24=" ",EF24=0)," ",MIN($C$14/12,$BD$6*$C$8/12)) ->  | EG23: =IF(OR(EG24=" ",EG24=0)," ",MIN($C$14/12,$BD$6*$C$8/12)) ->  | EH23: =IF(OR(EH24=" ",EH24=0)," ",MIN($C$14/12,$BD$6*$C$8/12)) ->  | EI23: =IF(OR(EI24=" ",EI24=0)," ",MIN($C$14/12,$BD$6*$C$8/12)) ->  | EJ23: =IF(OR(EJ24=" ",EJ24=0)," ",MIN($C$14/12,$BD$6*$C$8/12)) ->  | EK23: =IF(OR(EK24=" ",EK24=0)," ",MIN($C$14/12,$BD$6*$C$8/12)) ->  | EL23: =IF(OR(EL24=" ",EL24=0)," ",MIN($C$14/12,$BD$6*$C$8/12)) ->  | EM23: =IF(OR(EM24=" ",EM24=0)," ",MIN($C$14/12,$BD$6*$C$8/12)) ->  | EN23: =IF(OR(EN24=" ",EN24=0)," ",MIN($C$14/12,$BD$6*$C$8/12)) ->  | EO23: =IF(OR(EO24=" ",EO24=0)," ",MIN($C$14/12,$BD$6*$C$8/12)) ->  | EP23: =IF(OR(EP24=" ",EP24=0)," ",MIN($C$14/12,$BD$6*$C$8/12)) ->  | EQ23: =IF(OR(EQ$18=" ",EQ$18=0)," ",SUM(ER23:FC23)) ->  | ER23: =IF(OR(ER24=" ",ER24=0)," ",MIN($C$14/12,$BD$6*$C$8/12)) ->  | ES23: =IF(OR(ES24=" ",ES24=0)," ",MIN($C$14/12,$BD$6*$C$8/12)) ->  | ET23: =IF(OR(ET24=" ",ET24=0)," ",MIN($C$14/12,$BD$6*$C$8/12)) ->  | EU23: =IF(OR(EU24=" ",EU24=0)," ",MIN($C$14/12,$BD$6*$C$8/12)) ->  | EV23: =IF(OR(EV24=" ",EV24=0)," ",MIN($C$14/12,$BD$6*$C$8/12)) ->  | EW23: =IF(OR(EW24=" ",EW24=0)," ",MIN($C$14/12,$BD$6*$C$8/12)) ->  | EX23: =IF(OR(EX24=" ",EX24=0)," ",MIN($C$14/12,$BD$6*$C$8/12)) ->  | EY23: =IF(OR(EY24=" ",EY24=0)," ",MIN($C$14/12,$BD$6*$C$8/12)) ->  | EZ23: =IF(OR(EZ24=" ",EZ24=0)," ",MIN($C$14/12,$BD$6*$C$8/12)) ->  | FA23: =IF(OR(FA24=" ",FA24=0)," ",MIN($C$14/12,$BD$6*$C$8/12)) ->  | FB23: =IF(OR(FB24=" ",FB24=0)," ",MIN($C$14/12,$BD$6*$C$8/12)) ->  | FC23: =IF(OR(FC24=" ",FC24=0)," ",MIN($C$14/12,$BD$6*$C$8/12)) ->  | FD23: =IF(OR(FD$18=" ",FD$18=0)," ",SUM(FE23:FP23)) ->  | FE23: =IF(OR(FE24=" ",FE24=0)," ",MIN($C$14/12,$BD$6*$C$8/12)) ->  | FF23: =IF(OR(FF24=" ",FF24=0)," ",MIN($C$14/12,$BD$6*$C$8/12)) ->  | FG23: =IF(OR(FG24=" ",FG24=0)," ",MIN($C$14/12,$BD$6*$C$8/12)) ->  | FH23: =IF(OR(FH24=" ",FH24=0)," ",MIN($C$14/12,$BD$6*$C$8/12)) ->  | FI23: =IF(OR(FI24=" ",FI24=0)," ",MIN($C$14/12,$BD$6*$C$8/12)) ->  | FJ23: =IF(OR(FJ24=" ",FJ24=0)," ",MIN($C$14/12,$BD$6*$C$8/12)) ->  | FK23: =IF(OR(FK24=" ",FK24=0)," ",MIN($C$14/12,$BD$6*$C$8/12)) ->  | FL23: =IF(OR(FL24=" ",FL24=0)," ",MIN($C$14/12,$BD$6*$C$8/12)) ->  | FM23: =IF(OR(FM24=" ",FM24=0)," ",MIN($C$14/12,$BD$6*$C$8/12)) ->  | FN23: =IF(OR(FN24=" ",FN24=0)," ",MIN($C$14/12,$BD$6*$C$8/12)) ->  | FO23: =IF(OR(FO24=" ",FO24=0)," ",MIN($C$14/12,$BD$6*$C$8/12)) ->  | FP23: =IF(OR(FP24=" ",FP24=0)," ",MIN($C$14/12,$BD$6*$C$8/12)) ->  | FQ23: =IF(OR(FQ$18=" ",FQ$18=0)," ",SUM(FR23:GC23)) ->  | FR23: =IF(OR(FR24=" ",FR24=0)," ",MIN($C$14/12,$BD$6*$C$8/12)) ->  | FS23: =IF(OR(FS24=" ",FS24=0)," ",MIN($C$14/12,$BD$6*$C$8/12)) ->  | FT23: =IF(OR(FT24=" ",FT24=0)," ",MIN($C$14/12,$BD$6*$C$8/12)) ->  | FU23: =IF(OR(FU24=" ",FU24=0)," ",MIN($C$14/12,$BD$6*$C$8/12)) ->  | FV23: =IF(OR(FV24=" ",FV24=0)," ",MIN($C$14/12,$BD$6*$C$8/12)) ->  | FW23: =IF(OR(FW24=" ",FW24=0)," ",MIN($C$14/12,$BD$6*$C$8/12)) ->  | FX23: =IF(OR(FX24=" ",FX24=0)," ",MIN($C$14/12,$BD$6*$C$8/12)) ->  | FY23: =IF(OR(FY24=" ",FY24=0)," ",MIN($C$14/12,$BD$6*$C$8/12)) ->  | FZ23: =IF(OR(FZ24=" ",FZ24=0)," ",MIN($C$14/12,$BD$6*$C$8/12)) ->  | GA23: =IF(OR(GA24=" ",GA24=0)," ",MIN($C$14/12,$BD$6*$C$8/12)) ->  | GB23: =IF(OR(GB24=" ",GB24=0)," ",MIN($C$14/12,$BD$6*$C$8/12)) ->  | GC23: =IF(OR(GC24=" ",GC24=0)," ",MIN($C$14/12,$BD$6*$C$8/12)) ->  | GD23: =IF(OR(GD$18=" ",GD$18=0)," ",SUM(GE23:GP23)) ->  | GE23: =IF(OR(GE24=" ",GE24=0)," ",MIN($C$14/12,$BD$6*$C$8/12)) ->  | GF23: =IF(OR(GF24=" ",GF24=0)," ",MIN($C$14/12,$BD$6*$C$8/12)) ->  | GG23: =IF(OR(GG24=" ",GG24=0)," ",MIN($C$14/12,$BD$6*$C$8/12)) ->  | GH23: =IF(OR(GH24=" ",GH24=0)," ",MIN($C$14/12,$BD$6*$C$8/12)) ->  | GI23: =IF(OR(GI24=" ",GI24=0)," ",MIN($C$14/12,$BD$6*$C$8/12)) ->  | GJ23: =IF(OR(GJ24=" ",GJ24=0)," ",MIN($C$14/12,$BD$6*$C$8/12)) ->  | GK23: =IF(OR(GK24=" ",GK24=0)," ",MIN($C$14/12,$BD$6*$C$8/12)) ->  | GL23: =IF(OR(GL24=" ",GL24=0)," ",MIN($C$14/12,$BD$6*$C$8/12)) ->  | GM23: =IF(OR(GM24=" ",GM24=0)," ",MIN($C$14/12,$BD$6*$C$8/12)) ->  | GN23: =IF(OR(GN24=" ",GN24=0)," ",MIN($C$14/12,$BD$6*$C$8/12)) ->  | GO23: =IF(OR(GO24=" ",GO24=0)," ",MIN($C$14/12,$BD$6*$C$8/12)) ->  | GP23: =IF(OR(GP24=" ",GP24=0)," ",MIN($C$14/12,$BD$6*$C$8/12)) ->  | GQ23: =IF(OR(GQ$18=" ",GQ$18=0)," ",SUM(GR23:HC23)) ->  | GR23: =IF(OR(GR24=" ",GR24=0)," ",MIN($C$14/12,$BD$6*$C$8/12)) ->  | GS23: =IF(OR(GS24=" ",GS24=0)," ",MIN($C$14/12,$BD$6*$C$8/12)) ->  | GT23: =IF(OR(GT24=" ",GT24=0)," ",MIN($C$14/12,$BD$6*$C$8/12)) ->  | GU23: =IF(OR(GU24=" ",GU24=0)," ",MIN($C$14/12,$BD$6*$C$8/12)) ->  | GV23: =IF(OR(GV24=" ",GV24=0)," ",MIN($C$14/12,$BD$6*$C$8/12)) ->  | GW23: =IF(OR(GW24=" ",GW24=0)," ",MIN($C$14/12,$BD$6*$C$8/12)) ->  | GX23: =IF(OR(GX24=" ",GX24=0)," ",MIN($C$14/12,$BD$6*$C$8/12)) ->  | GY23: =IF(OR(GY24=" ",GY24=0)," ",MIN($C$14/12,$BD$6*$C$8/12)) ->  | GZ23: =IF(OR(GZ24=" ",GZ24=0)," ",MIN($C$14/12,$BD$6*$C$8/12)) ->  | HA23: =IF(OR(HA24=" ",HA24=0)," ",MIN($C$14/12,$BD$6*$C$8/12)) ->  | HB23: =IF(OR(HB24=" ",HB24=0)," ",MIN($C$14/12,$BD$6*$C$8/12)) ->  | HC23: =IF(OR(HC24=" ",HC24=0)," ",MIN($C$14/12,$BD$6*$C$8/12)) ->  | HD23: =IF(OR(HD$18=" ",HD$18=0)," ",SUM(HE23:HP23)) ->  | HE23: =IF(OR(HE24=" ",HE24=0)," ",MIN($C$14/12,$BD$6*$C$8/12)) ->  | HF23: =IF(OR(HF24=" ",HF24=0)," ",MIN($C$14/12,$BD$6*$C$8/12)) ->  | HG23: =IF(OR(HG24=" ",HG24=0)," ",MIN($C$14/12,$BD$6*$C$8/12)) ->  | HH23: =IF(OR(HH24=" ",HH24=0)," ",MIN($C$14/12,$BD$6*$C$8/12)) ->  | HI23: =IF(OR(HI24=" ",HI24=0)," ",MIN($C$14/12,$BD$6*$C$8/12)) ->  | HJ23: =IF(OR(HJ24=" ",HJ24=0)," ",MIN($C$14/12,$BD$6*$C$8/12)) ->  | HK23: =IF(OR(HK24=" ",HK24=0)," ",MIN($C$14/12,$BD$6*$C$8/12)) ->  | HL23: =IF(OR(HL24=" ",HL24=0)," ",MIN($C$14/12,$BD$6*$C$8/12)) ->  | HM23: =IF(OR(HM24=" ",HM24=0)," ",MIN($C$14/12,$BD$6*$C$8/12)) ->  | HN23: =IF(OR(HN24=" ",HN24=0)," ",MIN($C$14/12,$BD$6*$C$8/12)) ->  | HO23: =IF(OR(HO24=" ",HO24=0)," ",MIN($C$14/12,$BD$6*$C$8/12)) ->  | HP23: =IF(OR(HP24=" ",HP24=0)," ",MIN($C$14/12,$BD$6*$C$8/12)) ->  | HQ23: =IF(OR(HQ$18=" ",HQ$18=0)," ",SUM(HR23:IC23)) ->  | HR23: =IF(OR(HR24=" ",HR24=0)," ",MIN($C$14/12,$BD$6*$C$8/12)) ->  | HS23: =IF(OR(HS24=" ",HS24=0)," ",MIN($C$14/12,$BD$6*$C$8/12)) ->  | HT23: =IF(OR(HT24=" ",HT24=0)," ",MIN($C$14/12,$BD$6*$C$8/12)) ->  | HU23: =IF(OR(HU24=" ",HU24=0)," ",MIN($C$14/12,$BD$6*$C$8/12)) ->  | HV23: =IF(OR(HV24=" ",HV24=0)," ",MIN($C$14/12,$BD$6*$C$8/12)) ->  | HW23: =IF(OR(HW24=" ",HW24=0)," ",MIN($C$14/12,$BD$6*$C$8/12)) ->  | HX23: =IF(OR(HX24=" ",HX24=0)," ",MIN($C$14/12,$BD$6*$C$8/12)) ->  | HY23: =IF(OR(HY24=" ",HY24=0)," ",MIN($C$14/12,$BD$6*$C$8/12)) ->  | HZ23: =IF(OR(HZ24=" ",HZ24=0)," ",MIN($C$14/12,$BD$6*$C$8/12)) ->  | IA23: =IF(OR(IA24=" ",IA24=0)," ",MIN($C$14/12,$BD$6*$C$8/12)) ->  | IB23: =IF(OR(IB24=" ",IB24=0)," ",MIN($C$14/12,$BD$6*$C$8/12)) ->  | IC23: =IF(OR(IC24=" ",IC24=0)," ",MIN($C$14/12,$BD$6*$C$8/12)) ->  | ID23: =IF(OR(ID$18=" ",ID$18=0)," ",SUM(IE23:IP23)) ->  | IE23: =IF(OR(IE24=" ",IE24=0)," ",MIN($C$14/12,$BD$6*$C$8/12)) ->  | IF23: =IF(OR(IF24=" ",IF24=0)," ",MIN($C$14/12,$BD$6*$C$8/12)) ->  | IG23: =IF(OR(IG24=" ",IG24=0)," ",MIN($C$14/12,$BD$6*$C$8/12)) ->  | IH23: =IF(OR(IH24=" ",IH24=0)," ",MIN($C$14/12,$BD$6*$C$8/12)) ->  | II23: =IF(OR(II24=" ",II24=0)," ",MIN($C$14/12,$BD$6*$C$8/12)) ->  | IJ23: =IF(OR(IJ24=" ",IJ24=0)," ",MIN($C$14/12,$BD$6*$C$8/12)) ->  | IK23: =IF(OR(IK24=" ",IK24=0)," ",MIN($C$14/12,$BD$6*$C$8/12)) ->  | IL23: =IF(OR(IL24=" ",IL24=0)," ",MIN($C$14/12,$BD$6*$C$8/12)) ->  | IM23: =IF(OR(IM24=" ",IM24=0)," ",MIN($C$14/12,$BD$6*$C$8/12)) ->  | IN23: =IF(OR(IN24=" ",IN24=0)," ",MIN($C$14/12,$BD$6*$C$8/12)) ->  | IO23: =IF(OR(IO24=" ",IO24=0)," ",MIN($C$14/12,$BD$6*$C$8/12)) ->  | IP23: =IF(OR(IP24=" ",IP24=0)," ",MIN($C$14/12,$BD$6*$C$8/12)) ->  | IQ23: =IF(OR(IQ$18=" ",IQ$18=0)," ",SUM(IR23:JC23)) ->  | IR23: =IF(OR(IR24=" ",IR24=0)," ",MIN($C$14/12,$BD$6*$C$8/12)) ->  | IS23: =IF(OR(IS24=" ",IS24=0)," ",MIN($C$14/12,$BD$6*$C$8/12)) ->  | IT23: =IF(OR(IT24=" ",IT24=0)," ",MIN($C$14/12,$BD$6*$C$8/12)) ->  | IU23: =IF(OR(IU24=" ",IU24=0)," ",MIN($C$14/12,$BD$6*$C$8/12)) ->  | IV23: =IF(OR(IV24=" ",IV24=0)," ",MIN($C$14/12,$BD$6*$C$8/12)) ->  | IW23: =IF(OR(IW24=" ",IW24=0)," ",MIN($C$14/12,$BD$6*$C$8/12)) ->  | IX23: =IF(OR(IX24=" ",IX24=0)," ",MIN($C$14/12,$BD$6*$C$8/12)) ->  | IY23: =IF(OR(IY24=" ",IY24=0)," ",MIN($C$14/12,$BD$6*$C$8/12)) ->  | IZ23: =IF(OR(IZ24=" ",IZ24=0)," ",MIN($C$14/12,$BD$6*$C$8/12)) ->  | JA23: =IF(OR(JA24=" ",JA24=0)," ",MIN($C$14/12,$BD$6*$C$8/12)) ->  | JB23: =IF(OR(JB24=" ",JB24=0)," ",MIN($C$14/12,$BD$6*$C$8/12)) ->  | JC23: =IF(OR(JC24=" ",JC24=0)," ",MIN($C$14/12,$BD$6*$C$8/12)) ->  | JD23: =IF(OR(JD$18=" ",JD$18=0)," ",SUM(JE23:JP23)) ->  | JE23: =IF(OR(JE24=" ",JE24=0)," ",MIN($C$14/12,$BD$6*$C$8/12)) ->  | JF23: =IF(OR(JF24=" ",JF24=0)," ",MIN($C$14/12,$BD$6*$C$8/12)) ->  | JG23: =IF(OR(JG24=" ",JG24=0)," ",MIN($C$14/12,$BD$6*$C$8/12)) ->  | JH23: =IF(OR(JH24=" ",JH24=0)," ",MIN($C$14/12,$BD$6*$C$8/12)) ->  | JI23: =IF(OR(JI24=" ",JI24=0)," ",MIN($C$14/12,$BD$6*$C$8/12)) ->  | JJ23: =IF(OR(JJ24=" ",JJ24=0)," ",MIN($C$14/12,$BD$6*$C$8/12)) ->  | JK23: =IF(OR(JK24=" ",JK24=0)," ",MIN($C$14/12,$BD$6*$C$8/12)) ->  | JL23: =IF(OR(JL24=" ",JL24=0)," ",MIN($C$14/12,$BD$6*$C$8/12)) ->  | JM23: =IF(OR(JM24=" ",JM24=0)," ",MIN($C$14/12,$BD$6*$C$8/12)) ->  | JN23: =IF(OR(JN24=" ",JN24=0)," ",MIN($C$14/12,$BD$6*$C$8/12)) ->  | JO23: =IF(OR(JO24=" ",JO24=0)," ",MIN($C$14/12,$BD$6*$C$8/12)) ->  | JP23: =IF(OR(JP24=" ",JP24=0)," ",MIN($C$14/12,$BD$6*$C$8/12)) ->  | JQ23: =IF(OR(JQ$18=" ",JQ$18=0)," ",SUM(JR23:KC23)) ->  | JR23: =IF(OR(JR24=" ",JR24=0)," ",MIN($C$14/12,$BD$6*$C$8/12)) ->  | JS23: =IF(OR(JS24=" ",JS24=0)," ",MIN($C$14/12,$BD$6*$C$8/12)) ->  | JT23: =IF(OR(JT24=" ",JT24=0)," ",MIN($C$14/12,$BD$6*$C$8/12)) ->  | JU23: =IF(OR(JU24=" ",JU24=0)," ",MIN($C$14/12,$BD$6*$C$8/12)) ->  | JV23: =IF(OR(JV24=" ",JV24=0)," ",MIN($C$14/12,$BD$6*$C$8/12)) ->  | JW23: =IF(OR(JW24=" ",JW24=0)," ",MIN($C$14/12,$BD$6*$C$8/12)) ->  | JX23: =IF(OR(JX24=" ",JX24=0)," ",MIN($C$14/12,$BD$6*$C$8/12)) ->  | JY23: =IF(OR(JY24=" ",JY24=0)," ",MIN($C$14/12,$BD$6*$C$8/12)) ->  | JZ23: =IF(OR(JZ24=" ",JZ24=0)," ",MIN($C$14/12,$BD$6*$C$8/12)) ->  | KA23: =IF(OR(KA24=" ",KA24=0)," ",MIN($C$14/12,$BD$6*$C$8/12)) ->  | KB23: =IF(OR(KB24=" ",KB24=0)," ",MIN($C$14/12,$BD$6*$C$8/12)) ->  | KC23: =IF(OR(KC24=" ",KC24=0)," ",MIN($C$14/12,$BD$6*$C$8/12)) ->  | KD23: =IF(OR(KD$18=" ",KD$18=0)," ",SUM(KE23:KP23)) ->  | KE23: =IF(OR(KE24=" ",KE24=0)," ",MIN($C$14/12,$BD$6*$C$8/12)) ->  | KF23: =IF(OR(KF24=" ",KF24=0)," ",MIN($C$14/12,$BD$6*$C$8/12)) ->  | KG23: =IF(OR(KG24=" ",KG24=0)," ",MIN($C$14/12,$BD$6*$C$8/12)) ->  | KH23: =IF(OR(KH24=" ",KH24=0)," ",MIN($C$14/12,$BD$6*$C$8/12)) ->  | KI23: =IF(OR(KI24=" ",KI24=0)," ",MIN($C$14/12,$BD$6*$C$8/12)) ->  | KJ23: =IF(OR(KJ24=" ",KJ24=0)," ",MIN($C$14/12,$BD$6*$C$8/12)) ->  | KK23: =IF(OR(KK24=" ",KK24=0)," ",MIN($C$14/12,$BD$6*$C$8/12)) ->  | KL23: =IF(OR(KL24=" ",KL24=0)," ",MIN($C$14/12,$BD$6*$C$8/12)) ->  | KM23: =IF(OR(KM24=" ",KM24=0)," ",MIN($C$14/12,$BD$6*$C$8/12)) ->  | KN23: =IF(OR(KN24=" ",KN24=0)," ",MIN($C$14/12,$BD$6*$C$8/12)) ->  | KO23: =IF(OR(KO24=" ",KO24=0)," ",MIN($C$14/12,$BD$6*$C$8/12)) ->  | KP23: =IF(OR(KP24=" ",KP24=0)," ",MIN($C$14/12,$BD$6*$C$8/12)) ->  | KQ23: =IF(OR(KQ$18=" ",KQ$18=0)," ",SUM(KR23:LC23)) ->  | KR23: =IF(OR(KR24=" ",KR24=0)," ",MIN($C$14/12,$BD$6*$C$8/12)) ->  | KS23: =IF(OR(KS24=" ",KS24=0)," ",MIN($C$14/12,$BD$6*$C$8/12)) ->  | KT23: =IF(OR(KT24=" ",KT24=0)," ",MIN($C$14/12,$BD$6*$C$8/12)) ->  | KU23: =IF(OR(KU24=" ",KU24=0)," ",MIN($C$14/12,$BD$6*$C$8/12)) ->  | KV23: =IF(OR(KV24=" ",KV24=0)," ",MIN($C$14/12,$BD$6*$C$8/12)) ->  | KW23: =IF(OR(KW24=" ",KW24=0)," ",MIN($C$14/12,$BD$6*$C$8/12)) ->  | KX23: =IF(OR(KX24=" ",KX24=0)," ",MIN($C$14/12,$BD$6*$C$8/12)) ->  | KY23: =IF(OR(KY24=" ",KY24=0)," ",MIN($C$14/12,$BD$6*$C$8/12)) ->  | KZ23: =IF(OR(KZ24=" ",KZ24=0)," ",MIN($C$14/12,$BD$6*$C$8/12)) ->  | LA23: =IF(OR(LA24=" ",LA24=0)," ",MIN($C$14/12,$BD$6*$C$8/12)) ->  | LB23: =IF(OR(LB24=" ",LB24=0)," ",MIN($C$14/12,$BD$6*$C$8/12)) ->  | LC23: =IF(OR(LC24=" ",LC24=0)," ",MIN($C$14/12,$BD$6*$C$8/12)) ->  | LD23: =IF(OR(LD$18=" ",LD$18=0)," ",SUM(LE23:LP23)) ->  | LE23: =IF(OR(LE24=" ",LE24=0)," ",MIN($C$14/12,$BD$6*$C$8/12)) ->  | LF23: =IF(OR(LF24=" ",LF24=0)," ",MIN($C$14/12,$BD$6*$C$8/12)) ->  | LG23: =IF(OR(LG24=" ",LG24=0)," ",MIN($C$14/12,$BD$6*$C$8/12)) ->  | LH23: =IF(OR(LH24=" ",LH24=0)," ",MIN($C$14/12,$BD$6*$C$8/12)) ->  | LI23: =IF(OR(LI24=" ",LI24=0)," ",MIN($C$14/12,$BD$6*$C$8/12)) ->  | LJ23: =IF(OR(LJ24=" ",LJ24=0)," ",MIN($C$14/12,$BD$6*$C$8/12)) ->  | LK23: =IF(OR(LK24=" ",LK24=0)," ",MIN($C$14/12,$BD$6*$C$8/12)) ->  | LL23: =IF(OR(LL24=" ",LL24=0)," ",MIN($C$14/12,$BD$6*$C$8/12)) ->  | LM23: =IF(OR(LM24=" ",LM24=0)," ",MIN($C$14/12,$BD$6*$C$8/12)) ->  | LN23: =IF(OR(LN24=" ",LN24=0)," ",MIN($C$14/12,$BD$6*$C$8/12)) ->  | LO23: =IF(OR(LO24=" ",LO24=0)," ",MIN($C$14/12,$BD$6*$C$8/12)) ->  | LP23: =IF(OR(LP24=" ",LP24=0)," ",MIN($C$14/12,$BD$6*$C$8/12)) ->  | LQ23: =IF(OR(LQ$18=" ",LQ$18=0)," ",SUM(LR23:MC23)) ->  | LR23: =IF(OR(LR24=" ",LR24=0)," ",MIN($C$14/12,$BD$6*$C$8/12)) ->  | LS23: =IF(OR(LS24=" ",LS24=0)," ",MIN($C$14/12,$BD$6*$C$8/12)) ->  | LT23: =IF(OR(LT24=" ",LT24=0)," ",MIN($C$14/12,$BD$6*$C$8/12)) ->  | LU23: =IF(OR(LU24=" ",LU24=0)," ",MIN($C$14/12,$BD$6*$C$8/12)) ->  | LV23: =IF(OR(LV24=" ",LV24=0)," ",MIN($C$14/12,$BD$6*$C$8/12)) ->  | LW23: =IF(OR(LW24=" ",LW24=0)," ",MIN($C$14/12,$BD$6*$C$8/12)) ->  | LX23: =IF(OR(LX24=" ",LX24=0)," ",MIN($C$14/12,$BD$6*$C$8/12)) ->  | LY23: =IF(OR(LY24=" ",LY24=0)," ",MIN($C$14/12,$BD$6*$C$8/12)) ->  | LZ23: =IF(OR(LZ24=" ",LZ24=0)," ",MIN($C$14/12,$BD$6*$C$8/12)) ->  | MA23: =IF(OR(MA24=" ",MA24=0)," ",MIN($C$14/12,$BD$6*$C$8/12)) ->  | MB23: =IF(OR(MB24=" ",MB24=0)," ",MIN($C$14/12,$BD$6*$C$8/12)) ->  | MC23: =IF(OR(MC24=" ",MC24=0)," ",MIN($C$14/12,$BD$6*$C$8/12)) ->  | MD23: =IF(OR(MD$18=" ",MD$18=0)," ",SUM(ME23:MP23)) ->  | ME23: =IF(OR(ME24=" ",ME24=0)," ",MIN($C$14/12,$BD$6*$C$8/12)) ->  | MF23: =IF(OR(MF24=" ",MF24=0)," ",MIN($C$14/12,$BD$6*$C$8/12)) ->  | MG23: =IF(OR(MG24=" ",MG24=0)," ",MIN($C$14/12,$BD$6*$C$8/12)) ->  | MH23: =IF(OR(MH24=" ",MH24=0)," ",MIN($C$14/12,$BD$6*$C$8/12)) ->  | MI23: =IF(OR(MI24=" ",MI24=0)," ",MIN($C$14/12,$BD$6*$C$8/12)) ->  | MJ23: =IF(OR(MJ24=" ",MJ24=0)," ",MIN($C$14/12,$BD$6*$C$8/12)) ->  | MK23: =IF(OR(MK24=" ",MK24=0)," ",MIN($C$14/12,$BD$6*$C$8/12)) ->  | ML23: =IF(OR(ML24=" ",ML24=0)," ",MIN($C$14/12,$BD$6*$C$8/12)) ->  | MM23: =IF(OR(MM24=" ",MM24=0)," ",MIN($C$14/12,$BD$6*$C$8/12)) ->  | MN23: =IF(OR(MN24=" ",MN24=0)," ",MIN($C$14/12,$BD$6*$C$8/12)) ->  | MO23: =IF(OR(MO24=" ",MO24=0)," ",MIN($C$14/12,$BD$6*$C$8/12)) ->  | MP23: =IF(OR(MP24=" ",MP24=0)," ",MIN($C$14/12,$BD$6*$C$8/12)) ->  | MQ23: =IF(OR(MQ$18=" ",MQ$18=0)," ",SUM(MR23:NC23)) ->  | MR23: =IF(OR(MR24=" ",MR24=0)," ",MIN($C$14/12,$BD$6*$C$8/12)) ->  | MS23: =IF(OR(MS24=" ",MS24=0)," ",MIN($C$14/12,$BD$6*$C$8/12)) ->  | MT23: =IF(OR(MT24=" ",MT24=0)," ",MIN($C$14/12,$BD$6*$C$8/12)) ->  | MU23: =IF(OR(MU24=" ",MU24=0)," ",MIN($C$14/12,$BD$6*$C$8/12)) ->  | MV23: =IF(OR(MV24=" ",MV24=0)," ",MIN($C$14/12,$BD$6*$C$8/12)) ->  | MW23: =IF(OR(MW24=" ",MW24=0)," ",MIN($C$14/12,$BD$6*$C$8/12)) ->  | MX23: =IF(OR(MX24=" ",MX24=0)," ",MIN($C$14/12,$BD$6*$C$8/12)) ->  | MY23: =IF(OR(MY24=" ",MY24=0)," ",MIN($C$14/12,$BD$6*$C$8/12)) ->  | MZ23: =IF(OR(MZ24=" ",MZ24=0)," ",MIN($C$14/12,$BD$6*$C$8/12)) ->  | NA23: =IF(OR(NA24=" ",NA24=0)," ",MIN($C$14/12,$BD$6*$C$8/12)) ->  | NB23: =IF(OR(NB24=" ",NB24=0)," ",MIN($C$14/12,$BD$6*$C$8/12)) ->  | NC23: =IF(OR(NC24=" ",NC24=0)," ",MIN($C$14/12,$BD$6*$C$8/12)) ->  | ND23: =IF(OR(ND$18=" ",ND$18=0)," ",SUM(NE23:NP23)) ->  | NE23: =IF(OR(NE24=" ",NE24=0)," ",MIN($C$14/12,$BD$6*$C$8/12)) ->  | NF23: =IF(OR(NF24=" ",NF24=0)," ",MIN($C$14/12,$BD$6*$C$8/12)) ->  | NG23: =IF(OR(NG24=" ",NG24=0)," ",MIN($C$14/12,$BD$6*$C$8/12)) ->  | NH23: =IF(OR(NH24=" ",NH24=0)," ",MIN($C$14/12,$BD$6*$C$8/12)) ->  | NI23: =IF(OR(NI24=" ",NI24=0)," ",MIN($C$14/12,$BD$6*$C$8/12)) ->  | NJ23: =IF(OR(NJ24=" ",NJ24=0)," ",MIN($C$14/12,$BD$6*$C$8/12)) ->  | NK23: =IF(OR(NK24=" ",NK24=0)," ",MIN($C$14/12,$BD$6*$C$8/12)) ->  | NL23: =IF(OR(NL24=" ",NL24=0)," ",MIN($C$14/12,$BD$6*$C$8/12)) ->  | NM23: =IF(OR(NM24=" ",NM24=0)," ",MIN($C$14/12,$BD$6*$C$8/12)) ->  | NN23: =IF(OR(NN24=" ",NN24=0)," ",MIN($C$14/12,$BD$6*$C$8/12)) ->  | NO23: =IF(OR(NO24=" ",NO24=0)," ",MIN($C$14/12,$BD$6*$C$8/12)) ->  | NP23: =IF(OR(NP24=" ",NP24=0)," ",MIN($C$14/12,$BD$6*$C$8/12)) ->  | NQ23: =IF(OR(NQ$18=" ",NQ$18=0)," ",SUM(NR23:OC23)) ->  | NR23: =IF(OR(NR24=" ",NR24=0)," ",MIN($C$14/12,$BD$6*$C$8/12)) ->  | NS23: =IF(OR(NS24=" ",NS24=0)," ",MIN($C$14/12,$BD$6*$C$8/12)) ->  | NT23: =IF(OR(NT24=" ",NT24=0)," ",MIN($C$14/12,$BD$6*$C$8/12)) ->  | NU23: =IF(OR(NU24=" ",NU24=0)," ",MIN($C$14/12,$BD$6*$C$8/12)) ->  | NV23: =IF(OR(NV24=" ",NV24=0)," ",MIN($C$14/12,$BD$6*$C$8/12)) ->  | NW23: =IF(OR(NW24=" ",NW24=0)," ",MIN($C$14/12,$BD$6*$C$8/12)) ->  | NX23: =IF(OR(NX24=" ",NX24=0)," ",MIN($C$14/12,$BD$6*$C$8/12)) ->  | NY23: =IF(OR(NY24=" ",NY24=0)," ",MIN($C$14/12,$BD$6*$C$8/12)) ->  | NZ23: =IF(OR(NZ24=" ",NZ24=0)," ",MIN($C$14/12,$BD$6*$C$8/12)) ->  | OA23: =IF(OR(OA24=" ",OA24=0)," ",MIN($C$14/12,$BD$6*$C$8/12)) ->  | OB23: =IF(OR(OB24=" ",OB24=0)," ",MIN($C$14/12,$BD$6*$C$8/12)) ->  | OC23: =IF(OR(OC24=" ",OC24=0)," ",MIN($C$14/12,$BD$6*$C$8/12)) ->  | OD23: =IF(OR(OD$18=" ",OD$18=0)," ",SUM(OE23:OP23)) ->  | OE23: =IF(OR(OE24=" ",OE24=0)," ",MIN($C$14/12,$BD$6*$C$8/12)) ->  | OF23: =IF(OR(OF24=" ",OF24=0)," ",MIN($C$14/12,$BD$6*$C$8/12)) ->  | OG23: =IF(OR(OG24=" ",OG24=0)," ",MIN($C$14/12,$BD$6*$C$8/12)) ->  | OH23: =IF(OR(OH24=" ",OH24=0)," ",MIN($C$14/12,$BD$6*$C$8/12)) ->  | OI23: =IF(OR(OI24=" ",OI24=0)," ",MIN($C$14/12,$BD$6*$C$8/12)) ->  | OJ23: =IF(OR(OJ24=" ",OJ24=0)," ",MIN($C$14/12,$BD$6*$C$8/12)) ->  | OK23: =IF(OR(OK24=" ",OK24=0)," ",MIN($C$14/12,$BD$6*$C$8/12)) ->  | OL23: =IF(OR(OL24=" ",OL24=0)," ",MIN($C$14/12,$BD$6*$C$8/12)) ->  | OM23: =IF(OR(OM24=" ",OM24=0)," ",MIN($C$14/12,$BD$6*$C$8/12)) ->  | ON23: =IF(OR(ON24=" ",ON24=0)," ",MIN($C$14/12,$BD$6*$C$8/12)) ->  | OO23: =IF(OR(OO24=" ",OO24=0)," ",MIN($C$14/12,$BD$6*$C$8/12)) ->  | OP23: =IF(OR(OP24=" ",OP24=0)," ",MIN($C$14/12,$BD$6*$C$8/12)) ->  | OQ23: =IF(OR(OQ$18=" ",OQ$18=0)," ",SUM(OR23:PC23)) ->  | OR23: =IF(OR(OR24=" ",OR24=0)," ",MIN($C$14/12,$BD$6*$C$8/12)) ->  | OS23: =IF(OR(OS24=" ",OS24=0)," ",MIN($C$14/12,$BD$6*$C$8/12)) ->  | OT23: =IF(OR(OT24=" ",OT24=0)," ",MIN($C$14/12,$BD$6*$C$8/12)) ->  | OU23: =IF(OR(OU24=" ",OU24=0)," ",MIN($C$14/12,$BD$6*$C$8/12)) ->  | OV23: =IF(OR(OV24=" ",OV24=0)," ",MIN($C$14/12,$BD$6*$C$8/12)) ->  | OW23: =IF(OR(OW24=" ",OW24=0)," ",MIN($C$14/12,$BD$6*$C$8/12)) ->  | OX23: =IF(OR(OX24=" ",OX24=0)," ",MIN($C$14/12,$BD$6*$C$8/12)) ->  | OY23: =IF(OR(OY24=" ",OY24=0)," ",MIN($C$14/12,$BD$6*$C$8/12)) ->  | OZ23: =IF(OR(OZ24=" ",OZ24=0)," ",MIN($C$14/12,$BD$6*$C$8/12)) ->  | PA23: =IF(OR(PA24=" ",PA24=0)," ",MIN($C$14/12,$BD$6*$C$8/12)) ->  | PB23: =IF(OR(PB24=" ",PB24=0)," ",MIN($C$14/12,$BD$6*$C$8/12)) ->  | PC23: =IF(OR(PC24=" ",PC24=0)," ",MIN($C$14/12,$BD$6*$C$8/12)) ->  | PD23: =IF(OR(PD$18=" ",PD$18=0)," ",SUM(PE23:PP23)) ->  | PE23: =IF(OR(PE24=" ",PE24=0)," ",MIN($C$14/12,$BD$6*$C$8/12)) ->  | PF23: =IF(OR(PF24=" ",PF24=0)," ",MIN($C$14/12,$BD$6*$C$8/12)) ->  | PG23: =IF(OR(PG24=" ",PG24=0)," ",MIN($C$14/12,$BD$6*$C$8/12)) ->  | PH23: =IF(OR(PH24=" ",PH24=0)," ",MIN($C$14/12,$BD$6*$C$8/12)) ->  | PI23: =IF(OR(PI24=" ",PI24=0)," ",MIN($C$14/12,$BD$6*$C$8/12)) ->  | PJ23: =IF(OR(PJ24=" ",PJ24=0)," ",MIN($C$14/12,$BD$6*$C$8/12)) ->  | PK23: =IF(OR(PK24=" ",PK24=0)," ",MIN($C$14/12,$BD$6*$C$8/12)) ->  | PL23: =IF(OR(PL24=" ",PL24=0)," ",MIN($C$14/12,$BD$6*$C$8/12)) ->  | PM23: =IF(OR(PM24=" ",PM24=0)," ",MIN($C$14/12,$BD$6*$C$8/12)) ->  | PN23: =IF(OR(PN24=" ",PN24=0)," ",MIN($C$14/12,$BD$6*$C$8/12)) ->  | PO23: =IF(OR(PO24=" ",PO24=0)," ",MIN($C$14/12,$BD$6*$C$8/12)) ->  | PP23: =IF(OR(PP24=" ",PP24=0)," ",MIN($C$14/12,$BD$6*$C$8/12)) ->  | PQ23: =IF(OR(PQ$18=" ",PQ$18=0)," ",SUM(PR23:QC23)) ->  | PR23: =IF(OR(PR24=" ",PR24=0)," ",MIN($C$14/12,$BD$6*$C$8/12)) ->  | PS23: =IF(OR(PS24=" ",PS24=0)," ",MIN($C$14/12,$BD$6*$C$8/12)) ->  | PT23: =IF(OR(PT24=" ",PT24=0)," ",MIN($C$14/12,$BD$6*$C$8/12)) ->  | PU23: =IF(OR(PU24=" ",PU24=0)," ",MIN($C$14/12,$BD$6*$C$8/12)) ->  | PV23: =IF(OR(PV24=" ",PV24=0)," ",MIN($C$14/12,$BD$6*$C$8/12)) ->  | PW23: =IF(OR(PW24=" ",PW24=0)," ",MIN($C$14/12,$BD$6*$C$8/12)) ->  | PX23: =IF(OR(PX24=" ",PX24=0)," ",MIN($C$14/12,$BD$6*$C$8/12)) ->  | PY23: =IF(OR(PY24=" ",PY24=0)," ",MIN($C$14/12,$BD$6*$C$8/12)) ->  | PZ23: =IF(OR(PZ24=" ",PZ24=0)," ",MIN($C$14/12,$BD$6*$C$8/12)) ->  | QA23: =IF(OR(QA24=" ",QA24=0)," ",MIN($C$14/12,$BD$6*$C$8/12)) ->  | QB23: =IF(OR(QB24=" ",QB24=0)," ",MIN($C$14/12,$BD$6*$C$8/12)) ->  | QC23: =IF(OR(QC24=" ",QC24=0)," ",MIN($C$14/12,$BD$6*$C$8/12)) -> 
A24: Elektroenerģijas cena | B24: EUR/MWh | D24: =IF(OR(D$18=" ",D$18=0,D23=0)," ",SUMPRODUCT(E23:P23,E24:P24)/D23) ->  | E24: =IF(OR($D$16>=$B$6,$B$7<=$D$16),IF($D$18=1,IF(E19>=$C$6,((VLOOKUP(E20,Kurināmais!$A$4:$G$303,5,FALSE)*VLOOKUP($C$8,k_koef!$A$2:$B$12433,2,FALSE))/9.2)*3.8," "),IF($D$17=($QD$4+1),IF(E19<=$C$7,((VLOOKUP(E20,Kurināmais!$A$4:$G$303,5,FALSE)*VLOOKUP($C$8,k_koef!$A$2:$B$12433,2,FALSE))/9.2)*3.8," "),((VLOOKUP(E20,Kurināmais!$A$4:$G$303,5,FALSE)*VLOOKUP($C$8,k_koef!$A$2:$B$12433,2,FALSE))/9.2)*3.8))," ") -> 85.03111304 | F24: =IF(OR($D$16>=$B$6,$B$7<=$D$16),IF($D$18=1,IF(F19>=$C$6,((VLOOKUP(F20,Kurināmais!$A$4:$G$303,5,FALSE)*VLOOKUP($C$8,k_koef!$A$2:$B$12433,2,FALSE))/9.2)*3.8," "),IF($D$17=($QD$4+1),IF(F19<=$C$7,((VLOOKUP(F20,Kurināmais!$A$4:$G$303,5,FALSE)*VLOOKUP($C$8,k_koef!$A$2:$B$12433,2,FALSE))/9.2)*3.8," "),((VLOOKUP(F20,Kurināmais!$A$4:$G$303,5,FALSE)*VLOOKUP($C$8,k_koef!$A$2:$B$12433,2,FALSE))/9.2)*3.8))," ") -> 85.03111304 | G24: =IF(OR($D$16>=$B$6,$B$7<=$D$16),IF($D$18=1,IF(G19>=$C$6,((VLOOKUP(G20,Kurināmais!$A$4:$G$303,5,FALSE)*VLOOKUP($C$8,k_koef!$A$2:$B$12433,2,FALSE))/9.2)*3.8," "),IF($D$17=($QD$4+1),IF(G19<=$C$7,((VLOOKUP(G20,Kurināmais!$A$4:$G$303,5,FALSE)*VLOOKUP($C$8,k_koef!$A$2:$B$12433,2,FALSE))/9.2)*3.8," "),((VLOOKUP(G20,Kurināmais!$A$4:$G$303,5,FALSE)*VLOOKUP($C$8,k_koef!$A$2:$B$12433,2,FALSE))/9.2)*3.8))," ") -> 83.78653043 | H24: =IF(OR($D$16>=$B$6,$B$7<=$D$16),IF($D$18=1,IF(H19>=$C$6,((VLOOKUP(H20,Kurināmais!$A$4:$G$303,5,FALSE)*VLOOKUP($C$8,k_koef!$A$2:$B$12433,2,FALSE))/9.2)*3.8," "),IF($D$17=($QD$4+1),IF(H19<=$C$7,((VLOOKUP(H20,Kurināmais!$A$4:$G$303,5,FALSE)*VLOOKUP($C$8,k_koef!$A$2:$B$12433,2,FALSE))/9.2)*3.8," "),((VLOOKUP(H20,Kurināmais!$A$4:$G$303,5,FALSE)*VLOOKUP($C$8,k_koef!$A$2:$B$12433,2,FALSE))/9.2)*3.8))," ") -> 82.53170435 | I24: =IF(OR($D$16>=$B$6,$B$7<=$D$16),IF($D$18=1,IF(I19>=$C$6,((VLOOKUP(I20,Kurināmais!$A$4:$G$303,5,FALSE)*VLOOKUP($C$8,k_koef!$A$2:$B$12433,2,FALSE))/9.2)*3.8," "),IF($D$17=($QD$4+1),IF(I19<=$C$7,((VLOOKUP(I20,Kurināmais!$A$4:$G$303,5,FALSE)*VLOOKUP($C$8,k_koef!$A$2:$B$12433,2,FALSE))/9.2)*3.8," "),((VLOOKUP(I20,Kurināmais!$A$4:$G$303,5,FALSE)*VLOOKUP($C$8,k_koef!$A$2:$B$12433,2,FALSE))/9.2)*3.8))," ") -> 109.7383826 | J24: =IF(OR($D$16>=$B$6,$B$7<=$D$16),IF($D$18=1,IF(J19>=$C$6,((VLOOKUP(J20,Kurināmais!$A$4:$G$303,5,FALSE)*VLOOKUP($C$8,k_koef!$A$2:$B$12433,2,FALSE))/9.2)*3.8," "),IF($D$17=($QD$4+1),IF(J19<=$C$7,((VLOOKUP(J20,Kurināmais!$A$4:$G$303,5,FALSE)*VLOOKUP($C$8,k_koef!$A$2:$B$12433,2,FALSE))/9.2)*3.8," "),((VLOOKUP(J20,Kurināmais!$A$4:$G$303,5,FALSE)*VLOOKUP($C$8,k_koef!$A$2:$B$12433,2,FALSE))/9.2)*3.8))," ") -> 109.7383826 | K24: =IF(OR($D$16>=$B$6,$B$7<=$D$16),IF($D$18=1,IF(K19>=$C$6,((VLOOKUP(K20,Kurināmais!$A$4:$G$303,5,FALSE)*VLOOKUP($C$8,k_koef!$A$2:$B$12433,2,FALSE))/9.2)*3.8," "),IF($D$17=($QD$4+1),IF(K19<=$C$7,((VLOOKUP(K20,Kurināmais!$A$4:$G$303,5,FALSE)*VLOOKUP($C$8,k_koef!$A$2:$B$12433,2,FALSE))/9.2)*3.8," "),((VLOOKUP(K20,Kurināmais!$A$4:$G$303,5,FALSE)*VLOOKUP($C$8,k_koef!$A$2:$B$12433,2,FALSE))/9.2)*3.8))," ") -> 115.9817826 | L24: =IF(OR($D$16>=$B$6,$B$7<=$D$16),IF($D$18=1,IF(L19>=$C$6,((VLOOKUP(L20,Kurināmais!$A$4:$G$303,5,FALSE)*VLOOKUP($C$8,k_koef!$A$2:$B$12433,2,FALSE))/9.2)*3.8," "),IF($D$17=($QD$4+1),IF(L19<=$C$7,((VLOOKUP(L20,Kurināmais!$A$4:$G$303,5,FALSE)*VLOOKUP($C$8,k_koef!$A$2:$B$12433,2,FALSE))/9.2)*3.8," "),((VLOOKUP(L20,Kurināmais!$A$4:$G$303,5,FALSE)*VLOOKUP($C$8,k_koef!$A$2:$B$12433,2,FALSE))/9.2)*3.8))," ") -> 119.1521391 | M24: =IF(OR($D$16>=$B$6,$B$7<=$D$16),IF($D$18=1,IF(M19>=$C$6,((VLOOKUP(M20,Kurināmais!$A$4:$G$303,5,FALSE)*VLOOKUP($C$8,k_koef!$A$2:$B$12433,2,FALSE))/9.2)*3.8," "),IF($D$17=($QD$4+1),IF(M19<=$C$7,((VLOOKUP(M20,Kurināmais!$A$4:$G$303,5,FALSE)*VLOOKUP($C$8,k_koef!$A$2:$B$12433,2,FALSE))/9.2)*3.8," "),((VLOOKUP(M20,Kurināmais!$A$4:$G$303,5,FALSE)*VLOOKUP($C$8,k_koef!$A$2:$B$12433,2,FALSE))/9.2)*3.8))," ") -> 128.7554 | N24: =IF(OR($D$16>=$B$6,$B$7<=$D$16),IF($D$18=1,IF(N19>=$C$6,((VLOOKUP(N20,Kurināmais!$A$4:$G$303,5,FALSE)*VLOOKUP($C$8,k_koef!$A$2:$B$12433,2,FALSE))/9.2)*3.8," "),IF($D$17=($QD$4+1),IF(N19<=$C$7,((VLOOKUP(N20,Kurināmais!$A$4:$G$303,5,FALSE)*VLOOKUP($C$8,k_koef!$A$2:$B$12433,2,FALSE))/9.2)*3.8," "),((VLOOKUP(N20,Kurināmais!$A$4:$G$303,5,FALSE)*VLOOKUP($C$8,k_koef!$A$2:$B$12433,2,FALSE))/9.2)*3.8))," ") -> 131.9769739 | O24: =IF(OR($D$16>=$B$6,$B$7<=$D$16),IF($D$18=1,IF(O19>=$C$6,((VLOOKUP(O20,Kurināmais!$A$4:$G$303,5,FALSE)*VLOOKUP($C$8,k_koef!$A$2:$B$12433,2,FALSE))/9.2)*3.8," "),IF($D$17=($QD$4+1),IF(O19<=$C$7,((VLOOKUP(O20,Kurināmais!$A$4:$G$303,5,FALSE)*VLOOKUP($C$8,k_koef!$A$2:$B$12433,2,FALSE))/9.2)*3.8," "),((VLOOKUP(O20,Kurināmais!$A$4:$G$303,5,FALSE)*VLOOKUP($C$8,k_koef!$A$2:$B$12433,2,FALSE))/9.2)*3.8))," ") -> 141.6621826 | P24: =IF(OR($D$16>=$B$6,$B$7<=$D$16),IF($D$18=1,IF(P19>=$C$6,((VLOOKUP(P20,Kurināmais!$A$4:$G$303,5,FALSE)*VLOOKUP($C$8,k_koef!$A$2:$B$12433,2,FALSE))/9.2)*3.8," "),IF($D$17=($QD$4+1),IF(P19<=$C$7,((VLOOKUP(P20,Kurināmais!$A$4:$G$303,5,FALSE)*VLOOKUP($C$8,k_koef!$A$2:$B$12433,2,FALSE))/9.2)*3.8," "),((VLOOKUP(P20,Kurināmais!$A$4:$G$303,5,FALSE)*VLOOKUP($C$8,k_koef!$A$2:$B$12433,2,FALSE))/9.2)*3.8))," ") -> 148.1360609 | Q24: =IF(OR(Q$18=" ",Q$18=0,Q23=0)," ",SUMPRODUCT(R23:AC23,R24:AC24)/Q23) ->  | R24: =IF(AND($Q$16>=$B$6,$Q$16<=$B$7),IF($Q$18=1,IF(R19>=$C$6,((VLOOKUP(R20,Kurināmais!$A$4:$G$303,5,FALSE)*VLOOKUP($C$8,k_koef!$A$2:$B$12433,2,FALSE))/9.2)*3.8," "),IF($Q$17=($QD$4+1),IF(R19<=$C$7,((VLOOKUP(R20,Kurināmais!$A$4:$G$303,5,FALSE)*VLOOKUP($C$8,k_koef!$A$2:$B$12433,2,FALSE))/9.2)*3.8," "),((VLOOKUP(R20,Kurināmais!$A$4:$G$303,5,FALSE)*VLOOKUP($C$8,k_koef!$A$2:$B$12433,2,FALSE))/9.2)*3.8))," ") ->  | S24: =IF(AND($Q$16>=$B$6,$Q$16<=$B$7),IF($Q$18=1,IF(S19>=$C$6,((VLOOKUP(S20,Kurināmais!$A$4:$G$303,5,FALSE)*VLOOKUP($C$8,k_koef!$A$2:$B$12433,2,FALSE))/9.2)*3.8," "),IF($Q$17=($QD$4+1),IF(S19<=$C$7,((VLOOKUP(S20,Kurināmais!$A$4:$G$303,5,FALSE)*VLOOKUP($C$8,k_koef!$A$2:$B$12433,2,FALSE))/9.2)*3.8," "),((VLOOKUP(S20,Kurināmais!$A$4:$G$303,5,FALSE)*VLOOKUP($C$8,k_koef!$A$2:$B$12433,2,FALSE))/9.2)*3.8))," ") ->  | T24: =IF(AND($Q$16>=$B$6,$Q$16<=$B$7),IF($Q$18=1,IF(T19>=$C$6,((VLOOKUP(T20,Kurināmais!$A$4:$G$303,5,FALSE)*VLOOKUP($C$8,k_koef!$A$2:$B$12433,2,FALSE))/9.2)*3.8," "),IF($Q$17=($QD$4+1),IF(T19<=$C$7,((VLOOKUP(T20,Kurināmais!$A$4:$G$303,5,FALSE)*VLOOKUP($C$8,k_koef!$A$2:$B$12433,2,FALSE))/9.2)*3.8," "),((VLOOKUP(T20,Kurināmais!$A$4:$G$303,5,FALSE)*VLOOKUP($C$8,k_koef!$A$2:$B$12433,2,FALSE))/9.2)*3.8))," ") ->  | U24: =IF(AND($Q$16>=$B$6,$Q$16<=$B$7),IF($Q$18=1,IF(U19>=$C$6,((VLOOKUP(U20,Kurināmais!$A$4:$G$303,5,FALSE)*VLOOKUP($C$8,k_koef!$A$2:$B$12433,2,FALSE))/9.2)*3.8," "),IF($Q$17=($QD$4+1),IF(U19<=$C$7,((VLOOKUP(U20,Kurināmais!$A$4:$G$303,5,FALSE)*VLOOKUP($C$8,k_koef!$A$2:$B$12433,2,FALSE))/9.2)*3.8," "),((VLOOKUP(U20,Kurināmais!$A$4:$G$303,5,FALSE)*VLOOKUP($C$8,k_koef!$A$2:$B$12433,2,FALSE))/9.2)*3.8))," ") ->  | V24: =IF(AND($Q$16>=$B$6,$Q$16<=$B$7),IF($Q$18=1,IF(V19>=$C$6,((VLOOKUP(V20,Kurināmais!$A$4:$G$303,5,FALSE)*VLOOKUP($C$8,k_koef!$A$2:$B$12433,2,FALSE))/9.2)*3.8," "),IF($Q$17=($QD$4+1),IF(V19<=$C$7,((VLOOKUP(V20,Kurināmais!$A$4:$G$303,5,FALSE)*VLOOKUP($C$8,k_koef!$A$2:$B$12433,2,FALSE))/9.2)*3.8," "),((VLOOKUP(V20,Kurināmais!$A$4:$G$303,5,FALSE)*VLOOKUP($C$8,k_koef!$A$2:$B$12433,2,FALSE))/9.2)*3.8))," ") ->  | W24: =IF(AND($Q$16>=$B$6,$Q$16<=$B$7),IF($Q$18=1,IF(W19>=$C$6,((VLOOKUP(W20,Kurināmais!$A$4:$G$303,5,FALSE)*VLOOKUP($C$8,k_koef!$A$2:$B$12433,2,FALSE))/9.2)*3.8," "),IF($Q$17=($QD$4+1),IF(W19<=$C$7,((VLOOKUP(W20,Kurināmais!$A$4:$G$303,5,FALSE)*VLOOKUP($C$8,k_koef!$A$2:$B$12433,2,FALSE))/9.2)*3.8," "),((VLOOKUP(W20,Kurināmais!$A$4:$G$303,5,FALSE)*VLOOKUP($C$8,k_koef!$A$2:$B$12433,2,FALSE))/9.2)*3.8))," ") ->  | X24: =IF(AND($Q$16>=$B$6,$Q$16<=$B$7),IF($Q$18=1,IF(X19>=$C$6,((VLOOKUP(X20,Kurināmais!$A$4:$G$303,5,FALSE)*VLOOKUP($C$8,k_koef!$A$2:$B$12433,2,FALSE))/9.2)*3.8," "),IF($Q$17=($QD$4+1),IF(X19<=$C$7,((VLOOKUP(X20,Kurināmais!$A$4:$G$303,5,FALSE)*VLOOKUP($C$8,k_koef!$A$2:$B$12433,2,FALSE))/9.2)*3.8," "),((VLOOKUP(X20,Kurināmais!$A$4:$G$303,5,FALSE)*VLOOKUP($C$8,k_koef!$A$2:$B$12433,2,FALSE))/9.2)*3.8))," ") ->  | Y24: =IF(AND($Q$16>=$B$6,$Q$16<=$B$7),IF($Q$18=1,IF(Y19>=$C$6,((VLOOKUP(Y20,Kurināmais!$A$4:$G$303,5,FALSE)*VLOOKUP($C$8,k_koef!$A$2:$B$12433,2,FALSE))/9.2)*3.8," "),IF($Q$17=($QD$4+1),IF(Y19<=$C$7,((VLOOKUP(Y20,Kurināmais!$A$4:$G$303,5,FALSE)*VLOOKUP($C$8,k_koef!$A$2:$B$12433,2,FALSE))/9.2)*3.8," "),((VLOOKUP(Y20,Kurināmais!$A$4:$G$303,5,FALSE)*VLOOKUP($C$8,k_koef!$A$2:$B$12433,2,FALSE))/9.2)*3.8))," ") ->  | Z24: =IF(AND($Q$16>=$B$6,$Q$16<=$B$7),IF($Q$18=1,IF(Z19>=$C$6,((VLOOKUP(Z20,Kurināmais!$A$4:$G$303,5,FALSE)*VLOOKUP($C$8,k_koef!$A$2:$B$12433,2,FALSE))/9.2)*3.8," "),IF($Q$17=($QD$4+1),IF(Z19<=$C$7,((VLOOKUP(Z20,Kurināmais!$A$4:$G$303,5,FALSE)*VLOOKUP($C$8,k_koef!$A$2:$B$12433,2,FALSE))/9.2)*3.8," "),((VLOOKUP(Z20,Kurināmais!$A$4:$G$303,5,FALSE)*VLOOKUP($C$8,k_koef!$A$2:$B$12433,2,FALSE))/9.2)*3.8))," ") ->  | AA24: =IF(AND($Q$16>=$B$6,$Q$16<=$B$7),IF($Q$18=1,IF(AA19>=$C$6,((VLOOKUP(AA20,Kurināmais!$A$4:$G$303,5,FALSE)*VLOOKUP($C$8,k_koef!$A$2:$B$12433,2,FALSE))/9.2)*3.8," "),IF($Q$17=($QD$4+1),IF(AA19<=$C$7,((VLOOKUP(AA20,Kurināmais!$A$4:$G$303,5,FALSE)*VLOOKUP($C$8,k_koef!$A$2:$B$12433,2,FALSE))/9.2)*3.8," "),((VLOOKUP(AA20,Kurināmais!$A$4:$G$303,5,FALSE)*VLOOKUP($C$8,k_koef!$A$2:$B$12433,2,FALSE))/9.2)*3.8))," ") ->  | AB24: =IF(AND($Q$16>=$B$6,$Q$16<=$B$7),IF($Q$18=1,IF(AB19>=$C$6,((VLOOKUP(AB20,Kurināmais!$A$4:$G$303,5,FALSE)*VLOOKUP($C$8,k_koef!$A$2:$B$12433,2,FALSE))/9.2)*3.8," "),IF($Q$17=($QD$4+1),IF(AB19<=$C$7,((VLOOKUP(AB20,Kurināmais!$A$4:$G$303,5,FALSE)*VLOOKUP($C$8,k_koef!$A$2:$B$12433,2,FALSE))/9.2)*3.8," "),((VLOOKUP(AB20,Kurināmais!$A$4:$G$303,5,FALSE)*VLOOKUP($C$8,k_koef!$A$2:$B$12433,2,FALSE))/9.2)*3.8))," ") ->  | AC24: =IF(AND($Q$16>=$B$6,$Q$16<=$B$7),IF($Q$18=1,IF(AC19>=$C$6,((VLOOKUP(AC20,Kurināmais!$A$4:$G$303,5,FALSE)*VLOOKUP($C$8,k_koef!$A$2:$B$12433,2,FALSE))/9.2)*3.8," "),IF($Q$17=($QD$4+1),IF(AC19<=$C$7,((VLOOKUP(AC20,Kurināmais!$A$4:$G$303,5,FALSE)*VLOOKUP($C$8,k_koef!$A$2:$B$12433,2,FALSE))/9.2)*3.8," "),((VLOOKUP(AC20,Kurināmais!$A$4:$G$303,5,FALSE)*VLOOKUP($C$8,k_koef!$A$2:$B$12433,2,FALSE))/9.2)*3.8))," ") ->  | AD24: =IF(OR(AD$18=" ",AD$18=0,AD23=0)," ",SUMPRODUCT(AE23:AP23,AE24:AP24)/AD23) ->  | AE24: =IF(AND($AD$16>=$B$6,$AD$16<=$B$7),IF($AD$18=1,IF(AE19>=$C$6,((VLOOKUP(AE20,Kurināmais!$A$4:$G$303,5,FALSE)*VLOOKUP($C$8,k_koef!$A$2:$B$12433,2,FALSE))/9.2)*3.8," "),IF($AD$17=($QD$4+1),IF(AE19<=$C$7,((VLOOKUP(AE20,Kurināmais!$A$4:$G$303,5,FALSE)*VLOOKUP($C$8,k_koef!$A$2:$B$12433,2,FALSE))/9.2)*3.8," "),((VLOOKUP(AE20,Kurināmais!$A$4:$G$303,5,FALSE)*VLOOKUP($C$8,k_koef!$A$2:$B$12433,2,FALSE))/9.2)*3.8))," ") ->  | AF24: =IF(AND($AD$16>=$B$6,$AD$16<=$B$7),IF($AD$18=1,IF(AF19>=$C$6,((VLOOKUP(AF20,Kurināmais!$A$4:$G$303,5,FALSE)*VLOOKUP($C$8,k_koef!$A$2:$B$12433,2,FALSE))/9.2)*3.8," "),IF($AD$17=($QD$4+1),IF(AF19<=$C$7,((VLOOKUP(AF20,Kurināmais!$A$4:$G$303,5,FALSE)*VLOOKUP($C$8,k_koef!$A$2:$B$12433,2,FALSE))/9.2)*3.8," "),((VLOOKUP(AF20,Kurināmais!$A$4:$G$303,5,FALSE)*VLOOKUP($C$8,k_koef!$A$2:$B$12433,2,FALSE))/9.2)*3.8))," ") ->  | AG24: =IF(AND($AD$16>=$B$6,$AD$16<=$B$7),IF($AD$18=1,IF(AG19>=$C$6,((VLOOKUP(AG20,Kurināmais!$A$4:$G$303,5,FALSE)*VLOOKUP($C$8,k_koef!$A$2:$B$12433,2,FALSE))/9.2)*3.8," "),IF($AD$17=($QD$4+1),IF(AG19<=$C$7,((VLOOKUP(AG20,Kurināmais!$A$4:$G$303,5,FALSE)*VLOOKUP($C$8,k_koef!$A$2:$B$12433,2,FALSE))/9.2)*3.8," "),((VLOOKUP(AG20,Kurināmais!$A$4:$G$303,5,FALSE)*VLOOKUP($C$8,k_koef!$A$2:$B$12433,2,FALSE))/9.2)*3.8))," ") ->  | AH24: =IF(AND($AD$16>=$B$6,$AD$16<=$B$7),IF($AD$18=1,IF(AH19>=$C$6,((176*VLOOKUP($C$8,k_koef!$A$2:$B$12433,2,FALSE))*(1+0.15*0.03*HES!$AD$18))," "),IF($AD$17=($QD$4+1),IF(AH19<=$C$7,((176*VLOOKUP($C$8,k_koef!$A$2:$B$12433,2,FALSE))*(1+0.15*0.03*HES!$AD$18))," "),((176*VLOOKUP($C$8,k_koef!$A$2:$B$12433,2,FALSE))*(1+0.15*0.03*HES!$AD$18))))," ") ->  | AI24: =IF(AND($AD$16>=$B$6,$AD$16<=$B$7),IF($AD$18=1,IF(AI19>=$C$6,((176*VLOOKUP($C$8,k_koef!$A$2:$B$12433,2,FALSE))*(1+0.15*0.03*HES!$AD$18))," "),IF($AD$17=($QD$4+1),IF(AI19<=$C$7,((176*VLOOKUP($C$8,k_koef!$A$2:$B$12433,2,FALSE))*(1+0.15*0.03*HES!$AD$18))," "),((176*VLOOKUP($C$8,k_koef!$A$2:$B$12433,2,FALSE))*(1+0.15*0.03*HES!$AD$18))))," ") ->  | AJ24: =IF(AND($AD$16>=$B$6,$AD$16<=$B$7),IF($AD$18=1,IF(AJ19>=$C$6,((176*VLOOKUP($C$8,k_koef!$A$2:$B$12433,2,FALSE))*(1+0.15*0.03*HES!$AD$18))," "),IF($AD$17=($QD$4+1),IF(AJ19<=$C$7,((176*VLOOKUP($C$8,k_koef!$A$2:$B$12433,2,FALSE))*(1+0.15*0.03*HES!$AD$18))," "),((176*VLOOKUP($C$8,k_koef!$A$2:$B$12433,2,FALSE))*(1+0.15*0.03*HES!$AD$18))))," ") ->  | AK24: =IF(AND($AD$16>=$B$6,$AD$16<$B$7),IF($AD$18=1,IF(AK19>=$C$6,$Q$6*$CQ$6," "),IF(AND($AD$17>=1,$AD$17<=10),$Q$6*$CQ$6,IF($AD$17=11,IF(AK19<$C$5,$Q$6*$CQ$6,$AD$6*$CQ$6),IF($AD$17>11,$AD$6*$CQ$6)))),IF(AND($AD$17=$QD$4,$C$7=12),$CQ$6*$AD$6,IF(AND($AD$17=$QD$4+1,$C$7<12,AK19<=$C$7),$CQ$6*$AD$6," "))) ->  | AQ24: =IF(OR(AQ$18=" ",AQ$18=0,AQ23=0)," ",SUMPRODUCT(AR23:BC23,AR24:BC24)/AQ23) ->  | AR24: =IF(AND($AQ$16>=$B$6,$AQ$16<$B$7),IF($AQ$18=1,IF(AR19>=$C$6,$Q$6*$CQ$6," "),IF(AND($AQ$17>=1,$AQ$17<=10),$Q$6*$CQ$6,IF($AQ$17=11,IF(AR19<$C$5,$Q$6*$CQ$6,$AD$6*$CQ$6),IF($AQ$17>11,$AD$6*$CQ$6)))),IF(AND($AQ$17=$QD$4,$C$7=12),$CQ$6*$AD$6,IF(AND($AQ$17=$QD$4+1,$C$7<12,AR19<=$C$7),$CQ$6*$AD$6," "))) ->  | BD24: =IF(OR(BD$18=" ",BD$18=0,BD23=0)," ",SUMPRODUCT(BE23:BP23,BE24:BP24)/BD23) ->  | BE24: =IF(AND($BD$16>=$B$6,$BD$16<$B$7),IF($BD$18=1,IF(BE19>=$C$6,$Q$6*$CQ$6," "),IF(AND($BD$17>=1,$BD$17<=10),$Q$6*$CQ$6,IF($BD$17=11,IF(BE19<$C$5,$Q$6*$CQ$6,$AD$6*$CQ$6),IF($BD$17>11,$AD$6*$CQ$6)))),IF(AND($BD$17=$QD$4,$C$7=12),$CQ$6*$AD$6,IF(AND($BD$17=$QD$4+1,$C$7<12,BE19<=$C$7),$CQ$6*$AD$6," "))) ->  | BQ24: =IF(OR(BQ$18=" ",BQ$18=0,BQ23=0)," ",SUMPRODUCT(BR23:CC23,BR24:CC24)/BQ23) ->  | BR24: =IF(AND($BQ$16>=$B$6,$BQ$16<$B$7),IF($BQ$18=1,IF(BR19>=$C$6,$Q$6*$CQ$6," "),IF(AND($BQ$17>=1,$BQ$17<=10),$Q$6*$CQ$6,IF($BQ$17=11,IF(BR19<$C$5,$Q$6*$CQ$6,$AD$6*$CQ$6),IF($BQ$17>11,$AD$6*$CQ$6)))),IF(AND($BQ$17=$QD$4,$C$7=12),$CQ$6*$AD$6,IF(AND($BQ$17=$QD$4+1,$C$7<12,BR19<=$C$7),$CQ$6*$AD$6," "))) ->  | CD24: =IF(OR(CD$18=" ",CD$18=0,CD23=0)," ",SUMPRODUCT(CE23:CP23,CE24:CP24)/CD23) ->  | CE24: =IF(AND($CD$16>=$B$6,$CD$16<$B$7),IF($CD$18=1,IF(CE19>=$C$6,$Q$6*$CQ$6," "),IF(AND($CD$17>=1,$CD$17<=10),$Q$6*$CQ$6,IF($CD$17=11,IF(CE19<$C$5,$Q$6*$CQ$6,$AD$6*$CQ$6),IF($CD$17>11,$AD$6*$CQ$6)))),IF(AND($CD$17=$QD$4,$C$7=12),$CQ$6*$AD$6,IF(AND($CD$17=$QD$4+1,$C$7<12,CE19<=$C$7),$CQ$6*$AD$6," "))) ->  | CQ24: =IF(OR(CQ$18=" ",CQ$18=0,CQ23=0)," ",SUMPRODUCT(CR23:DC23,CR24:DC24)/CQ23) ->  | CR24: =IF(AND($CQ$16>=$B$6,$CQ$16<$B$7),IF($CQ$18=1,IF(CR19>=$C$6,$Q$6*$CQ$6," "),IF(AND($CQ$17>=1,$CQ$17<=10),$Q$6*$CQ$6,IF($CQ$17=11,IF(CR19<$C$5,$Q$6*$CQ$6,$AD$6*$CQ$6),IF($CQ$17>11,$AD$6*$CQ$6)))),IF(AND($CQ$17=$QD$4,$C$7=12),$CQ$6*$AD$6,IF(AND($CQ$17=$QD$4+1,$C$7<12,CR19<=$C$7),$CQ$6*$AD$6," "))) ->  | DD24: =IF(OR(DD$18=" ",DD$18=0,DD23=0)," ",SUMPRODUCT(DE23:DP23,DE24:DP24)/DD23) ->  | DE24: =IF(AND($DD$16>=$B$6,$DD$16<$B$7),IF($DD$18=1,IF(DE19>=$C$6,$Q$6*$CQ$6," "),IF(AND($DD$17>=1,$DD$17<=10),$Q$6*$CQ$6,IF($DD$17=11,IF(DE19<$C$5,$Q$6*$CQ$6,$AD$6*$CQ$6),IF($DD$17>11,$AD$6*$CQ$6)))),IF(AND($DD$17=$QD$4,$C$7=12),$CQ$6*$AD$6,IF(AND($DD$17=$QD$4+1,$C$7<12,DE19<=$C$7),$CQ$6*$AD$6," "))) ->  | DQ24: =IF(OR(DQ$18=" ",DQ$18=0,DQ23=0)," ",SUMPRODUCT(DR23:EC23,DR24:EC24)/DQ23) ->  | DR24: =IF(AND($DQ$16>=$B$6,$DQ$16<$B$7),IF($DQ$18=1,IF(DR19>=$C$6,$Q$6*$CQ$6," "),IF(AND($DQ$17>=1,$DQ$17<=10),$Q$6*$CQ$6,IF($DQ$17=11,IF(DR19<$C$5,$Q$6*$CQ$6,$AD$6*$CQ$6),IF($DQ$17>11,$AD$6*$CQ$6)))),IF(AND($DQ$17=$QD$4,$C$7=12),$CQ$6*$AD$6,IF(AND($DQ$17=$QD$4+1,$C$7<12,DR19<=$C$7),$CQ$6*$AD$6," "))) ->  | ED24: =IF(OR(ED$18=" ",ED$18=0,ED23=0)," ",SUMPRODUCT(EE23:EP23,EE24:EP24)/ED23) ->  | EE24: =IF(AND($ED$16>=$B$6,$ED$16<$B$7),IF($ED$18=1,IF(EE19>=$C$6,$Q$6*$CQ$6," "),IF(AND($ED$17>=1,$ED$17<=10),$Q$6*$CQ$6,IF($ED$17=11,IF(EE19<$C$5,$Q$6*$CQ$6,$AD$6*$CQ$6),IF($ED$17>11,$AD$6*$CQ$6)))),IF(AND($ED$17=$QD$4,$C$7=12),$CQ$6*$AD$6,IF(AND($ED$17=$QD$4+1,$C$7<12,EE19<=$C$7),$CQ$6*$AD$6," "))) ->  | EQ24: =IF(OR(EQ$18=" ",EQ$18=0,EQ23=0)," ",SUMPRODUCT(ER23:FC23,ER24:FC24)/EQ23) ->  | ER24: =IF(AND($EQ$16>=$B$6,$EQ$16<$B$7),IF($EQ$18=1,IF(ER19>=$C$6,$Q$6*$CQ$6," "),IF(AND($EQ$17>=1,$EQ$17<=10),$Q$6*$CQ$6,IF($EQ$17=11,IF(ER19<$C$5,$Q$6*$CQ$6,$AD$6*$CQ$6),IF($EQ$17>11,$AD$6*$CQ$6)))),IF(AND($EQ$17=$QD$4,$C$7=12),$CQ$6*$AD$6,IF(AND($EQ$17=$QD$4+1,$C$7<12,ER19<=$C$7),$CQ$6*$AD$6," "))) ->  | FD24: =IF(OR(FD$18=" ",FD$18=0,FD23=0)," ",SUMPRODUCT(FE23:FP23,FE24:FP24)/FD23) ->  | FE24: =IF(AND($FD$16>=$B$6,$FD$16<$B$7),IF($FD$18=1,IF(FE19>=$C$6,$Q$6*$CQ$6," "),IF(AND($FD$17>=1,$FD$17<=10),$Q$6*$CQ$6,IF($FD$17=11,IF(FE19<$C$5,$Q$6*$CQ$6,$AD$6*$CQ$6),IF($FD$17>11,$AD$6*$CQ$6)))),IF(AND($FD$17=$QD$4,$C$7=12),$CQ$6*$AD$6,IF(AND($FD$17=$QD$4+1,$C$7<12,FE19<=$C$7),$CQ$6*$AD$6," "))) ->  | FQ24: =IF(OR(FQ$18=" ",FQ$18=0,FQ23=0)," ",SUMPRODUCT(FR23:GC23,FR24:GC24)/FQ23) ->  | FR24: =IF(AND($FQ$16>=$B$6,$FQ$16<$B$7),IF($FQ$18=1,IF(FR19>=$C$6,$Q$6*$CQ$6," "),IF(AND($FQ$17>=1,$FQ$17<=10),$Q$6*$CQ$6,IF($FQ$17=11,IF(FR19<$C$5,$Q$6*$CQ$6,$AD$6*$CQ$6),IF($FQ$17>11,$AD$6*$CQ$6)))),IF(AND($FQ$17=$QD$4,$C$7=12),$CQ$6*$AD$6,IF(AND($FQ$17=$QD$4+1,$C$7<12,FR19<=$C$7),$CQ$6*$AD$6," "))) ->  | GD24: =IF(OR(GD$18=" ",GD$18=0,GD23=0)," ",SUMPRODUCT(GE23:GP23,GE24:GP24)/GD23) ->  | GE24: =IF(AND($GD$16>=$B$6,$GD$16<$B$7),IF($GD$18=1,IF(GE19>=$C$6,$Q$6*$CQ$6," "),IF(AND($GD$17>=1,$GD$17<=10),$Q$6*$CQ$6,IF($GD$17=11,IF(GE19<$C$5,$Q$6*$CQ$6,$AD$6*$CQ$6),IF($GD$17>11,$AD$6*$CQ$6)))),IF(AND($GD$17=$QD$4,$C$7=12),$CQ$6*$AD$6,IF(AND($GD$17=$QD$4+1,$C$7<12,GE19<=$C$7),$CQ$6*$AD$6," "))) ->  | GQ24: =IF(OR(GQ$18=" ",GQ$18=0,GQ23=0)," ",SUMPRODUCT(GR23:HC23,GR24:HC24)/GQ23) ->  | GR24: =IF(AND($GQ$16>=$B$6,$GQ$16<$B$7),IF($GQ$18=1,IF(GR19>=$C$6,$Q$6*$CQ$6," "),IF(AND($GQ$17>=1,$GQ$17<=10),$Q$6*$CQ$6,IF($GQ$17=11,IF(GR19<$C$5,$Q$6*$CQ$6,$AD$6*$CQ$6),IF($GQ$17>11,$AD$6*$CQ$6)))),IF(AND($GQ$17=$QD$4,$C$7=12),$CQ$6*$AD$6,IF(AND($GQ$17=$QD$4+1,$C$7<12,GR19<=$C$7),$CQ$6*$AD$6," "))) ->  | HD24: =IF(OR(HD$18=" ",HD$18=0,HD23=0)," ",SUMPRODUCT(HE23:HP23,HE24:HP24)/HD23) ->  | HE24: =IF(AND($HD$16>=$B$6,$HD$16<$B$7),IF($HD$18=1,IF(HE19>=$C$6,$Q$6*$CQ$6," "),IF(AND($HD$17>=1,$HD$17<=10),$Q$6*$CQ$6,IF($HD$17=11,IF(HE19<$C$5,$Q$6*$CQ$6,$AD$6*$CQ$6),IF($HD$17>11,$AD$6*$CQ$6)))),IF(AND($HD$17=$QD$4,$C$7=12),$CQ$6*$AD$6,IF(AND($HD$17=$QD$4+1,$C$7<12,HE19<=$C$7),$CQ$6*$AD$6," "))) ->  | HQ24: =IF(OR(HQ$18=" ",HQ$18=0,HQ23=0)," ",SUMPRODUCT(HR23:IC23,HR24:IC24)/HQ23) ->  | HR24: =IF(AND($HQ$16>=$B$6,$HQ$16<$B$7),IF($HQ$18=1,IF(HR19>=$C$6,$Q$6*$CQ$6," "),IF(AND($HQ$17>=1,$HQ$17<=10),$Q$6*$CQ$6,IF($HQ$17=11,IF(HR19<$C$5,$Q$6*$CQ$6,$AD$6*$CQ$6),IF($HQ$17>11,$AD$6*$CQ$6)))),IF(AND($HQ$17=$QD$4,$C$7=12),$CQ$6*$AD$6,IF(AND($HQ$17=$QD$4+1,$C$7<12,HR19<=$C$7),$CQ$6*$AD$6," "))) ->  | ID24: =IF(OR(ID$18=" ",ID$18=0,ID23=0)," ",SUMPRODUCT(IE23:IP23,IE24:IP24)/ID23) ->  | IE24: =IF(AND($ID$16>=$B$6,$ID$16<$B$7),IF($ID$18=1,IF(IE19>=$C$6,$Q$6*$CQ$6," "),IF(AND($ID$17>=1,$ID$17<=10),$Q$6*$CQ$6,IF($ID$17=11,IF(IE19<$C$5,$Q$6*$CQ$6,$AD$6*$CQ$6),IF($ID$17>11,$AD$6*$CQ$6)))),IF(AND($ID$17=$QD$4,$C$7=12),$CQ$6*$AD$6,IF(AND($ID$17=$QD$4+1,$C$7<12,IE19<=$C$7),$CQ$6*$AD$6," "))) ->  | IQ24: =IF(OR(IQ$18=" ",IQ$18=0,IQ23=0)," ",SUMPRODUCT(IR23:JC23,IR24:JC24)/IQ23) ->  | IR24: =IF(AND($IQ$16>=$B$6,$IQ$16<$B$7),IF($IQ$18=1,IF(IR19>=$C$6,$Q$6*$CQ$6," "),IF(AND($IQ$17>=1,$IQ$17<=10),$Q$6*$CQ$6,IF($IQ$17=11,IF(IR19<$C$5,$Q$6*$CQ$6,$AD$6*$CQ$6),IF($IQ$17>11,$AD$6*$CQ$6)))),IF(AND($IQ$17=$QD$4,$C$7=12),$CQ$6*$AD$6,IF(AND($IQ$17=$QD$4+1,$C$7<12,IR19<=$C$7),$CQ$6*$AD$6," "))) ->  | JD24: =IF(OR(JD$18=" ",JD$18=0,JD23=0)," ",SUMPRODUCT(JE23:JP23,JE24:JP24)/JD23) ->  | JE24: =IF(AND($JD$16>=$B$6,$JD$16<$B$7),IF($JD$18=1,IF(JE19>=$C$6,$Q$6*$CQ$6," "),IF(AND($JD$17>=1,$JD$17<=10),$Q$6*$CQ$6,IF($JD$17=11,IF(JE19<$C$5,$Q$6*$CQ$6,$AD$6*$CQ$6),IF($JD$17>11,$AD$6*$CQ$6)))),IF(AND($JD$17=$QD$4,$C$7=12),$CQ$6*$AD$6,IF(AND($JD$17=$QD$4+1,$C$7<12,JE19<=$C$7),$CQ$6*$AD$6," "))) ->  | JQ24: =IF(OR(JQ$18=" ",JQ$18=0,JQ23=0)," ",SUMPRODUCT(JR23:KC23,JR24:KC24)/JQ23) ->  | JR24: =IF(AND($JQ$16>=$B$6,$JQ$16<$B$7),IF($JQ$18=1,IF(JR19>=$C$6,$Q$6*$CQ$6," "),IF(AND($JQ$17>=1,$JQ$17<=10),$Q$6*$CQ$6,IF($JQ$17=11,IF(JR19<$C$5,$Q$6*$CQ$6,$AD$6*$CQ$6),IF($JQ$17>11,$AD$6*$CQ$6)))),IF(AND($JQ$17=$QD$4,$C$7=12),$CQ$6*$AD$6,IF(AND($JQ$17=$QD$4+1,$C$7<12,JR19<=$C$7),$CQ$6*$AD$6," "))) ->  | KD24: =IF(OR(KD$18=" ",KD$18=0,KD23=0)," ",SUMPRODUCT(KE23:KP23,KE24:KP24)/KD23) ->  | KE24: =IF(AND($KD$16>=$B$6,$KD$16<$B$7),IF($KD$18=1,IF(KE19>=$C$6,$Q$6*$CQ$6," "),IF(AND($KD$17>=1,$KD$17<=10),$Q$6*$CQ$6,IF($KD$17=11,IF(KE19<$C$5,$Q$6*$CQ$6,$AD$6*$CQ$6),IF($KD$17>11,$AD$6*$CQ$6)))),IF(AND($KD$17=$QD$4,$C$7=12),$CQ$6*$AD$6,IF(AND($KD$17=$QD$4+1,$C$7<12,KE19<=$C$7),$CQ$6*$AD$6," "))) ->  | KQ24: =IF(OR(KQ$18=" ",KQ$18=0,KQ23=0)," ",SUMPRODUCT(KR23:LC23,KR24:LC24)/KQ23) ->  | KR24: =IF(AND($KQ$16>=$B$6,$KQ$16<$B$7),IF($KQ$18=1,IF(KR19>=$C$6,$Q$6*$CQ$6," "),IF(AND($KQ$17>=1,$KQ$17<=10),$Q$6*$CQ$6,IF($KQ$17=11,IF(KR19<$C$5,$Q$6*$CQ$6,$AD$6*$CQ$6),IF($KQ$17>11,$AD$6*$CQ$6)))),IF(AND($KQ$17=$QD$4,$C$7=12),$CQ$6*$AD$6,IF(AND($KQ$17=$QD$4+1,$C$7<12,KR19<=$C$7),$CQ$6*$AD$6," "))) ->  | LD24: =IF(OR(LD$18=" ",LD$18=0,LD23=0)," ",SUMPRODUCT(LE23:LP23,LE24:LP24)/LD23) ->  | LE24: =IF(AND($LD$16>=$B$6,$LD$16<$B$7),IF($LD$18=1,IF(LE19>=$C$6,$Q$6*$CQ$6," "),IF(AND($LD$17>=1,$LD$17<=10),$Q$6*$CQ$6,IF($LD$17=11,IF(LE19<$C$5,$Q$6*$CQ$6,$AD$6*$CQ$6),IF($LD$17>11,$AD$6*$CQ$6)))),IF(AND($LD$17=$QD$4,$C$7=12),$CQ$6*$AD$6,IF(AND($LD$17=$QD$4+1,$C$7<12,LE19<=$C$7),$CQ$6*$AD$6," "))) ->  | LQ24: =IF(OR(LQ$18=" ",LQ$18=0,LQ23=0)," ",SUMPRODUCT(LR23:MC23,LR24:MC24)/LQ23) ->  | LR24: =IF(AND($LQ$16>=$B$6,$LQ$16<$B$7),IF($LQ$18=1,IF(LR19>=$C$6,$Q$6*$CQ$6," "),IF(AND($LQ$17>=1,$LQ$17<=10),$Q$6*$CQ$6,IF($LQ$17=11,IF(LR19<$C$5,$Q$6*$CQ$6,$AD$6*$CQ$6),IF($LQ$17>11,$AD$6*$CQ$6)))),IF(AND($LQ$17=$QD$4,$C$7=12),$CQ$6*$AD$6,IF(AND($LQ$17=$QD$4+1,$C$7<12,LR19<=$C$7),$CQ$6*$AD$6," "))) ->  | MD24: =IF(OR(MD$18=" ",MD$18=0,MD23=0)," ",SUMPRODUCT(ME23:MP23,ME24:MP24)/MD23) ->  | ME24: =IF(AND($MD$16>=$B$6,$MD$16<$B$7),IF($MD$18=1,IF(ME19>=$C$6,$Q$6*$CQ$6," "),IF(AND($MD$17>=1,$MD$17<=10),$Q$6*$CQ$6,IF($MD$17=11,IF(ME19<$C$5,$Q$6*$CQ$6,$AD$6*$CQ$6),IF($MD$17>11,$AD$6*$CQ$6)))),IF(AND($MD$17=$QD$4,$C$7=12),$CQ$6*$AD$6,IF(AND($MD$17=$QD$4+1,$C$7<12,ME19<=$C$7),$CQ$6*$AD$6," "))) ->  | MQ24: =IF(OR(MQ$18=" ",MQ$18=0,MQ23=0)," ",SUMPRODUCT(MR23:NC23,MR24:NC24)/MQ23) ->  | MR24: =IF(AND($MQ$16>=$B$6,$MQ$16<$B$7),IF($MQ$18=1,IF(MR19>=$C$6,$Q$6*$CQ$6," "),IF(AND($MQ$17>=1,$MQ$17<=10),$Q$6*$CQ$6,IF($MQ$17=11,IF(MR19<$C$5,$Q$6*$CQ$6,$AD$6*$CQ$6),IF($MQ$17>11,$AD$6*$CQ$6)))),IF(AND($MQ$17=$QD$4,$C$7=12),$CQ$6*$AD$6,IF(AND($MQ$17=$QD$4+1,$C$7<12,MR19<=$C$7),$CQ$6*$AD$6," "))) ->  | ND24: =IF(OR(ND$18=" ",ND$18=0,ND23=0)," ",SUMPRODUCT(NE23:NP23,NE24:NP24)/ND23) ->  | NE24: =IF(AND($ND$16>=$B$6,$ND$16<$B$7),IF($ND$18=1,IF(NE19>=$C$6,$Q$6*$CQ$6," "),IF(AND($ND$17>=1,$ND$17<=10),$Q$6*$CQ$6,IF($ND$17=11,IF(NE19<$C$5,$Q$6*$CQ$6,$AD$6*$CQ$6),IF($ND$17>11,$AD$6*$CQ$6)))),IF(AND($ND$17=$QD$4,$C$7=12),$CQ$6*$AD$6,IF(AND($ND$17=$QD$4+1,$C$7<12,NE19<=$C$7),$CQ$6*$AD$6," "))) ->  | NQ24: =IF(OR(NQ$18=" ",NQ$18=0,NQ23=0)," ",SUMPRODUCT(NR23:OC23,NR24:OC24)/NQ23) ->  | NR24: =IF(AND($NQ$16>=$B$6,$NQ$16<$B$7),IF($NQ$18=1,IF(NR19>=$C$6,$Q$6*$CQ$6," "),IF(AND($NQ$17>=1,$NQ$17<=10),$Q$6*$CQ$6,IF($NQ$17=11,IF(NR19<$C$5,$Q$6*$CQ$6,$AD$6*$CQ$6),IF($NQ$17>11,$AD$6*$CQ$6)))),IF(AND($NQ$17=$QD$4,$C$7=12),$CQ$6*$AD$6,IF(AND($NQ$17=$QD$4+1,$C$7<12,NR19<=$C$7),$CQ$6*$AD$6," "))) ->  | OD24: =IF(OR(OD$18=" ",OD$18=0,OD23=0)," ",SUMPRODUCT(OE23:OP23,OE24:OP24)/OD23) ->  | OE24: =IF(AND($OD$16>=$B$6,$OD$16<$B$7),IF($OD$18=1,IF(OE19>=$C$6,$Q$6*$CQ$6," "),IF(AND($OD$17>=1,$OD$17<=10),$Q$6*$CQ$6,IF($OD$17=11,IF(OE19<$C$5,$Q$6*$CQ$6,$AD$6*$CQ$6),IF($OD$17>11,$AD$6*$CQ$6)))),IF(AND($OD$17=$QD$4,$C$7=12),$CQ$6*$AD$6,IF(AND($OD$17=$QD$4+1,$C$7<12,OE19<=$C$7),$CQ$6*$AD$6," "))) ->  | OQ24: =IF(OR(OQ$18=" ",OQ$18=0,OQ23=0)," ",SUMPRODUCT(OR23:PC23,OR24:PC24)/OQ23) ->  | OR24: =IF(AND($OQ$16>=$B$6,$OQ$16<$B$7),IF($OQ$18=1,IF(OR19>=$C$6,$Q$6*$CQ$6," "),IF(AND($OQ$17>=1,$OQ$17<=10),$Q$6*$CQ$6,IF($OQ$17=11,IF(OR19<$C$5,$Q$6*$CQ$6,$AD$6*$CQ$6),IF($OQ$17>11,$AD$6*$CQ$6)))),IF(AND($OQ$17=$QD$4,$C$7=12),$CQ$6*$AD$6,IF(AND($OQ$17=$QD$4+1,$C$7<12,OR19<=$C$7),$CQ$6*$AD$6," "))) ->  | PD24: =IF(OR(PD$18=" ",PD$18=0,PD23=0)," ",SUMPRODUCT(PE23:PP23,PE24:PP24)/PD23) ->  | PE24: =IF(AND($PD$16>=$B$6,$PD$16<$B$7),IF($PD$18=1,IF(PE19>=$C$6,$Q$6*$CQ$6," "),IF(AND($PD$17>=1,$PD$17<=10),$Q$6*$CQ$6,IF($PD$17=11,IF(PE19<$C$5,$Q$6*$CQ$6,$AD$6*$CQ$6),IF($PD$17>11,$AD$6*$CQ$6)))),IF(AND($PD$17=$QD$4,$C$7=12),$CQ$6*$AD$6,IF(AND($PD$17=$QD$4+1,$C$7<12,PE19<=$C$7),$CQ$6*$AD$6," "))) ->  | PQ24: =IF(OR(PQ$18=" ",PQ$18=0,PQ23=0)," ",SUMPRODUCT(PR23:QC23,PR24:QC24)/PQ23) ->  | PR24: =IF(AND($PQ$16>=$B$6,$PQ$16<$B$7),IF($PQ$18=1,IF(PR19>=$C$6,$Q$6*$CQ$6," "),IF(AND($PQ$17>=1,$PQ$17<=10),$Q$6*$CQ$6,IF($PQ$17=11,IF(PR19<$C$5,$Q$6*$CQ$6,$AD$6*$CQ$6),IF($PQ$17>11,$AD$6*$CQ$6)))),IF(AND($PQ$17=$QD$4,$C$7=12),$CQ$6*$AD$6,IF(AND($PQ$17=$QD$4+1,$C$7<12,PR19<=$C$7),$CQ$6*$AD$6," "))) -> 
A25: SEN (jāaizpilda ar faktisko likmi pa mēnešiem) | B25: %
A26: Subsīdijas no fondiem | B26: EUR | C26: =IF(C$18=" "," ",IF(C$18=0,IF(Datu_ievade!$C$17<=C16,Datu_ievade!$C$16,0)+IF(Datu_ievade!$C$20<=C16,Datu_ievade!$C$19,0)+IF(Datu_ievade!$C$23<=C16,Datu_ievade!$C$22,0)+IF(Datu_ievade!$C$26<=C16,Datu_ievade!$C$25,0)+IF(Datu_ievade!$C$29<=C16,Datu_ievade!$C$28,0),IF(Datu_ievade!$C$17=C16,Datu_ievade!$C$16,0)+IF(Datu_ievade!$C$20=C16,Datu_ievade!$C$19,0)+IF(Datu_ievade!$C$23=C16,Datu_ievade!$C$22,0)+IF(Datu_ievade!$C$26=C16,Datu_ievade!$C$25,0)+IF(Datu_ievade!$C$29=C16,Datu_ievade!$C$28,0))) ->  | D26: =IF(D$18=" "," ",IF(D$18=0,IF(Datu_ievade!$C$17<=D16,Datu_ievade!$C$16,0)+IF(Datu_ievade!$C$20<=D16,Datu_ievade!$C$19,0)+IF(Datu_ievade!$C$23<=D16,Datu_ievade!$C$22,0)+IF(Datu_ievade!$C$26<=D16,Datu_ievade!$C$25,0)+IF(Datu_ievade!$C$29<=D16,Datu_ievade!$C$28,0),IF(Datu_ievade!$C$17=D16,Datu_ievade!$C$16,0)+IF(Datu_ievade!$C$20=D16,Datu_ievade!$C$19,0)+IF(Datu_ievade!$C$23=D16,Datu_ievade!$C$22,0)+IF(Datu_ievade!$C$26=D16,Datu_ievade!$C$25,0)+IF(Datu_ievade!$C$29=D16,Datu_ievade!$C$28,0))) ->  | Q26: =IF(Q$18=" "," ",IF(Q$18=0,IF(Datu_ievade!$C$17<=Q16,Datu_ievade!$C$16,0)+IF(Datu_ievade!$C$20<=Q16,Datu_ievade!$C$19,0)+IF(Datu_ievade!$C$23<=Q16,Datu_ievade!$C$22,0)+IF(Datu_ievade!$C$26<=Q16,Datu_ievade!$C$25,0)+IF(Datu_ievade!$C$29<=Q16,Datu_ievade!$C$28,0),IF(Datu_ievade!$C$17=Q16,Datu_ievade!$C$16,0)+IF(Datu_ievade!$C$20=Q16,Datu_ievade!$C$19,0)+IF(Datu_ievade!$C$23=Q16,Datu_ievade!$C$22,0)+IF(Datu_ievade!$C$26=Q16,Datu_ievade!$C$25,0)+IF(Datu_ievade!$C$29=Q16,Datu_ievade!$C$28,0))) ->  | AD26: =IF(AD$18=" "," ",IF(AD$18=0,IF(Datu_ievade!$C$17<=AD16,Datu_ievade!$C$16,0)+IF(Datu_ievade!$C$20<=AD16,Datu_ievade!$C$19,0)+IF(Datu_ievade!$C$23<=AD16,Datu_ievade!$C$22,0)+IF(Datu_ievade!$C$26<=AD16,Datu_ievade!$C$25,0)+IF(Datu_ievade!$C$29<=AD16,Datu_ievade!$C$28,0),IF(Datu_ievade!$C$17=AD16,Datu_ievade!$C$16,0)+IF(Datu_ievade!$C$20=AD16,Datu_ievade!$C$19,0)+IF(Datu_ievade!$C$23=AD16,Datu_ievade!$C$22,0)+IF(Datu_ievade!$C$26=AD16,Datu_ievade!$C$25,0)+IF(Datu_ievade!$C$29=AD16,Datu_ievade!$C$28,0))) ->  | AQ26: =IF(AQ$18=" "," ",IF(AQ$18=0,IF(Datu_ievade!$C$17<=AQ16,Datu_ievade!$C$16,0)+IF(Datu_ievade!$C$20<=AQ16,Datu_ievade!$C$19,0)+IF(Datu_ievade!$C$23<=AQ16,Datu_ievade!$C$22,0)+IF(Datu_ievade!$C$26<=AQ16,Datu_ievade!$C$25,0)+IF(Datu_ievade!$C$29<=AQ16,Datu_ievade!$C$28,0),IF(Datu_ievade!$C$17=AQ16,Datu_ievade!$C$16,0)+IF(Datu_ievade!$C$20=AQ16,Datu_ievade!$C$19,0)+IF(Datu_ievade!$C$23=AQ16,Datu_ievade!$C$22,0)+IF(Datu_ievade!$C$26=AQ16,Datu_ievade!$C$25,0)+IF(Datu_ievade!$C$29=AQ16,Datu_ievade!$C$28,0))) ->  | BD26: =IF(BD$18=" "," ",IF(BD$18=0,IF(Datu_ievade!$C$17<=BD16,Datu_ievade!$C$16,0)+IF(Datu_ievade!$C$20<=BD16,Datu_ievade!$C$19,0)+IF(Datu_ievade!$C$23<=BD16,Datu_ievade!$C$22,0)+IF(Datu_ievade!$C$26<=BD16,Datu_ievade!$C$25,0)+IF(Datu_ievade!$C$29<=BD16,Datu_ievade!$C$28,0),IF(Datu_ievade!$C$17=BD16,Datu_ievade!$C$16,0)+IF(Datu_ievade!$C$20=BD16,Datu_ievade!$C$19,0)+IF(Datu_ievade!$C$23=BD16,Datu_ievade!$C$22,0)+IF(Datu_ievade!$C$26=BD16,Datu_ievade!$C$25,0)+IF(Datu_ievade!$C$29=BD16,Datu_ievade!$C$28,0))) ->  | BQ26: =IF(BQ$18=" "," ",IF(BQ$18=0,IF(Datu_ievade!$C$17<=BQ16,Datu_ievade!$C$16,0)+IF(Datu_ievade!$C$20<=BQ16,Datu_ievade!$C$19,0)+IF(Datu_ievade!$C$23<=BQ16,Datu_ievade!$C$22,0)+IF(Datu_ievade!$C$26<=BQ16,Datu_ievade!$C$25,0)+IF(Datu_ievade!$C$29<=BQ16,Datu_ievade!$C$28,0),IF(Datu_ievade!$C$17=BQ16,Datu_ievade!$C$16,0)+IF(Datu_ievade!$C$20=BQ16,Datu_ievade!$C$19,0)+IF(Datu_ievade!$C$23=BQ16,Datu_ievade!$C$22,0)+IF(Datu_ievade!$C$26=BQ16,Datu_ievade!$C$25,0)+IF(Datu_ievade!$C$29=BQ16,Datu_ievade!$C$28,0))) ->  | CD26: =IF(CD$18=" "," ",IF(CD$18=0,IF(Datu_ievade!$C$17<=CD16,Datu_ievade!$C$16,0)+IF(Datu_ievade!$C$20<=CD16,Datu_ievade!$C$19,0)+IF(Datu_ievade!$C$23<=CD16,Datu_ievade!$C$22,0)+IF(Datu_ievade!$C$26<=CD16,Datu_ievade!$C$25,0)+IF(Datu_ievade!$C$29<=CD16,Datu_ievade!$C$28,0),IF(Datu_ievade!$C$17=CD16,Datu_ievade!$C$16,0)+IF(Datu_ievade!$C$20=CD16,Datu_ievade!$C$19,0)+IF(Datu_ievade!$C$23=CD16,Datu_ievade!$C$22,0)+IF(Datu_ievade!$C$26=CD16,Datu_ievade!$C$25,0)+IF(Datu_ievade!$C$29=CD16,Datu_ievade!$C$28,0))) ->  | CQ26: =IF(CQ$18=" "," ",IF(CQ$18=0,IF(Datu_ievade!$C$17<=CQ16,Datu_ievade!$C$16,0)+IF(Datu_ievade!$C$20<=CQ16,Datu_ievade!$C$19,0)+IF(Datu_ievade!$C$23<=CQ16,Datu_ievade!$C$22,0)+IF(Datu_ievade!$C$26<=CQ16,Datu_ievade!$C$25,0)+IF(Datu_ievade!$C$29<=CQ16,Datu_ievade!$C$28,0),IF(Datu_ievade!$C$17=CQ16,Datu_ievade!$C$16,0)+IF(Datu_ievade!$C$20=CQ16,Datu_ievade!$C$19,0)+IF(Datu_ievade!$C$23=CQ16,Datu_ievade!$C$22,0)+IF(Datu_ievade!$C$26=CQ16,Datu_ievade!$C$25,0)+IF(Datu_ievade!$C$29=CQ16,Datu_ievade!$C$28,0))) ->  | DD26: =IF(DD$18=" "," ",IF(DD$18=0,IF(Datu_ievade!$C$17<=DD16,Datu_ievade!$C$16,0)+IF(Datu_ievade!$C$20<=DD16,Datu_ievade!$C$19,0)+IF(Datu_ievade!$C$23<=DD16,Datu_ievade!$C$22,0)+IF(Datu_ievade!$C$26<=DD16,Datu_ievade!$C$25,0)+IF(Datu_ievade!$C$29<=DD16,Datu_ievade!$C$28,0),IF(Datu_ievade!$C$17=DD16,Datu_ievade!$C$16,0)+IF(Datu_ievade!$C$20=DD16,Datu_ievade!$C$19,0)+IF(Datu_ievade!$C$23=DD16,Datu_ievade!$C$22,0)+IF(Datu_ievade!$C$26=DD16,Datu_ievade!$C$25,0)+IF(Datu_ievade!$C$29=DD16,Datu_ievade!$C$28,0))) ->  | DQ26: =IF(DQ$18=" "," ",IF(DQ$18=0,IF(Datu_ievade!$C$17<=DQ16,Datu_ievade!$C$16,0)+IF(Datu_ievade!$C$20<=DQ16,Datu_ievade!$C$19,0)+IF(Datu_ievade!$C$23<=DQ16,Datu_ievade!$C$22,0)+IF(Datu_ievade!$C$26<=DQ16,Datu_ievade!$C$25,0)+IF(Datu_ievade!$C$29<=DQ16,Datu_ievade!$C$28,0),IF(Datu_ievade!$C$17=DQ16,Datu_ievade!$C$16,0)+IF(Datu_ievade!$C$20=DQ16,Datu_ievade!$C$19,0)+IF(Datu_ievade!$C$23=DQ16,Datu_ievade!$C$22,0)+IF(Datu_ievade!$C$26=DQ16,Datu_ievade!$C$25,0)+IF(Datu_ievade!$C$29=DQ16,Datu_ievade!$C$28,0))) ->  | ED26: =IF(ED$18=" "," ",IF(ED$18=0,IF(Datu_ievade!$C$17<=ED16,Datu_ievade!$C$16,0)+IF(Datu_ievade!$C$20<=ED16,Datu_ievade!$C$19,0)+IF(Datu_ievade!$C$23<=ED16,Datu_ievade!$C$22,0)+IF(Datu_ievade!$C$26<=ED16,Datu_ievade!$C$25,0)+IF(Datu_ievade!$C$29<=ED16,Datu_ievade!$C$28,0),IF(Datu_ievade!$C$17=ED16,Datu_ievade!$C$16,0)+IF(Datu_ievade!$C$20=ED16,Datu_ievade!$C$19,0)+IF(Datu_ievade!$C$23=ED16,Datu_ievade!$C$22,0)+IF(Datu_ievade!$C$26=ED16,Datu_ievade!$C$25,0)+IF(Datu_ievade!$C$29=ED16,Datu_ievade!$C$28,0))) ->  | EQ26: =IF(EQ$18=" "," ",IF(EQ$18=0,IF(Datu_ievade!$C$17<=EQ16,Datu_ievade!$C$16,0)+IF(Datu_ievade!$C$20<=EQ16,Datu_ievade!$C$19,0)+IF(Datu_ievade!$C$23<=EQ16,Datu_ievade!$C$22,0)+IF(Datu_ievade!$C$26<=EQ16,Datu_ievade!$C$25,0)+IF(Datu_ievade!$C$29<=EQ16,Datu_ievade!$C$28,0),IF(Datu_ievade!$C$17=EQ16,Datu_ievade!$C$16,0)+IF(Datu_ievade!$C$20=EQ16,Datu_ievade!$C$19,0)+IF(Datu_ievade!$C$23=EQ16,Datu_ievade!$C$22,0)+IF(Datu_ievade!$C$26=EQ16,Datu_ievade!$C$25,0)+IF(Datu_ievade!$C$29=EQ16,Datu_ievade!$C$28,0))) ->  | FD26: =IF(FD$18=" "," ",IF(FD$18=0,IF(Datu_ievade!$C$17<=FD16,Datu_ievade!$C$16,0)+IF(Datu_ievade!$C$20<=FD16,Datu_ievade!$C$19,0)+IF(Datu_ievade!$C$23<=FD16,Datu_ievade!$C$22,0)+IF(Datu_ievade!$C$26<=FD16,Datu_ievade!$C$25,0)+IF(Datu_ievade!$C$29<=FD16,Datu_ievade!$C$28,0),IF(Datu_ievade!$C$17=FD16,Datu_ievade!$C$16,0)+IF(Datu_ievade!$C$20=FD16,Datu_ievade!$C$19,0)+IF(Datu_ievade!$C$23=FD16,Datu_ievade!$C$22,0)+IF(Datu_ievade!$C$26=FD16,Datu_ievade!$C$25,0)+IF(Datu_ievade!$C$29=FD16,Datu_ievade!$C$28,0))) ->  | FQ26: =IF(FQ$18=" "," ",IF(FQ$18=0,IF(Datu_ievade!$C$17<=FQ16,Datu_ievade!$C$16,0)+IF(Datu_ievade!$C$20<=FQ16,Datu_ievade!$C$19,0)+IF(Datu_ievade!$C$23<=FQ16,Datu_ievade!$C$22,0)+IF(Datu_ievade!$C$26<=FQ16,Datu_ievade!$C$25,0)+IF(Datu_ievade!$C$29<=FQ16,Datu_ievade!$C$28,0),IF(Datu_ievade!$C$17=FQ16,Datu_ievade!$C$16,0)+IF(Datu_ievade!$C$20=FQ16,Datu_ievade!$C$19,0)+IF(Datu_ievade!$C$23=FQ16,Datu_ievade!$C$22,0)+IF(Datu_ievade!$C$26=FQ16,Datu_ievade!$C$25,0)+IF(Datu_ievade!$C$29=FQ16,Datu_ievade!$C$28,0))) ->  | GD26: =IF(GD$18=" "," ",IF(GD$18=0,IF(Datu_ievade!$C$17<=GD16,Datu_ievade!$C$16,0)+IF(Datu_ievade!$C$20<=GD16,Datu_ievade!$C$19,0)+IF(Datu_ievade!$C$23<=GD16,Datu_ievade!$C$22,0)+IF(Datu_ievade!$C$26<=GD16,Datu_ievade!$C$25,0)+IF(Datu_ievade!$C$29<=GD16,Datu_ievade!$C$28,0),IF(Datu_ievade!$C$17=GD16,Datu_ievade!$C$16,0)+IF(Datu_ievade!$C$20=GD16,Datu_ievade!$C$19,0)+IF(Datu_ievade!$C$23=GD16,Datu_ievade!$C$22,0)+IF(Datu_ievade!$C$26=GD16,Datu_ievade!$C$25,0)+IF(Datu_ievade!$C$29=GD16,Datu_ievade!$C$28,0))) ->  | GQ26: =IF(GQ$18=" "," ",IF(GQ$18=0,IF(Datu_ievade!$C$17<=GQ16,Datu_ievade!$C$16,0)+IF(Datu_ievade!$C$20<=GQ16,Datu_ievade!$C$19,0)+IF(Datu_ievade!$C$23<=GQ16,Datu_ievade!$C$22,0)+IF(Datu_ievade!$C$26<=GQ16,Datu_ievade!$C$25,0)+IF(Datu_ievade!$C$29<=GQ16,Datu_ievade!$C$28,0),IF(Datu_ievade!$C$17=GQ16,Datu_ievade!$C$16,0)+IF(Datu_ievade!$C$20=GQ16,Datu_ievade!$C$19,0)+IF(Datu_ievade!$C$23=GQ16,Datu_ievade!$C$22,0)+IF(Datu_ievade!$C$26=GQ16,Datu_ievade!$C$25,0)+IF(Datu_ievade!$C$29=GQ16,Datu_ievade!$C$28,0))) ->  | HD26: =IF(HD$18=" "," ",IF(HD$18=0,IF(Datu_ievade!$C$17<=HD16,Datu_ievade!$C$16,0)+IF(Datu_ievade!$C$20<=HD16,Datu_ievade!$C$19,0)+IF(Datu_ievade!$C$23<=HD16,Datu_ievade!$C$22,0)+IF(Datu_ievade!$C$26<=HD16,Datu_ievade!$C$25,0)+IF(Datu_ievade!$C$29<=HD16,Datu_ievade!$C$28,0),IF(Datu_ievade!$C$17=HD16,Datu_ievade!$C$16,0)+IF(Datu_ievade!$C$20=HD16,Datu_ievade!$C$19,0)+IF(Datu_ievade!$C$23=HD16,Datu_ievade!$C$22,0)+IF(Datu_ievade!$C$26=HD16,Datu_ievade!$C$25,0)+IF(Datu_ievade!$C$29=HD16,Datu_ievade!$C$28,0))) ->  | HQ26: =IF(HQ$18=" "," ",IF(HQ$18=0,IF(Datu_ievade!$C$17<=HQ16,Datu_ievade!$C$16,0)+IF(Datu_ievade!$C$20<=HQ16,Datu_ievade!$C$19,0)+IF(Datu_ievade!$C$23<=HQ16,Datu_ievade!$C$22,0)+IF(Datu_ievade!$C$26<=HQ16,Datu_ievade!$C$25,0)+IF(Datu_ievade!$C$29<=HQ16,Datu_ievade!$C$28,0),IF(Datu_ievade!$C$17=HQ16,Datu_ievade!$C$16,0)+IF(Datu_ievade!$C$20=HQ16,Datu_ievade!$C$19,0)+IF(Datu_ievade!$C$23=HQ16,Datu_ievade!$C$22,0)+IF(Datu_ievade!$C$26=HQ16,Datu_ievade!$C$25,0)+IF(Datu_ievade!$C$29=HQ16,Datu_ievade!$C$28,0))) ->  | ID26: =IF(ID$18=" "," ",IF(ID$18=0,IF(Datu_ievade!$C$17<=ID16,Datu_ievade!$C$16,0)+IF(Datu_ievade!$C$20<=ID16,Datu_ievade!$C$19,0)+IF(Datu_ievade!$C$23<=ID16,Datu_ievade!$C$22,0)+IF(Datu_ievade!$C$26<=ID16,Datu_ievade!$C$25,0)+IF(Datu_ievade!$C$29<=ID16,Datu_ievade!$C$28,0),IF(Datu_ievade!$C$17=ID16,Datu_ievade!$C$16,0)+IF(Datu_ievade!$C$20=ID16,Datu_ievade!$C$19,0)+IF(Datu_ievade!$C$23=ID16,Datu_ievade!$C$22,0)+IF(Datu_ievade!$C$26=ID16,Datu_ievade!$C$25,0)+IF(Datu_ievade!$C$29=ID16,Datu_ievade!$C$28,0))) ->  | IQ26: =IF(IQ$18=" "," ",IF(IQ$18=0,IF(Datu_ievade!$C$17<=IQ16,Datu_ievade!$C$16,0)+IF(Datu_ievade!$C$20<=IQ16,Datu_ievade!$C$19,0)+IF(Datu_ievade!$C$23<=IQ16,Datu_ievade!$C$22,0)+IF(Datu_ievade!$C$26<=IQ16,Datu_ievade!$C$25,0)+IF(Datu_ievade!$C$29<=IQ16,Datu_ievade!$C$28,0),IF(Datu_ievade!$C$17=IQ16,Datu_ievade!$C$16,0)+IF(Datu_ievade!$C$20=IQ16,Datu_ievade!$C$19,0)+IF(Datu_ievade!$C$23=IQ16,Datu_ievade!$C$22,0)+IF(Datu_ievade!$C$26=IQ16,Datu_ievade!$C$25,0)+IF(Datu_ievade!$C$29=IQ16,Datu_ievade!$C$28,0))) ->  | JD26: =IF(JD$18=" "," ",IF(JD$18=0,IF(Datu_ievade!$C$17<=JD16,Datu_ievade!$C$16,0)+IF(Datu_ievade!$C$20<=JD16,Datu_ievade!$C$19,0)+IF(Datu_ievade!$C$23<=JD16,Datu_ievade!$C$22,0)+IF(Datu_ievade!$C$26<=JD16,Datu_ievade!$C$25,0)+IF(Datu_ievade!$C$29<=JD16,Datu_ievade!$C$28,0),IF(Datu_ievade!$C$17=JD16,Datu_ievade!$C$16,0)+IF(Datu_ievade!$C$20=JD16,Datu_ievade!$C$19,0)+IF(Datu_ievade!$C$23=JD16,Datu_ievade!$C$22,0)+IF(Datu_ievade!$C$26=JD16,Datu_ievade!$C$25,0)+IF(Datu_ievade!$C$29=JD16,Datu_ievade!$C$28,0))) ->  | JQ26: =IF(JQ$18=" "," ",IF(JQ$18=0,IF(Datu_ievade!$C$17<=JQ16,Datu_ievade!$C$16,0)+IF(Datu_ievade!$C$20<=JQ16,Datu_ievade!$C$19,0)+IF(Datu_ievade!$C$23<=JQ16,Datu_ievade!$C$22,0)+IF(Datu_ievade!$C$26<=JQ16,Datu_ievade!$C$25,0)+IF(Datu_ievade!$C$29<=JQ16,Datu_ievade!$C$28,0),IF(Datu_ievade!$C$17=JQ16,Datu_ievade!$C$16,0)+IF(Datu_ievade!$C$20=JQ16,Datu_ievade!$C$19,0)+IF(Datu_ievade!$C$23=JQ16,Datu_ievade!$C$22,0)+IF(Datu_ievade!$C$26=JQ16,Datu_ievade!$C$25,0)+IF(Datu_ievade!$C$29=JQ16,Datu_ievade!$C$28,0))) ->  | KD26: =IF(KD$18=" "," ",IF(KD$18=0,IF(Datu_ievade!$C$17<=KD16,Datu_ievade!$C$16,0)+IF(Datu_ievade!$C$20<=KD16,Datu_ievade!$C$19,0)+IF(Datu_ievade!$C$23<=KD16,Datu_ievade!$C$22,0)+IF(Datu_ievade!$C$26<=KD16,Datu_ievade!$C$25,0)+IF(Datu_ievade!$C$29<=KD16,Datu_ievade!$C$28,0),IF(Datu_ievade!$C$17=KD16,Datu_ievade!$C$16,0)+IF(Datu_ievade!$C$20=KD16,Datu_ievade!$C$19,0)+IF(Datu_ievade!$C$23=KD16,Datu_ievade!$C$22,0)+IF(Datu_ievade!$C$26=KD16,Datu_ievade!$C$25,0)+IF(Datu_ievade!$C$29=KD16,Datu_ievade!$C$28,0))) ->  | KQ26: =IF(KQ$18=" "," ",IF(KQ$18=0,IF(Datu_ievade!$C$17<=KQ16,Datu_ievade!$C$16,0)+IF(Datu_ievade!$C$20<=KQ16,Datu_ievade!$C$19,0)+IF(Datu_ievade!$C$23<=KQ16,Datu_ievade!$C$22,0)+IF(Datu_ievade!$C$26<=KQ16,Datu_ievade!$C$25,0)+IF(Datu_ievade!$C$29<=KQ16,Datu_ievade!$C$28,0),IF(Datu_ievade!$C$17=KQ16,Datu_ievade!$C$16,0)+IF(Datu_ievade!$C$20=KQ16,Datu_ievade!$C$19,0)+IF(Datu_ievade!$C$23=KQ16,Datu_ievade!$C$22,0)+IF(Datu_ievade!$C$26=KQ16,Datu_ievade!$C$25,0)+IF(Datu_ievade!$C$29=KQ16,Datu_ievade!$C$28,0))) ->  | LD26: =IF(LD$18=" "," ",IF(LD$18=0,IF(Datu_ievade!$C$17<=LD16,Datu_ievade!$C$16,0)+IF(Datu_ievade!$C$20<=LD16,Datu_ievade!$C$19,0)+IF(Datu_ievade!$C$23<=LD16,Datu_ievade!$C$22,0)+IF(Datu_ievade!$C$26<=LD16,Datu_ievade!$C$25,0)+IF(Datu_ievade!$C$29<=LD16,Datu_ievade!$C$28,0),IF(Datu_ievade!$C$17=LD16,Datu_ievade!$C$16,0)+IF(Datu_ievade!$C$20=LD16,Datu_ievade!$C$19,0)+IF(Datu_ievade!$C$23=LD16,Datu_ievade!$C$22,0)+IF(Datu_ievade!$C$26=LD16,Datu_ievade!$C$25,0)+IF(Datu_ievade!$C$29=LD16,Datu_ievade!$C$28,0))) ->  | LQ26: =IF(LQ$18=" "," ",IF(LQ$18=0,IF(Datu_ievade!$C$17<=LQ16,Datu_ievade!$C$16,0)+IF(Datu_ievade!$C$20<=LQ16,Datu_ievade!$C$19,0)+IF(Datu_ievade!$C$23<=LQ16,Datu_ievade!$C$22,0)+IF(Datu_ievade!$C$26<=LQ16,Datu_ievade!$C$25,0)+IF(Datu_ievade!$C$29<=LQ16,Datu_ievade!$C$28,0),IF(Datu_ievade!$C$17=LQ16,Datu_ievade!$C$16,0)+IF(Datu_ievade!$C$20=LQ16,Datu_ievade!$C$19,0)+IF(Datu_ievade!$C$23=LQ16,Datu_ievade!$C$22,0)+IF(Datu_ievade!$C$26=LQ16,Datu_ievade!$C$25,0)+IF(Datu_ievade!$C$29=LQ16,Datu_ievade!$C$28,0))) ->  | MD26: =IF(MD$18=" "," ",IF(MD$18=0,IF(Datu_ievade!$C$17<=MD16,Datu_ievade!$C$16,0)+IF(Datu_ievade!$C$20<=MD16,Datu_ievade!$C$19,0)+IF(Datu_ievade!$C$23<=MD16,Datu_ievade!$C$22,0)+IF(Datu_ievade!$C$26<=MD16,Datu_ievade!$C$25,0)+IF(Datu_ievade!$C$29<=MD16,Datu_ievade!$C$28,0),IF(Datu_ievade!$C$17=MD16,Datu_ievade!$C$16,0)+IF(Datu_ievade!$C$20=MD16,Datu_ievade!$C$19,0)+IF(Datu_ievade!$C$23=MD16,Datu_ievade!$C$22,0)+IF(Datu_ievade!$C$26=MD16,Datu_ievade!$C$25,0)+IF(Datu_ievade!$C$29=MD16,Datu_ievade!$C$28,0))) ->  | MQ26: =IF(MQ$18=" "," ",IF(MQ$18=0,IF(Datu_ievade!$C$17<=MQ16,Datu_ievade!$C$16,0)+IF(Datu_ievade!$C$20<=MQ16,Datu_ievade!$C$19,0)+IF(Datu_ievade!$C$23<=MQ16,Datu_ievade!$C$22,0)+IF(Datu_ievade!$C$26<=MQ16,Datu_ievade!$C$25,0)+IF(Datu_ievade!$C$29<=MQ16,Datu_ievade!$C$28,0),IF(Datu_ievade!$C$17=MQ16,Datu_ievade!$C$16,0)+IF(Datu_ievade!$C$20=MQ16,Datu_ievade!$C$19,0)+IF(Datu_ievade!$C$23=MQ16,Datu_ievade!$C$22,0)+IF(Datu_ievade!$C$26=MQ16,Datu_ievade!$C$25,0)+IF(Datu_ievade!$C$29=MQ16,Datu_ievade!$C$28,0))) ->  | ND26: =IF(ND$18=" "," ",IF(ND$18=0,IF(Datu_ievade!$C$17<=ND16,Datu_ievade!$C$16,0)+IF(Datu_ievade!$C$20<=ND16,Datu_ievade!$C$19,0)+IF(Datu_ievade!$C$23<=ND16,Datu_ievade!$C$22,0)+IF(Datu_ievade!$C$26<=ND16,Datu_ievade!$C$25,0)+IF(Datu_ievade!$C$29<=ND16,Datu_ievade!$C$28,0),IF(Datu_ievade!$C$17=ND16,Datu_ievade!$C$16,0)+IF(Datu_ievade!$C$20=ND16,Datu_ievade!$C$19,0)+IF(Datu_ievade!$C$23=ND16,Datu_ievade!$C$22,0)+IF(Datu_ievade!$C$26=ND16,Datu_ievade!$C$25,0)+IF(Datu_ievade!$C$29=ND16,Datu_ievade!$C$28,0))) ->  | NQ26: =IF(NQ$18=" "," ",IF(NQ$18=0,IF(Datu_ievade!$C$17<=NQ16,Datu_ievade!$C$16,0)+IF(Datu_ievade!$C$20<=NQ16,Datu_ievade!$C$19,0)+IF(Datu_ievade!$C$23<=NQ16,Datu_ievade!$C$22,0)+IF(Datu_ievade!$C$26<=NQ16,Datu_ievade!$C$25,0)+IF(Datu_ievade!$C$29<=NQ16,Datu_ievade!$C$28,0),IF(Datu_ievade!$C$17=NQ16,Datu_ievade!$C$16,0)+IF(Datu_ievade!$C$20=NQ16,Datu_ievade!$C$19,0)+IF(Datu_ievade!$C$23=NQ16,Datu_ievade!$C$22,0)+IF(Datu_ievade!$C$26=NQ16,Datu_ievade!$C$25,0)+IF(Datu_ievade!$C$29=NQ16,Datu_ievade!$C$28,0))) ->  | OD26: =IF(OD$18=" "," ",IF(OD$18=0,IF(Datu_ievade!$C$17<=OD16,Datu_ievade!$C$16,0)+IF(Datu_ievade!$C$20<=OD16,Datu_ievade!$C$19,0)+IF(Datu_ievade!$C$23<=OD16,Datu_ievade!$C$22,0)+IF(Datu_ievade!$C$26<=OD16,Datu_ievade!$C$25,0)+IF(Datu_ievade!$C$29<=OD16,Datu_ievade!$C$28,0),IF(Datu_ievade!$C$17=OD16,Datu_ievade!$C$16,0)+IF(Datu_ievade!$C$20=OD16,Datu_ievade!$C$19,0)+IF(Datu_ievade!$C$23=OD16,Datu_ievade!$C$22,0)+IF(Datu_ievade!$C$26=OD16,Datu_ievade!$C$25,0)+IF(Datu_ievade!$C$29=OD16,Datu_ievade!$C$28,0))) ->  | OQ26: =IF(OQ$18=" "," ",IF(OQ$18=0,IF(Datu_ievade!$C$17<=OQ16,Datu_ievade!$C$16,0)+IF(Datu_ievade!$C$20<=OQ16,Datu_ievade!$C$19,0)+IF(Datu_ievade!$C$23<=OQ16,Datu_ievade!$C$22,0)+IF(Datu_ievade!$C$26<=OQ16,Datu_ievade!$C$25,0)+IF(Datu_ievade!$C$29<=OQ16,Datu_ievade!$C$28,0),IF(Datu_ievade!$C$17=OQ16,Datu_ievade!$C$16,0)+IF(Datu_ievade!$C$20=OQ16,Datu_ievade!$C$19,0)+IF(Datu_ievade!$C$23=OQ16,Datu_ievade!$C$22,0)+IF(Datu_ievade!$C$26=OQ16,Datu_ievade!$C$25,0)+IF(Datu_ievade!$C$29=OQ16,Datu_ievade!$C$28,0))) ->  | PD26: =IF(PD$18=" "," ",IF(PD$18=0,IF(Datu_ievade!$C$17<=PD16,Datu_ievade!$C$16,0)+IF(Datu_ievade!$C$20<=PD16,Datu_ievade!$C$19,0)+IF(Datu_ievade!$C$23<=PD16,Datu_ievade!$C$22,0)+IF(Datu_ievade!$C$26<=PD16,Datu_ievade!$C$25,0)+IF(Datu_ievade!$C$29<=PD16,Datu_ievade!$C$28,0),IF(Datu_ievade!$C$17=PD16,Datu_ievade!$C$16,0)+IF(Datu_ievade!$C$20=PD16,Datu_ievade!$C$19,0)+IF(Datu_ievade!$C$23=PD16,Datu_ievade!$C$22,0)+IF(Datu_ievade!$C$26=PD16,Datu_ievade!$C$25,0)+IF(Datu_ievade!$C$29=PD16,Datu_ievade!$C$28,0))) ->  | PQ26: =IF(PQ$18=" "," ",IF(PQ$18=0,IF(Datu_ievade!$C$17<=PQ16,Datu_ievade!$C$16,0)+IF(Datu_ievade!$C$20<=PQ16,Datu_ievade!$C$19,0)+IF(Datu_ievade!$C$23<=PQ16,Datu_ievade!$C$22,0)+IF(Datu_ievade!$C$26<=PQ16,Datu_ievade!$C$25,0)+IF(Datu_ievade!$C$29<=PQ16,Datu_ievade!$C$28,0),IF(Datu_ievade!$C$17=PQ16,Datu_ievade!$C$16,0)+IF(Datu_ievade!$C$20=PQ16,Datu_ievade!$C$19,0)+IF(Datu_ievade!$C$23=PQ16,Datu_ievade!$C$22,0)+IF(Datu_ievade!$C$26=PQ16,Datu_ievade!$C$25,0)+IF(Datu_ievade!$C$29=PQ16,Datu_ievade!$C$28,0))) -> 
A27: Izdevumi kopā | B27: EUR | D27: =IF(D24=" "," ",D28+D29+D30) ->  | E27: 432.8 | F27: 432.8 | G27: 432.8 | H27: 432.8 | I27: 432.8 | J27: 432.8 | K27: 432.8 | L27: 432.8 | M27: 432.8 | N27: 432.8 | O27: 432.8 | P27: 432.8 | BP27: =IF(BP24=" "," ",BP28+BP29+BP30) ->  | EB27: =IF(EB24=" "," ",EB28+EB29+EB30) ->  | GN27: =IF(GN24=" "," ",GN28+GN29+GN30) ->  | IZ27: =IF(IZ24=" "," ",IZ28+IZ29+IZ30) ->  | LL27: =IF(LL24=" "," ",LL28+LL29+LL30) ->  | OD27: =IF(OD24=" "," ",OD28+OD29+OD30) ->  | PJ27: =IF(PJ24=" "," ",PJ28+PJ29+PJ30) -> 
A28: Personālizmaksas | B28: EUR/gadā | D28: =IF(OR(D$18=" ",D$18=0)," ",SUM(E28:P28)) ->  | E28: =IF(E24=" "," ",$BQ$6*HLOOKUP($D$16,Līmeņatzīmes!$B$6:$AI$7,2,FALSE)) -> 432.8 | F28: =IF(F24=" "," ",$BQ$6*HLOOKUP($D$16,Līmeņatzīmes!$B$6:$AI$7,2,FALSE)) -> 432.8 | G28: =IF(G24=" "," ",$BQ$6*HLOOKUP($D$16,Līmeņatzīmes!$B$6:$AI$7,2,FALSE)) -> 432.8 | H28: =IF(H24=" "," ",$BQ$6*HLOOKUP($D$16,Līmeņatzīmes!$B$6:$AI$7,2,FALSE)) -> 432.8 | I28: =IF(I24=" "," ",$BQ$6*HLOOKUP($D$16,Līmeņatzīmes!$B$6:$AI$7,2,FALSE)) -> 432.8 | J28: =IF(J24=" "," ",$BQ$6*HLOOKUP($D$16,Līmeņatzīmes!$B$6:$AI$7,2,FALSE)) -> 432.8 | K28: =IF(K24=" "," ",$BQ$6*HLOOKUP($D$16,Līmeņatzīmes!$B$6:$AI$7,2,FALSE)) -> 432.8 | L28: =IF(L24=" "," ",$BQ$6*HLOOKUP($D$16,Līmeņatzīmes!$B$6:$AI$7,2,FALSE)) -> 432.8 | M28: =IF(M24=" "," ",$BQ$6*HLOOKUP($D$16,Līmeņatzīmes!$B$6:$AI$7,2,FALSE)) -> 432.8 | N28: =IF(N24=" "," ",$BQ$6*HLOOKUP($D$16,Līmeņatzīmes!$B$6:$AI$7,2,FALSE)) -> 432.8 | O28: =IF(O24=" "," ",$BQ$6*HLOOKUP($D$16,Līmeņatzīmes!$B$6:$AI$7,2,FALSE)) -> 432.8 | P28: =IF(P24=" "," ",$BQ$6*HLOOKUP($D$16,Līmeņatzīmes!$B$6:$AI$7,2,FALSE)) -> 432.8 | Q28: =IF(OR(Q$18=" ",Q$18=0)," ",SUM(R28:AC28)) ->  | R28: =IF(R24=" "," ",$BQ$6*HLOOKUP($Q$16,Līmeņatzīmes!$B$6:$AI$7,2,FALSE)) ->  | S28: =IF(S24=" "," ",$BQ$6*HLOOKUP($Q$16,Līmeņatzīmes!$B$6:$AI$7,2,FALSE)) ->  | T28: =IF(T24=" "," ",$BQ$6*HLOOKUP($Q$16,Līmeņatzīmes!$B$6:$AI$7,2,FALSE)) ->  | U28: =IF(U24=" "," ",$BQ$6*HLOOKUP($Q$16,Līmeņatzīmes!$B$6:$AI$7,2,FALSE)) ->  | V28: =IF(V24=" "," ",$BQ$6*HLOOKUP($Q$16,Līmeņatzīmes!$B$6:$AI$7,2,FALSE)) ->  | W28: =IF(W24=" "," ",$BQ$6*HLOOKUP($Q$16,Līmeņatzīmes!$B$6:$AI$7,2,FALSE)) ->  | X28: =IF(X24=" "," ",$BQ$6*HLOOKUP($Q$16,Līmeņatzīmes!$B$6:$AI$7,2,FALSE)) ->  | Y28: =IF(Y24=" "," ",$BQ$6*HLOOKUP($Q$16,Līmeņatzīmes!$B$6:$AI$7,2,FALSE)) ->  | Z28: =IF(Z24=" "," ",$BQ$6*HLOOKUP($Q$16,Līmeņatzīmes!$B$6:$AI$7,2,FALSE)) ->  | AA28: =IF(AA24=" "," ",$BQ$6*HLOOKUP($Q$16,Līmeņatzīmes!$B$6:$AI$7,2,FALSE)) ->  | AB28: =IF(AB24=" "," ",$BQ$6*HLOOKUP($Q$16,Līmeņatzīmes!$B$6:$AI$7,2,FALSE)) ->  | AC28: =IF(AC24=" "," ",$BQ$6*HLOOKUP($Q$16,Līmeņatzīmes!$B$6:$AI$7,2,FALSE)) ->  | AD28: =IF(OR(AD$18=" ",AD$18=0)," ",SUM(AE28:AP28)) ->  | AE28: =IF(AE24=" "," ",$BQ$6*HLOOKUP($AD$16,Līmeņatzīmes!$B$6:$AI$7,2,FALSE)) ->  | AF28: =IF(AF24=" "," ",$BQ$6*HLOOKUP($AD$16,Līmeņatzīmes!$B$6:$AI$7,2,FALSE)) ->  | AG28: =IF(AG24=" "," ",$BQ$6*HLOOKUP($AD$16,Līmeņatzīmes!$B$6:$AI$7,2,FALSE)) ->  | AH28: =IF(AH24=" "," ",$BQ$6*HLOOKUP($AD$16,Līmeņatzīmes!$B$6:$AI$7,2,FALSE)) ->  | AI28: =IF(AI24=" "," ",$BQ$6*HLOOKUP($AD$16,Līmeņatzīmes!$B$6:$AI$7,2,FALSE)) ->  | AJ28: =IF(AJ24=" "," ",$BQ$6*HLOOKUP($AD$16,Līmeņatzīmes!$B$6:$AI$7,2,FALSE)) ->  | AK28: =IF(AK24=" "," ",$BQ$6*HLOOKUP($AD$16,Līmeņatzīmes!$B$6:$AI$7,2,FALSE)) ->  | AL28: =IF(AL24=" "," ",$BQ$6*HLOOKUP($AD$16,Līmeņatzīmes!$B$6:$AI$7,2,FALSE)) ->  | AM28: =IF(AM24=" "," ",$BQ$6*HLOOKUP($AD$16,Līmeņatzīmes!$B$6:$AI$7,2,FALSE)) ->  | AN28: =IF(AN24=" "," ",$BQ$6*HLOOKUP($AD$16,Līmeņatzīmes!$B$6:$AI$7,2,FALSE)) ->  | AO28: =IF(AO24=" "," ",$BQ$6*HLOOKUP($AD$16,Līmeņatzīmes!$B$6:$AI$7,2,FALSE)) ->  | AP28: =IF(AP24=" "," ",$BQ$6*HLOOKUP($AD$16,Līmeņatzīmes!$B$6:$AI$7,2,FALSE)) ->  | AQ28: =IF(OR(AQ$18=" ",AQ$18=0)," ",SUM(AR28:BC28)) ->  | AR28: =IF(AR24=" "," ",$BQ$6*HLOOKUP($AQ$16,Līmeņatzīmes!$B$6:$AI$7,2,FALSE)) ->  | AS28: =IF(AS24=" "," ",$BQ$6*HLOOKUP($AQ$16,Līmeņatzīmes!$B$6:$AI$7,2,FALSE)) ->  | AT28: =IF(AT24=" "," ",$BQ$6*HLOOKUP($AQ$16,Līmeņatzīmes!$B$6:$AI$7,2,FALSE)) ->  | AU28: =IF(AU24=" "," ",$BQ$6*HLOOKUP($AQ$16,Līmeņatzīmes!$B$6:$AI$7,2,FALSE)) ->  | AV28: =IF(AV24=" "," ",$BQ$6*HLOOKUP($AQ$16,Līmeņatzīmes!$B$6:$AI$7,2,FALSE)) ->  | AW28: =IF(AW24=" "," ",$BQ$6*HLOOKUP($AQ$16,Līmeņatzīmes!$B$6:$AI$7,2,FALSE)) ->  | AX28: =IF(AX24=" "," ",$BQ$6*HLOOKUP($AQ$16,Līmeņatzīmes!$B$6:$AI$7,2,FALSE)) ->  | AY28: =IF(AY24=" "," ",$BQ$6*HLOOKUP($AQ$16,Līmeņatzīmes!$B$6:$AI$7,2,FALSE)) ->  | AZ28: =IF(AZ24=" "," ",$BQ$6*HLOOKUP($AQ$16,Līmeņatzīmes!$B$6:$AI$7,2,FALSE)) ->  | BA28: =IF(BA24=" "," ",$BQ$6*HLOOKUP($AQ$16,Līmeņatzīmes!$B$6:$AI$7,2,FALSE)) ->  | BB28: =IF(BB24=" "," ",$BQ$6*HLOOKUP($AQ$16,Līmeņatzīmes!$B$6:$AI$7,2,FALSE)) ->  | BC28: =IF(BC24=" "," ",$BQ$6*HLOOKUP($AQ$16,Līmeņatzīmes!$B$6:$AI$7,2,FALSE)) ->  | BD28: =IF(OR(BD$18=" ",BD$18=0)," ",SUM(BE28:BP28)) ->  | BE28: =IF(BE24=" "," ",$BQ$6*HLOOKUP($BD$16,Līmeņatzīmes!$B$6:$AI$7,2,FALSE)) ->  | BF28: =IF(BF24=" "," ",$BQ$6*HLOOKUP($BD$16,Līmeņatzīmes!$B$6:$AI$7,2,FALSE)) ->  | BG28: =IF(BG24=" "," ",$BQ$6*HLOOKUP($BD$16,Līmeņatzīmes!$B$6:$AI$7,2,FALSE)) ->  | BH28: =IF(BH24=" "," ",$BQ$6*HLOOKUP($BD$16,Līmeņatzīmes!$B$6:$AI$7,2,FALSE)) ->  | BI28: =IF(BI24=" "," ",$BQ$6*HLOOKUP($BD$16,Līmeņatzīmes!$B$6:$AI$7,2,FALSE)) ->  | BJ28: =IF(BJ24=" "," ",$BQ$6*HLOOKUP($BD$16,Līmeņatzīmes!$B$6:$AI$7,2,FALSE)) ->  | BK28: =IF(BK24=" "," ",$BQ$6*HLOOKUP($BD$16,Līmeņatzīmes!$B$6:$AI$7,2,FALSE)) ->  | BL28: =IF(BL24=" "," ",$BQ$6*HLOOKUP($BD$16,Līmeņatzīmes!$B$6:$AI$7,2,FALSE)) ->  | BM28: =IF(BM24=" "," ",$BQ$6*HLOOKUP($BD$16,Līmeņatzīmes!$B$6:$AI$7,2,FALSE)) ->  | BN28: =IF(BN24=" "," ",$BQ$6*HLOOKUP($BD$16,Līmeņatzīmes!$B$6:$AI$7,2,FALSE)) ->  | BO28: =IF(BO24=" "," ",$BQ$6*HLOOKUP($BD$16,Līmeņatzīmes!$B$6:$AI$7,2,FALSE)) ->  | BP28: =IF(BP24=" "," ",$BQ$6*HLOOKUP($BD$16,Līmeņatzīmes!$B$6:$AI$7,2,FALSE)) ->  | BQ28: =IF(OR(BQ$18=" ",BQ$18=0)," ",SUM(BR28:CC28)) ->  | BR28: =IF(BR24=" "," ",$BQ$6*HLOOKUP($BQ$16,Līmeņatzīmes!$B$6:$AI$7,2,FALSE)) ->  | BS28: =IF(BS24=" "," ",$BQ$6*HLOOKUP($BQ$16,Līmeņatzīmes!$B$6:$AI$7,2,FALSE)) ->  | BT28: =IF(BT24=" "," ",$BQ$6*HLOOKUP($BQ$16,Līmeņatzīmes!$B$6:$AI$7,2,FALSE)) ->  | BU28: =IF(BU24=" "," ",$BQ$6*HLOOKUP($BQ$16,Līmeņatzīmes!$B$6:$AI$7,2,FALSE)) ->  | BV28: =IF(BV24=" "," ",$BQ$6*HLOOKUP($BQ$16,Līmeņatzīmes!$B$6:$AI$7,2,FALSE)) ->  | BW28: =IF(BW24=" "," ",$BQ$6*HLOOKUP($BQ$16,Līmeņatzīmes!$B$6:$AI$7,2,FALSE)) ->  | BX28: =IF(BX24=" "," ",$BQ$6*HLOOKUP($BQ$16,Līmeņatzīmes!$B$6:$AI$7,2,FALSE)) ->  | BY28: =IF(BY24=" "," ",$BQ$6*HLOOKUP($BQ$16,Līmeņatzīmes!$B$6:$AI$7,2,FALSE)) ->  | BZ28: =IF(BZ24=" "," ",$BQ$6*HLOOKUP($BQ$16,Līmeņatzīmes!$B$6:$AI$7,2,FALSE)) ->  | CA28: =IF(CA24=" "," ",$BQ$6*HLOOKUP($BQ$16,Līmeņatzīmes!$B$6:$AI$7,2,FALSE)) ->  | CB28: =IF(CB24=" "," ",$BQ$6*HLOOKUP($BQ$16,Līmeņatzīmes!$B$6:$AI$7,2,FALSE)) ->  | CC28: =IF(CC24=" "," ",$BQ$6*HLOOKUP($BQ$16,Līmeņatzīmes!$B$6:$AI$7,2,FALSE)) ->  | CD28: =IF(OR(CD$18=" ",CD$18=0)," ",SUM(CE28:CP28)) ->  | CE28: =IF(CE24=" "," ",$BQ$6*HLOOKUP($CD$16,Līmeņatzīmes!$B$6:$AI$7,2,FALSE)) ->  | CF28: =IF(CF24=" "," ",$BQ$6*HLOOKUP($CD$16,Līmeņatzīmes!$B$6:$AI$7,2,FALSE)) ->  | CG28: =IF(CG24=" "," ",$BQ$6*HLOOKUP($CD$16,Līmeņatzīmes!$B$6:$AI$7,2,FALSE)) ->  | CH28: =IF(CH24=" "," ",$BQ$6*HLOOKUP($CD$16,Līmeņatzīmes!$B$6:$AI$7,2,FALSE)) ->  | CI28: =IF(CI24=" "," ",$BQ$6*HLOOKUP($CD$16,Līmeņatzīmes!$B$6:$AI$7,2,FALSE)) ->  | CJ28: =IF(CJ24=" "," ",$BQ$6*HLOOKUP($CD$16,Līmeņatzīmes!$B$6:$AI$7,2,FALSE)) ->  | CK28: =IF(CK24=" "," ",$BQ$6*HLOOKUP($CD$16,Līmeņatzīmes!$B$6:$AI$7,2,FALSE)) ->  | CL28: =IF(CL24=" "," ",$BQ$6*HLOOKUP($CD$16,Līmeņatzīmes!$B$6:$AI$7,2,FALSE)) ->  | CM28: =IF(CM24=" "," ",$BQ$6*HLOOKUP($CD$16,Līmeņatzīmes!$B$6:$AI$7,2,FALSE)) ->  | CN28: =IF(CN24=" "," ",$BQ$6*HLOOKUP($CD$16,Līmeņatzīmes!$B$6:$AI$7,2,FALSE)) ->  | CO28: =IF(CO24=" "," ",$BQ$6*HLOOKUP($CD$16,Līmeņatzīmes!$B$6:$AI$7,2,FALSE)) ->  | CP28: =IF(CP24=" "," ",$BQ$6*HLOOKUP($CD$16,Līmeņatzīmes!$B$6:$AI$7,2,FALSE)) ->  | CQ28: =IF(OR(CQ$18=" ",CQ$18=0)," ",SUM(CR28:DC28)) ->  | CR28: =IF(CR24=" "," ",$BQ$6*HLOOKUP($CQ$16,Līmeņatzīmes!$B$6:$AI$7,2,FALSE)) ->  | CS28: =IF(CS24=" "," ",$BQ$6*HLOOKUP($CQ$16,Līmeņatzīmes!$B$6:$AI$7,2,FALSE)) ->  | CT28: =IF(CT24=" "," ",$BQ$6*HLOOKUP($CQ$16,Līmeņatzīmes!$B$6:$AI$7,2,FALSE)) ->  | CU28: =IF(CU24=" "," ",$BQ$6*HLOOKUP($CQ$16,Līmeņatzīmes!$B$6:$AI$7,2,FALSE)) ->  | CV28: =IF(CV24=" "," ",$BQ$6*HLOOKUP($CQ$16,Līmeņatzīmes!$B$6:$AI$7,2,FALSE)) ->  | CW28: =IF(CW24=" "," ",$BQ$6*HLOOKUP($CQ$16,Līmeņatzīmes!$B$6:$AI$7,2,FALSE)) ->  | CX28: =IF(CX24=" "," ",$BQ$6*HLOOKUP($CQ$16,Līmeņatzīmes!$B$6:$AI$7,2,FALSE)) ->  | CY28: =IF(CY24=" "," ",$BQ$6*HLOOKUP($CQ$16,Līmeņatzīmes!$B$6:$AI$7,2,FALSE)) ->  | CZ28: =IF(CZ24=" "," ",$BQ$6*HLOOKUP($CQ$16,Līmeņatzīmes!$B$6:$AI$7,2,FALSE)) ->  | DA28: =IF(DA24=" "," ",$BQ$6*HLOOKUP($CQ$16,Līmeņatzīmes!$B$6:$AI$7,2,FALSE)) ->  | DB28: =IF(DB24=" "," ",$BQ$6*HLOOKUP($CQ$16,Līmeņatzīmes!$B$6:$AI$7,2,FALSE)) ->  | DC28: =IF(DC24=" "," ",$BQ$6*HLOOKUP($CQ$16,Līmeņatzīmes!$B$6:$AI$7,2,FALSE)) ->  | DD28: =IF(OR(DD$18=" ",DD$18=0)," ",SUM(DE28:DP28)) ->  | DE28: =IF(DE24=" "," ",$BQ$6*HLOOKUP($DD$16,Līmeņatzīmes!$B$6:$AI$7,2,FALSE)) ->  | DF28: =IF(DF24=" "," ",$BQ$6*HLOOKUP($DD$16,Līmeņatzīmes!$B$6:$AI$7,2,FALSE)) ->  | DG28: =IF(DG24=" "," ",$BQ$6*HLOOKUP($DD$16,Līmeņatzīmes!$B$6:$AI$7,2,FALSE)) ->  | DH28: =IF(DH24=" "," ",$BQ$6*HLOOKUP($DD$16,Līmeņatzīmes!$B$6:$AI$7,2,FALSE)) ->  | DI28: =IF(DI24=" "," ",$BQ$6*HLOOKUP($DD$16,Līmeņatzīmes!$B$6:$AI$7,2,FALSE)) ->  | DJ28: =IF(DJ24=" "," ",$BQ$6*HLOOKUP($DD$16,Līmeņatzīmes!$B$6:$AI$7,2,FALSE)) ->  | DK28: =IF(DK24=" "," ",$BQ$6*HLOOKUP($DD$16,Līmeņatzīmes!$B$6:$AI$7,2,FALSE)) ->  | DL28: =IF(DL24=" "," ",$BQ$6*HLOOKUP($DD$16,Līmeņatzīmes!$B$6:$AI$7,2,FALSE)) ->  | DM28: =IF(DM24=" "," ",$BQ$6*HLOOKUP($DD$16,Līmeņatzīmes!$B$6:$AI$7,2,FALSE)) ->  | DN28: =IF(DN24=" "," ",$BQ$6*HLOOKUP($DD$16,Līmeņatzīmes!$B$6:$AI$7,2,FALSE)) ->  | DO28: =IF(DO24=" "," ",$BQ$6*HLOOKUP($DD$16,Līmeņatzīmes!$B$6:$AI$7,2,FALSE)) ->  | DP28: =IF(DP24=" "," ",$BQ$6*HLOOKUP($DD$16,Līmeņatzīmes!$B$6:$AI$7,2,FALSE)) ->  | DQ28: =IF(OR(DQ$18=" ",DQ$18=0)," ",SUM(DR28:EC28)) ->  | DR28: =IF(DR24=" "," ",$BQ$6*HLOOKUP($DQ$16,Līmeņatzīmes!$B$6:$AI$7,2,FALSE)) ->  | DS28: =IF(DS24=" "," ",$BQ$6*HLOOKUP($DQ$16,Līmeņatzīmes!$B$6:$AI$7,2,FALSE)) ->  | DT28: =IF(DT24=" "," ",$BQ$6*HLOOKUP($DQ$16,Līmeņatzīmes!$B$6:$AI$7,2,FALSE)) ->  | DU28: =IF(DU24=" "," ",$BQ$6*HLOOKUP($DQ$16,Līmeņatzīmes!$B$6:$AI$7,2,FALSE)) ->  | DV28: =IF(DV24=" "," ",$BQ$6*HLOOKUP($DQ$16,Līmeņatzīmes!$B$6:$AI$7,2,FALSE)) ->  | DW28: =IF(DW24=" "," ",$BQ$6*HLOOKUP($DQ$16,Līmeņatzīmes!$B$6:$AI$7,2,FALSE)) ->  | DX28: =IF(DX24=" "," ",$BQ$6*HLOOKUP($DQ$16,Līmeņatzīmes!$B$6:$AI$7,2,FALSE)) ->  | DY28: =IF(DY24=" "," ",$BQ$6*HLOOKUP($DQ$16,Līmeņatzīmes!$B$6:$AI$7,2,FALSE)) ->  | DZ28: =IF(DZ24=" "," ",$BQ$6*HLOOKUP($DQ$16,Līmeņatzīmes!$B$6:$AI$7,2,FALSE)) ->  | EA28: =IF(EA24=" "," ",$BQ$6*HLOOKUP($DQ$16,Līmeņatzīmes!$B$6:$AI$7,2,FALSE)) ->  | EB28: =IF(EB24=" "," ",$BQ$6*HLOOKUP($DQ$16,Līmeņatzīmes!$B$6:$AI$7,2,FALSE)) ->  | EC28: =IF(EC24=" "," ",$BQ$6*HLOOKUP($DQ$16,Līmeņatzīmes!$B$6:$AI$7,2,FALSE)) ->  | ED28: =IF(OR(ED$18=" ",ED$18=0)," ",SUM(EE28:EP28)) ->  | EE28: =IF(EE24=" "," ",$BQ$6*HLOOKUP($ED$16,Līmeņatzīmes!$B$6:$AI$7,2,FALSE)) ->  | EF28: =IF(EF24=" "," ",$BQ$6*HLOOKUP($ED$16,Līmeņatzīmes!$B$6:$AI$7,2,FALSE)) ->  | EG28: =IF(EG24=" "," ",$BQ$6*HLOOKUP($ED$16,Līmeņatzīmes!$B$6:$AI$7,2,FALSE)) ->  | EH28: =IF(EH24=" "," ",$BQ$6*HLOOKUP($ED$16,Līmeņatzīmes!$B$6:$AI$7,2,FALSE)) ->  | EI28: =IF(EI24=" "," ",$BQ$6*HLOOKUP($ED$16,Līmeņatzīmes!$B$6:$AI$7,2,FALSE)) ->  | EJ28: =IF(EJ24=" "," ",$BQ$6*HLOOKUP($ED$16,Līmeņatzīmes!$B$6:$AI$7,2,FALSE)) ->  | EK28: =IF(EK24=" "," ",$BQ$6*HLOOKUP($ED$16,Līmeņatzīmes!$B$6:$AI$7,2,FALSE)) ->  | EL28: =IF(EL24=" "," ",$BQ$6*HLOOKUP($ED$16,Līmeņatzīmes!$B$6:$AI$7,2,FALSE)) ->  | EM28: =IF(EM24=" "," ",$BQ$6*HLOOKUP($ED$16,Līmeņatzīmes!$B$6:$AI$7,2,FALSE)) ->  | EN28: =IF(EN24=" "," ",$BQ$6*HLOOKUP($ED$16,Līmeņatzīmes!$B$6:$AI$7,2,FALSE)) ->  | EO28: =IF(EO24=" "," ",$BQ$6*HLOOKUP($ED$16,Līmeņatzīmes!$B$6:$AI$7,2,FALSE)) ->  | EP28: =IF(EP24=" "," ",$BQ$6*HLOOKUP($ED$16,Līmeņatzīmes!$B$6:$AI$7,2,FALSE)) ->  | EQ28: =IF(OR(EQ$18=" ",EQ$18=0)," ",SUM(ER28:FC28)) ->  | ER28: =IF(ER24=" "," ",$BQ$6*HLOOKUP($EQ$16,Līmeņatzīmes!$B$6:$AI$7,2,FALSE)) ->  | ES28: =IF(ES24=" "," ",$BQ$6*HLOOKUP($EQ$16,Līmeņatzīmes!$B$6:$AI$7,2,FALSE)) ->  | ET28: =IF(ET24=" "," ",$BQ$6*HLOOKUP($EQ$16,Līmeņatzīmes!$B$6:$AI$7,2,FALSE)) ->  | EU28: =IF(EU24=" "," ",$BQ$6*HLOOKUP($EQ$16,Līmeņatzīmes!$B$6:$AI$7,2,FALSE)) ->  | EV28: =IF(EV24=" "," ",$BQ$6*HLOOKUP($EQ$16,Līmeņatzīmes!$B$6:$AI$7,2,FALSE)) ->  | EW28: =IF(EW24=" "," ",$BQ$6*HLOOKUP($EQ$16,Līmeņatzīmes!$B$6:$AI$7,2,FALSE)) ->  | EX28: =IF(EX24=" "," ",$BQ$6*HLOOKUP($EQ$16,Līmeņatzīmes!$B$6:$AI$7,2,FALSE)) ->  | EY28: =IF(EY24=" "," ",$BQ$6*HLOOKUP($EQ$16,Līmeņatzīmes!$B$6:$AI$7,2,FALSE)) ->  | EZ28: =IF(EZ24=" "," ",$BQ$6*HLOOKUP($EQ$16,Līmeņatzīmes!$B$6:$AI$7,2,FALSE)) ->  | FA28: =IF(FA24=" "," ",$BQ$6*HLOOKUP($EQ$16,Līmeņatzīmes!$B$6:$AI$7,2,FALSE)) ->  | FB28: =IF(FB24=" "," ",$BQ$6*HLOOKUP($EQ$16,Līmeņatzīmes!$B$6:$AI$7,2,FALSE)) ->  | FC28: =IF(FC24=" "," ",$BQ$6*HLOOKUP($EQ$16,Līmeņatzīmes!$B$6:$AI$7,2,FALSE)) ->  | FD28: =IF(OR(FD$18=" ",FD$18=0)," ",SUM(FE28:FP28)) ->  | FE28: =IF(FE24=" "," ",$BQ$6*HLOOKUP($FD$16,Līmeņatzīmes!$B$6:$AI$7,2,FALSE)) ->  | FF28: =IF(FF24=" "," ",$BQ$6*HLOOKUP($FD$16,Līmeņatzīmes!$B$6:$AI$7,2,FALSE)) ->  | FG28: =IF(FG24=" "," ",$BQ$6*HLOOKUP($FD$16,Līmeņatzīmes!$B$6:$AI$7,2,FALSE)) ->  | FH28: =IF(FH24=" "," ",$BQ$6*HLOOKUP($FD$16,Līmeņatzīmes!$B$6:$AI$7,2,FALSE)) ->  | FI28: =IF(FI24=" "," ",$BQ$6*HLOOKUP($FD$16,Līmeņatzīmes!$B$6:$AI$7,2,FALSE)) ->  | FJ28: =IF(FJ24=" "," ",$BQ$6*HLOOKUP($FD$16,Līmeņatzīmes!$B$6:$AI$7,2,FALSE)) ->  | FK28: =IF(FK24=" "," ",$BQ$6*HLOOKUP($FD$16,Līmeņatzīmes!$B$6:$AI$7,2,FALSE)) ->  | FL28: =IF(FL24=" "," ",$BQ$6*HLOOKUP($FD$16,Līmeņatzīmes!$B$6:$AI$7,2,FALSE)) ->  | FM28: =IF(FM24=" "," ",$BQ$6*HLOOKUP($FD$16,Līmeņatzīmes!$B$6:$AI$7,2,FALSE)) ->  | FN28: =IF(FN24=" "," ",$BQ$6*HLOOKUP($FD$16,Līmeņatzīmes!$B$6:$AI$7,2,FALSE)) ->  | FO28: =IF(FO24=" "," ",$BQ$6*HLOOKUP($FD$16,Līmeņatzīmes!$B$6:$AI$7,2,FALSE)) ->  | FP28: =IF(FP24=" "," ",$BQ$6*HLOOKUP($FD$16,Līmeņatzīmes!$B$6:$AI$7,2,FALSE)) ->  | FQ28: =IF(OR(FQ$18=" ",FQ$18=0)," ",SUM(FR28:GC28)) ->  | FR28: =IF(FR24=" "," ",$BQ$6*HLOOKUP($FQ$16,Līmeņatzīmes!$B$6:$AI$7,2,FALSE)) ->  | FS28: =IF(FS24=" "," ",$BQ$6*HLOOKUP($FQ$16,Līmeņatzīmes!$B$6:$AI$7,2,FALSE)) ->  | FT28: =IF(FT24=" "," ",$BQ$6*HLOOKUP($FQ$16,Līmeņatzīmes!$B$6:$AI$7,2,FALSE)) ->  | FU28: =IF(FU24=" "," ",$BQ$6*HLOOKUP($FQ$16,Līmeņatzīmes!$B$6:$AI$7,2,FALSE)) ->  | FV28: =IF(FV24=" "," ",$BQ$6*HLOOKUP($FQ$16,Līmeņatzīmes!$B$6:$AI$7,2,FALSE)) ->  | FW28: =IF(FW24=" "," ",$BQ$6*HLOOKUP($FQ$16,Līmeņatzīmes!$B$6:$AI$7,2,FALSE)) ->  | FX28: =IF(FX24=" "," ",$BQ$6*HLOOKUP($FQ$16,Līmeņatzīmes!$B$6:$AI$7,2,FALSE)) ->  | FY28: =IF(FY24=" "," ",$BQ$6*HLOOKUP($FQ$16,Līmeņatzīmes!$B$6:$AI$7,2,FALSE)) ->  | FZ28: =IF(FZ24=" "," ",$BQ$6*HLOOKUP($FQ$16,Līmeņatzīmes!$B$6:$AI$7,2,FALSE)) ->  | GA28: =IF(GA24=" "," ",$BQ$6*HLOOKUP($FQ$16,Līmeņatzīmes!$B$6:$AI$7,2,FALSE)) ->  | GB28: =IF(GB24=" "," ",$BQ$6*HLOOKUP($FQ$16,Līmeņatzīmes!$B$6:$AI$7,2,FALSE)) ->  | GC28: =IF(GC24=" "," ",$BQ$6*HLOOKUP($FQ$16,Līmeņatzīmes!$B$6:$AI$7,2,FALSE)) ->  | GD28: =IF(OR(GD$18=" ",GD$18=0)," ",SUM(GE28:GP28)) ->  | GE28: =IF(GE24=" "," ",$BQ$6*HLOOKUP($GD$16,Līmeņatzīmes!$B$6:$AI$7,2,FALSE)) ->  | GF28: =IF(GF24=" "," ",$BQ$6*HLOOKUP($GD$16,Līmeņatzīmes!$B$6:$AI$7,2,FALSE)) ->  | GG28: =IF(GG24=" "," ",$BQ$6*HLOOKUP($GD$16,Līmeņatzīmes!$B$6:$AI$7,2,FALSE)) ->  | GH28: =IF(GH24=" "," ",$BQ$6*HLOOKUP($GD$16,Līmeņatzīmes!$B$6:$AI$7,2,FALSE)) ->  | GI28: =IF(GI24=" "," ",$BQ$6*HLOOKUP($GD$16,Līmeņatzīmes!$B$6:$AI$7,2,FALSE)) ->  | GJ28: =IF(GJ24=" "," ",$BQ$6*HLOOKUP($GD$16,Līmeņatzīmes!$B$6:$AI$7,2,FALSE)) ->  | GK28: =IF(GK24=" "," ",$BQ$6*HLOOKUP($GD$16,Līmeņatzīmes!$B$6:$AI$7,2,FALSE)) ->  | GL28: =IF(GL24=" "," ",$BQ$6*HLOOKUP($GD$16,Līmeņatzīmes!$B$6:$AI$7,2,FALSE)) ->  | GM28: =IF(GM24=" "," ",$BQ$6*HLOOKUP($GD$16,Līmeņatzīmes!$B$6:$AI$7,2,FALSE)) ->  | GN28: =IF(GN24=" "," ",$BQ$6*HLOOKUP($GD$16,Līmeņatzīmes!$B$6:$AI$7,2,FALSE)) ->  | GO28: =IF(GO24=" "," ",$BQ$6*HLOOKUP($GD$16,Līmeņatzīmes!$B$6:$AI$7,2,FALSE)) ->  | GP28: =IF(GP24=" "," ",$BQ$6*HLOOKUP($GD$16,Līmeņatzīmes!$B$6:$AI$7,2,FALSE)) ->  | GQ28: =IF(OR(GQ$18=" ",GQ$18=0)," ",SUM(GR28:HC28)) ->  | GR28: =IF(GR24=" "," ",$BQ$6*HLOOKUP($GQ$16,Līmeņatzīmes!$B$6:$AI$7,2,FALSE)) ->  | GS28: =IF(GS24=" "," ",$BQ$6*HLOOKUP($GQ$16,Līmeņatzīmes!$B$6:$AI$7,2,FALSE)) ->  | GT28: =IF(GT24=" "," ",$BQ$6*HLOOKUP($GQ$16,Līmeņatzīmes!$B$6:$AI$7,2,FALSE)) ->  | GU28: =IF(GU24=" "," ",$BQ$6*HLOOKUP($GQ$16,Līmeņatzīmes!$B$6:$AI$7,2,FALSE)) ->  | GV28: =IF(GV24=" "," ",$BQ$6*HLOOKUP($GQ$16,Līmeņatzīmes!$B$6:$AI$7,2,FALSE)) ->  | GW28: =IF(GW24=" "," ",$BQ$6*HLOOKUP($GQ$16,Līmeņatzīmes!$B$6:$AI$7,2,FALSE)) ->  | GX28: =IF(GX24=" "," ",$BQ$6*HLOOKUP($GQ$16,Līmeņatzīmes!$B$6:$AI$7,2,FALSE)) ->  | GY28: =IF(GY24=" "," ",$BQ$6*HLOOKUP($GQ$16,Līmeņatzīmes!$B$6:$AI$7,2,FALSE)) ->  | GZ28: =IF(GZ24=" "," ",$BQ$6*HLOOKUP($GQ$16,Līmeņatzīmes!$B$6:$AI$7,2,FALSE)) ->  | HA28: =IF(HA24=" "," ",$BQ$6*HLOOKUP($GQ$16,Līmeņatzīmes!$B$6:$AI$7,2,FALSE)) ->  | HB28: =IF(HB24=" "," ",$BQ$6*HLOOKUP($GQ$16,Līmeņatzīmes!$B$6:$AI$7,2,FALSE)) ->  | HC28: =IF(HC24=" "," ",$BQ$6*HLOOKUP($GQ$16,Līmeņatzīmes!$B$6:$AI$7,2,FALSE)) ->  | HD28: =IF(OR(HD$18=" ",HD$18=0)," ",SUM(HE28:HP28)) ->  | HE28: =IF(HE24=" "," ",$BQ$6*HLOOKUP($HD$16,Līmeņatzīmes!$B$6:$AI$7,2,FALSE)) ->  | HF28: =IF(HF24=" "," ",$BQ$6*HLOOKUP($HD$16,Līmeņatzīmes!$B$6:$AI$7,2,FALSE)) ->  | HG28: =IF(HG24=" "," ",$BQ$6*HLOOKUP($HD$16,Līmeņatzīmes!$B$6:$AI$7,2,FALSE)) ->  | HH28: =IF(HH24=" "," ",$BQ$6*HLOOKUP($HD$16,Līmeņatzīmes!$B$6:$AI$7,2,FALSE)) ->  | HI28: =IF(HI24=" "," ",$BQ$6*HLOOKUP($HD$16,Līmeņatzīmes!$B$6:$AI$7,2,FALSE)) ->  | HJ28: =IF(HJ24=" "," ",$BQ$6*HLOOKUP($HD$16,Līmeņatzīmes!$B$6:$AI$7,2,FALSE)) ->  | HK28: =IF(HK24=" "," ",$BQ$6*HLOOKUP($HD$16,Līmeņatzīmes!$B$6:$AI$7,2,FALSE)) ->  | HL28: =IF(HL24=" "," ",$BQ$6*HLOOKUP($HD$16,Līmeņatzīmes!$B$6:$AI$7,2,FALSE)) ->  | HM28: =IF(HM24=" "," ",$BQ$6*HLOOKUP($HD$16,Līmeņatzīmes!$B$6:$AI$7,2,FALSE)) ->  | HN28: =IF(HN24=" "," ",$BQ$6*HLOOKUP($HD$16,Līmeņatzīmes!$B$6:$AI$7,2,FALSE)) ->  | HO28: =IF(HO24=" "," ",$BQ$6*HLOOKUP($HD$16,Līmeņatzīmes!$B$6:$AI$7,2,FALSE)) ->  | HP28: =IF(HP24=" "," ",$BQ$6*HLOOKUP($HD$16,Līmeņatzīmes!$B$6:$AI$7,2,FALSE)) ->  | HQ28: =IF(OR(HQ$18=" ",HQ$18=0)," ",SUM(HR28:IC28)) ->  | HR28: =IF(HR24=" "," ",$BQ$6*HLOOKUP($HQ$16,Līmeņatzīmes!$B$6:$AI$7,2,FALSE)) ->  | HS28: =IF(HS24=" "," ",$BQ$6*HLOOKUP($HQ$16,Līmeņatzīmes!$B$6:$AI$7,2,FALSE)) ->  | HT28: =IF(HT24=" "," ",$BQ$6*HLOOKUP($HQ$16,Līmeņatzīmes!$B$6:$AI$7,2,FALSE)) ->  | HU28: =IF(HU24=" "," ",$BQ$6*HLOOKUP($HQ$16,Līmeņatzīmes!$B$6:$AI$7,2,FALSE)) ->  | HV28: =IF(HV24=" "," ",$BQ$6*HLOOKUP($HQ$16,Līmeņatzīmes!$B$6:$AI$7,2,FALSE)) ->  | HW28: =IF(HW24=" "," ",$BQ$6*HLOOKUP($HQ$16,Līmeņatzīmes!$B$6:$AI$7,2,FALSE)) ->  | HX28: =IF(HX24=" "," ",$BQ$6*HLOOKUP($HQ$16,Līmeņatzīmes!$B$6:$AI$7,2,FALSE)) ->  | HY28: =IF(HY24=" "," ",$BQ$6*HLOOKUP($HQ$16,Līmeņatzīmes!$B$6:$AI$7,2,FALSE)) ->  | HZ28: =IF(HZ24=" "," ",$BQ$6*HLOOKUP($HQ$16,Līmeņatzīmes!$B$6:$AI$7,2,FALSE)) ->  | IA28: =IF(IA24=" "," ",$BQ$6*HLOOKUP($HQ$16,Līmeņatzīmes!$B$6:$AI$7,2,FALSE)) ->  | IB28: =IF(IB24=" "," ",$BQ$6*HLOOKUP($HQ$16,Līmeņatzīmes!$B$6:$AI$7,2,FALSE)) ->  | IC28: =IF(IC24=" "," ",$BQ$6*HLOOKUP($HQ$16,Līmeņatzīmes!$B$6:$AI$7,2,FALSE)) ->  | ID28: =IF(OR(ID$18=" ",ID$18=0)," ",SUM(IE28:IP28)) ->  | IE28: =IF(IE24=" "," ",$BQ$6*HLOOKUP($ID$16,Līmeņatzīmes!$B$6:$AI$7,2,FALSE)) ->  | IF28: =IF(IF24=" "," ",$BQ$6*HLOOKUP($ID$16,Līmeņatzīmes!$B$6:$AI$7,2,FALSE)) ->  | IG28: =IF(IG24=" "," ",$BQ$6*HLOOKUP($ID$16,Līmeņatzīmes!$B$6:$AI$7,2,FALSE)) ->  | IH28: =IF(IH24=" "," ",$BQ$6*HLOOKUP($ID$16,Līmeņatzīmes!$B$6:$AI$7,2,FALSE)) ->  | II28: =IF(II24=" "," ",$BQ$6*HLOOKUP($ID$16,Līmeņatzīmes!$B$6:$AI$7,2,FALSE)) ->  | IJ28: =IF(IJ24=" "," ",$BQ$6*HLOOKUP($ID$16,Līmeņatzīmes!$B$6:$AI$7,2,FALSE)) ->  | IK28: =IF(IK24=" "," ",$BQ$6*HLOOKUP($ID$16,Līmeņatzīmes!$B$6:$AI$7,2,FALSE)) ->  | IL28: =IF(IL24=" "," ",$BQ$6*HLOOKUP($ID$16,Līmeņatzīmes!$B$6:$AI$7,2,FALSE)) ->  | IM28: =IF(IM24=" "," ",$BQ$6*HLOOKUP($ID$16,Līmeņatzīmes!$B$6:$AI$7,2,FALSE)) ->  | IN28: =IF(IN24=" "," ",$BQ$6*HLOOKUP($ID$16,Līmeņatzīmes!$B$6:$AI$7,2,FALSE)) ->  | IO28: =IF(IO24=" "," ",$BQ$6*HLOOKUP($ID$16,Līmeņatzīmes!$B$6:$AI$7,2,FALSE)) ->  | IP28: =IF(IP24=" "," ",$BQ$6*HLOOKUP($ID$16,Līmeņatzīmes!$B$6:$AI$7,2,FALSE)) ->  | IQ28: =IF(OR(IQ$18=" ",IQ$18=0)," ",SUM(IR28:JC28)) ->  | IR28: =IF(IR24=" "," ",$BQ$6*HLOOKUP($IQ$16,Līmeņatzīmes!$B$6:$AI$7,2,FALSE)) ->  | IS28: =IF(IS24=" "," ",$BQ$6*HLOOKUP($IQ$16,Līmeņatzīmes!$B$6:$AI$7,2,FALSE)) ->  | IT28: =IF(IT24=" "," ",$BQ$6*HLOOKUP($IQ$16,Līmeņatzīmes!$B$6:$AI$7,2,FALSE)) ->  | IU28: =IF(IU24=" "," ",$BQ$6*HLOOKUP($IQ$16,Līmeņatzīmes!$B$6:$AI$7,2,FALSE)) ->  | IV28: =IF(IV24=" "," ",$BQ$6*HLOOKUP($IQ$16,Līmeņatzīmes!$B$6:$AI$7,2,FALSE)) ->  | IW28: =IF(IW24=" "," ",$BQ$6*HLOOKUP($IQ$16,Līmeņatzīmes!$B$6:$AI$7,2,FALSE)) ->  | IX28: =IF(IX24=" "," ",$BQ$6*HLOOKUP($IQ$16,Līmeņatzīmes!$B$6:$AI$7,2,FALSE)) ->  | IY28: =IF(IY24=" "," ",$BQ$6*HLOOKUP($IQ$16,Līmeņatzīmes!$B$6:$AI$7,2,FALSE)) ->  | IZ28: =IF(IZ24=" "," ",$BQ$6*HLOOKUP($IQ$16,Līmeņatzīmes!$B$6:$AI$7,2,FALSE)) ->  | JA28: =IF(JA24=" "," ",$BQ$6*HLOOKUP($IQ$16,Līmeņatzīmes!$B$6:$AI$7,2,FALSE)) ->  | JB28: =IF(JB24=" "," ",$BQ$6*HLOOKUP($IQ$16,Līmeņatzīmes!$B$6:$AI$7,2,FALSE)) ->  | JC28: =IF(JC24=" "," ",$BQ$6*HLOOKUP($IQ$16,Līmeņatzīmes!$B$6:$AI$7,2,FALSE)) ->  | JD28: =IF(OR(JD$18=" ",JD$18=0)," ",SUM(JE28:JP28)) ->  | JE28: =IF(JE24=" "," ",$BQ$6*HLOOKUP($JD$16,Līmeņatzīmes!$B$6:$AI$7,2,FALSE)) ->  | JF28: =IF(JF24=" "," ",$BQ$6*HLOOKUP($JD$16,Līmeņatzīmes!$B$6:$AI$7,2,FALSE)) ->  | JG28: =IF(JG24=" "," ",$BQ$6*HLOOKUP($JD$16,Līmeņatzīmes!$B$6:$AI$7,2,FALSE)) ->  | JH28: =IF(JH24=" "," ",$BQ$6*HLOOKUP($JD$16,Līmeņatzīmes!$B$6:$AI$7,2,FALSE)) ->  | JI28: =IF(JI24=" "," ",$BQ$6*HLOOKUP($JD$16,Līmeņatzīmes!$B$6:$AI$7,2,FALSE)) ->  | JJ28: =IF(JJ24=" "," ",$BQ$6*HLOOKUP($JD$16,Līmeņatzīmes!$B$6:$AI$7,2,FALSE)) ->  | JK28: =IF(JK24=" "," ",$BQ$6*HLOOKUP($JD$16,Līmeņatzīmes!$B$6:$AI$7,2,FALSE)) ->  | JL28: =IF(JL24=" "," ",$BQ$6*HLOOKUP($JD$16,Līmeņatzīmes!$B$6:$AI$7,2,FALSE)) ->  | JM28: =IF(JM24=" "," ",$BQ$6*HLOOKUP($JD$16,Līmeņatzīmes!$B$6:$AI$7,2,FALSE)) ->  | JN28: =IF(JN24=" "," ",$BQ$6*HLOOKUP($JD$16,Līmeņatzīmes!$B$6:$AI$7,2,FALSE)) ->  | JO28: =IF(JO24=" "," ",$BQ$6*HLOOKUP($JD$16,Līmeņatzīmes!$B$6:$AI$7,2,FALSE)) ->  | JP28: =IF(JP24=" "," ",$BQ$6*HLOOKUP($JD$16,Līmeņatzīmes!$B$6:$AI$7,2,FALSE)) ->  | JQ28: =IF(OR(JQ$18=" ",JQ$18=0)," ",SUM(JR28:KC28)) ->  | JR28: =IF(JR24=" "," ",$BQ$6*HLOOKUP($JQ$16,Līmeņatzīmes!$B$6:$AI$7,2,FALSE)) ->  | JS28: =IF(JS24=" "," ",$BQ$6*HLOOKUP($JQ$16,Līmeņatzīmes!$B$6:$AI$7,2,FALSE)) ->  | JT28: =IF(JT24=" "," ",$BQ$6*HLOOKUP($JQ$16,Līmeņatzīmes!$B$6:$AI$7,2,FALSE)) ->  | JU28: =IF(JU24=" "," ",$BQ$6*HLOOKUP($JQ$16,Līmeņatzīmes!$B$6:$AI$7,2,FALSE)) ->  | JV28: =IF(JV24=" "," ",$BQ$6*HLOOKUP($JQ$16,Līmeņatzīmes!$B$6:$AI$7,2,FALSE)) ->  | JW28: =IF(JW24=" "," ",$BQ$6*HLOOKUP($JQ$16,Līmeņatzīmes!$B$6:$AI$7,2,FALSE)) ->  | JX28: =IF(JX24=" "," ",$BQ$6*HLOOKUP($JQ$16,Līmeņatzīmes!$B$6:$AI$7,2,FALSE)) ->  | JY28: =IF(JY24=" "," ",$BQ$6*HLOOKUP($JQ$16,Līmeņatzīmes!$B$6:$AI$7,2,FALSE)) ->  | JZ28: =IF(JZ24=" "," ",$BQ$6*HLOOKUP($JQ$16,Līmeņatzīmes!$B$6:$AI$7,2,FALSE)) ->  | KA28: =IF(KA24=" "," ",$BQ$6*HLOOKUP($JQ$16,Līmeņatzīmes!$B$6:$AI$7,2,FALSE)) ->  | KB28: =IF(KB24=" "," ",$BQ$6*HLOOKUP($JQ$16,Līmeņatzīmes!$B$6:$AI$7,2,FALSE)) ->  | KC28: =IF(KC24=" "," ",$BQ$6*HLOOKUP($JQ$16,Līmeņatzīmes!$B$6:$AI$7,2,FALSE)) ->  | KD28: =IF(OR(KD$18=" ",KD$18=0)," ",SUM(KE28:KP28)) ->  | KE28: =IF(KE24=" "," ",$BQ$6*HLOOKUP($KD$16,Līmeņatzīmes!$B$6:$AI$7,2,FALSE)) ->  | KF28: =IF(KF24=" "," ",$BQ$6*HLOOKUP($KD$16,Līmeņatzīmes!$B$6:$AI$7,2,FALSE)) ->  | KG28: =IF(KG24=" "," ",$BQ$6*HLOOKUP($KD$16,Līmeņatzīmes!$B$6:$AI$7,2,FALSE)) ->  | KH28: =IF(KH24=" "," ",$BQ$6*HLOOKUP($KD$16,Līmeņatzīmes!$B$6:$AI$7,2,FALSE)) ->  | KI28: =IF(KI24=" "," ",$BQ$6*HLOOKUP($KD$16,Līmeņatzīmes!$B$6:$AI$7,2,FALSE)) ->  | KJ28: =IF(KJ24=" "," ",$BQ$6*HLOOKUP($KD$16,Līmeņatzīmes!$B$6:$AI$7,2,FALSE)) ->  | KK28: =IF(KK24=" "," ",$BQ$6*HLOOKUP($KD$16,Līmeņatzīmes!$B$6:$AI$7,2,FALSE)) ->  | KL28: =IF(KL24=" "," ",$BQ$6*HLOOKUP($KD$16,Līmeņatzīmes!$B$6:$AI$7,2,FALSE)) ->  | KM28: =IF(KM24=" "," ",$BQ$6*HLOOKUP($KD$16,Līmeņatzīmes!$B$6:$AI$7,2,FALSE)) ->  | KN28: =IF(KN24=" "," ",$BQ$6*HLOOKUP($KD$16,Līmeņatzīmes!$B$6:$AI$7,2,FALSE)) ->  | KO28: =IF(KO24=" "," ",$BQ$6*HLOOKUP($KD$16,Līmeņatzīmes!$B$6:$AI$7,2,FALSE)) ->  | KP28: =IF(KP24=" "," ",$BQ$6*HLOOKUP($KD$16,Līmeņatzīmes!$B$6:$AI$7,2,FALSE)) ->  | KQ28: =IF(OR(KQ$18=" ",KQ$18=0)," ",SUM(KR28:LC28)) ->  | KR28: =IF(KR24=" "," ",$BQ$6*HLOOKUP($KQ$16,Līmeņatzīmes!$B$6:$AI$7,2,FALSE)) ->  | KS28: =IF(KS24=" "," ",$BQ$6*HLOOKUP($KQ$16,Līmeņatzīmes!$B$6:$AI$7,2,FALSE)) ->  | KT28: =IF(KT24=" "," ",$BQ$6*HLOOKUP($KQ$16,Līmeņatzīmes!$B$6:$AI$7,2,FALSE)) ->  | KU28: =IF(KU24=" "," ",$BQ$6*HLOOKUP($KQ$16,Līmeņatzīmes!$B$6:$AI$7,2,FALSE)) ->  | KV28: =IF(KV24=" "," ",$BQ$6*HLOOKUP($KQ$16,Līmeņatzīmes!$B$6:$AI$7,2,FALSE)) ->  | KW28: =IF(KW24=" "," ",$BQ$6*HLOOKUP($KQ$16,Līmeņatzīmes!$B$6:$AI$7,2,FALSE)) ->  | KX28: =IF(KX24=" "," ",$BQ$6*HLOOKUP($KQ$16,Līmeņatzīmes!$B$6:$AI$7,2,FALSE)) ->  | KY28: =IF(KY24=" "," ",$BQ$6*HLOOKUP($KQ$16,Līmeņatzīmes!$B$6:$AI$7,2,FALSE)) ->  | KZ28: =IF(KZ24=" "," ",$BQ$6*HLOOKUP($KQ$16,Līmeņatzīmes!$B$6:$AI$7,2,FALSE)) ->  | LA28: =IF(LA24=" "," ",$BQ$6*HLOOKUP($KQ$16,Līmeņatzīmes!$B$6:$AI$7,2,FALSE)) ->  | LB28: =IF(LB24=" "," ",$BQ$6*HLOOKUP($KQ$16,Līmeņatzīmes!$B$6:$AI$7,2,FALSE)) ->  | LC28: =IF(LC24=" "," ",$BQ$6*HLOOKUP($KQ$16,Līmeņatzīmes!$B$6:$AI$7,2,FALSE)) ->  | LD28: =IF(OR(LD$18=" ",LD$18=0)," ",SUM(LE28:LP28)) ->  | LE28: =IF(LE24=" "," ",$BQ$6*HLOOKUP($LD$16,Līmeņatzīmes!$B$6:$AI$7,2,FALSE)) ->  | LF28: =IF(LF24=" "," ",$BQ$6*HLOOKUP($LD$16,Līmeņatzīmes!$B$6:$AI$7,2,FALSE)) ->  | LG28: =IF(LG24=" "," ",$BQ$6*HLOOKUP($LD$16,Līmeņatzīmes!$B$6:$AI$7,2,FALSE)) ->  | LH28: =IF(LH24=" "," ",$BQ$6*HLOOKUP($LD$16,Līmeņatzīmes!$B$6:$AI$7,2,FALSE)) ->  | LI28: =IF(LI24=" "," ",$BQ$6*HLOOKUP($LD$16,Līmeņatzīmes!$B$6:$AI$7,2,FALSE)) ->  | LJ28: =IF(LJ24=" "," ",$BQ$6*HLOOKUP($LD$16,Līmeņatzīmes!$B$6:$AI$7,2,FALSE)) ->  | LK28: =IF(LK24=" "," ",$BQ$6*HLOOKUP($LD$16,Līmeņatzīmes!$B$6:$AI$7,2,FALSE)) ->  | LL28: =IF(LL24=" "," ",$BQ$6*HLOOKUP($LD$16,Līmeņatzīmes!$B$6:$AI$7,2,FALSE)) ->  | LM28: =IF(LM24=" "," ",$BQ$6*HLOOKUP($LD$16,Līmeņatzīmes!$B$6:$AI$7,2,FALSE)) ->  | LN28: =IF(LN24=" "," ",$BQ$6*HLOOKUP($LD$16,Līmeņatzīmes!$B$6:$AI$7,2,FALSE)) ->  | LO28: =IF(LO24=" "," ",$BQ$6*HLOOKUP($LD$16,Līmeņatzīmes!$B$6:$AI$7,2,FALSE)) ->  | LP28: =IF(LP24=" "," ",$BQ$6*HLOOKUP($LD$16,Līmeņatzīmes!$B$6:$AI$7,2,FALSE)) ->  | LQ28: =IF(OR(LQ$18=" ",LQ$18=0)," ",SUM(LR28:MC28)) ->  | LR28: =IF(LR24=" "," ",$BQ$6*HLOOKUP($LQ$16,Līmeņatzīmes!$B$6:$AI$7,2,FALSE)) ->  | LS28: =IF(LS24=" "," ",$BQ$6*HLOOKUP($LQ$16,Līmeņatzīmes!$B$6:$AI$7,2,FALSE)) ->  | LT28: =IF(LT24=" "," ",$BQ$6*HLOOKUP($LQ$16,Līmeņatzīmes!$B$6:$AI$7,2,FALSE)) ->  | LU28: =IF(LU24=" "," ",$BQ$6*HLOOKUP($LQ$16,Līmeņatzīmes!$B$6:$AI$7,2,FALSE)) ->  | LV28: =IF(LV24=" "," ",$BQ$6*HLOOKUP($LQ$16,Līmeņatzīmes!$B$6:$AI$7,2,FALSE)) ->  | LW28: =IF(LW24=" "," ",$BQ$6*HLOOKUP($LQ$16,Līmeņatzīmes!$B$6:$AI$7,2,FALSE)) ->  | LX28: =IF(LX24=" "," ",$BQ$6*HLOOKUP($LQ$16,Līmeņatzīmes!$B$6:$AI$7,2,FALSE)) ->  | LY28: =IF(LY24=" "," ",$BQ$6*HLOOKUP($LQ$16,Līmeņatzīmes!$B$6:$AI$7,2,FALSE)) ->  | LZ28: =IF(LZ24=" "," ",$BQ$6*HLOOKUP($LQ$16,Līmeņatzīmes!$B$6:$AI$7,2,FALSE)) ->  | MA28: =IF(MA24=" "," ",$BQ$6*HLOOKUP($LQ$16,Līmeņatzīmes!$B$6:$AI$7,2,FALSE)) ->  | MB28: =IF(MB24=" "," ",$BQ$6*HLOOKUP($LQ$16,Līmeņatzīmes!$B$6:$AI$7,2,FALSE)) ->  | MC28: =IF(MC24=" "," ",$BQ$6*HLOOKUP($LQ$16,Līmeņatzīmes!$B$6:$AI$7,2,FALSE)) ->  | MD28: =IF(OR(MD$18=" ",MD$18=0)," ",SUM(ME28:MP28)) ->  | ME28: =IF(ME24=" "," ",$BQ$6*HLOOKUP($MD$16,Līmeņatzīmes!$B$6:$AI$7,2,FALSE)) ->  | MF28: =IF(MF24=" "," ",$BQ$6*HLOOKUP($MD$16,Līmeņatzīmes!$B$6:$AI$7,2,FALSE)) ->  | MG28: =IF(MG24=" "," ",$BQ$6*HLOOKUP($MD$16,Līmeņatzīmes!$B$6:$AI$7,2,FALSE)) ->  | MH28: =IF(MH24=" "," ",$BQ$6*HLOOKUP($MD$16,Līmeņatzīmes!$B$6:$AI$7,2,FALSE)) ->  | MI28: =IF(MI24=" "," ",$BQ$6*HLOOKUP($MD$16,Līmeņatzīmes!$B$6:$AI$7,2,FALSE)) ->  | MJ28: =IF(MJ24=" "," ",$BQ$6*HLOOKUP($MD$16,Līmeņatzīmes!$B$6:$AI$7,2,FALSE)) ->  | MK28: =IF(MK24=" "," ",$BQ$6*HLOOKUP($MD$16,Līmeņatzīmes!$B$6:$AI$7,2,FALSE)) ->  | ML28: =IF(ML24=" "," ",$BQ$6*HLOOKUP($MD$16,Līmeņatzīmes!$B$6:$AI$7,2,FALSE)) ->  | MM28: =IF(MM24=" "," ",$BQ$6*HLOOKUP($MD$16,Līmeņatzīmes!$B$6:$AI$7,2,FALSE)) ->  | MN28: =IF(MN24=" "," ",$BQ$6*HLOOKUP($MD$16,Līmeņatzīmes!$B$6:$AI$7,2,FALSE)) ->  | MO28: =IF(MO24=" "," ",$BQ$6*HLOOKUP($MD$16,Līmeņatzīmes!$B$6:$AI$7,2,FALSE)) ->  | MP28: =IF(MP24=" "," ",$BQ$6*HLOOKUP($MD$16,Līmeņatzīmes!$B$6:$AI$7,2,FALSE)) ->  | MQ28: =IF(OR(MQ$18=" ",MQ$18=0)," ",SUM(MR28:NC28)) ->  | MR28: =IF(MR24=" "," ",$BQ$6*HLOOKUP($MQ$16,Līmeņatzīmes!$B$6:$AI$7,2,FALSE)) ->  | MS28: =IF(MS24=" "," ",$BQ$6*HLOOKUP($MQ$16,Līmeņatzīmes!$B$6:$AI$7,2,FALSE)) ->  | MT28: =IF(MT24=" "," ",$BQ$6*HLOOKUP($MQ$16,Līmeņatzīmes!$B$6:$AI$7,2,FALSE)) ->  | MU28: =IF(MU24=" "," ",$BQ$6*HLOOKUP($MQ$16,Līmeņatzīmes!$B$6:$AI$7,2,FALSE)) ->  | MV28: =IF(MV24=" "," ",$BQ$6*HLOOKUP($MQ$16,Līmeņatzīmes!$B$6:$AI$7,2,FALSE)) ->  | MW28: =IF(MW24=" "," ",$BQ$6*HLOOKUP($MQ$16,Līmeņatzīmes!$B$6:$AI$7,2,FALSE)) ->  | MX28: =IF(MX24=" "," ",$BQ$6*HLOOKUP($MQ$16,Līmeņatzīmes!$B$6:$AI$7,2,FALSE)) ->  | MY28: =IF(MY24=" "," ",$BQ$6*HLOOKUP($MQ$16,Līmeņatzīmes!$B$6:$AI$7,2,FALSE)) ->  | MZ28: =IF(MZ24=" "," ",$BQ$6*HLOOKUP($MQ$16,Līmeņatzīmes!$B$6:$AI$7,2,FALSE)) ->  | NA28: =IF(NA24=" "," ",$BQ$6*HLOOKUP($MQ$16,Līmeņatzīmes!$B$6:$AI$7,2,FALSE)) ->  | NB28: =IF(NB24=" "," ",$BQ$6*HLOOKUP($MQ$16,Līmeņatzīmes!$B$6:$AI$7,2,FALSE)) ->  | NC28: =IF(NC24=" "," ",$BQ$6*HLOOKUP($MQ$16,Līmeņatzīmes!$B$6:$AI$7,2,FALSE)) ->  | ND28: =IF(OR(ND$18=" ",ND$18=0)," ",SUM(NE28:NP28)) ->  | NE28: =IF(NE24=" "," ",$BQ$6*HLOOKUP($ND$16,Līmeņatzīmes!$B$6:$AI$7,2,FALSE)) ->  | NF28: =IF(NF24=" "," ",$BQ$6*HLOOKUP($ND$16,Līmeņatzīmes!$B$6:$AI$7,2,FALSE)) ->  | NG28: =IF(NG24=" "," ",$BQ$6*HLOOKUP($ND$16,Līmeņatzīmes!$B$6:$AI$7,2,FALSE)) ->  | NH28: =IF(NH24=" "," ",$BQ$6*HLOOKUP($ND$16,Līmeņatzīmes!$B$6:$AI$7,2,FALSE)) ->  | NI28: =IF(NI24=" "," ",$BQ$6*HLOOKUP($ND$16,Līmeņatzīmes!$B$6:$AI$7,2,FALSE)) ->  | NJ28: =IF(NJ24=" "," ",$BQ$6*HLOOKUP($ND$16,Līmeņatzīmes!$B$6:$AI$7,2,FALSE)) ->  | NK28: =IF(NK24=" "," ",$BQ$6*HLOOKUP($ND$16,Līmeņatzīmes!$B$6:$AI$7,2,FALSE)) ->  | NL28: =IF(NL24=" "," ",$BQ$6*HLOOKUP($ND$16,Līmeņatzīmes!$B$6:$AI$7,2,FALSE)) ->  | NM28: =IF(NM24=" "," ",$BQ$6*HLOOKUP($ND$16,Līmeņatzīmes!$B$6:$AI$7,2,FALSE)) ->  | NN28: =IF(NN24=" "," ",$BQ$6*HLOOKUP($ND$16,Līmeņatzīmes!$B$6:$AI$7,2,FALSE)) ->  | NO28: =IF(NO24=" "," ",$BQ$6*HLOOKUP($ND$16,Līmeņatzīmes!$B$6:$AI$7,2,FALSE)) ->  | NP28: =IF(NP24=" "," ",$BQ$6*HLOOKUP($ND$16,Līmeņatzīmes!$B$6:$AI$7,2,FALSE)) ->  | NQ28: =IF(OR(NQ$18=" ",NQ$18=0)," ",SUM(NR28:OC28)) ->  | NR28: =IF(NR24=" "," ",$BQ$6*HLOOKUP($NQ$16,Līmeņatzīmes!$B$6:$AI$7,2,FALSE)) ->  | NS28: =IF(NS24=" "," ",$BQ$6*HLOOKUP($NQ$16,Līmeņatzīmes!$B$6:$AI$7,2,FALSE)) ->  | NT28: =IF(NT24=" "," ",$BQ$6*HLOOKUP($NQ$16,Līmeņatzīmes!$B$6:$AI$7,2,FALSE)) ->  | NU28: =IF(NU24=" "," ",$BQ$6*HLOOKUP($NQ$16,Līmeņatzīmes!$B$6:$AI$7,2,FALSE)) ->  | NV28: =IF(NV24=" "," ",$BQ$6*HLOOKUP($NQ$16,Līmeņatzīmes!$B$6:$AI$7,2,FALSE)) ->  | NW28: =IF(NW24=" "," ",$BQ$6*HLOOKUP($NQ$16,Līmeņatzīmes!$B$6:$AI$7,2,FALSE)) ->  | NX28: =IF(NX24=" "," ",$BQ$6*HLOOKUP($NQ$16,Līmeņatzīmes!$B$6:$AI$7,2,FALSE)) ->  | NY28: =IF(NY24=" "," ",$BQ$6*HLOOKUP($NQ$16,Līmeņatzīmes!$B$6:$AI$7,2,FALSE)) ->  | NZ28: =IF(NZ24=" "," ",$BQ$6*HLOOKUP($NQ$16,Līmeņatzīmes!$B$6:$AI$7,2,FALSE)) ->  | OA28: =IF(OA24=" "," ",$BQ$6*HLOOKUP($NQ$16,Līmeņatzīmes!$B$6:$AI$7,2,FALSE)) ->  | OB28: =IF(OB24=" "," ",$BQ$6*HLOOKUP($NQ$16,Līmeņatzīmes!$B$6:$AI$7,2,FALSE)) ->  | OC28: =IF(OC24=" "," ",$BQ$6*HLOOKUP($NQ$16,Līmeņatzīmes!$B$6:$AI$7,2,FALSE)) ->  | OD28: =IF(OR(OD$18=" ",OD$18=0)," ",SUM(OE28:OP28)) ->  | OE28: =IF(OE24=" "," ",$BQ$6*HLOOKUP($OD$16,Līmeņatzīmes!$B$6:$AI$7,2,FALSE)) ->  | OF28: =IF(OF24=" "," ",$BQ$6*HLOOKUP($OD$16,Līmeņatzīmes!$B$6:$AI$7,2,FALSE)) ->  | OG28: =IF(OG24=" "," ",$BQ$6*HLOOKUP($OD$16,Līmeņatzīmes!$B$6:$AI$7,2,FALSE)) ->  | OH28: =IF(OH24=" "," ",$BQ$6*HLOOKUP($OD$16,Līmeņatzīmes!$B$6:$AI$7,2,FALSE)) ->  | OI28: =IF(OI24=" "," ",$BQ$6*HLOOKUP($OD$16,Līmeņatzīmes!$B$6:$AI$7,2,FALSE)) ->  | OJ28: =IF(OJ24=" "," ",$BQ$6*HLOOKUP($OD$16,Līmeņatzīmes!$B$6:$AI$7,2,FALSE)) ->  | OK28: =IF(OK24=" "," ",$BQ$6*HLOOKUP($OD$16,Līmeņatzīmes!$B$6:$AI$7,2,FALSE)) ->  | OL28: =IF(OL24=" "," ",$BQ$6*HLOOKUP($OD$16,Līmeņatzīmes!$B$6:$AI$7,2,FALSE)) ->  | OM28: =IF(OM24=" "," ",$BQ$6*HLOOKUP($OD$16,Līmeņatzīmes!$B$6:$AI$7,2,FALSE)) ->  | ON28: =IF(ON24=" "," ",$BQ$6*HLOOKUP($OD$16,Līmeņatzīmes!$B$6:$AI$7,2,FALSE)) ->  | OO28: =IF(OO24=" "," ",$BQ$6*HLOOKUP($OD$16,Līmeņatzīmes!$B$6:$AI$7,2,FALSE)) ->  | OP28: =IF(OP24=" "," ",$BQ$6*HLOOKUP($OD$16,Līmeņatzīmes!$B$6:$AI$7,2,FALSE)) ->  | OQ28: =IF(OR(OQ$18=" ",OQ$18=0)," ",SUM(OR28:PC28)) ->  | OR28: =IF(OR24=" "," ",$BQ$6*HLOOKUP($OQ$16,Līmeņatzīmes!$B$6:$AI$7,2,FALSE)) ->  | OS28: =IF(OS24=" "," ",$BQ$6*HLOOKUP($OQ$16,Līmeņatzīmes!$B$6:$AI$7,2,FALSE)) ->  | OT28: =IF(OT24=" "," ",$BQ$6*HLOOKUP($OQ$16,Līmeņatzīmes!$B$6:$AI$7,2,FALSE)) ->  | OU28: =IF(OU24=" "," ",$BQ$6*HLOOKUP($OQ$16,Līmeņatzīmes!$B$6:$AI$7,2,FALSE)) ->  | OV28: =IF(OV24=" "," ",$BQ$6*HLOOKUP($OQ$16,Līmeņatzīmes!$B$6:$AI$7,2,FALSE)) ->  | OW28: =IF(OW24=" "," ",$BQ$6*HLOOKUP($OQ$16,Līmeņatzīmes!$B$6:$AI$7,2,FALSE)) ->  | OX28: =IF(OX24=" "," ",$BQ$6*HLOOKUP($OQ$16,Līmeņatzīmes!$B$6:$AI$7,2,FALSE)) ->  | OY28: =IF(OY24=" "," ",$BQ$6*HLOOKUP($OQ$16,Līmeņatzīmes!$B$6:$AI$7,2,FALSE)) ->  | OZ28: =IF(OZ24=" "," ",$BQ$6*HLOOKUP($OQ$16,Līmeņatzīmes!$B$6:$AI$7,2,FALSE)) ->  | PA28: =IF(PA24=" "," ",$BQ$6*HLOOKUP($OQ$16,Līmeņatzīmes!$B$6:$AI$7,2,FALSE)) ->  | PB28: =IF(PB24=" "," ",$BQ$6*HLOOKUP($OQ$16,Līmeņatzīmes!$B$6:$AI$7,2,FALSE)) ->  | PC28: =IF(PC24=" "," ",$BQ$6*HLOOKUP($OQ$16,Līmeņatzīmes!$B$6:$AI$7,2,FALSE)) ->  | PD28: =IF(OR(PD$18=" ",PD$18=0)," ",SUM(PE28:PP28)) ->  | PE28: =IF(PE24=" "," ",$BQ$6*HLOOKUP($PD$16,Līmeņatzīmes!$B$6:$AI$7,2,FALSE)) ->  | PF28: =IF(PF24=" "," ",$BQ$6*HLOOKUP($PD$16,Līmeņatzīmes!$B$6:$AI$7,2,FALSE)) ->  | PG28: =IF(PG24=" "," ",$BQ$6*HLOOKUP($PD$16,Līmeņatzīmes!$B$6:$AI$7,2,FALSE)) ->  | PH28: =IF(PH24=" "," ",$BQ$6*HLOOKUP($PD$16,Līmeņatzīmes!$B$6:$AI$7,2,FALSE)) ->  | PI28: =IF(PI24=" "," ",$BQ$6*HLOOKUP($PD$16,Līmeņatzīmes!$B$6:$AI$7,2,FALSE)) ->  | PJ28: =IF(PJ24=" "," ",$BQ$6*HLOOKUP($PD$16,Līmeņatzīmes!$B$6:$AI$7,2,FALSE)) ->  | PK28: =IF(PK24=" "," ",$BQ$6*HLOOKUP($PD$16,Līmeņatzīmes!$B$6:$AI$7,2,FALSE)) ->  | PL28: =IF(PL24=" "," ",$BQ$6*HLOOKUP($PD$16,Līmeņatzīmes!$B$6:$AI$7,2,FALSE)) ->  | PM28: =IF(PM24=" "," ",$BQ$6*HLOOKUP($PD$16,Līmeņatzīmes!$B$6:$AI$7,2,FALSE)) ->  | PN28: =IF(PN24=" "," ",$BQ$6*HLOOKUP($PD$16,Līmeņatzīmes!$B$6:$AI$7,2,FALSE)) ->  | PO28: =IF(PO24=" "," ",$BQ$6*HLOOKUP($PD$16,Līmeņatzīmes!$B$6:$AI$7,2,FALSE)) ->  | PP28: =IF(PP24=" "," ",$BQ$6*HLOOKUP($PD$16,Līmeņatzīmes!$B$6:$AI$7,2,FALSE)) ->  | PQ28: =IF(OR(PQ$18=" ",PQ$18=0)," ",SUM(PR28:QC28)) ->  | PR28: =IF(PR24=" "," ",$BQ$6*HLOOKUP($PQ$16,Līmeņatzīmes!$B$6:$AI$7,2,FALSE)) ->  | PS28: =IF(PS24=" "," ",$BQ$6*HLOOKUP($PQ$16,Līmeņatzīmes!$B$6:$AI$7,2,FALSE)) ->  | PT28: =IF(PT24=" "," ",$BQ$6*HLOOKUP($PQ$16,Līmeņatzīmes!$B$6:$AI$7,2,FALSE)) ->  | PU28: =IF(PU24=" "," ",$BQ$6*HLOOKUP($PQ$16,Līmeņatzīmes!$B$6:$AI$7,2,FALSE)) ->  | PV28: =IF(PV24=" "," ",$BQ$6*HLOOKUP($PQ$16,Līmeņatzīmes!$B$6:$AI$7,2,FALSE)) ->  | PW28: =IF(PW24=" "," ",$BQ$6*HLOOKUP($PQ$16,Līmeņatzīmes!$B$6:$AI$7,2,FALSE)) ->  | PX28: =IF(PX24=" "," ",$BQ$6*HLOOKUP($PQ$16,Līmeņatzīmes!$B$6:$AI$7,2,FALSE)) ->  | PY28: =IF(PY24=" "," ",$BQ$6*HLOOKUP($PQ$16,Līmeņatzīmes!$B$6:$AI$7,2,FALSE)) ->  | PZ28: =IF(PZ24=" "," ",$BQ$6*HLOOKUP($PQ$16,Līmeņatzīmes!$B$6:$AI$7,2,FALSE)) ->  | QA28: =IF(QA24=" "," ",$BQ$6*HLOOKUP($PQ$16,Līmeņatzīmes!$B$6:$AI$7,2,FALSE)) ->  | QB28: =IF(QB24=" "," ",$BQ$6*HLOOKUP($PQ$16,Līmeņatzīmes!$B$6:$AI$7,2,FALSE)) ->  | QC28: =IF(QC24=" "," ",$BQ$6*HLOOKUP($PQ$16,Līmeņatzīmes!$B$6:$AI$7,2,FALSE)) -> 
A29: Ekspluatācijas un pārējās darbības izmaksas | B29: EUR/gadā | D29: =IF(OR(D$18=" ",D$18=0)," ",SUM(E29:P29)) ->  | E29: =IF(E24=" "," ",IF($C$29=" ",$CD$6*$C$9/12,$C$29*(1+HLOOKUP($D$16,Līmeņatzīmes!$B$3:$AI$4,2,FALSE)))) -> 0 | F29: =IF(F24=" "," ",IF($C$29=" ",$CD$6*$C$9/12,$C$29*(1+HLOOKUP($D$16,Līmeņatzīmes!$B$3:$AI$4,2,FALSE)))) -> 0 | G29: =IF(G24=" "," ",IF($C$29=" ",$CD$6*$C$9/12,$C$29*(1+HLOOKUP($D$16,Līmeņatzīmes!$B$3:$AI$4,2,FALSE)))) -> 0 | H29: =IF(H24=" "," ",IF($C$29=" ",$CD$6*$C$9/12,$C$29*(1+HLOOKUP($D$16,Līmeņatzīmes!$B$3:$AI$4,2,FALSE)))) -> 0 | I29: =IF(I24=" "," ",IF($C$29=" ",$CD$6*$C$9/12,$C$29*(1+HLOOKUP($D$16,Līmeņatzīmes!$B$3:$AI$4,2,FALSE)))) -> 0 | J29: =IF(J24=" "," ",IF($C$29=" ",$CD$6*$C$9/12,$C$29*(1+HLOOKUP($D$16,Līmeņatzīmes!$B$3:$AI$4,2,FALSE)))) -> 0 | K29: =IF(K24=" "," ",IF($C$29=" ",$CD$6*$C$9/12,$C$29*(1+HLOOKUP($D$16,Līmeņatzīmes!$B$3:$AI$4,2,FALSE)))) -> 0 | L29: =IF(L24=" "," ",IF($C$29=" ",$CD$6*$C$9/12,$C$29*(1+HLOOKUP($D$16,Līmeņatzīmes!$B$3:$AI$4,2,FALSE)))) -> 0 | M29: =IF(M24=" "," ",IF($C$29=" ",$CD$6*$C$9/12,$C$29*(1+HLOOKUP($D$16,Līmeņatzīmes!$B$3:$AI$4,2,FALSE)))) -> 0 | N29: =IF(N24=" "," ",IF($C$29=" ",$CD$6*$C$9/12,$C$29*(1+HLOOKUP($D$16,Līmeņatzīmes!$B$3:$AI$4,2,FALSE)))) -> 0 | O29: =IF(O24=" "," ",IF($C$29=" ",$CD$6*$C$9/12,$C$29*(1+HLOOKUP($D$16,Līmeņatzīmes!$B$3:$AI$4,2,FALSE)))) -> 0 | P29: =IF(P24=" "," ",IF($C$29=" ",$CD$6*$C$9/12,$C$29*(1+HLOOKUP($D$16,Līmeņatzīmes!$B$3:$AI$4,2,FALSE)))) -> 0 | Q29: =IF(OR(Q$18=" ",Q$18=0)," ",SUM(R29:AC29)) ->  | R29: =IF(R24=" "," ",IF($P$29=" ",$CD$6*$C$9/12,$P$29*(1+HLOOKUP($Q$16,Līmeņatzīmes!$B$3:$AI$4,2,FALSE)))) ->  | S29: =IF(S24=" "," ",IF($P$29=" ",$CD$6*$C$9/12,$P$29*(1+HLOOKUP($Q$16,Līmeņatzīmes!$B$3:$AI$4,2,FALSE)))) ->  | T29: =IF(T24=" "," ",IF($P$29=" ",$CD$6*$C$9/12,$P$29*(1+HLOOKUP($Q$16,Līmeņatzīmes!$B$3:$AI$4,2,FALSE)))) ->  | U29: =IF(U24=" "," ",IF($P$29=" ",$CD$6*$C$9/12,$P$29*(1+HLOOKUP($Q$16,Līmeņatzīmes!$B$3:$AI$4,2,FALSE)))) ->  | V29: =IF(V24=" "," ",IF($P$29=" ",$CD$6*$C$9/12,$P$29*(1+HLOOKUP($Q$16,Līmeņatzīmes!$B$3:$AI$4,2,FALSE)))) ->  | W29: =IF(W24=" "," ",IF($P$29=" ",$CD$6*$C$9/12,$P$29*(1+HLOOKUP($Q$16,Līmeņatzīmes!$B$3:$AI$4,2,FALSE)))) ->  | X29: =IF(X24=" "," ",IF($P$29=" ",$CD$6*$C$9/12,$P$29*(1+HLOOKUP($Q$16,Līmeņatzīmes!$B$3:$AI$4,2,FALSE)))) ->  | Y29: =IF(Y24=" "," ",IF($P$29=" ",$CD$6*$C$9/12,$P$29*(1+HLOOKUP($Q$16,Līmeņatzīmes!$B$3:$AI$4,2,FALSE)))) ->  | Z29: =IF(Z24=" "," ",IF($P$29=" ",$CD$6*$C$9/12,$P$29*(1+HLOOKUP($Q$16,Līmeņatzīmes!$B$3:$AI$4,2,FALSE)))) ->  | AA29: =IF(AA24=" "," ",IF($P$29=" ",$CD$6*$C$9/12,$P$29*(1+HLOOKUP($Q$16,Līmeņatzīmes!$B$3:$AI$4,2,FALSE)))) ->  | AB29: =IF(AB24=" "," ",IF($P$29=" ",$CD$6*$C$9/12,$P$29*(1+HLOOKUP($Q$16,Līmeņatzīmes!$B$3:$AI$4,2,FALSE)))) ->  | AC29: =IF(AC24=" "," ",IF($P$29=" ",$CD$6*$C$9/12,$P$29*(1+HLOOKUP($Q$16,Līmeņatzīmes!$B$3:$AI$4,2,FALSE)))) ->  | AD29: =IF(OR(AD$18=" ",AD$18=0)," ",SUM(AE29:AP29)) ->  | AE29: =IF(AE24=" "," ",IF($AC$29=" ",$CD$6*$C$9/12,$AC$29*(1+HLOOKUP($AD$16,Līmeņatzīmes!$B$3:$AI$4,2,FALSE)))) ->  | AF29: =IF(AF24=" "," ",IF($AC$29=" ",$CD$6*$C$9/12,$AC$29*(1+HLOOKUP($AD$16,Līmeņatzīmes!$B$3:$AI$4,2,FALSE)))) ->  | AG29: =IF(AG24=" "," ",IF($AC$29=" ",$CD$6*$C$9/12,$AC$29*(1+HLOOKUP($AD$16,Līmeņatzīmes!$B$3:$AI$4,2,FALSE)))) ->  | AH29: =IF(AH24=" "," ",IF($AC$29=" ",$CD$6*$C$9/12,$AC$29*(1+HLOOKUP($AD$16,Līmeņatzīmes!$B$3:$AI$4,2,FALSE)))) ->  | AI29: =IF(AI24=" "," ",IF($AC$29=" ",$CD$6*$C$9/12,$AC$29*(1+HLOOKUP($AD$16,Līmeņatzīmes!$B$3:$AI$4,2,FALSE)))) ->  | AJ29: =IF(AJ24=" "," ",IF($AC$29=" ",$CD$6*$C$9/12,$AC$29*(1+HLOOKUP($AD$16,Līmeņatzīmes!$B$3:$AI$4,2,FALSE)))) ->  | AK29: =IF(AK24=" "," ",IF($AC$29=" ",$CD$6*$C$9/12,$AC$29*(1+HLOOKUP($AD$16,Līmeņatzīmes!$B$3:$AI$4,2,FALSE)))) ->  | AL29: =IF(AL24=" "," ",IF($AC$29=" ",$CD$6*$C$9/12,$AC$29*(1+HLOOKUP($AD$16,Līmeņatzīmes!$B$3:$AI$4,2,FALSE)))) ->  | AM29: =IF(AM24=" "," ",IF($AC$29=" ",$CD$6*$C$9/12,$AC$29*(1+HLOOKUP($AD$16,Līmeņatzīmes!$B$3:$AI$4,2,FALSE)))) ->  | AN29: =IF(AN24=" "," ",IF($AC$29=" ",$CD$6*$C$9/12,$AC$29*(1+HLOOKUP($AD$16,Līmeņatzīmes!$B$3:$AI$4,2,FALSE)))) ->  | AO29: =IF(AO24=" "," ",IF($AC$29=" ",$CD$6*$C$9/12,$AC$29*(1+HLOOKUP($AD$16,Līmeņatzīmes!$B$3:$AI$4,2,FALSE)))) ->  | AP29: =IF(AP24=" "," ",IF($AC$29=" ",$CD$6*$C$9/12,$AC$29*(1+HLOOKUP($AD$16,Līmeņatzīmes!$B$3:$AI$4,2,FALSE)))) ->  | AQ29: =IF(OR(AQ$18=" ",AQ$18=0)," ",SUM(AR29:BC29)) ->  | AR29: =IF(AR24=" "," ",IF($AP$29=" ",$CD$6*$C$9/12,$AP$29*(1+HLOOKUP($AQ$16,Līmeņatzīmes!$B$3:$AI$4,2,FALSE)))) ->  | AS29: =IF(AS24=" "," ",IF($AP$29=" ",$CD$6*$C$9/12,$AP$29*(1+HLOOKUP($AQ$16,Līmeņatzīmes!$B$3:$AI$4,2,FALSE)))) ->  | AT29: =IF(AT24=" "," ",IF($AP$29=" ",$CD$6*$C$9/12,$AP$29*(1+HLOOKUP($AQ$16,Līmeņatzīmes!$B$3:$AI$4,2,FALSE)))) ->  | AU29: =IF(AU24=" "," ",IF($AP$29=" ",$CD$6*$C$9/12,$AP$29*(1+HLOOKUP($AQ$16,Līmeņatzīmes!$B$3:$AI$4,2,FALSE)))) ->  | AV29: =IF(AV24=" "," ",IF($AP$29=" ",$CD$6*$C$9/12,$AP$29*(1+HLOOKUP($AQ$16,Līmeņatzīmes!$B$3:$AI$4,2,FALSE)))) ->  | AW29: =IF(AW24=" "," ",IF($AP$29=" ",$CD$6*$C$9/12,$AP$29*(1+HLOOKUP($AQ$16,Līmeņatzīmes!$B$3:$AI$4,2,FALSE)))) ->  | AX29: =IF(AX24=" "," ",IF($AP$29=" ",$CD$6*$C$9/12,$AP$29*(1+HLOOKUP($AQ$16,Līmeņatzīmes!$B$3:$AI$4,2,FALSE)))) ->  | AY29: =IF(AY24=" "," ",IF($AP$29=" ",$CD$6*$C$9/12,$AP$29*(1+HLOOKUP($AQ$16,Līmeņatzīmes!$B$3:$AI$4,2,FALSE)))) ->  | AZ29: =IF(AZ24=" "," ",IF($AP$29=" ",$CD$6*$C$9/12,$AP$29*(1+HLOOKUP($AQ$16,Līmeņatzīmes!$B$3:$AI$4,2,FALSE)))) ->  | BA29: =IF(BA24=" "," ",IF($AP$29=" ",$CD$6*$C$9/12,$AP$29*(1+HLOOKUP($AQ$16,Līmeņatzīmes!$B$3:$AI$4,2,FALSE)))) ->  | BB29: =IF(BB24=" "," ",IF($AP$29=" ",$CD$6*$C$9/12,$AP$29*(1+HLOOKUP($AQ$16,Līmeņatzīmes!$B$3:$AI$4,2,FALSE)))) ->  | BC29: =IF(BC24=" "," ",IF($AP$29=" ",$CD$6*$C$9/12,$AP$29*(1+HLOOKUP($AQ$16,Līmeņatzīmes!$B$3:$AI$4,2,FALSE)))) ->  | BD29: =IF(OR(BD$18=" ",BD$18=0)," ",SUM(BE29:BP29)) ->  | BE29: =IF(BE24=" "," ",IF($BC$29=" ",$CD$6*$C$9/12,$BC$29*(1+HLOOKUP($BD$16,Līmeņatzīmes!$B$3:$AI$4,2,FALSE)))) ->  | BF29: =IF(BF24=" "," ",IF($BC$29=" ",$CD$6*$C$9/12,$BC$29*(1+HLOOKUP($BD$16,Līmeņatzīmes!$B$3:$AI$4,2,FALSE)))) ->  | BG29: =IF(BG24=" "," ",IF($BC$29=" ",$CD$6*$C$9/12,$BC$29*(1+HLOOKUP($BD$16,Līmeņatzīmes!$B$3:$AI$4,2,FALSE)))) ->  | BH29: =IF(BH24=" "," ",IF($BC$29=" ",$CD$6*$C$9/12,$BC$29*(1+HLOOKUP($BD$16,Līmeņatzīmes!$B$3:$AI$4,2,FALSE)))) ->  | BI29: =IF(BI24=" "," ",IF($BC$29=" ",$CD$6*$C$9/12,$BC$29*(1+HLOOKUP($BD$16,Līmeņatzīmes!$B$3:$AI$4,2,FALSE)))) ->  | BJ29: =IF(BJ24=" "," ",IF($BC$29=" ",$CD$6*$C$9/12,$BC$29*(1+HLOOKUP($BD$16,Līmeņatzīmes!$B$3:$AI$4,2,FALSE)))) ->  | BK29: =IF(BK24=" "," ",IF($BC$29=" ",$CD$6*$C$9/12,$BC$29*(1+HLOOKUP($BD$16,Līmeņatzīmes!$B$3:$AI$4,2,FALSE)))) ->  | BL29: =IF(BL24=" "," ",IF($BC$29=" ",$CD$6*$C$9/12,$BC$29*(1+HLOOKUP($BD$16,Līmeņatzīmes!$B$3:$AI$4,2,FALSE)))) ->  | BM29: =IF(BM24=" "," ",IF($BC$29=" ",$CD$6*$C$9/12,$BC$29*(1+HLOOKUP($BD$16,Līmeņatzīmes!$B$3:$AI$4,2,FALSE)))) ->  | BN29: =IF(BN24=" "," ",IF($BC$29=" ",$CD$6*$C$9/12,$BC$29*(1+HLOOKUP($BD$16,Līmeņatzīmes!$B$3:$AI$4,2,FALSE)))) ->  | BO29: =IF(BO24=" "," ",IF($BC$29=" ",$CD$6*$C$9/12,$BC$29*(1+HLOOKUP($BD$16,Līmeņatzīmes!$B$3:$AI$4,2,FALSE)))) ->  | BP29: =IF(BP24=" "," ",IF($BC$29=" ",$CD$6*$C$9/12,$BC$29*(1+HLOOKUP($BD$16,Līmeņatzīmes!$B$3:$AI$4,2,FALSE)))) ->  | BQ29: =IF(OR(BQ$18=" ",BQ$18=0)," ",SUM(BR29:CC29)) ->  | BR29: =IF(BR24=" "," ",IF($BP$29=" ",$CD$6*$C$9/12,$BP$29*(1+HLOOKUP($BQ$16,Līmeņatzīmes!$B$3:$AI$4,2,FALSE)))) ->  | BS29: =IF(BS24=" "," ",IF($BP$29=" ",$CD$6*$C$9/12,$BP$29*(1+HLOOKUP($BQ$16,Līmeņatzīmes!$B$3:$AI$4,2,FALSE)))) ->  | BT29: =IF(BT24=" "," ",IF($BP$29=" ",$CD$6*$C$9/12,$BP$29*(1+HLOOKUP($BQ$16,Līmeņatzīmes!$B$3:$AI$4,2,FALSE)))) ->  | BU29: =IF(BU24=" "," ",IF($BP$29=" ",$CD$6*$C$9/12,$BP$29*(1+HLOOKUP($BQ$16,Līmeņatzīmes!$B$3:$AI$4,2,FALSE)))) ->  | BV29: =IF(BV24=" "," ",IF($BP$29=" ",$CD$6*$C$9/12,$BP$29*(1+HLOOKUP($BQ$16,Līmeņatzīmes!$B$3:$AI$4,2,FALSE)))) ->  | BW29: =IF(BW24=" "," ",IF($BP$29=" ",$CD$6*$C$9/12,$BP$29*(1+HLOOKUP($BQ$16,Līmeņatzīmes!$B$3:$AI$4,2,FALSE)))) ->  | BX29: =IF(BX24=" "," ",IF($BP$29=" ",$CD$6*$C$9/12,$BP$29*(1+HLOOKUP($BQ$16,Līmeņatzīmes!$B$3:$AI$4,2,FALSE)))) ->  | BY29: =IF(BY24=" "," ",IF($BP$29=" ",$CD$6*$C$9/12,$BP$29*(1+HLOOKUP($BQ$16,Līmeņatzīmes!$B$3:$AI$4,2,FALSE)))) ->  | BZ29: =IF(BZ24=" "," ",IF($BP$29=" ",$CD$6*$C$9/12,$BP$29*(1+HLOOKUP($BQ$16,Līmeņatzīmes!$B$3:$AI$4,2,FALSE)))) ->  | CA29: =IF(CA24=" "," ",IF($BP$29=" ",$CD$6*$C$9/12,$BP$29*(1+HLOOKUP($BQ$16,Līmeņatzīmes!$B$3:$AI$4,2,FALSE)))) ->  | CB29: =IF(CB24=" "," ",IF($BP$29=" ",$CD$6*$C$9/12,$BP$29*(1+HLOOKUP($BQ$16,Līmeņatzīmes!$B$3:$AI$4,2,FALSE)))) ->  | CC29: =IF(CC24=" "," ",IF($BP$29=" ",$CD$6*$C$9/12,$BP$29*(1+HLOOKUP($BQ$16,Līmeņatzīmes!$B$3:$AI$4,2,FALSE)))) ->  | CD29: =IF(OR(CD$18=" ",CD$18=0)," ",SUM(CE29:CP29)) ->  | CE29: =IF(CE24=" "," ",IF($CC$29=" ",$CD$6*$C$9/12,$CC$29*(1+HLOOKUP($CD$16,Līmeņatzīmes!$B$3:$AI$4,2,FALSE)))) ->  | CF29: =IF(CF24=" "," ",IF($CC$29=" ",$CD$6*$C$9/12,$CC$29*(1+HLOOKUP($CD$16,Līmeņatzīmes!$B$3:$AI$4,2,FALSE)))) ->  | CG29: =IF(CG24=" "," ",IF($CC$29=" ",$CD$6*$C$9/12,$CC$29*(1+HLOOKUP($CD$16,Līmeņatzīmes!$B$3:$AI$4,2,FALSE)))) ->  | CH29: =IF(CH24=" "," ",IF($CC$29=" ",$CD$6*$C$9/12,$CC$29*(1+HLOOKUP($CD$16,Līmeņatzīmes!$B$3:$AI$4,2,FALSE)))) ->  | CI29: =IF(CI24=" "," ",IF($CC$29=" ",$CD$6*$C$9/12,$CC$29*(1+HLOOKUP($CD$16,Līmeņatzīmes!$B$3:$AI$4,2,FALSE)))) ->  | CJ29: =IF(CJ24=" "," ",IF($CC$29=" ",$CD$6*$C$9/12,$CC$29*(1+HLOOKUP($CD$16,Līmeņatzīmes!$B$3:$AI$4,2,FALSE)))) ->  | CK29: =IF(CK24=" "," ",IF($CC$29=" ",$CD$6*$C$9/12,$CC$29*(1+HLOOKUP($CD$16,Līmeņatzīmes!$B$3:$AI$4,2,FALSE)))) ->  | CL29: =IF(CL24=" "," ",IF($CC$29=" ",$CD$6*$C$9/12,$CC$29*(1+HLOOKUP($CD$16,Līmeņatzīmes!$B$3:$AI$4,2,FALSE)))) ->  | CM29: =IF(CM24=" "," ",IF($CC$29=" ",$CD$6*$C$9/12,$CC$29*(1+HLOOKUP($CD$16,Līmeņatzīmes!$B$3:$AI$4,2,FALSE)))) ->  | CN29: =IF(CN24=" "," ",IF($CC$29=" ",$CD$6*$C$9/12,$CC$29*(1+HLOOKUP($CD$16,Līmeņatzīmes!$B$3:$AI$4,2,FALSE)))) ->  | CO29: =IF(CO24=" "," ",IF($CC$29=" ",$CD$6*$C$9/12,$CC$29*(1+HLOOKUP($CD$16,Līmeņatzīmes!$B$3:$AI$4,2,FALSE)))) ->  | CP29: =IF(CP24=" "," ",IF($CC$29=" ",$CD$6*$C$9/12,$CC$29*(1+HLOOKUP($CD$16,Līmeņatzīmes!$B$3:$AI$4,2,FALSE)))) ->  | CQ29: =IF(OR(CQ$18=" ",CQ$18=0)," ",SUM(CR29:DC29)) ->  | CR29: =IF(CR24=" "," ",IF($CP$29=" ",$CD$6*$C$9/12,$CP$29*(1+HLOOKUP($CQ$16,Līmeņatzīmes!$B$3:$AI$4,2,FALSE)))) ->  | CS29: =IF(CS24=" "," ",IF($CP$29=" ",$CD$6*$C$9/12,$CP$29*(1+HLOOKUP($CQ$16,Līmeņatzīmes!$B$3:$AI$4,2,FALSE)))) ->  | CT29: =IF(CT24=" "," ",IF($CP$29=" ",$CD$6*$C$9/12,$CP$29*(1+HLOOKUP($CQ$16,Līmeņatzīmes!$B$3:$AI$4,2,FALSE)))) ->  | CU29: =IF(CU24=" "," ",IF($CP$29=" ",$CD$6*$C$9/12,$CP$29*(1+HLOOKUP($CQ$16,Līmeņatzīmes!$B$3:$AI$4,2,FALSE)))) ->  | CV29: =IF(CV24=" "," ",IF($CP$29=" ",$CD$6*$C$9/12,$CP$29*(1+HLOOKUP($CQ$16,Līmeņatzīmes!$B$3:$AI$4,2,FALSE)))) ->  | CW29: =IF(CW24=" "," ",IF($CP$29=" ",$CD$6*$C$9/12,$CP$29*(1+HLOOKUP($CQ$16,Līmeņatzīmes!$B$3:$AI$4,2,FALSE)))) ->  | CX29: =IF(CX24=" "," ",IF($CP$29=" ",$CD$6*$C$9/12,$CP$29*(1+HLOOKUP($CQ$16,Līmeņatzīmes!$B$3:$AI$4,2,FALSE)))) ->  | CY29: =IF(CY24=" "," ",IF($CP$29=" ",$CD$6*$C$9/12,$CP$29*(1+HLOOKUP($CQ$16,Līmeņatzīmes!$B$3:$AI$4,2,FALSE)))) ->  | CZ29: =IF(CZ24=" "," ",IF($CP$29=" ",$CD$6*$C$9/12,$CP$29*(1+HLOOKUP($CQ$16,Līmeņatzīmes!$B$3:$AI$4,2,FALSE)))) ->  | DA29: =IF(DA24=" "," ",IF($CP$29=" ",$CD$6*$C$9/12,$CP$29*(1+HLOOKUP($CQ$16,Līmeņatzīmes!$B$3:$AI$4,2,FALSE)))) ->  | DB29: =IF(DB24=" "," ",IF($CP$29=" ",$CD$6*$C$9/12,$CP$29*(1+HLOOKUP($CQ$16,Līmeņatzīmes!$B$3:$AI$4,2,FALSE)))) ->  | DC29: =IF(DC24=" "," ",IF($CP$29=" ",$CD$6*$C$9/12,$CP$29*(1+HLOOKUP($CQ$16,Līmeņatzīmes!$B$3:$AI$4,2,FALSE)))) ->  | DD29: =IF(OR(DD$18=" ",DD$18=0)," ",SUM(DE29:DP29)) ->  | DE29: =IF(DE24=" "," ",IF($DC$29=" ",$CD$6*$C$9/12,$DC$29*(1+HLOOKUP($DD$16,Līmeņatzīmes!$B$3:$AI$4,2,FALSE)))) ->  | DF29: =IF(DF24=" "," ",IF($DC$29=" ",$CD$6*$C$9/12,$DC$29*(1+HLOOKUP($DD$16,Līmeņatzīmes!$B$3:$AI$4,2,FALSE)))) ->  | DG29: =IF(DG24=" "," ",IF($DC$29=" ",$CD$6*$C$9/12,$DC$29*(1+HLOOKUP($DD$16,Līmeņatzīmes!$B$3:$AI$4,2,FALSE)))) ->  | DH29: =IF(DH24=" "," ",IF($DC$29=" ",$CD$6*$C$9/12,$DC$29*(1+HLOOKUP($DD$16,Līmeņatzīmes!$B$3:$AI$4,2,FALSE)))) ->  | DI29: =IF(DI24=" "," ",IF($DC$29=" ",$CD$6*$C$9/12,$DC$29*(1+HLOOKUP($DD$16,Līmeņatzīmes!$B$3:$AI$4,2,FALSE)))) ->  | DJ29: =IF(DJ24=" "," ",IF($DC$29=" ",$CD$6*$C$9/12,$DC$29*(1+HLOOKUP($DD$16,Līmeņatzīmes!$B$3:$AI$4,2,FALSE)))) ->  | DK29: =IF(DK24=" "," ",IF($DC$29=" ",$CD$6*$C$9/12,$DC$29*(1+HLOOKUP($DD$16,Līmeņatzīmes!$B$3:$AI$4,2,FALSE)))) ->  | DL29: =IF(DL24=" "," ",IF($DC$29=" ",$CD$6*$C$9/12,$DC$29*(1+HLOOKUP($DD$16,Līmeņatzīmes!$B$3:$AI$4,2,FALSE)))) ->  | DM29: =IF(DM24=" "," ",IF($DC$29=" ",$CD$6*$C$9/12,$DC$29*(1+HLOOKUP($DD$16,Līmeņatzīmes!$B$3:$AI$4,2,FALSE)))) ->  | DN29: =IF(DN24=" "," ",IF($DC$29=" ",$CD$6*$C$9/12,$DC$29*(1+HLOOKUP($DD$16,Līmeņatzīmes!$B$3:$AI$4,2,FALSE)))) ->  | DO29: =IF(DO24=" "," ",IF($DC$29=" ",$CD$6*$C$9/12,$DC$29*(1+HLOOKUP($DD$16,Līmeņatzīmes!$B$3:$AI$4,2,FALSE)))) ->  | DP29: =IF(DP24=" "," ",IF($DC$29=" ",$CD$6*$C$9/12,$DC$29*(1+HLOOKUP($DD$16,Līmeņatzīmes!$B$3:$AI$4,2,FALSE)))) ->  | DQ29: =IF(OR(DQ$18=" ",DQ$18=0)," ",SUM(DR29:EC29)) ->  | DR29: =IF(DR24=" "," ",IF($DP$29=" ",$CD$6*$C$9/12,$DP$29*(1+HLOOKUP($DQ$16,Līmeņatzīmes!$B$3:$AI$4,2,FALSE)))) ->  | DS29: =IF(DS24=" "," ",IF($DP$29=" ",$CD$6*$C$9/12,$DP$29*(1+HLOOKUP($DQ$16,Līmeņatzīmes!$B$3:$AI$4,2,FALSE)))) ->  | DT29: =IF(DT24=" "," ",IF($DP$29=" ",$CD$6*$C$9/12,$DP$29*(1+HLOOKUP($DQ$16,Līmeņatzīmes!$B$3:$AI$4,2,FALSE)))) ->  | DU29: =IF(DU24=" "," ",IF($DP$29=" ",$CD$6*$C$9/12,$DP$29*(1+HLOOKUP($DQ$16,Līmeņatzīmes!$B$3:$AI$4,2,FALSE)))) ->  | DV29: =IF(DV24=" "," ",IF($DP$29=" ",$CD$6*$C$9/12,$DP$29*(1+HLOOKUP($DQ$16,Līmeņatzīmes!$B$3:$AI$4,2,FALSE)))) ->  | DW29: =IF(DW24=" "," ",IF($DP$29=" ",$CD$6*$C$9/12,$DP$29*(1+HLOOKUP($DQ$16,Līmeņatzīmes!$B$3:$AI$4,2,FALSE)))) ->  | DX29: =IF(DX24=" "," ",IF($DP$29=" ",$CD$6*$C$9/12,$DP$29*(1+HLOOKUP($DQ$16,Līmeņatzīmes!$B$3:$AI$4,2,FALSE)))) ->  | DY29: =IF(DY24=" "," ",IF($DP$29=" ",$CD$6*$C$9/12,$DP$29*(1+HLOOKUP($DQ$16,Līmeņatzīmes!$B$3:$AI$4,2,FALSE)))) ->  | DZ29: =IF(DZ24=" "," ",IF($DP$29=" ",$CD$6*$C$9/12,$DP$29*(1+HLOOKUP($DQ$16,Līmeņatzīmes!$B$3:$AI$4,2,FALSE)))) ->  | EA29: =IF(EA24=" "," ",IF($DP$29=" ",$CD$6*$C$9/12,$DP$29*(1+HLOOKUP($DQ$16,Līmeņatzīmes!$B$3:$AI$4,2,FALSE)))) ->  | EB29: =IF(EB24=" "," ",IF($DP$29=" ",$CD$6*$C$9/12,$DP$29*(1+HLOOKUP($DQ$16,Līmeņatzīmes!$B$3:$AI$4,2,FALSE)))) ->  | EC29: =IF(EC24=" "," ",IF($DP$29=" ",$CD$6*$C$9/12,$DP$29*(1+HLOOKUP($DQ$16,Līmeņatzīmes!$B$3:$AI$4,2,FALSE)))) ->  | ED29: =IF(OR(ED$18=" ",ED$18=0)," ",SUM(EE29:EP29)) ->  | EE29: =IF(EE24=" "," ",IF($EC$29=" ",$CD$6*$C$9/12,$EC$29*(1+HLOOKUP($ED$16,Līmeņatzīmes!$B$3:$AI$4,2,FALSE)))) ->  | EF29: =IF(EF24=" "," ",IF($EC$29=" ",$CD$6*$C$9/12,$EC$29*(1+HLOOKUP($ED$16,Līmeņatzīmes!$B$3:$AI$4,2,FALSE)))) ->  | EG29: =IF(EG24=" "," ",IF($EC$29=" ",$CD$6*$C$9/12,$EC$29*(1+HLOOKUP($ED$16,Līmeņatzīmes!$B$3:$AI$4,2,FALSE)))) ->  | EH29: =IF(EH24=" "," ",IF($EC$29=" ",$CD$6*$C$9/12,$EC$29*(1+HLOOKUP($ED$16,Līmeņatzīmes!$B$3:$AI$4,2,FALSE)))) ->  | EI29: =IF(EI24=" "," ",IF($EC$29=" ",$CD$6*$C$9/12,$EC$29*(1+HLOOKUP($ED$16,Līmeņatzīmes!$B$3:$AI$4,2,FALSE)))) ->  | EJ29: =IF(EJ24=" "," ",IF($EC$29=" ",$CD$6*$C$9/12,$EC$29*(1+HLOOKUP($ED$16,Līmeņatzīmes!$B$3:$AI$4,2,FALSE)))) ->  | EK29: =IF(EK24=" "," ",IF($EC$29=" ",$CD$6*$C$9/12,$EC$29*(1+HLOOKUP($ED$16,Līmeņatzīmes!$B$3:$AI$4,2,FALSE)))) ->  | EL29: =IF(EL24=" "," ",IF($EC$29=" ",$CD$6*$C$9/12,$EC$29*(1+HLOOKUP($ED$16,Līmeņatzīmes!$B$3:$AI$4,2,FALSE)))) ->  | EM29: =IF(EM24=" "," ",IF($EC$29=" ",$CD$6*$C$9/12,$EC$29*(1+HLOOKUP($ED$16,Līmeņatzīmes!$B$3:$AI$4,2,FALSE)))) ->  | EN29: =IF(EN24=" "," ",IF($EC$29=" ",$CD$6*$C$9/12,$EC$29*(1+HLOOKUP($ED$16,Līmeņatzīmes!$B$3:$AI$4,2,FALSE)))) ->  | EO29: =IF(EO24=" "," ",IF($EC$29=" ",$CD$6*$C$9/12,$EC$29*(1+HLOOKUP($ED$16,Līmeņatzīmes!$B$3:$AI$4,2,FALSE)))) ->  | EP29: =IF(EP24=" "," ",IF($EC$29=" ",$CD$6*$C$9/12,$EC$29*(1+HLOOKUP($ED$16,Līmeņatzīmes!$B$3:$AI$4,2,FALSE)))) ->  | EQ29: =IF(OR(EQ$18=" ",EQ$18=0)," ",SUM(ER29:FC29)) ->  | ER29: =IF(ER24=" "," ",IF($EP$29=" ",$CD$6*$C$9/12,$EP$29*(1+HLOOKUP($EQ$16,Līmeņatzīmes!$B$3:$AI$4,2,FALSE)))) ->  | ES29: =IF(ES24=" "," ",IF($EP$29=" ",$CD$6*$C$9/12,$EP$29*(1+HLOOKUP($EQ$16,Līmeņatzīmes!$B$3:$AI$4,2,FALSE)))) ->  | ET29: =IF(ET24=" "," ",IF($EP$29=" ",$CD$6*$C$9/12,$EP$29*(1+HLOOKUP($EQ$16,Līmeņatzīmes!$B$3:$AI$4,2,FALSE)))) ->  | EU29: =IF(EU24=" "," ",IF($EP$29=" ",$CD$6*$C$9/12,$EP$29*(1+HLOOKUP($EQ$16,Līmeņatzīmes!$B$3:$AI$4,2,FALSE)))) ->  | EV29: =IF(EV24=" "," ",IF($EP$29=" ",$CD$6*$C$9/12,$EP$29*(1+HLOOKUP($EQ$16,Līmeņatzīmes!$B$3:$AI$4,2,FALSE)))) ->  | EW29: =IF(EW24=" "," ",IF($EP$29=" ",$CD$6*$C$9/12,$EP$29*(1+HLOOKUP($EQ$16,Līmeņatzīmes!$B$3:$AI$4,2,FALSE)))) ->  | EX29: =IF(EX24=" "," ",IF($EP$29=" ",$CD$6*$C$9/12,$EP$29*(1+HLOOKUP($EQ$16,Līmeņatzīmes!$B$3:$AI$4,2,FALSE)))) ->  | EY29: =IF(EY24=" "," ",IF($EP$29=" ",$CD$6*$C$9/12,$EP$29*(1+HLOOKUP($EQ$16,Līmeņatzīmes!$B$3:$AI$4,2,FALSE)))) ->  | EZ29: =IF(EZ24=" "," ",IF($EP$29=" ",$CD$6*$C$9/12,$EP$29*(1+HLOOKUP($EQ$16,Līmeņatzīmes!$B$3:$AI$4,2,FALSE)))) ->  | FA29: =IF(FA24=" "," ",IF($EP$29=" ",$CD$6*$C$9/12,$EP$29*(1+HLOOKUP($EQ$16,Līmeņatzīmes!$B$3:$AI$4,2,FALSE)))) ->  | FB29: =IF(FB24=" "," ",IF($EP$29=" ",$CD$6*$C$9/12,$EP$29*(1+HLOOKUP($EQ$16,Līmeņatzīmes!$B$3:$AI$4,2,FALSE)))) ->  | FC29: =IF(FC24=" "," ",IF($EP$29=" ",$CD$6*$C$9/12,$EP$29*(1+HLOOKUP($EQ$16,Līmeņatzīmes!$B$3:$AI$4,2,FALSE)))) ->  | FD29: =IF(OR(FD$18=" ",FD$18=0)," ",SUM(FE29:FP29)) ->  | FE29: =IF(FE24=" "," ",IF($FC$29=" ",$CD$6*$C$9/12,$FC$29*(1+HLOOKUP($FD$16,Līmeņatzīmes!$B$3:$AI$4,2,FALSE)))) ->  | FF29: =IF(FF24=" "," ",IF($FC$29=" ",$CD$6*$C$9/12,$FC$29*(1+HLOOKUP($FD$16,Līmeņatzīmes!$B$3:$AI$4,2,FALSE)))) ->  | FG29: =IF(FG24=" "," ",IF($FC$29=" ",$CD$6*$C$9/12,$FC$29*(1+HLOOKUP($FD$16,Līmeņatzīmes!$B$3:$AI$4,2,FALSE)))) ->  | FH29: =IF(FH24=" "," ",IF($FC$29=" ",$CD$6*$C$9/12,$FC$29*(1+HLOOKUP($FD$16,Līmeņatzīmes!$B$3:$AI$4,2,FALSE)))) ->  | FI29: =IF(FI24=" "," ",IF($FC$29=" ",$CD$6*$C$9/12,$FC$29*(1+HLOOKUP($FD$16,Līmeņatzīmes!$B$3:$AI$4,2,FALSE)))) ->  | FJ29: =IF(FJ24=" "," ",IF($FC$29=" ",$CD$6*$C$9/12,$FC$29*(1+HLOOKUP($FD$16,Līmeņatzīmes!$B$3:$AI$4,2,FALSE)))) ->  | FK29: =IF(FK24=" "," ",IF($FC$29=" ",$CD$6*$C$9/12,$FC$29*(1+HLOOKUP($FD$16,Līmeņatzīmes!$B$3:$AI$4,2,FALSE)))) ->  | FL29: =IF(FL24=" "," ",IF($FC$29=" ",$CD$6*$C$9/12,$FC$29*(1+HLOOKUP($FD$16,Līmeņatzīmes!$B$3:$AI$4,2,FALSE)))) ->  | FM29: =IF(FM24=" "," ",IF($FC$29=" ",$CD$6*$C$9/12,$FC$29*(1+HLOOKUP($FD$16,Līmeņatzīmes!$B$3:$AI$4,2,FALSE)))) ->  | FN29: =IF(FN24=" "," ",IF($FC$29=" ",$CD$6*$C$9/12,$FC$29*(1+HLOOKUP($FD$16,Līmeņatzīmes!$B$3:$AI$4,2,FALSE)))) ->  | FO29: =IF(FO24=" "," ",IF($FC$29=" ",$CD$6*$C$9/12,$FC$29*(1+HLOOKUP($FD$16,Līmeņatzīmes!$B$3:$AI$4,2,FALSE)))) ->  | FP29: =IF(FP24=" "," ",IF($FC$29=" ",$CD$6*$C$9/12,$FC$29*(1+HLOOKUP($FD$16,Līmeņatzīmes!$B$3:$AI$4,2,FALSE)))) ->  | FQ29: =IF(OR(FQ$18=" ",FQ$18=0)," ",SUM(FR29:GC29)) ->  | FR29: =IF(FR24=" "," ",IF($FP$29=" ",$CD$6*$C$9/12,$FP$29*(1+HLOOKUP($FQ$16,Līmeņatzīmes!$B$3:$AI$4,2,FALSE)))) ->  | FS29: =IF(FS24=" "," ",IF($FP$29=" ",$CD$6*$C$9/12,$FP$29*(1+HLOOKUP($FQ$16,Līmeņatzīmes!$B$3:$AI$4,2,FALSE)))) ->  | FT29: =IF(FT24=" "," ",IF($FP$29=" ",$CD$6*$C$9/12,$FP$29*(1+HLOOKUP($FQ$16,Līmeņatzīmes!$B$3:$AI$4,2,FALSE)))) ->  | FU29: =IF(FU24=" "," ",IF($FP$29=" ",$CD$6*$C$9/12,$FP$29*(1+HLOOKUP($FQ$16,Līmeņatzīmes!$B$3:$AI$4,2,FALSE)))) ->  | FV29: =IF(FV24=" "," ",IF($FP$29=" ",$CD$6*$C$9/12,$FP$29*(1+HLOOKUP($FQ$16,Līmeņatzīmes!$B$3:$AI$4,2,FALSE)))) ->  | FW29: =IF(FW24=" "," ",IF($FP$29=" ",$CD$6*$C$9/12,$FP$29*(1+HLOOKUP($FQ$16,Līmeņatzīmes!$B$3:$AI$4,2,FALSE)))) ->  | FX29: =IF(FX24=" "," ",IF($FP$29=" ",$CD$6*$C$9/12,$FP$29*(1+HLOOKUP($FQ$16,Līmeņatzīmes!$B$3:$AI$4,2,FALSE)))) ->  | FY29: =IF(FY24=" "," ",IF($FP$29=" ",$CD$6*$C$9/12,$FP$29*(1+HLOOKUP($FQ$16,Līmeņatzīmes!$B$3:$AI$4,2,FALSE)))) ->  | FZ29: =IF(FZ24=" "," ",IF($FP$29=" ",$CD$6*$C$9/12,$FP$29*(1+HLOOKUP($FQ$16,Līmeņatzīmes!$B$3:$AI$4,2,FALSE)))) ->  | GA29: =IF(GA24=" "," ",IF($FP$29=" ",$CD$6*$C$9/12,$FP$29*(1+HLOOKUP($FQ$16,Līmeņatzīmes!$B$3:$AI$4,2,FALSE)))) ->  | GB29: =IF(GB24=" "," ",IF($FP$29=" ",$CD$6*$C$9/12,$FP$29*(1+HLOOKUP($FQ$16,Līmeņatzīmes!$B$3:$AI$4,2,FALSE)))) ->  | GC29: =IF(GC24=" "," ",IF($FP$29=" ",$CD$6*$C$9/12,$FP$29*(1+HLOOKUP($FQ$16,Līmeņatzīmes!$B$3:$AI$4,2,FALSE)))) ->  | GD29: =IF(OR(GD$18=" ",GD$18=0)," ",SUM(GE29:GP29)) ->  | GE29: =IF(GE24=" "," ",IF($GC$29=" ",$CD$6*$C$9/12,$GC$29*(1+HLOOKUP($GD$16,Līmeņatzīmes!$B$3:$AI$4,2,FALSE)))) ->  | GF29: =IF(GF24=" "," ",IF($GC$29=" ",$CD$6*$C$9/12,$GC$29*(1+HLOOKUP($GD$16,Līmeņatzīmes!$B$3:$AI$4,2,FALSE)))) ->  | GG29: =IF(GG24=" "," ",IF($GC$29=" ",$CD$6*$C$9/12,$GC$29*(1+HLOOKUP($GD$16,Līmeņatzīmes!$B$3:$AI$4,2,FALSE)))) ->  | GH29: =IF(GH24=" "," ",IF($GC$29=" ",$CD$6*$C$9/12,$GC$29*(1+HLOOKUP($GD$16,Līmeņatzīmes!$B$3:$AI$4,2,FALSE)))) ->  | GI29: =IF(GI24=" "," ",IF($GC$29=" ",$CD$6*$C$9/12,$GC$29*(1+HLOOKUP($GD$16,Līmeņatzīmes!$B$3:$AI$4,2,FALSE)))) ->  | GJ29: =IF(GJ24=" "," ",IF($GC$29=" ",$CD$6*$C$9/12,$GC$29*(1+HLOOKUP($GD$16,Līmeņatzīmes!$B$3:$AI$4,2,FALSE)))) ->  | GK29: =IF(GK24=" "," ",IF($GC$29=" ",$CD$6*$C$9/12,$GC$29*(1+HLOOKUP($GD$16,Līmeņatzīmes!$B$3:$AI$4,2,FALSE)))) ->  | GL29: =IF(GL24=" "," ",IF($GC$29=" ",$CD$6*$C$9/12,$GC$29*(1+HLOOKUP($GD$16,Līmeņatzīmes!$B$3:$AI$4,2,FALSE)))) ->  | GM29: =IF(GM24=" "," ",IF($GC$29=" ",$CD$6*$C$9/12,$GC$29*(1+HLOOKUP($GD$16,Līmeņatzīmes!$B$3:$AI$4,2,FALSE)))) ->  | GN29: =IF(GN24=" "," ",IF($GC$29=" ",$CD$6*$C$9/12,$GC$29*(1+HLOOKUP($GD$16,Līmeņatzīmes!$B$3:$AI$4,2,FALSE)))) ->  | GO29: =IF(GO24=" "," ",IF($GC$29=" ",$CD$6*$C$9/12,$GC$29*(1+HLOOKUP($GD$16,Līmeņatzīmes!$B$3:$AI$4,2,FALSE)))) ->  | GP29: =IF(GP24=" "," ",IF($GC$29=" ",$CD$6*$C$9/12,$GC$29*(1+HLOOKUP($GD$16,Līmeņatzīmes!$B$3:$AI$4,2,FALSE)))) ->  | GQ29: =IF(OR(GQ$18=" ",GQ$18=0)," ",SUM(GR29:HC29)) ->  | GR29: =IF(GR24=" "," ",IF($GP$29=" ",$CD$6*$C$9/12,$GP$29*(1+HLOOKUP($GQ$16,Līmeņatzīmes!$B$3:$AI$4,2,FALSE)))) ->  | GS29: =IF(GS24=" "," ",IF($GP$29=" ",$CD$6*$C$9/12,$GP$29*(1+HLOOKUP($GQ$16,Līmeņatzīmes!$B$3:$AI$4,2,FALSE)))) ->  | GT29: =IF(GT24=" "," ",IF($GP$29=" ",$CD$6*$C$9/12,$GP$29*(1+HLOOKUP($GQ$16,Līmeņatzīmes!$B$3:$AI$4,2,FALSE)))) ->  | GU29: =IF(GU24=" "," ",IF($GP$29=" ",$CD$6*$C$9/12,$GP$29*(1+HLOOKUP($GQ$16,Līmeņatzīmes!$B$3:$AI$4,2,FALSE)))) ->  | GV29: =IF(GV24=" "," ",IF($GP$29=" ",$CD$6*$C$9/12,$GP$29*(1+HLOOKUP($GQ$16,Līmeņatzīmes!$B$3:$AI$4,2,FALSE)))) ->  | GW29: =IF(GW24=" "," ",IF($GP$29=" ",$CD$6*$C$9/12,$GP$29*(1+HLOOKUP($GQ$16,Līmeņatzīmes!$B$3:$AI$4,2,FALSE)))) ->  | GX29: =IF(GX24=" "," ",IF($GP$29=" ",$CD$6*$C$9/12,$GP$29*(1+HLOOKUP($GQ$16,Līmeņatzīmes!$B$3:$AI$4,2,FALSE)))) ->  | GY29: =IF(GY24=" "," ",IF($GP$29=" ",$CD$6*$C$9/12,$GP$29*(1+HLOOKUP($GQ$16,Līmeņatzīmes!$B$3:$AI$4,2,FALSE)))) ->  | GZ29: =IF(GZ24=" "," ",IF($GP$29=" ",$CD$6*$C$9/12,$GP$29*(1+HLOOKUP($GQ$16,Līmeņatzīmes!$B$3:$AI$4,2,FALSE)))) ->  | HA29: =IF(HA24=" "," ",IF($GP$29=" ",$CD$6*$C$9/12,$GP$29*(1+HLOOKUP($GQ$16,Līmeņatzīmes!$B$3:$AI$4,2,FALSE)))) ->  | HB29: =IF(HB24=" "," ",IF($GP$29=" ",$CD$6*$C$9/12,$GP$29*(1+HLOOKUP($GQ$16,Līmeņatzīmes!$B$3:$AI$4,2,FALSE)))) ->  | HC29: =IF(HC24=" "," ",IF($GP$29=" ",$CD$6*$C$9/12,$GP$29*(1+HLOOKUP($GQ$16,Līmeņatzīmes!$B$3:$AI$4,2,FALSE)))) ->  | HD29: =IF(OR(HD$18=" ",HD$18=0)," ",SUM(HE29:HP29)) ->  | HE29: =IF(HE24=" "," ",IF($HC$29=" ",$CD$6*$C$9/12,$HC$29*(1+HLOOKUP($HD$16,Līmeņatzīmes!$B$3:$AI$4,2,FALSE)))) ->  | HF29: =IF(HF24=" "," ",IF($HC$29=" ",$CD$6*$C$9/12,$HC$29*(1+HLOOKUP($HD$16,Līmeņatzīmes!$B$3:$AI$4,2,FALSE)))) ->  | HG29: =IF(HG24=" "," ",IF($HC$29=" ",$CD$6*$C$9/12,$HC$29*(1+HLOOKUP($HD$16,Līmeņatzīmes!$B$3:$AI$4,2,FALSE)))) ->  | HH29: =IF(HH24=" "," ",IF($HC$29=" ",$CD$6*$C$9/12,$HC$29*(1+HLOOKUP($HD$16,Līmeņatzīmes!$B$3:$AI$4,2,FALSE)))) ->  | HI29: =IF(HI24=" "," ",IF($HC$29=" ",$CD$6*$C$9/12,$HC$29*(1+HLOOKUP($HD$16,Līmeņatzīmes!$B$3:$AI$4,2,FALSE)))) ->  | HJ29: =IF(HJ24=" "," ",IF($HC$29=" ",$CD$6*$C$9/12,$HC$29*(1+HLOOKUP($HD$16,Līmeņatzīmes!$B$3:$AI$4,2,FALSE)))) ->  | HK29: =IF(HK24=" "," ",IF($HC$29=" ",$CD$6*$C$9/12,$HC$29*(1+HLOOKUP($HD$16,Līmeņatzīmes!$B$3:$AI$4,2,FALSE)))) ->  | HL29: =IF(HL24=" "," ",IF($HC$29=" ",$CD$6*$C$9/12,$HC$29*(1+HLOOKUP($HD$16,Līmeņatzīmes!$B$3:$AI$4,2,FALSE)))) ->  | HM29: =IF(HM24=" "," ",IF($HC$29=" ",$CD$6*$C$9/12,$HC$29*(1+HLOOKUP($HD$16,Līmeņatzīmes!$B$3:$AI$4,2,FALSE)))) ->  | HN29: =IF(HN24=" "," ",IF($HC$29=" ",$CD$6*$C$9/12,$HC$29*(1+HLOOKUP($HD$16,Līmeņatzīmes!$B$3:$AI$4,2,FALSE)))) ->  | HO29: =IF(HO24=" "," ",IF($HC$29=" ",$CD$6*$C$9/12,$HC$29*(1+HLOOKUP($HD$16,Līmeņatzīmes!$B$3:$AI$4,2,FALSE)))) ->  | HP29: =IF(HP24=" "," ",IF($HC$29=" ",$CD$6*$C$9/12,$HC$29*(1+HLOOKUP($HD$16,Līmeņatzīmes!$B$3:$AI$4,2,FALSE)))) ->  | HQ29: =IF(OR(HQ$18=" ",HQ$18=0)," ",SUM(HR29:IC29)) ->  | HR29: =IF(HR24=" "," ",IF($HP$29=" ",$CD$6*$C$9/12,$HP$29*(1+HLOOKUP($HQ$16,Līmeņatzīmes!$B$3:$AI$4,2,FALSE)))) ->  | HS29: =IF(HS24=" "," ",IF($HP$29=" ",$CD$6*$C$9/12,$HP$29*(1+HLOOKUP($HQ$16,Līmeņatzīmes!$B$3:$AI$4,2,FALSE)))) ->  | HT29: =IF(HT24=" "," ",IF($HP$29=" ",$CD$6*$C$9/12,$HP$29*(1+HLOOKUP($HQ$16,Līmeņatzīmes!$B$3:$AI$4,2,FALSE)))) ->  | HU29: =IF(HU24=" "," ",IF($HP$29=" ",$CD$6*$C$9/12,$HP$29*(1+HLOOKUP($HQ$16,Līmeņatzīmes!$B$3:$AI$4,2,FALSE)))) ->  | HV29: =IF(HV24=" "," ",IF($HP$29=" ",$CD$6*$C$9/12,$HP$29*(1+HLOOKUP($HQ$16,Līmeņatzīmes!$B$3:$AI$4,2,FALSE)))) ->  | HW29: =IF(HW24=" "," ",IF($HP$29=" ",$CD$6*$C$9/12,$HP$29*(1+HLOOKUP($HQ$16,Līmeņatzīmes!$B$3:$AI$4,2,FALSE)))) ->  | HX29: =IF(HX24=" "," ",IF($HP$29=" ",$CD$6*$C$9/12,$HP$29*(1+HLOOKUP($HQ$16,Līmeņatzīmes!$B$3:$AI$4,2,FALSE)))) ->  | HY29: =IF(HY24=" "," ",IF($HP$29=" ",$CD$6*$C$9/12,$HP$29*(1+HLOOKUP($HQ$16,Līmeņatzīmes!$B$3:$AI$4,2,FALSE)))) ->  | HZ29: =IF(HZ24=" "," ",IF($HP$29=" ",$CD$6*$C$9/12,$HP$29*(1+HLOOKUP($HQ$16,Līmeņatzīmes!$B$3:$AI$4,2,FALSE)))) ->  | IA29: =IF(IA24=" "," ",IF($HP$29=" ",$CD$6*$C$9/12,$HP$29*(1+HLOOKUP($HQ$16,Līmeņatzīmes!$B$3:$AI$4,2,FALSE)))) ->  | IB29: =IF(IB24=" "," ",IF($HP$29=" ",$CD$6*$C$9/12,$HP$29*(1+HLOOKUP($HQ$16,Līmeņatzīmes!$B$3:$AI$4,2,FALSE)))) ->  | IC29: =IF(IC24=" "," ",IF($HP$29=" ",$CD$6*$C$9/12,$HP$29*(1+HLOOKUP($HQ$16,Līmeņatzīmes!$B$3:$AI$4,2,FALSE)))) ->  | ID29: =IF(OR(ID$18=" ",ID$18=0)," ",SUM(IE29:IP29)) ->  | IE29: =IF(IE24=" "," ",IF($IC$29=" ",$CD$6*$C$9/12,$IC$29*(1+HLOOKUP($ID$16,Līmeņatzīmes!$B$3:$AI$4,2,FALSE)))) ->  | IF29: =IF(IF24=" "," ",IF($IC$29=" ",$CD$6*$C$9/12,$IC$29*(1+HLOOKUP($ID$16,Līmeņatzīmes!$B$3:$AI$4,2,FALSE)))) ->  | IG29: =IF(IG24=" "," ",IF($IC$29=" ",$CD$6*$C$9/12,$IC$29*(1+HLOOKUP($ID$16,Līmeņatzīmes!$B$3:$AI$4,2,FALSE)))) ->  | IH29: =IF(IH24=" "," ",IF($IC$29=" ",$CD$6*$C$9/12,$IC$29*(1+HLOOKUP($ID$16,Līmeņatzīmes!$B$3:$AI$4,2,FALSE)))) ->  | II29: =IF(II24=" "," ",IF($IC$29=" ",$CD$6*$C$9/12,$IC$29*(1+HLOOKUP($ID$16,Līmeņatzīmes!$B$3:$AI$4,2,FALSE)))) ->  | IJ29: =IF(IJ24=" "," ",IF($IC$29=" ",$CD$6*$C$9/12,$IC$29*(1+HLOOKUP($ID$16,Līmeņatzīmes!$B$3:$AI$4,2,FALSE)))) ->  | IK29: =IF(IK24=" "," ",IF($IC$29=" ",$CD$6*$C$9/12,$IC$29*(1+HLOOKUP($ID$16,Līmeņatzīmes!$B$3:$AI$4,2,FALSE)))) ->  | IL29: =IF(IL24=" "," ",IF($IC$29=" ",$CD$6*$C$9/12,$IC$29*(1+HLOOKUP($ID$16,Līmeņatzīmes!$B$3:$AI$4,2,FALSE)))) ->  | IM29: =IF(IM24=" "," ",IF($IC$29=" ",$CD$6*$C$9/12,$IC$29*(1+HLOOKUP($ID$16,Līmeņatzīmes!$B$3:$AI$4,2,FALSE)))) ->  | IN29: =IF(IN24=" "," ",IF($IC$29=" ",$CD$6*$C$9/12,$IC$29*(1+HLOOKUP($ID$16,Līmeņatzīmes!$B$3:$AI$4,2,FALSE)))) ->  | IO29: =IF(IO24=" "," ",IF($IC$29=" ",$CD$6*$C$9/12,$IC$29*(1+HLOOKUP($ID$16,Līmeņatzīmes!$B$3:$AI$4,2,FALSE)))) ->  | IP29: =IF(IP24=" "," ",IF($IC$29=" ",$CD$6*$C$9/12,$IC$29*(1+HLOOKUP($ID$16,Līmeņatzīmes!$B$3:$AI$4,2,FALSE)))) ->  | IQ29: =IF(OR(IQ$18=" ",IQ$18=0)," ",SUM(IR29:JC29)) ->  | IR29: =IF(IR24=" "," ",IF($IP$29=" ",$CD$6*$C$9/12,$IP$29*(1+HLOOKUP($IQ$16,Līmeņatzīmes!$B$3:$AI$4,2,FALSE)))) ->  | IS29: =IF(IS24=" "," ",IF($IP$29=" ",$CD$6*$C$9/12,$IP$29*(1+HLOOKUP($IQ$16,Līmeņatzīmes!$B$3:$AI$4,2,FALSE)))) ->  | IT29: =IF(IT24=" "," ",IF($IP$29=" ",$CD$6*$C$9/12,$IP$29*(1+HLOOKUP($IQ$16,Līmeņatzīmes!$B$3:$AI$4,2,FALSE)))) ->  | IU29: =IF(IU24=" "," ",IF($IP$29=" ",$CD$6*$C$9/12,$IP$29*(1+HLOOKUP($IQ$16,Līmeņatzīmes!$B$3:$AI$4,2,FALSE)))) ->  | IV29: =IF(IV24=" "," ",IF($IP$29=" ",$CD$6*$C$9/12,$IP$29*(1+HLOOKUP($IQ$16,Līmeņatzīmes!$B$3:$AI$4,2,FALSE)))) ->  | IW29: =IF(IW24=" "," ",IF($IP$29=" ",$CD$6*$C$9/12,$IP$29*(1+HLOOKUP($IQ$16,Līmeņatzīmes!$B$3:$AI$4,2,FALSE)))) ->  | IX29: =IF(IX24=" "," ",IF($IP$29=" ",$CD$6*$C$9/12,$IP$29*(1+HLOOKUP($IQ$16,Līmeņatzīmes!$B$3:$AI$4,2,FALSE)))) ->  | IY29: =IF(IY24=" "," ",IF($IP$29=" ",$CD$6*$C$9/12,$IP$29*(1+HLOOKUP($IQ$16,Līmeņatzīmes!$B$3:$AI$4,2,FALSE)))) ->  | IZ29: =IF(IZ24=" "," ",IF($IP$29=" ",$CD$6*$C$9/12,$IP$29*(1+HLOOKUP($IQ$16,Līmeņatzīmes!$B$3:$AI$4,2,FALSE)))) ->  | JA29: =IF(JA24=" "," ",IF($IP$29=" ",$CD$6*$C$9/12,$IP$29*(1+HLOOKUP($IQ$16,Līmeņatzīmes!$B$3:$AI$4,2,FALSE)))) ->  | JB29: =IF(JB24=" "," ",IF($IP$29=" ",$CD$6*$C$9/12,$IP$29*(1+HLOOKUP($IQ$16,Līmeņatzīmes!$B$3:$AI$4,2,FALSE)))) ->  | JC29: =IF(JC24=" "," ",IF($IP$29=" ",$CD$6*$C$9/12,$IP$29*(1+HLOOKUP($IQ$16,Līmeņatzīmes!$B$3:$AI$4,2,FALSE)))) ->  | JD29: =IF(OR(JD$18=" ",JD$18=0)," ",SUM(JE29:JP29)) ->  | JE29: =IF(JE24=" "," ",IF($JC$29=" ",$CD$6*$C$9/12,$JC$29*(1+HLOOKUP($JD$16,Līmeņatzīmes!$B$3:$AI$4,2,FALSE)))) ->  | JF29: =IF(JF24=" "," ",IF($JC$29=" ",$CD$6*$C$9/12,$JC$29*(1+HLOOKUP($JD$16,Līmeņatzīmes!$B$3:$AI$4,2,FALSE)))) ->  | JG29: =IF(JG24=" "," ",IF($JC$29=" ",$CD$6*$C$9/12,$JC$29*(1+HLOOKUP($JD$16,Līmeņatzīmes!$B$3:$AI$4,2,FALSE)))) ->  | JH29: =IF(JH24=" "," ",IF($JC$29=" ",$CD$6*$C$9/12,$JC$29*(1+HLOOKUP($JD$16,Līmeņatzīmes!$B$3:$AI$4,2,FALSE)))) ->  | JI29: =IF(JI24=" "," ",IF($JC$29=" ",$CD$6*$C$9/12,$JC$29*(1+HLOOKUP($JD$16,Līmeņatzīmes!$B$3:$AI$4,2,FALSE)))) ->  | JJ29: =IF(JJ24=" "," ",IF($JC$29=" ",$CD$6*$C$9/12,$JC$29*(1+HLOOKUP($JD$16,Līmeņatzīmes!$B$3:$AI$4,2,FALSE)))) ->  | JK29: =IF(JK24=" "," ",IF($JC$29=" ",$CD$6*$C$9/12,$JC$29*(1+HLOOKUP($JD$16,Līmeņatzīmes!$B$3:$AI$4,2,FALSE)))) ->  | JL29: =IF(JL24=" "," ",IF($JC$29=" ",$CD$6*$C$9/12,$JC$29*(1+HLOOKUP($JD$16,Līmeņatzīmes!$B$3:$AI$4,2,FALSE)))) ->  | JM29: =IF(JM24=" "," ",IF($JC$29=" ",$CD$6*$C$9/12,$JC$29*(1+HLOOKUP($JD$16,Līmeņatzīmes!$B$3:$AI$4,2,FALSE)))) ->  | JN29: =IF(JN24=" "," ",IF($JC$29=" ",$CD$6*$C$9/12,$JC$29*(1+HLOOKUP($JD$16,Līmeņatzīmes!$B$3:$AI$4,2,FALSE)))) ->  | JO29: =IF(JO24=" "," ",IF($JC$29=" ",$CD$6*$C$9/12,$JC$29*(1+HLOOKUP($JD$16,Līmeņatzīmes!$B$3:$AI$4,2,FALSE)))) ->  | JP29: =IF(JP24=" "," ",IF($JC$29=" ",$CD$6*$C$9/12,$JC$29*(1+HLOOKUP($JD$16,Līmeņatzīmes!$B$3:$AI$4,2,FALSE)))) ->  | JQ29: =IF(OR(JQ$18=" ",JQ$18=0)," ",SUM(JR29:KC29)) ->  | JR29: =IF(JR24=" "," ",IF($JP$29=" ",$CD$6*$C$9/12,$JP$29*(1+HLOOKUP($JQ$16,Līmeņatzīmes!$B$3:$AI$4,2,FALSE)))) ->  | JS29: =IF(JS24=" "," ",IF($JP$29=" ",$CD$6*$C$9/12,$JP$29*(1+HLOOKUP($JQ$16,Līmeņatzīmes!$B$3:$AI$4,2,FALSE)))) ->  | JT29: =IF(JT24=" "," ",IF($JP$29=" ",$CD$6*$C$9/12,$JP$29*(1+HLOOKUP($JQ$16,Līmeņatzīmes!$B$3:$AI$4,2,FALSE)))) ->  | JU29: =IF(JU24=" "," ",IF($JP$29=" ",$CD$6*$C$9/12,$JP$29*(1+HLOOKUP($JQ$16,Līmeņatzīmes!$B$3:$AI$4,2,FALSE)))) ->  | JV29: =IF(JV24=" "," ",IF($JP$29=" ",$CD$6*$C$9/12,$JP$29*(1+HLOOKUP($JQ$16,Līmeņatzīmes!$B$3:$AI$4,2,FALSE)))) ->  | JW29: =IF(JW24=" "," ",IF($JP$29=" ",$CD$6*$C$9/12,$JP$29*(1+HLOOKUP($JQ$16,Līmeņatzīmes!$B$3:$AI$4,2,FALSE)))) ->  | JX29: =IF(JX24=" "," ",IF($JP$29=" ",$CD$6*$C$9/12,$JP$29*(1+HLOOKUP($JQ$16,Līmeņatzīmes!$B$3:$AI$4,2,FALSE)))) ->  | JY29: =IF(JY24=" "," ",IF($JP$29=" ",$CD$6*$C$9/12,$JP$29*(1+HLOOKUP($JQ$16,Līmeņatzīmes!$B$3:$AI$4,2,FALSE)))) ->  | JZ29: =IF(JZ24=" "," ",IF($JP$29=" ",$CD$6*$C$9/12,$JP$29*(1+HLOOKUP($JQ$16,Līmeņatzīmes!$B$3:$AI$4,2,FALSE)))) ->  | KA29: =IF(KA24=" "," ",IF($JP$29=" ",$CD$6*$C$9/12,$JP$29*(1+HLOOKUP($JQ$16,Līmeņatzīmes!$B$3:$AI$4,2,FALSE)))) ->  | KB29: =IF(KB24=" "," ",IF($JP$29=" ",$CD$6*$C$9/12,$JP$29*(1+HLOOKUP($JQ$16,Līmeņatzīmes!$B$3:$AI$4,2,FALSE)))) ->  | KC29: =IF(KC24=" "," ",IF($JP$29=" ",$CD$6*$C$9/12,$JP$29*(1+HLOOKUP($JQ$16,Līmeņatzīmes!$B$3:$AI$4,2,FALSE)))) ->  | KD29: =IF(OR(KD$18=" ",KD$18=0)," ",SUM(KE29:KP29)) ->  | KE29: =IF(KE24=" "," ",IF($KC$29=" ",$CD$6*$C$9/12,$KC$29*(1+HLOOKUP($KD$16,Līmeņatzīmes!$B$3:$AI$4,2,FALSE)))) ->  | KF29: =IF(KF24=" "," ",IF($KC$29=" ",$CD$6*$C$9/12,$KC$29*(1+HLOOKUP($KD$16,Līmeņatzīmes!$B$3:$AI$4,2,FALSE)))) ->  | KG29: =IF(KG24=" "," ",IF($KC$29=" ",$CD$6*$C$9/12,$KC$29*(1+HLOOKUP($KD$16,Līmeņatzīmes!$B$3:$AI$4,2,FALSE)))) ->  | KH29: =IF(KH24=" "," ",IF($KC$29=" ",$CD$6*$C$9/12,$KC$29*(1+HLOOKUP($KD$16,Līmeņatzīmes!$B$3:$AI$4,2,FALSE)))) ->  | KI29: =IF(KI24=" "," ",IF($KC$29=" ",$CD$6*$C$9/12,$KC$29*(1+HLOOKUP($KD$16,Līmeņatzīmes!$B$3:$AI$4,2,FALSE)))) ->  | KJ29: =IF(KJ24=" "," ",IF($KC$29=" ",$CD$6*$C$9/12,$KC$29*(1+HLOOKUP($KD$16,Līmeņatzīmes!$B$3:$AI$4,2,FALSE)))) ->  | KK29: =IF(KK24=" "," ",IF($KC$29=" ",$CD$6*$C$9/12,$KC$29*(1+HLOOKUP($KD$16,Līmeņatzīmes!$B$3:$AI$4,2,FALSE)))) ->  | KL29: =IF(KL24=" "," ",IF($KC$29=" ",$CD$6*$C$9/12,$KC$29*(1+HLOOKUP($KD$16,Līmeņatzīmes!$B$3:$AI$4,2,FALSE)))) ->  | KM29: =IF(KM24=" "," ",IF($KC$29=" ",$CD$6*$C$9/12,$KC$29*(1+HLOOKUP($KD$16,Līmeņatzīmes!$B$3:$AI$4,2,FALSE)))) ->  | KN29: =IF(KN24=" "," ",IF($KC$29=" ",$CD$6*$C$9/12,$KC$29*(1+HLOOKUP($KD$16,Līmeņatzīmes!$B$3:$AI$4,2,FALSE)))) ->  | KO29: =IF(KO24=" "," ",IF($KC$29=" ",$CD$6*$C$9/12,$KC$29*(1+HLOOKUP($KD$16,Līmeņatzīmes!$B$3:$AI$4,2,FALSE)))) ->  | KP29: =IF(KP24=" "," ",IF($KC$29=" ",$CD$6*$C$9/12,$KC$29*(1+HLOOKUP($KD$16,Līmeņatzīmes!$B$3:$AI$4,2,FALSE)))) ->  | KQ29: =IF(OR(KQ$18=" ",KQ$18=0)," ",SUM(KR29:LC29)) ->  | KR29: =IF(KR24=" "," ",IF($KP$29=" ",$CD$6*$C$9/12,$KP$29*(1+HLOOKUP($KQ$16,Līmeņatzīmes!$B$3:$AI$4,2,FALSE)))) ->  | KS29: =IF(KS24=" "," ",IF($KP$29=" ",$CD$6*$C$9/12,$KP$29*(1+HLOOKUP($KQ$16,Līmeņatzīmes!$B$3:$AI$4,2,FALSE)))) ->  | KT29: =IF(KT24=" "," ",IF($KP$29=" ",$CD$6*$C$9/12,$KP$29*(1+HLOOKUP($KQ$16,Līmeņatzīmes!$B$3:$AI$4,2,FALSE)))) ->  | KU29: =IF(KU24=" "," ",IF($KP$29=" ",$CD$6*$C$9/12,$KP$29*(1+HLOOKUP($KQ$16,Līmeņatzīmes!$B$3:$AI$4,2,FALSE)))) ->  | KV29: =IF(KV24=" "," ",IF($KP$29=" ",$CD$6*$C$9/12,$KP$29*(1+HLOOKUP($KQ$16,Līmeņatzīmes!$B$3:$AI$4,2,FALSE)))) ->  | KW29: =IF(KW24=" "," ",IF($KP$29=" ",$CD$6*$C$9/12,$KP$29*(1+HLOOKUP($KQ$16,Līmeņatzīmes!$B$3:$AI$4,2,FALSE)))) ->  | KX29: =IF(KX24=" "," ",IF($KP$29=" ",$CD$6*$C$9/12,$KP$29*(1+HLOOKUP($KQ$16,Līmeņatzīmes!$B$3:$AI$4,2,FALSE)))) ->  | KY29: =IF(KY24=" "," ",IF($KP$29=" ",$CD$6*$C$9/12,$KP$29*(1+HLOOKUP($KQ$16,Līmeņatzīmes!$B$3:$AI$4,2,FALSE)))) ->  | KZ29: =IF(KZ24=" "," ",IF($KP$29=" ",$CD$6*$C$9/12,$KP$29*(1+HLOOKUP($KQ$16,Līmeņatzīmes!$B$3:$AI$4,2,FALSE)))) ->  | LA29: =IF(LA24=" "," ",IF($KP$29=" ",$CD$6*$C$9/12,$KP$29*(1+HLOOKUP($KQ$16,Līmeņatzīmes!$B$3:$AI$4,2,FALSE)))) ->  | LB29: =IF(LB24=" "," ",IF($KP$29=" ",$CD$6*$C$9/12,$KP$29*(1+HLOOKUP($KQ$16,Līmeņatzīmes!$B$3:$AI$4,2,FALSE)))) ->  | LC29: =IF(LC24=" "," ",IF($KP$29=" ",$CD$6*$C$9/12,$KP$29*(1+HLOOKUP($KQ$16,Līmeņatzīmes!$B$3:$AI$4,2,FALSE)))) ->  | LD29: =IF(OR(LD$18=" ",LD$18=0)," ",SUM(LE29:LP29)) ->  | LE29: =IF(LE24=" "," ",IF($LC$29=" ",$CD$6*$C$9/12,$LC$29*(1+HLOOKUP($LD$16,Līmeņatzīmes!$B$3:$AI$4,2,FALSE)))) ->  | LF29: =IF(LF24=" "," ",IF($LC$29=" ",$CD$6*$C$9/12,$LC$29*(1+HLOOKUP($LD$16,Līmeņatzīmes!$B$3:$AI$4,2,FALSE)))) ->  | LG29: =IF(LG24=" "," ",IF($LC$29=" ",$CD$6*$C$9/12,$LC$29*(1+HLOOKUP($LD$16,Līmeņatzīmes!$B$3:$AI$4,2,FALSE)))) ->  | LH29: =IF(LH24=" "," ",IF($LC$29=" ",$CD$6*$C$9/12,$LC$29*(1+HLOOKUP($LD$16,Līmeņatzīmes!$B$3:$AI$4,2,FALSE)))) ->  | LI29: =IF(LI24=" "," ",IF($LC$29=" ",$CD$6*$C$9/12,$LC$29*(1+HLOOKUP($LD$16,Līmeņatzīmes!$B$3:$AI$4,2,FALSE)))) ->  | LJ29: =IF(LJ24=" "," ",IF($LC$29=" ",$CD$6*$C$9/12,$LC$29*(1+HLOOKUP($LD$16,Līmeņatzīmes!$B$3:$AI$4,2,FALSE)))) ->  | LK29: =IF(LK24=" "," ",IF($LC$29=" ",$CD$6*$C$9/12,$LC$29*(1+HLOOKUP($LD$16,Līmeņatzīmes!$B$3:$AI$4,2,FALSE)))) ->  | LL29: =IF(LL24=" "," ",IF($LC$29=" ",$CD$6*$C$9/12,$LC$29*(1+HLOOKUP($LD$16,Līmeņatzīmes!$B$3:$AI$4,2,FALSE)))) ->  | LM29: =IF(LM24=" "," ",IF($LC$29=" ",$CD$6*$C$9/12,$LC$29*(1+HLOOKUP($LD$16,Līmeņatzīmes!$B$3:$AI$4,2,FALSE)))) ->  | LN29: =IF(LN24=" "," ",IF($LC$29=" ",$CD$6*$C$9/12,$LC$29*(1+HLOOKUP($LD$16,Līmeņatzīmes!$B$3:$AI$4,2,FALSE)))) ->  | LO29: =IF(LO24=" "," ",IF($LC$29=" ",$CD$6*$C$9/12,$LC$29*(1+HLOOKUP($LD$16,Līmeņatzīmes!$B$3:$AI$4,2,FALSE)))) ->  | LP29: =IF(LP24=" "," ",IF($LC$29=" ",$CD$6*$C$9/12,$LC$29*(1+HLOOKUP($LD$16,Līmeņatzīmes!$B$3:$AI$4,2,FALSE)))) ->  | LQ29: =IF(OR(LQ$18=" ",LQ$18=0)," ",SUM(LR29:MC29)) ->  | LR29: =IF(LR24=" "," ",IF($LP$29=" ",$CD$6*$C$9/12,$LP$29*(1+HLOOKUP($LQ$16,Līmeņatzīmes!$B$3:$AI$4,2,FALSE)))) ->  | LS29: =IF(LS24=" "," ",IF($LP$29=" ",$CD$6*$C$9/12,$LP$29*(1+HLOOKUP($LQ$16,Līmeņatzīmes!$B$3:$AI$4,2,FALSE)))) ->  | LT29: =IF(LT24=" "," ",IF($LP$29=" ",$CD$6*$C$9/12,$LP$29*(1+HLOOKUP($LQ$16,Līmeņatzīmes!$B$3:$AI$4,2,FALSE)))) ->  | LU29: =IF(LU24=" "," ",IF($LP$29=" ",$CD$6*$C$9/12,$LP$29*(1+HLOOKUP($LQ$16,Līmeņatzīmes!$B$3:$AI$4,2,FALSE)))) ->  | LV29: =IF(LV24=" "," ",IF($LP$29=" ",$CD$6*$C$9/12,$LP$29*(1+HLOOKUP($LQ$16,Līmeņatzīmes!$B$3:$AI$4,2,FALSE)))) ->  | LW29: =IF(LW24=" "," ",IF($LP$29=" ",$CD$6*$C$9/12,$LP$29*(1+HLOOKUP($LQ$16,Līmeņatzīmes!$B$3:$AI$4,2,FALSE)))) ->  | LX29: =IF(LX24=" "," ",IF($LP$29=" ",$CD$6*$C$9/12,$LP$29*(1+HLOOKUP($LQ$16,Līmeņatzīmes!$B$3:$AI$4,2,FALSE)))) ->  | LY29: =IF(LY24=" "," ",IF($LP$29=" ",$CD$6*$C$9/12,$LP$29*(1+HLOOKUP($LQ$16,Līmeņatzīmes!$B$3:$AI$4,2,FALSE)))) ->  | LZ29: =IF(LZ24=" "," ",IF($LP$29=" ",$CD$6*$C$9/12,$LP$29*(1+HLOOKUP($LQ$16,Līmeņatzīmes!$B$3:$AI$4,2,FALSE)))) ->  | MA29: =IF(MA24=" "," ",IF($LP$29=" ",$CD$6*$C$9/12,$LP$29*(1+HLOOKUP($LQ$16,Līmeņatzīmes!$B$3:$AI$4,2,FALSE)))) ->  | MB29: =IF(MB24=" "," ",IF($LP$29=" ",$CD$6*$C$9/12,$LP$29*(1+HLOOKUP($LQ$16,Līmeņatzīmes!$B$3:$AI$4,2,FALSE)))) ->  | MC29: =IF(MC24=" "," ",IF($LP$29=" ",$CD$6*$C$9/12,$LP$29*(1+HLOOKUP($LQ$16,Līmeņatzīmes!$B$3:$AI$4,2,FALSE)))) ->  | MD29: =IF(OR(MD$18=" ",MD$18=0)," ",SUM(ME29:MP29)) ->  | ME29: =IF(ME24=" "," ",IF($MC$29=" ",$CD$6*$C$9/12,$MC$29*(1+HLOOKUP($MD$16,Līmeņatzīmes!$B$3:$AI$4,2,FALSE)))) ->  | MF29: =IF(MF24=" "," ",IF($MC$29=" ",$CD$6*$C$9/12,$MC$29*(1+HLOOKUP($MD$16,Līmeņatzīmes!$B$3:$AI$4,2,FALSE)))) ->  | MG29: =IF(MG24=" "," ",IF($MC$29=" ",$CD$6*$C$9/12,$MC$29*(1+HLOOKUP($MD$16,Līmeņatzīmes!$B$3:$AI$4,2,FALSE)))) ->  | MH29: =IF(MH24=" "," ",IF($MC$29=" ",$CD$6*$C$9/12,$MC$29*(1+HLOOKUP($MD$16,Līmeņatzīmes!$B$3:$AI$4,2,FALSE)))) ->  | MI29: =IF(MI24=" "," ",IF($MC$29=" ",$CD$6*$C$9/12,$MC$29*(1+HLOOKUP($MD$16,Līmeņatzīmes!$B$3:$AI$4,2,FALSE)))) ->  | MJ29: =IF(MJ24=" "," ",IF($MC$29=" ",$CD$6*$C$9/12,$MC$29*(1+HLOOKUP($MD$16,Līmeņatzīmes!$B$3:$AI$4,2,FALSE)))) ->  | MK29: =IF(MK24=" "," ",IF($MC$29=" ",$CD$6*$C$9/12,$MC$29*(1+HLOOKUP($MD$16,Līmeņatzīmes!$B$3:$AI$4,2,FALSE)))) ->  | ML29: =IF(ML24=" "," ",IF($MC$29=" ",$CD$6*$C$9/12,$MC$29*(1+HLOOKUP($MD$16,Līmeņatzīmes!$B$3:$AI$4,2,FALSE)))) ->  | MM29: =IF(MM24=" "," ",IF($MC$29=" ",$CD$6*$C$9/12,$MC$29*(1+HLOOKUP($MD$16,Līmeņatzīmes!$B$3:$AI$4,2,FALSE)))) ->  | MN29: =IF(MN24=" "," ",IF($MC$29=" ",$CD$6*$C$9/12,$MC$29*(1+HLOOKUP($MD$16,Līmeņatzīmes!$B$3:$AI$4,2,FALSE)))) ->  | MO29: =IF(MO24=" "," ",IF($MC$29=" ",$CD$6*$C$9/12,$MC$29*(1+HLOOKUP($MD$16,Līmeņatzīmes!$B$3:$AI$4,2,FALSE)))) ->  | MP29: =IF(MP24=" "," ",IF($MC$29=" ",$CD$6*$C$9/12,$MC$29*(1+HLOOKUP($MD$16,Līmeņatzīmes!$B$3:$AI$4,2,FALSE)))) ->  | MQ29: =IF(OR(MQ$18=" ",MQ$18=0)," ",SUM(MR29:NC29)) ->  | MR29: =IF(MR24=" "," ",IF($MP$29=" ",$CD$6*$C$9/12,$MP$29*(1+HLOOKUP($MQ$16,Līmeņatzīmes!$B$3:$AI$4,2,FALSE)))) ->  | MS29: =IF(MS24=" "," ",IF($MP$29=" ",$CD$6*$C$9/12,$MP$29*(1+HLOOKUP($MQ$16,Līmeņatzīmes!$B$3:$AI$4,2,FALSE)))) ->  | MT29: =IF(MT24=" "," ",IF($MP$29=" ",$CD$6*$C$9/12,$MP$29*(1+HLOOKUP($MQ$16,Līmeņatzīmes!$B$3:$AI$4,2,FALSE)))) ->  | MU29: =IF(MU24=" "," ",IF($MP$29=" ",$CD$6*$C$9/12,$MP$29*(1+HLOOKUP($MQ$16,Līmeņatzīmes!$B$3:$AI$4,2,FALSE)))) ->  | MV29: =IF(MV24=" "," ",IF($MP$29=" ",$CD$6*$C$9/12,$MP$29*(1+HLOOKUP($MQ$16,Līmeņatzīmes!$B$3:$AI$4,2,FALSE)))) ->  | MW29: =IF(MW24=" "," ",IF($MP$29=" ",$CD$6*$C$9/12,$MP$29*(1+HLOOKUP($MQ$16,Līmeņatzīmes!$B$3:$AI$4,2,FALSE)))) ->  | MX29: =IF(MX24=" "," ",IF($MP$29=" ",$CD$6*$C$9/12,$MP$29*(1+HLOOKUP($MQ$16,Līmeņatzīmes!$B$3:$AI$4,2,FALSE)))) ->  | MY29: =IF(MY24=" "," ",IF($MP$29=" ",$CD$6*$C$9/12,$MP$29*(1+HLOOKUP($MQ$16,Līmeņatzīmes!$B$3:$AI$4,2,FALSE)))) ->  | MZ29: =IF(MZ24=" "," ",IF($MP$29=" ",$CD$6*$C$9/12,$MP$29*(1+HLOOKUP($MQ$16,Līmeņatzīmes!$B$3:$AI$4,2,FALSE)))) ->  | NA29: =IF(NA24=" "," ",IF($MP$29=" ",$CD$6*$C$9/12,$MP$29*(1+HLOOKUP($MQ$16,Līmeņatzīmes!$B$3:$AI$4,2,FALSE)))) ->  | NB29: =IF(NB24=" "," ",IF($MP$29=" ",$CD$6*$C$9/12,$MP$29*(1+HLOOKUP($MQ$16,Līmeņatzīmes!$B$3:$AI$4,2,FALSE)))) ->  | NC29: =IF(NC24=" "," ",IF($MP$29=" ",$CD$6*$C$9/12,$MP$29*(1+HLOOKUP($MQ$16,Līmeņatzīmes!$B$3:$AI$4,2,FALSE)))) ->  | ND29: =IF(OR(ND$18=" ",ND$18=0)," ",SUM(NE29:NP29)) ->  | NE29: =IF(NE24=" "," ",IF($NC$29=" ",$CD$6*$C$9/12,$NC$29*(1+HLOOKUP($ND$16,Līmeņatzīmes!$B$3:$AI$4,2,FALSE)))) ->  | NF29: =IF(NF24=" "," ",IF($NC$29=" ",$CD$6*$C$9/12,$NC$29*(1+HLOOKUP($ND$16,Līmeņatzīmes!$B$3:$AI$4,2,FALSE)))) ->  | NG29: =IF(NG24=" "," ",IF($NC$29=" ",$CD$6*$C$9/12,$NC$29*(1+HLOOKUP($ND$16,Līmeņatzīmes!$B$3:$AI$4,2,FALSE)))) ->  | NH29: =IF(NH24=" "," ",IF($NC$29=" ",$CD$6*$C$9/12,$NC$29*(1+HLOOKUP($ND$16,Līmeņatzīmes!$B$3:$AI$4,2,FALSE)))) ->  | NI29: =IF(NI24=" "," ",IF($NC$29=" ",$CD$6*$C$9/12,$NC$29*(1+HLOOKUP($ND$16,Līmeņatzīmes!$B$3:$AI$4,2,FALSE)))) ->  | NJ29: =IF(NJ24=" "," ",IF($NC$29=" ",$CD$6*$C$9/12,$NC$29*(1+HLOOKUP($ND$16,Līmeņatzīmes!$B$3:$AI$4,2,FALSE)))) ->  | NK29: =IF(NK24=" "," ",IF($NC$29=" ",$CD$6*$C$9/12,$NC$29*(1+HLOOKUP($ND$16,Līmeņatzīmes!$B$3:$AI$4,2,FALSE)))) ->  | NL29: =IF(NL24=" "," ",IF($NC$29=" ",$CD$6*$C$9/12,$NC$29*(1+HLOOKUP($ND$16,Līmeņatzīmes!$B$3:$AI$4,2,FALSE)))) ->  | NM29: =IF(NM24=" "," ",IF($NC$29=" ",$CD$6*$C$9/12,$NC$29*(1+HLOOKUP($ND$16,Līmeņatzīmes!$B$3:$AI$4,2,FALSE)))) ->  | NN29: =IF(NN24=" "," ",IF($NC$29=" ",$CD$6*$C$9/12,$NC$29*(1+HLOOKUP($ND$16,Līmeņatzīmes!$B$3:$AI$4,2,FALSE)))) ->  | NO29: =IF(NO24=" "," ",IF($NC$29=" ",$CD$6*$C$9/12,$NC$29*(1+HLOOKUP($ND$16,Līmeņatzīmes!$B$3:$AI$4,2,FALSE)))) ->  | NP29: =IF(NP24=" "," ",IF($NC$29=" ",$CD$6*$C$9/12,$NC$29*(1+HLOOKUP($ND$16,Līmeņatzīmes!$B$3:$AI$4,2,FALSE)))) ->  | NQ29: =IF(OR(NQ$18=" ",NQ$18=0)," ",SUM(NR29:OC29)) ->  | NR29: =IF(NR24=" "," ",IF($NP$29=" ",$CD$6*$C$9/12,$NP$29*(1+HLOOKUP($NQ$16,Līmeņatzīmes!$B$3:$AI$4,2,FALSE)))) ->  | NS29: =IF(NS24=" "," ",IF($NP$29=" ",$CD$6*$C$9/12,$NP$29*(1+HLOOKUP($NQ$16,Līmeņatzīmes!$B$3:$AI$4,2,FALSE)))) ->  | NT29: =IF(NT24=" "," ",IF($NP$29=" ",$CD$6*$C$9/12,$NP$29*(1+HLOOKUP($NQ$16,Līmeņatzīmes!$B$3:$AI$4,2,FALSE)))) ->  | NU29: =IF(NU24=" "," ",IF($NP$29=" ",$CD$6*$C$9/12,$NP$29*(1+HLOOKUP($NQ$16,Līmeņatzīmes!$B$3:$AI$4,2,FALSE)))) ->  | NV29: =IF(NV24=" "," ",IF($NP$29=" ",$CD$6*$C$9/12,$NP$29*(1+HLOOKUP($NQ$16,Līmeņatzīmes!$B$3:$AI$4,2,FALSE)))) ->  | NW29: =IF(NW24=" "," ",IF($NP$29=" ",$CD$6*$C$9/12,$NP$29*(1+HLOOKUP($NQ$16,Līmeņatzīmes!$B$3:$AI$4,2,FALSE)))) ->  | NX29: =IF(NX24=" "," ",IF($NP$29=" ",$CD$6*$C$9/12,$NP$29*(1+HLOOKUP($NQ$16,Līmeņatzīmes!$B$3:$AI$4,2,FALSE)))) ->  | NY29: =IF(NY24=" "," ",IF($NP$29=" ",$CD$6*$C$9/12,$NP$29*(1+HLOOKUP($NQ$16,Līmeņatzīmes!$B$3:$AI$4,2,FALSE)))) ->  | NZ29: =IF(NZ24=" "," ",IF($NP$29=" ",$CD$6*$C$9/12,$NP$29*(1+HLOOKUP($NQ$16,Līmeņatzīmes!$B$3:$AI$4,2,FALSE)))) ->  | OA29: =IF(OA24=" "," ",IF($NP$29=" ",$CD$6*$C$9/12,$NP$29*(1+HLOOKUP($NQ$16,Līmeņatzīmes!$B$3:$AI$4,2,FALSE)))) ->  | OB29: =IF(OB24=" "," ",IF($NP$29=" ",$CD$6*$C$9/12,$NP$29*(1+HLOOKUP($NQ$16,Līmeņatzīmes!$B$3:$AI$4,2,FALSE)))) ->  | OC29: =IF(OC24=" "," ",IF($NP$29=" ",$CD$6*$C$9/12,$NP$29*(1+HLOOKUP($NQ$16,Līmeņatzīmes!$B$3:$AI$4,2,FALSE)))) ->  | OD29: =IF(OR(OD$18=" ",OD$18=0)," ",SUM(OE29:OP29)) ->  | OE29: =IF(OE24=" "," ",IF($OC$29=" ",$CD$6*$C$9/12,$OC$29*(1+HLOOKUP($OD$16,Līmeņatzīmes!$B$3:$AI$4,2,FALSE)))) ->  | OF29: =IF(OF24=" "," ",IF($OC$29=" ",$CD$6*$C$9/12,$OC$29*(1+HLOOKUP($OD$16,Līmeņatzīmes!$B$3:$AI$4,2,FALSE)))) ->  | OG29: =IF(OG24=" "," ",IF($OC$29=" ",$CD$6*$C$9/12,$OC$29*(1+HLOOKUP($OD$16,Līmeņatzīmes!$B$3:$AI$4,2,FALSE)))) ->  | OH29: =IF(OH24=" "," ",IF($OC$29=" ",$CD$6*$C$9/12,$OC$29*(1+HLOOKUP($OD$16,Līmeņatzīmes!$B$3:$AI$4,2,FALSE)))) ->  | OI29: =IF(OI24=" "," ",IF($OC$29=" ",$CD$6*$C$9/12,$OC$29*(1+HLOOKUP($OD$16,Līmeņatzīmes!$B$3:$AI$4,2,FALSE)))) ->  | OJ29: =IF(OJ24=" "," ",IF($OC$29=" ",$CD$6*$C$9/12,$OC$29*(1+HLOOKUP($OD$16,Līmeņatzīmes!$B$3:$AI$4,2,FALSE)))) ->  | OK29: =IF(OK24=" "," ",IF($OC$29=" ",$CD$6*$C$9/12,$OC$29*(1+HLOOKUP($OD$16,Līmeņatzīmes!$B$3:$AI$4,2,FALSE)))) ->  | OL29: =IF(OL24=" "," ",IF($OC$29=" ",$CD$6*$C$9/12,$OC$29*(1+HLOOKUP($OD$16,Līmeņatzīmes!$B$3:$AI$4,2,FALSE)))) ->  | OM29: =IF(OM24=" "," ",IF($OC$29=" ",$CD$6*$C$9/12,$OC$29*(1+HLOOKUP($OD$16,Līmeņatzīmes!$B$3:$AI$4,2,FALSE)))) ->  | ON29: =IF(ON24=" "," ",IF($OC$29=" ",$CD$6*$C$9/12,$OC$29*(1+HLOOKUP($OD$16,Līmeņatzīmes!$B$3:$AI$4,2,FALSE)))) ->  | OO29: =IF(OO24=" "," ",IF($OC$29=" ",$CD$6*$C$9/12,$OC$29*(1+HLOOKUP($OD$16,Līmeņatzīmes!$B$3:$AI$4,2,FALSE)))) ->  | OP29: =IF(OP24=" "," ",IF($OC$29=" ",$CD$6*$C$9/12,$OC$29*(1+HLOOKUP($OD$16,Līmeņatzīmes!$B$3:$AI$4,2,FALSE)))) ->  | OQ29: =IF(OR(OQ$18=" ",OQ$18=0)," ",SUM(OR29:PC29)) ->  | OR29: =IF(OR24=" "," ",IF($OP$29=" ",$CD$6*$C$9/12,$OP$29*(1+HLOOKUP($OQ$16,Līmeņatzīmes!$B$3:$AI$4,2,FALSE)))) ->  | OS29: =IF(OS24=" "," ",IF($OP$29=" ",$CD$6*$C$9/12,$OP$29*(1+HLOOKUP($OQ$16,Līmeņatzīmes!$B$3:$AI$4,2,FALSE)))) ->  | OT29: =IF(OT24=" "," ",IF($OP$29=" ",$CD$6*$C$9/12,$OP$29*(1+HLOOKUP($OQ$16,Līmeņatzīmes!$B$3:$AI$4,2,FALSE)))) ->  | OU29: =IF(OU24=" "," ",IF($OP$29=" ",$CD$6*$C$9/12,$OP$29*(1+HLOOKUP($OQ$16,Līmeņatzīmes!$B$3:$AI$4,2,FALSE)))) ->  | OV29: =IF(OV24=" "," ",IF($OP$29=" ",$CD$6*$C$9/12,$OP$29*(1+HLOOKUP($OQ$16,Līmeņatzīmes!$B$3:$AI$4,2,FALSE)))) ->  | OW29: =IF(OW24=" "," ",IF($OP$29=" ",$CD$6*$C$9/12,$OP$29*(1+HLOOKUP($OQ$16,Līmeņatzīmes!$B$3:$AI$4,2,FALSE)))) ->  | OX29: =IF(OX24=" "," ",IF($OP$29=" ",$CD$6*$C$9/12,$OP$29*(1+HLOOKUP($OQ$16,Līmeņatzīmes!$B$3:$AI$4,2,FALSE)))) ->  | OY29: =IF(OY24=" "," ",IF($OP$29=" ",$CD$6*$C$9/12,$OP$29*(1+HLOOKUP($OQ$16,Līmeņatzīmes!$B$3:$AI$4,2,FALSE)))) ->  | OZ29: =IF(OZ24=" "," ",IF($OP$29=" ",$CD$6*$C$9/12,$OP$29*(1+HLOOKUP($OQ$16,Līmeņatzīmes!$B$3:$AI$4,2,FALSE)))) ->  | PA29: =IF(PA24=" "," ",IF($OP$29=" ",$CD$6*$C$9/12,$OP$29*(1+HLOOKUP($OQ$16,Līmeņatzīmes!$B$3:$AI$4,2,FALSE)))) ->  | PB29: =IF(PB24=" "," ",IF($OP$29=" ",$CD$6*$C$9/12,$OP$29*(1+HLOOKUP($OQ$16,Līmeņatzīmes!$B$3:$AI$4,2,FALSE)))) ->  | PC29: =IF(PC24=" "," ",IF($OP$29=" ",$CD$6*$C$9/12,$OP$29*(1+HLOOKUP($OQ$16,Līmeņatzīmes!$B$3:$AI$4,2,FALSE)))) ->  | PD29: =IF(OR(PD$18=" ",PD$18=0)," ",SUM(PE29:PP29)) ->  | PE29: =IF(PE24=" "," ",IF($PC$29=" ",$CD$6*$C$9/12,$PC$29*(1+HLOOKUP($PD$16,Līmeņatzīmes!$B$3:$AI$4,2,FALSE)))) ->  | PF29: =IF(PF24=" "," ",IF($PC$29=" ",$CD$6*$C$9/12,$PC$29*(1+HLOOKUP($PD$16,Līmeņatzīmes!$B$3:$AI$4,2,FALSE)))) ->  | PG29: =IF(PG24=" "," ",IF($PC$29=" ",$CD$6*$C$9/12,$PC$29*(1+HLOOKUP($PD$16,Līmeņatzīmes!$B$3:$AI$4,2,FALSE)))) ->  | PH29: =IF(PH24=" "," ",IF($PC$29=" ",$CD$6*$C$9/12,$PC$29*(1+HLOOKUP($PD$16,Līmeņatzīmes!$B$3:$AI$4,2,FALSE)))) ->  | PI29: =IF(PI24=" "," ",IF($PC$29=" ",$CD$6*$C$9/12,$PC$29*(1+HLOOKUP($PD$16,Līmeņatzīmes!$B$3:$AI$4,2,FALSE)))) ->  | PJ29: =IF(PJ24=" "," ",IF($PC$29=" ",$CD$6*$C$9/12,$PC$29*(1+HLOOKUP($PD$16,Līmeņatzīmes!$B$3:$AI$4,2,FALSE)))) ->  | PK29: =IF(PK24=" "," ",IF($PC$29=" ",$CD$6*$C$9/12,$PC$29*(1+HLOOKUP($PD$16,Līmeņatzīmes!$B$3:$AI$4,2,FALSE)))) ->  | PL29: =IF(PL24=" "," ",IF($PC$29=" ",$CD$6*$C$9/12,$PC$29*(1+HLOOKUP($PD$16,Līmeņatzīmes!$B$3:$AI$4,2,FALSE)))) ->  | PM29: =IF(PM24=" "," ",IF($PC$29=" ",$CD$6*$C$9/12,$PC$29*(1+HLOOKUP($PD$16,Līmeņatzīmes!$B$3:$AI$4,2,FALSE)))) ->  | PN29: =IF(PN24=" "," ",IF($PC$29=" ",$CD$6*$C$9/12,$PC$29*(1+HLOOKUP($PD$16,Līmeņatzīmes!$B$3:$AI$4,2,FALSE)))) ->  | PO29: =IF(PO24=" "," ",IF($PC$29=" ",$CD$6*$C$9/12,$PC$29*(1+HLOOKUP($PD$16,Līmeņatzīmes!$B$3:$AI$4,2,FALSE)))) ->  | PP29: =IF(PP24=" "," ",IF($PC$29=" ",$CD$6*$C$9/12,$PC$29*(1+HLOOKUP($PD$16,Līmeņatzīmes!$B$3:$AI$4,2,FALSE)))) ->  | PQ29: =IF(OR(PQ$18=" ",PQ$18=0)," ",SUM(PR29:QC29)) ->  | PR29: =IF(PR24=" "," ",IF($PP$29=" ",$CD$6*$C$9/12,$PP$29*(1+HLOOKUP($PQ$16,Līmeņatzīmes!$B$3:$AI$4,2,FALSE)))) ->  | PS29: =IF(PS24=" "," ",IF($PP$29=" ",$CD$6*$C$9/12,$PP$29*(1+HLOOKUP($PQ$16,Līmeņatzīmes!$B$3:$AI$4,2,FALSE)))) ->  | PT29: =IF(PT24=" "," ",IF($PP$29=" ",$CD$6*$C$9/12,$PP$29*(1+HLOOKUP($PQ$16,Līmeņatzīmes!$B$3:$AI$4,2,FALSE)))) ->  | PU29: =IF(PU24=" "," ",IF($PP$29=" ",$CD$6*$C$9/12,$PP$29*(1+HLOOKUP($PQ$16,Līmeņatzīmes!$B$3:$AI$4,2,FALSE)))) ->  | PV29: =IF(PV24=" "," ",IF($PP$29=" ",$CD$6*$C$9/12,$PP$29*(1+HLOOKUP($PQ$16,Līmeņatzīmes!$B$3:$AI$4,2,FALSE)))) ->  | PW29: =IF(PW24=" "," ",IF($PP$29=" ",$CD$6*$C$9/12,$PP$29*(1+HLOOKUP($PQ$16,Līmeņatzīmes!$B$3:$AI$4,2,FALSE)))) ->  | PX29: =IF(PX24=" "," ",IF($PP$29=" ",$CD$6*$C$9/12,$PP$29*(1+HLOOKUP($PQ$16,Līmeņatzīmes!$B$3:$AI$4,2,FALSE)))) ->  | PY29: =IF(PY24=" "," ",IF($PP$29=" ",$CD$6*$C$9/12,$PP$29*(1+HLOOKUP($PQ$16,Līmeņatzīmes!$B$3:$AI$4,2,FALSE)))) ->  | PZ29: =IF(PZ24=" "," ",IF($PP$29=" ",$CD$6*$C$9/12,$PP$29*(1+HLOOKUP($PQ$16,Līmeņatzīmes!$B$3:$AI$4,2,FALSE)))) ->  | QA29: =IF(QA24=" "," ",IF($PP$29=" ",$CD$6*$C$9/12,$PP$29*(1+HLOOKUP($PQ$16,Līmeņatzīmes!$B$3:$AI$4,2,FALSE)))) ->  | QB29: =IF(QB24=" "," ",IF($PP$29=" ",$CD$6*$C$9/12,$PP$29*(1+HLOOKUP($PQ$16,Līmeņatzīmes!$B$3:$AI$4,2,FALSE)))) ->  | QC29: =IF(QC24=" "," ",IF($PP$29=" ",$CD$6*$C$9/12,$PP$29*(1+HLOOKUP($PQ$16,Līmeņatzīmes!$B$3:$AI$4,2,FALSE)))) -> 
A30: Dabas resursu nodoklis | B30: EUR/gadā | CQ30: =IF(OR(CQ$18=" ",CQ$18=0)," ",SUM(CR30:DC30)) ->  | CR30: =IF(CR24=" "," ",((CR23*1000)/(0.002725*$C$12*$C$13))*0.01*0.00853) ->  | DD30: =IF(OR(DD$18=" ",DD$18=0)," ",SUM(DE30:DP30)) ->  | DE30: =IF(DE24=" "," ",((DE23*1000)/(0.002725*$C$12*$C$13))*0.01*0.00853) ->  | DQ30: =IF(OR(DQ$18=" ",DQ$18=0)," ",SUM(DR30:EC30)) ->  | DR30: =IF(DR24=" "," ",((DR23*1000)/(0.002725*$C$12*$C$13))*0.01*0.00853) ->  | ED30: =IF(OR(ED$18=" ",ED$18=0)," ",SUM(EE30:EP30)) ->  | EE30: =IF(EE24=" "," ",((EE23*1000)/(0.002725*$C$12*$C$13))*0.01*0.00853) ->  | EQ30: =IF(OR(EQ$18=" ",EQ$18=0)," ",SUM(ER30:FC30)) ->  | ER30: =IF(ER24=" "," ",((ER23*1000)/(0.002725*$C$12*$C$13))*0.01*0.00853) ->  | FD30: =IF(OR(FD$18=" ",FD$18=0)," ",SUM(FE30:FP30)) ->  | FE30: =IF(FE24=" "," ",((FE23*1000)/(0.002725*$C$12*$C$13))*0.01*0.00853) ->  | FQ30: =IF(OR(FQ$18=" ",FQ$18=0)," ",SUM(FR30:GC30)) ->  | FR30: =IF(FR24=" "," ",((FR23*1000)/(0.002725*$C$12*$C$13))*0.01*0.00853) ->  | GD30: =IF(OR(GD$18=" ",GD$18=0)," ",SUM(GE30:GP30)) ->  | GE30: =IF(GE24=" "," ",((GE23*1000)/(0.002725*$C$12*$C$13))*0.01*0.00853) ->  | GQ30: =IF(OR(GQ$18=" ",GQ$18=0)," ",SUM(GR30:HC30)) ->  | GR30: =IF(GR24=" "," ",((GR23*1000)/(0.002725*$C$12*$C$13))*0.01*0.00853) ->  | HD30: =IF(OR(HD$18=" ",HD$18=0)," ",SUM(HE30:HP30)) ->  | HE30: =IF(HE24=" "," ",((HE23*1000)/(0.002725*$C$12*$C$13))*0.01*0.00853) ->  | HQ30: =IF(OR(HQ$18=" ",HQ$18=0)," ",SUM(HR30:IC30)) ->  | HR30: =IF(HR24=" "," ",((HR23*1000)/(0.002725*$C$12*$C$13))*0.01*0.00853) ->  | ID30: =IF(OR(ID$18=" ",ID$18=0)," ",SUM(IE30:IP30)) ->  | IE30: =IF(IE24=" "," ",((IE23*1000)/(0.002725*$C$12*$C$13))*0.01*0.00853) ->  | IQ30: =IF(OR(IQ$18=" ",IQ$18=0)," ",SUM(IR30:JC30)) ->  | IR30: =IF(IR24=" "," ",((IR23*1000)/(0.002725*$C$12*$C$13))*0.01*0.00853) ->  | JD30: =IF(OR(JD$18=" ",JD$18=0)," ",SUM(JE30:JP30)) ->  | JE30: =IF(JE24=" "," ",((JE23*1000)/(0.002725*$C$12*$C$13))*0.01*0.00853) ->  | JQ30: =IF(OR(JQ$18=" ",JQ$18=0)," ",SUM(JR30:KC30)) ->  | JR30: =IF(JR24=" "," ",((JR23*1000)/(0.002725*$C$12*$C$13))*0.01*0.00853) ->  | KD30: =IF(OR(KD$18=" ",KD$18=0)," ",SUM(KE30:KP30)) ->  | KE30: =IF(KE24=" "," ",((KE23*1000)/(0.002725*$C$12*$C$13))*0.01*0.00853) ->  | KQ30: =IF(OR(KQ$18=" ",KQ$18=0)," ",SUM(KR30:LC30)) ->  | KR30: =IF(KR24=" "," ",((KR23*1000)/(0.002725*$C$12*$C$13))*0.01*0.00853) ->  | LD30: =IF(OR(LD$18=" ",LD$18=0)," ",SUM(LE30:LP30)) ->  | LE30: =IF(LE24=" "," ",((LE23*1000)/(0.002725*$C$12*$C$13))*0.01*0.00853) ->  | LQ30: =IF(OR(LQ$18=" ",LQ$18=0)," ",SUM(LR30:MC30)) ->  | LR30: =IF(LR24=" "," ",((LR23*1000)/(0.002725*$C$12*$C$13))*0.01*0.00853) ->  | MD30: =IF(OR(MD$18=" ",MD$18=0)," ",SUM(ME30:MP30)) ->  | ME30: =IF(ME24=" "," ",((ME23*1000)/(0.002725*$C$12*$C$13))*0.01*0.00853) ->  | MQ30: =IF(OR(MQ$18=" ",MQ$18=0)," ",SUM(MR30:NC30)) ->  | MR30: =IF(MR24=" "," ",((MR23*1000)/(0.002725*$C$12*$C$13))*0.01*0.00853) ->  | ND30: =IF(OR(ND$18=" ",ND$18=0)," ",SUM(NE30:NP30)) ->  | NE30: =IF(NE24=" "," ",((NE23*1000)/(0.002725*$C$12*$C$13))*0.01*0.00853) ->  | NQ30: =IF(OR(NQ$18=" ",NQ$18=0)," ",SUM(NR30:OC30)) ->  | NR30: =IF(NR24=" "," ",((NR23*1000)/(0.002725*$C$12*$C$13))*0.01*0.00853) ->  | OD30: =IF(OR(OD$18=" ",OD$18=0)," ",SUM(OE30:OP30)) ->  | OE30: =IF(OE24=" "," ",((OE23*1000)/(0.002725*$C$12*$C$13))*0.01*0.00853) ->  | OQ30: =IF(OR(OQ$18=" ",OQ$18=0)," ",SUM(OR30:PC30)) ->  | OR30: =IF(OR24=" "," ",((OR23*1000)/(0.002725*$C$12*$C$13))*0.01*0.00853) ->  | PD30: =IF(OR(PD$18=" ",PD$18=0)," ",SUM(PE30:PP30)) ->  | PE30: =IF(PE24=" "," ",((PE23*1000)/(0.002725*$C$12*$C$13))*0.01*0.00853) ->  | PQ30: =IF(OR(PQ$18=" ",PQ$18=0)," ",SUM(PR30:QC30)) ->  | PR30: =IF(PR24=" "," ",((PR23*1000)/(0.002725*$C$12*$C$13))*0.01*0.00853) -> 
A31: Tīrā Naudas Plūsma | B31: EUR/gadā | D31: =IF(D24=" "," ",SUM(E31:P31)+D26) ->  | E31: =IF(OR(E24=" ",E24=0)," ",E21-E27) -> -432.8 | F31: -432.8 | G31: -432.8 | H31: -432.8 | I31: -432.8 | J31: -432.8 | K31: -432.8 | L31: -432.8 | M31: -432.8 | N31: -432.8 | O31: -432.8 | P31: -432.8 | Q31: =IF(Q24=" "," ",SUM(R31:AC31)+Q26) ->  | R31: =IF(OR(R24=" ",R24=0)," ",R21-R27) ->  | AD31: =IF(AD24=" "," ",SUM(AE31:AP31)+AD26) ->  | AE31: =IF(OR(AE24=" ",AE24=0)," ",AE21-AE27) ->  | AQ31: =IF(AQ24=" "," ",SUM(AR31:BC31)+AQ26) ->  | AR31: =IF(OR(AR24=" ",AR24=0)," ",AR21-AR27) ->  | BD31: =IF(BD24=" "," ",SUM(BE31:BP31)+BD26) ->  | BE31: =IF(OR(BE24=" ",BE24=0)," ",BE21-BE27) ->  | BQ31: =IF(BQ24=" "," ",SUM(BR31:CC31)+BQ26) ->  | BR31: =IF(OR(BR24=" ",BR24=0)," ",BR21-BR27) ->  | CD31: =IF(CD24=" "," ",SUM(CE31:CP31)+CD26) ->  | CE31: =IF(OR(CE24=" ",CE24=0)," ",CE21-CE27) ->  | CQ31: =IF(CQ24=" "," ",SUM(CR31:DC31)+CQ26) ->  | CR31: =IF(OR(CR24=" ",CR24=0)," ",CR21-CR27) ->  | DD31: =IF(DD24=" "," ",SUM(DE31:DP31)+DD26) ->  | DE31: =IF(OR(DE24=" ",DE24=0)," ",DE21-DE27) ->  | DQ31: =IF(DQ24=" "," ",SUM(DR31:EC31)+DQ26) ->  | DR31: =IF(OR(DR24=" ",DR24=0)," ",DR21-DR27) ->  | ED31: =IF(ED24=" "," ",SUM(EE31:EP31)+ED26) ->  | EE31: =IF(OR(EE24=" ",EE24=0)," ",EE21-EE27) ->  | EQ31: =IF(EQ24=" "," ",SUM(ER31:FC31)+EQ26) ->  | ER31: =IF(OR(ER24=" ",ER24=0)," ",ER21-ER27) ->  | FD31: =IF(FD24=" "," ",SUM(FE31:FP31)+FD26) ->  | FE31: =IF(OR(FE24=" ",FE24=0)," ",FE21-FE27) ->  | FQ31: =IF(FQ24=" "," ",SUM(FR31:GC31)+FQ26) ->  | FR31: =IF(OR(FR24=" ",FR24=0)," ",FR21-FR27) ->  | GD31: =IF(GD24=" "," ",SUM(GE31:GP31)+GD26) ->  | GE31: =IF(OR(GE24=" ",GE24=0)," ",GE21-GE27) ->  | GQ31: =IF(GQ24=" "," ",SUM(GR31:HC31)+GQ26) ->  | GR31: =IF(OR(GR24=" ",GR24=0)," ",GR21-GR27) ->  | HD31: =IF(HD24=" "," ",SUM(HE31:HP31)+HD26) ->  | HE31: =IF(OR(HE24=" ",HE24=0)," ",HE21-HE27) ->  | HQ31: =IF(HQ24=" "," ",SUM(HR31:IC31)+HQ26) ->  | HR31: =IF(OR(HR24=" ",HR24=0)," ",HR21-HR27) ->  | ID31: =IF(ID24=" "," ",SUM(IE31:IP31)+ID26) ->  | IE31: =IF(OR(IE24=" ",IE24=0)," ",IE21-IE27) ->  | IQ31: =IF(IQ24=" "," ",SUM(IR31:JC31)+IQ26) ->  | IR31: =IF(OR(IR24=" ",IR24=0)," ",IR21-IR27) ->  | JD31: =IF(JD24=" "," ",SUM(JE31:JP31)+JD26) ->  | JE31: =IF(OR(JE24=" ",JE24=0)," ",JE21-JE27) ->  | JQ31: =IF(JQ24=" "," ",SUM(JR31:KC31)+JQ26) ->  | JR31: =IF(OR(JR24=" ",JR24=0)," ",JR21-JR27) ->  | KD31: =IF(KD24=" "," ",SUM(KE31:KP31)+KD26) ->  | KE31: =IF(OR(KE24=" ",KE24=0)," ",KE21-KE27) ->  | KQ31: =IF(KQ24=" "," ",SUM(KR31:LC31)+KQ26) ->  | KR31: =IF(OR(KR24=" ",KR24=0)," ",KR21-KR27) ->  | LD31: =IF(LD24=" "," ",SUM(LE31:LP31)+LD26) ->  | LE31: =IF(OR(LE24=" ",LE24=0)," ",LE21-LE27) ->  | LQ31: =IF(LQ24=" "," ",SUM(LR31:MC31)+LQ26) ->  | LR31: =IF(OR(LR24=" ",LR24=0)," ",LR21-LR27) ->  | MD31: =IF(MD24=" "," ",SUM(ME31:MP31)+MD26) ->  | ME31: =IF(OR(ME24=" ",ME24=0)," ",ME21-ME27) ->  | MQ31: =IF(MQ24=" "," ",SUM(MR31:NC31)+MQ26) ->  | MR31: =IF(OR(MR24=" ",MR24=0)," ",MR21-MR27) ->  | ND31: =IF(ND24=" "," ",SUM(NE31:NP31)+ND26) ->  | NE31: =IF(OR(NE24=" ",NE24=0)," ",NE21-NE27) ->  | NQ31: =IF(NQ24=" "," ",SUM(NR31:OC31)+NQ26) ->  | NR31: =IF(OR(NR24=" ",NR24=0)," ",NR21-NR27) ->  | OD31: =IF(OD24=" "," ",SUM(OE31:OP31)+OD26) ->  | OE31: =IF(OR(OE24=" ",OE24=0)," ",OE21-OE27) ->  | OQ31: =IF(OQ24=" "," ",SUM(OR31:PC31)+OQ26) ->  | OR31: =IF(OR(OR24=" ",OR24=0)," ",OR21-OR27) ->  | PD31: =IF(PD24=" "," ",SUM(PE31:PP31)+PD26) ->  | PE31: =IF(OR(PE24=" ",PE24=0)," ",PE21-PE27) ->  | PQ31: =IF(PQ24=" "," ",SUM(PR31:QC31)+PQ26) ->  | PR31: =IF(OR(PR24=" ",PR24=0)," ",PR21-PR27) -> 
A32: Tīrā Naudas Plūsma un investīcijas | C32: =IF(AND(C$18>=0,C$18<=$QD$4+1),IF(C$18=0,-$C$9-$C$10+C26,C31)," ") ->  | D32: =IF(AND(D$18>=0,D$18<=$QD$4+1),IF(D$18=0,-$C$9-$C$10+D26,D31)," ") ->  | Q32: =IF(AND(Q$18>=0,Q$18<=$QD$4+1),IF(Q$18=0,-$C$9-$C$10+Q26,Q31)," ") ->  | AD32: =IF(AND(AD$18>=0,AD$18<=$QD$4+1),IF(AD$18=0,-$C$9-$C$10+AD26,AD31)," ") ->  | AQ32: =IF(AND(AQ$18>=0,AQ$18<=$QD$4+1),IF(AQ$18=0,-$C$9-$C$10+AQ26,AQ31)," ") ->  | BD32: =IF(AND(BD$18>=0,BD$18<=$QD$4+1),IF(BD$18=0,-$C$9-$C$10+BD26,BD31)," ") ->  | BQ32: =IF(AND(BQ$18>=0,BQ$18<=$QD$4+1),IF(BQ$18=0,-$C$9-$C$10+BQ26,BQ31)," ") ->  | CD32: =IF(AND(CD$18>=0,CD$18<=$QD$4+1),IF(CD$18=0,-$C$9-$C$10+CD26,CD31)," ") ->  | CQ32: =IF(AND(CQ$18>=0,CQ$18<=$QD$4+1),IF(CQ$18=0,-$C$9-$C$10+CQ26,CQ31)," ") ->  | DD32: =IF(AND(DD$18>=0,DD$18<=$QD$4+1),IF(DD$18=0,-$C$9-$C$10+DD26,DD31)," ") ->  | DQ32: =IF(AND(DQ$18>=0,DQ$18<=$QD$4+1),IF(DQ$18=0,-$C$9-$C$10+DQ26,DQ31)," ") ->  | ED32: =IF(AND(ED$18>=0,ED$18<=$QD$4+1),IF(ED$18=0,-$C$9-$C$10+ED26,ED31)," ") ->  | EQ32: =IF(AND(EQ$18>=0,EQ$18<=$QD$4+1),IF(EQ$18=0,-$C$9-$C$10+EQ26,EQ31)," ") ->  | FD32: =IF(AND(FD$18>=0,FD$18<=$QD$4+1),IF(FD$18=0,-$C$9-$C$10+FD26,FD31)," ") ->  | FQ32: =IF(AND(FQ$18>=0,FQ$18<=$QD$4+1),IF(FQ$18=0,-$C$9-$C$10+FQ26,FQ31)," ") ->  | GD32: =IF(AND(GD$18>=0,GD$18<=$QD$4+1),IF(GD$18=0,-$C$9-$C$10+GD26,GD31)," ") ->  | GQ32: =IF(AND(GQ$18>=0,GQ$18<=$QD$4+1),IF(GQ$18=0,-$C$9-$C$10+GQ26,GQ31)," ") ->  | HD32: =IF(AND(HD$18>=0,HD$18<=$QD$4+1),IF(HD$18=0,-$C$9-$C$10+HD26,HD31)," ") ->  | HQ32: =IF(AND(HQ$18>=0,HQ$18<=$QD$4+1),IF(HQ$18=0,-$C$9-$C$10+HQ26,HQ31)," ") ->  | ID32: =IF(AND(ID$18>=0,ID$18<=$QD$4+1),IF(ID$18=0,-$C$9-$C$10+ID26,ID31)," ") ->  | IQ32: =IF(AND(IQ$18>=0,IQ$18<=$QD$4+1),IF(IQ$18=0,-$C$9-$C$10+IQ26,IQ31)," ") ->  | JD32: =IF(AND(JD$18>=0,JD$18<=$QD$4+1),IF(JD$18=0,-$C$9-$C$10+JD26,JD31)," ") ->  | JQ32: =IF(AND(JQ$18>=0,JQ$18<=$QD$4+1),IF(JQ$18=0,-$C$9-$C$10+JQ26,JQ31)," ") ->  | KD32: =IF(AND(KD$18>=0,KD$18<=$QD$4+1),IF(KD$18=0,-$C$9-$C$10+KD26,KD31)," ") ->  | KQ32: =IF(AND(KQ$18>=0,KQ$18<=$QD$4+1),IF(KQ$18=0,-$C$9-$C$10+KQ26,KQ31)," ") ->  | LD32: =IF(AND(LD$18>=0,LD$18<=$QD$4+1),IF(LD$18=0,-$C$9-$C$10+LD26,LD31)," ") ->  | LQ32: =IF(AND(LQ$18>=0,LQ$18<=$QD$4+1),IF(LQ$18=0,-$C$9-$C$10+LQ26,LQ31)," ") ->  | MD32: =IF(AND(MD$18>=0,MD$18<=$QD$4+1),IF(MD$18=0,-$C$9-$C$10+MD26,MD31)," ") ->  | MQ32: =IF(AND(MQ$18>=0,MQ$18<=$QD$4+1),IF(MQ$18=0,-$C$9-$C$10+MQ26,MQ31)," ") ->  | ND32: =IF(AND(ND$18>=0,ND$18<=$QD$4+1),IF(ND$18=0,-$C$9-$C$10+ND26,ND31)," ") ->  | NQ32: =IF(AND(NQ$18>=0,NQ$18<=$QD$4+1),IF(NQ$18=0,-$C$9-$C$10+NQ26,NQ31)," ") ->  | OD32: =IF(AND(OD$18>=0,OD$18<=$QD$4+1),IF(OD$18=0,-$C$9-$C$10+OD26,OD31)," ") ->  | OQ32: =IF(AND(OQ$18>=0,OQ$18<=$QD$4+1),IF(OQ$18=0,-$C$9-$C$10+OQ26,OQ31)," ") ->  | PD32: =IF(AND(PD$18>=0,PD$18<=$QD$4+1),IF(PD$18=0,-$C$9-$C$10+PD26,PD31)," ") ->  | PQ32: =IF(AND(PQ$18>=0,PQ$18<=$QD$4+1),IF(PQ$18=0,-$C$9-$C$10+PQ26,PQ31)," ") ->  | QD32: =IF(AND(QD$18>=0,QD$18<=$QD$4+1),IF(QD$18=0,-$C$9-$C$10+QD26,QD31)," ") -> 0
A33: IRR | D33: =IF(OR(D32=" ",D$18<=0)," ",IRR($C$32:D$32)) ->  | Q33: =IF(OR(Q32=" ",Q18<=0)," ",IRR($C$32:Q32)) ->  | AD33: =IF(OR(AD32=" ",AD18<=0)," ",IRR($C$32:AD32)) ->  | AQ33: =IF(OR(AQ32=" ",AQ18<=0)," ",IRR($C$32:AQ32)) ->  | BD33: =IF(OR(BD32=" ",BD18<=0)," ",IRR($C$32:BD32)) ->  | BQ33: =IF(OR(BQ32=" ",BQ18<=0)," ",IRR($C$32:BQ32)) ->  | CD33: =IF(OR(CD32=" ",CD18<=0)," ",IRR($C$32:CD32)) ->  | CQ33: =IF(OR(CQ32=" ",CQ18<=0)," ",IRR($C$32:CQ32)) ->  | DD33: =IF(OR(DD32=" ",DD18<=0)," ",IRR($C$32:DD32)) ->  | DQ33: =IF(OR(DQ32=" ",DQ18<=0)," ",IRR($C$32:DQ32)) ->  | ED33: =IF(OR(ED32=" ",ED18<=0)," ",IRR($C$32:ED32)) ->  | EQ33: =IF(OR(EQ32=" ",EQ18<=0)," ",IRR($C$32:EQ32)) ->  | FD33: =IF(OR(FD32=" ",FD18<=0)," ",IRR($C$32:FD32)) ->  | FQ33: =IF(OR(FQ32=" ",FQ18<=0)," ",IRR($C$32:FQ32)) ->  | GD33: =IF(OR(GD32=" ",GD18<=0)," ",IRR($C$32:GD32)) ->  | GQ33: =IF(OR(GQ32=" ",GQ18<=0)," ",IRR($C$32:GQ32)) ->  | HD33: =IF(OR(HD32=" ",HD18<=0)," ",IRR($C$32:HD32)) ->  | HQ33: =IF(OR(HQ32=" ",HQ18<=0)," ",IRR($C$32:HQ32)) ->  | ID33: =IF(OR(ID32=" ",ID18<=0)," ",IRR($C$32:ID32)) ->  | IQ33: =IF(OR(IQ32=" ",IQ18<=0)," ",IRR($C$32:IQ32)) ->  | JD33: =IF(OR(JD32=" ",JD18<=0)," ",IRR($C$32:JD32)) ->  | JQ33: =IF(OR(JQ32=" ",JQ18<=0)," ",IRR($C$32:JQ32)) ->  | KD33: =IF(OR(KD32=" ",KD18<=0)," ",IRR($C$32:KD32)) ->  | KQ33: =IF(OR(KQ32=" ",KQ18<=0)," ",IRR($C$32:KQ32)) ->  | LD33: =IF(OR(LD32=" ",LD18<=0)," ",IRR($C$32:LD32)) ->  | LQ33: =IF(OR(LQ32=" ",LQ18<=0)," ",IRR($C$32:LQ32)) ->  | MD33: =IF(OR(MD32=" ",MD18<=0)," ",IRR($C$32:MD32)) ->  | MQ33: =IF(OR(MQ32=" ",MQ18<=0)," ",IRR($C$32:MQ32)) ->  | ND33: =IF(OR(ND32=" ",ND18<=0)," ",IRR($C$32:ND32)) ->  | NQ33: =IF(OR(NQ32=" ",NQ18<=0)," ",IRR($C$32:NQ32)) ->  | OD33: =IF(OR(OD32=" ",OD18<=0)," ",IRR($C$32:OD32)) ->  | OQ33: =IF(OR(OQ32=" ",OQ18<=0)," ",IRR($C$32:OQ32)) ->  | PD33: =IF(OR(PD32=" ",PD18<=0)," ",IRR($C$32:PD32)) ->  | PQ33: =IF(OR(PQ32=" ",PQ18<=0)," ",IRR($C$32:PQ32)) -> 
A35: Pārkompensācijas koeficients | B35: 1
A36: Pārkompensācijas koeficients spēkā no | B36: 2017 | C36: 7
A37: IRR pirms pārkompen.koeficienta piemērošanas | B37: =IF($C$7=12,HLOOKUP(QD4,A17:PQ33,17,FALSE),HLOOKUP(QD6,A17:PQ33,17,FALSE)) -> 
A38: IRR pēc pārkompen.koeficienta piemērošanas | B38: =IF($C$7=12,HLOOKUP(QD4,A42:PQ58,17,FALSE),HLOOKUP(QD6,A42:PQ58,17,FALSE)) -> 
A40: IRR aprēķins (pēc pārkompensācijas koeficienta)
A41: Gads | C41: 2006 | D41: =C41+1 -> 2007 | E41: 2007 | F41: 2007 | G41: 2007 | H41: 2007 | I41: 2007 | J41: 2007 | K41: 2007 | L41: 2007 | M41: 2007 | N41: 2007 | O41: 2007 | P41: 2007 | Q41: =D41+1 -> 2008 | R41: 2008 | S41: 2008 | T41: 2008 | U41: 2008 | V41: 2008 | W41: 2008 | X41: 2008 | Y41: 2008 | Z41: 2008 | AA41: 2008 | AB41: 2008 | AC41: 2008 | AD41: =Q41+1 -> 2009 | AE41: 2009 | AF41: 2009 | AG41: 2009 | AH41: 2009 | AI41: 2009 | AJ41: 2009 | AK41: 2009 | AL41: 2009 | AM41: 2009 | AN41: 2009 | AO41: 2009 | AP41: 2009 | AQ41: =AD41+1 -> 2010 | AR41: 2010 | AS41: 2010 | AT41: 2010 | AU41: 2010 | AV41: 2010 | AW41: 2010 | AX41: 2010 | AY41: 2010 | AZ41: 2010 | BA41: 2010 | BB41: 2010 | BC41: 2010 | BD41: =AQ41+1 -> 2011 | BE41: 2011 | BF41: 2011 | BG41: 2011 | BH41: 2011 | BI41: 2011 | BJ41: 2011 | BK41: 2011 | BL41: 2011 | BM41: 2011 | BN41: 2011 | BO41: 2011 | BP41: 2011 | BQ41: 2012 | BR41: 2012 | BS41: 2012 | BT41: 2012 | BU41: 2012 | BV41: 2012 | BW41: 2012 | BX41: 2012 | BY41: 2012 | BZ41: 2012 | CA41: 2012 | CB41: 2012 | CC41: 2012 | CD41: 2013 | CE41: 2013 | CF41: 2013 | CG41: 2013 | CH41: 2013 | CI41: 2013 | CJ41: 2013 | CK41: 2013 | CL41: 2013 | CM41: 2013 | CN41: 2013 | CO41: 2013 | CP41: 2013 | CQ41: 2014 | CR41: 2014 | CS41: 2014 | CT41: 2014 | CU41: 2014 | CV41: 2014 | CW41: 2014 | CX41: 2014 | CY41: 2014 | CZ41: 2014 | DA41: 2014 | DB41: 2014 | DC41: 2014 | DD41: 2015 | DE41: 2015 | DF41: 2015 | DG41: 2015 | DH41: 2015 | DI41: 2015 | DJ41: 2015 | DK41: 2015 | DL41: 2015 | DM41: 2015 | DN41: 2015 | DO41: 2015 | DP41: 2015 | DQ41: 2016 | DR41: 2016 | DS41: 2016 | DT41: 2016 | DU41: 2016 | DV41: 2016 | DW41: 2016 | DX41: 2016 | DY41: 2016 | DZ41: 2016 | EA41: 2016 | EB41: 2016 | EC41: 2016 | ED41: 2017 | EE41: 2017 | EF41: 2017 | EG41: 2017 | EH41: 2017 | EI41: 2017 | EJ41: 2017 | EK41: 2017 | EL41: 2017 | EM41: 2017 | EN41: 2017 | EO41: 2017 | EP41: 2017 | EQ41: 2018 | ER41: 2018 | ES41: 2018 | ET41: 2018 | EU41: 2018 | EV41: 2018 | EW41: 2018 | EX41: 2018 | EY41: 2018 | EZ41: 2018 | FA41: 2018 | FB41: 2018 | FC41: 2018 | FD41: 2019 | FE41: 2019 | FF41: 2019 | FG41: 2019 | FH41: 2019 | FI41: 2019 | FJ41: 2019 | FK41: 2019 | FL41: 2019 | FM41: 2019 | FN41: 2019 | FO41: 2019 | FP41: 2019 | FQ41: 2020 | FR41: 2020 | FS41: 2020 | FT41: 2020 | FU41: 2020 | FV41: 2020 | FW41: 2020 | FX41: 2020 | FY41: 2020 | FZ41: 2020 | GA41: 2020 | GB41: 2020 | GC41: 2020 | GD41: 2021 | GE41: 2021 | GF41: 2021 | GG41: 2021 | GH41: 2021 | GI41: 2021 | GJ41: 2021 | GK41: 2021 | GL41: 2021 | GM41: 2021 | GN41: 2021 | GO41: 2021 | GP41: 2021 | GQ41: 2022 | GR41: 2022 | GS41: 2022 | GT41: 2022 | GU41: 2022 | GV41: 2022 | GW41: 2022 | GX41: 2022 | GY41: 2022 | GZ41: 2022 | HA41: 2022 | HB41: 2022 | HC41: 2022 | HD41: 2023 | HE41: 2023 | HF41: 2023 | HG41: 2023 | HH41: 2023 | HI41: 2023 | HJ41: 2023 | HK41: 2023 | HL41: 2023 | HM41: 2023 | HN41: 2023 | HO41: 2023 | HP41: 2023 | HQ41: 2024 | HR41: 2024 | HS41: 2024 | HT41: 2024 | HU41: 2024 | HV41: 2024 | HW41: 2024 | HX41: 2024 | HY41: 2024 | HZ41: 2024 | IA41: 2024 | IB41: 2024 | IC41: 2024 | ID41: 2025 | IE41: 2025 | IF41: 2025 | IG41: 2025 | IH41: 2025 | II41: 2025 | IJ41: 2025 | IK41: 2025 | IL41: 2025 | IM41: 2025 | IN41: 2025 | IO41: 2025 | IP41: 2025 | IQ41: 2026 | IR41: 2026 | IS41: 2026 | IT41: 2026 | IU41: 2026 | IV41: 2026 | IW41: 2026 | IX41: 2026 | IY41: 2026 | IZ41: 2026 | JA41: 2026 | JB41: 2026 | JC41: 2026 | JD41: 2027 | JE41: 2027 | JF41: 2027 | JG41: 2027 | JH41: 2027 | JI41: 2027 | JJ41: 2027 | JK41: 2027 | JL41: 2027 | JM41: 2027 | JN41: 2027 | JO41: 2027 | JP41: 2027 | JQ41: 2028 | JR41: 2028 | JS41: 2028 | JT41: 2028 | JU41: 2028 | JV41: 2028 | JW41: 2028 | JX41: 2028 | JY41: 2028 | JZ41: 2028 | KA41: 2028 | KB41: 2028 | KC41: 2028 | KD41: 2029 | KE41: 2029 | KF41: 2029 | KG41: 2029 | KH41: 2029 | KI41: 2029 | KJ41: 2029 | KK41: 2029 | KL41: 2029 | KM41: 2029 | KN41: 2029 | KO41: 2029 | KP41: 2029 | KQ41: 2030 | KR41: 2030 | KS41: 2030 | KT41: 2030 | KU41: 2030 | KV41: 2030 | KW41: 2030 | KX41: 2030 | KY41: 2030 | KZ41: 2030 | LA41: 2030 | LB41: 2030 | LC41: 2030 | LD41: 2031 | LE41: 2031 | LF41: 2031 | LG41: 2031 | LH41: 2031 | LI41: 2031 | LJ41: 2031 | LK41: 2031 | LL41: 2031 | LM41: 2031 | LN41: 2031 | LO41: 2031 | LP41: 2031 | LQ41: 2032 | LR41: 2032 | LS41: 2032 | LT41: 2032 | LU41: 2032 | LV41: 2032 | LW41: 2032 | LX41: 2032 | LY41: 2032 | LZ41: 2032 | MA41: 2032 | MB41: 2032 | MC41: 2032 | MD41: 2033 | ME41: 2033 | MF41: 2033 | MG41: 2033 | MH41: 2033 | MI41: 2033 | MJ41: 2033 | MK41: 2033 | ML41: 2033 | MM41: 2033 | MN41: 2033 | MO41: 2033 | MP41: 2033 | MQ41: 2034 | MR41: 2034 | MS41: 2034 | MT41: 2034 | MU41: 2034 | MV41: 2034 | MW41: 2034 | MX41: 2034 | MY41: 2034 | MZ41: 2034 | NA41: 2034 | NB41: 2034 | NC41: 2034 | ND41: 2035 | NE41: 2035 | NF41: 2035 | NG41: 2035 | NH41: 2035 | NI41: 2035 | NJ41: 2035 | NK41: 2035 | NL41: 2035 | NM41: 2035 | NN41: 2035 | NO41: 2035 | NP41: 2035 | NQ41: 2036 | NR41: 2036 | NS41: 2036 | NT41: 2036 | NU41: 2036 | NV41: 2036 | NW41: 2036 | NX41: 2036 | NY41: 2036 | NZ41: 2036 | OA41: 2036 | OB41: 2036 | OC41: 2036 | OD41: 2037 | OE41: 2037 | OF41: 2037 | OG41: 2037 | OH41: 2037 | OI41: 2037 | OJ41: 2037 | OK41: 2037 | OL41: 2037 | OM41: 2037 | ON41: 2037 | OO41: 2037 | OP41: 2037 | OQ41: 2038 | OR41: 2038 | OS41: 2038 | OT41: 2038 | OU41: 2038 | OV41: 2038 | OW41: 2038 | OX41: 2038 | OY41: 2038 | OZ41: 2038 | PA41: 2038 | PB41: 2038 | PC41: 2038 | PD41: 2039 | PE41: 2039 | PF41: 2039 | PG41: 2039 | PH41: 2039 | PI41: 2039 | PJ41: 2039 | PK41: 2039 | PL41: 2039 | PM41: 2039 | PN41: 2039 | PO41: 2039 | PP41: 2039 | PQ41: 2040 | PR41: 2040 | PS41: 2040 | PT41: 2040 | PU41: 2040 | PV41: 2040 | PW41: 2040 | PX41: 2040 | PY41: 2040 | PZ41: 2040 | QA41: 2040 | QB41: 2040 | QC41: 2040 | QD41: 2040 | QE41: 2040
A42: Gads no lēmuma | D42: =IF(D41-$B$5<-1," ",IF(D41-$B$5=-1,0,IF(AND(D41>=$B$5,D41<$B$7),C42+1,IF(D41=$B$7,IF($C$7=12,$QD$4,IF($C$7<12,$QD$6," "))," ")))) ->  | E42: =D42 ->  | F42: =E42 ->  | G42: =F42 ->  | H42: =G42 ->  | I42: =H42 ->  | J42: =I42 ->  | K42: =J42 ->  | L42: =K42 ->  | M42: =L42 ->  | N42: =M42 ->  | O42: =N42 ->  | P42: =O42 ->  | Q42: =IF(Q41-$B$5<-1," ",IF(Q41-$B$5=-1,0,IF(AND(Q41>=$B$5,Q41<$B$7),P42+1,IF(Q41=$B$7,IF($C$7=12,$QD$4,IF($C$7<12,$QD$6," "))," ")))) ->  | R42: =Q42 ->  | S42: =R42 ->  | T42: =S42 ->  | U42: =T42 ->  | V42: =U42 ->  | W42: =V42 ->  | X42: =W42 ->  | Y42: =X42 ->  | Z42: =Y42 ->  | AA42: =Z42 ->  | AB42: =AA42 ->  | AC42: =AB42 ->  | AD42: =IF(AD41-$B$5<-1," ",IF(AD41-$B$5=-1,0,IF(AND(AD41>=$B$5,AD41<$B$7),AC42+1,IF(AD41=$B$7,IF($C$7=12,$QD$4,IF($C$7<12,$QD$6," "))," ")))) ->  | AE42: =AD42 ->  | AF42: =AE42 ->  | AG42: =AF42 ->  | AH42: =AG42 ->  | AI42: =AH42 ->  | AJ42: =AI42 ->  | AK42: =AJ42 ->  | AL42: =AK42 ->  | AM42: =AL42 ->  | AN42: =AM42 ->  | AO42: =AN42 ->  | AP42: =AO42 ->  | AQ42: =IF(AQ41-$B$5<-1," ",IF(AQ41-$B$5=-1,0,IF(AND(AQ41>=$B$5,AQ41<$B$7),AP42+1,IF(AQ41=$B$7,IF($C$7=12,$QD$4,IF($C$7<12,$QD$6," "))," ")))) ->  | AR42: =AQ42 ->  | AS42: =AR42 ->  | AT42: =AS42 ->  | AU42: =AT42 ->  | AV42: =AU42 ->  | AW42: =AV42 ->  | AX42: =AW42 ->  | AY42: =AX42 ->  | AZ42: =AY42 ->  | BA42: =AZ42 ->  | BB42: =BA42 ->  | BC42: =BB42 ->  | BD42: =IF(BD41-$B$5<-1," ",IF(BD41-$B$5=-1,0,IF(AND(BD41>=$B$5,BD41<$B$7),BC42+1,IF(BD41=$B$7,IF($C$7=12,$QD$4,IF($C$7<12,$QD$6," "))," ")))) ->  | BE42: =BD42 ->  | BF42: =BE42 ->  | BG42: =BF42 ->  | BH42: =BG42 ->  | BI42: =BH42 ->  | BJ42: =BI42 ->  | BK42: =BJ42 ->  | BL42: =BK42 ->  | BM42: =BL42 ->  | BN42: =BM42 ->  | BO42: =BN42 ->  | BP42: =BO42 ->  | BQ42: =IF(BQ41-$B$5<-1," ",IF(BQ41-$B$5=-1,0,IF(AND(BQ41>=$B$5,BQ41<$B$7),BP42+1,IF(BQ41=$B$7,IF($C$7=12,$QD$4,IF($C$7<12,$QD$6," "))," ")))) ->  | BR42: =BQ42 ->  | BS42: =BR42 ->  | BT42: =BS42 ->  | BU42: =BT42 ->  | BV42: =BU42 ->  | BW42: =BV42 ->  | BX42: =BW42 ->  | BY42: =BX42 ->  | BZ42: =BY42 ->  | CA42: =BZ42 ->  | CB42: =CA42 ->  | CC42: =CB42 ->  | CD42: =IF(CD41-$B$5<-1," ",IF(CD41-$B$5=-1,0,IF(AND(CD41>=$B$5,CD41<$B$7),CC42+1,IF(CD41=$B$7,IF($C$7=12,$QD$4,IF($C$7<12,$QD$6," "))," ")))) ->  | CE42: =CD42 ->  | CF42: =CE42 ->  | CG42: =CF42 ->  | CH42: =CG42 ->  | CI42: =CH42 ->  | CJ42: =CI42 ->  | CK42: =CJ42 ->  | CL42: =CK42 ->  | CM42: =CL42 ->  | CN42: =CM42 ->  | CO42: =CN42 ->  | CP42: =CO42 ->  | CQ42: =IF(CQ41-$B$5<-1," ",IF(CQ41-$B$5=-1,0,IF(AND(CQ41>=$B$5,CQ41<$B$7),CP42+1,IF(CQ41=$B$7,IF($C$7=12,$QD$4,IF($C$7<12,$QD$6," "))," ")))) ->  | CR42: =CQ42 ->  | CS42: =CR42 ->  | CT42: =CS42 ->  | CU42: =CT42 ->  | CV42: =CU42 ->  | CW42: =CV42 ->  | CX42: =CW42 ->  | CY42: =CX42 ->  | CZ42: =CY42 ->  | DA42: =CZ42 ->  | DB42: =DA42 ->  | DC42: =DB42 ->  | DD42: =IF(DD41-$B$5<-1," ",IF(DD41-$B$5=-1,0,IF(AND(DD41>=$B$5,DD41<$B$7),DC42+1,IF(DD41=$B$7,IF($C$7=12,$QD$4,IF($C$7<12,$QD$6," "))," ")))) ->  | DE42: =DD42 ->  | DF42: =DE42 ->  | DG42: =DF42 ->  | DH42: =DG42 ->  | DI42: =DH42 ->  | DJ42: =DI42 ->  | DK42: =DJ42 ->  | DL42: =DK42 ->  | DM42: =DL42 ->  | DN42: =DM42 ->  | DO42: =DN42 ->  | DP42: =DO42 ->  | DQ42: =IF(DQ41-$B$5<-1," ",IF(DQ41-$B$5=-1,0,IF(AND(DQ41>=$B$5,DQ41<$B$7),DP42+1,IF(DQ41=$B$7,IF($C$7=12,$QD$4,IF($C$7<12,$QD$6," "))," ")))) ->  | DR42: =DQ42 ->  | DS42: =DR42 ->  | DT42: =DS42 ->  | DU42: =DT42 ->  | DV42: =DU42 ->  | DW42: =DV42 ->  | DX42: =DW42 ->  | DY42: =DX42 ->  | DZ42: =DY42 ->  | EA42: =DZ42 ->  | EB42: =EA42 ->  | EC42: =EB42 ->  | ED42: =IF(ED41-$B$5<-1," ",IF(ED41-$B$5=-1,0,IF(AND(ED41>=$B$5,ED41<$B$7),EC42+1,IF(ED41=$B$7,IF($C$7=12,$QD$4,IF($C$7<12,$QD$6," "))," ")))) ->  | EE42: =ED42 ->  | EF42: =EE42 ->  | EG42: =EF42 ->  | EH42: =EG42 ->  | EI42: =EH42 ->  | EJ42: =EI42 ->  | EK42: =EJ42 ->  | EL42: =EK42 ->  | EM42: =EL42 ->  | EN42: =EM42 ->  | EO42: =EN42 ->  | EP42: =EO42 ->  | EQ42: =IF(EQ41-$B$5<-1," ",IF(EQ41-$B$5=-1,0,IF(AND(EQ41>=$B$5,EQ41<$B$7),EP42+1,IF(EQ41=$B$7,IF($C$7=12,$QD$4,IF($C$7<12,$QD$6," "))," ")))) ->  | ER42: =EQ42 ->  | ES42: =ER42 ->  | ET42: =ES42 ->  | EU42: =ET42 ->  | EV42: =EU42 ->  | EW42: =EV42 ->  | EX42: =EW42 ->  | EY42: =EX42 ->  | EZ42: =EY42 ->  | FA42: =EZ42 ->  | FB42: =FA42 ->  | FC42: =FB42 ->  | FD42: =IF(FD41-$B$5<-1," ",IF(FD41-$B$5=-1,0,IF(AND(FD41>=$B$5,FD41<$B$7),FC42+1,IF(FD41=$B$7,IF($C$7=12,$QD$4,IF($C$7<12,$QD$6," "))," ")))) ->  | FE42: =FD42 ->  | FF42: =FE42 ->  | FG42: =FF42 ->  | FH42: =FG42 ->  | FI42: =FH42 ->  | FJ42: =FI42 ->  | FK42: =FJ42 ->  | FL42: =FK42 ->  | FM42: =FL42 ->  | FN42: =FM42 ->  | FO42: =FN42 ->  | FP42: =FO42 ->  | FQ42: =IF(FQ41-$B$5<-1," ",IF(FQ41-$B$5=-1,0,IF(AND(FQ41>=$B$5,FQ41<$B$7),FP42+1,IF(FQ41=$B$7,IF($C$7=12,$QD$4,IF($C$7<12,$QD$6," "))," ")))) ->  | FR42: =FQ42 ->  | FS42: =FR42 ->  | FT42: =FS42 ->  | FU42: =FT42 ->  | FV42: =FU42 ->  | FW42: =FV42 ->  | FX42: =FW42 ->  | FY42: =FX42 ->  | FZ42: =FY42 ->  | GA42: =FZ42 ->  | GB42: =GA42 ->  | GC42: =GB42 ->  | GD42: =IF(GD41-$B$5<-1," ",IF(GD41-$B$5=-1,0,IF(AND(GD41>=$B$5,GD41<$B$7),GC42+1,IF(GD41=$B$7,IF($C$7=12,$QD$4,IF($C$7<12,$QD$6," "))," ")))) ->  | GE42: =GD42 ->  | GF42: =GE42 ->  | GG42: =GF42 ->  | GH42: =GG42 ->  | GI42: =GH42 ->  | GJ42: =GI42 ->  | GK42: =GJ42 ->  | GL42: =GK42 ->  | GM42: =GL42 ->  | GN42: =GM42 ->  | GO42: =GN42 ->  | GP42: =GO42 ->  | GQ42: =IF(GQ41-$B$5<-1," ",IF(GQ41-$B$5=-1,0,IF(AND(GQ41>=$B$5,GQ41<$B$7),GP42+1,IF(GQ41=$B$7,IF($C$7=12,$QD$4,IF($C$7<12,$QD$6," "))," ")))) ->  | GR42: =GQ42 ->  | GS42: =GR42 ->  | GT42: =GS42 ->  | GU42: =GT42 ->  | GV42: =GU42 ->  | GW42: =GV42 ->  | GX42: =GW42 ->  | GY42: =GX42 ->  | GZ42: =GY42 ->  | HA42: =GZ42 ->  | HB42: =HA42 ->  | HC42: =HB42 ->  | HD42: =IF(HD41-$B$5<-1," ",IF(HD41-$B$5=-1,0,IF(AND(HD41>=$B$5,HD41<$B$7),HC42+1,IF(HD41=$B$7,IF($C$7=12,$QD$4,IF($C$7<12,$QD$6," "))," ")))) ->  | HE42: =HD42 ->  | HF42: =HE42 ->  | HG42: =HF42 ->  | HH42: =HG42 ->  | HI42: =HH42 ->  | HJ42: =HI42 ->  | HK42: =HJ42 ->  | HL42: =HK42 ->  | HM42: =HL42 ->  | HN42: =HM42 ->  | HO42: =HN42 ->  | HP42: =HO42 ->  | HQ42: =IF(HQ41-$B$5<-1," ",IF(HQ41-$B$5=-1,0,IF(AND(HQ41>=$B$5,HQ41<$B$7),HP42+1,IF(HQ41=$B$7,IF($C$7=12,$QD$4,IF($C$7<12,$QD$6," "))," ")))) ->  | HR42: =HQ42 ->  | HS42: =HR42 ->  | HT42: =HS42 ->  | HU42: =HT42 ->  | HV42: =HU42 ->  | HW42: =HV42 ->  | HX42: =HW42 ->  | HY42: =HX42 ->  | HZ42: =HY42 ->  | IA42: =HZ42 ->  | IB42: =IA42 ->  | IC42: =IB42 ->  | ID42: =IF(ID41-$B$5<-1," ",IF(ID41-$B$5=-1,0,IF(AND(ID41>=$B$5,ID41<$B$7),IC42+1,IF(ID41=$B$7,IF($C$7=12,$QD$4,IF($C$7<12,$QD$6," "))," ")))) ->  | IE42: =ID42 ->  | IF42: =IE42 ->  | IG42: =IF42 ->  | IH42: =IG42 ->  | II42: =IH42 ->  | IJ42: =II42 ->  | IK42: =IJ42 ->  | IL42: =IK42 ->  | IM42: =IL42 ->  | IN42: =IM42 ->  | IO42: =IN42 ->  | IP42: =IO42 ->  | IQ42: =IF(IQ41-$B$5<-1," ",IF(IQ41-$B$5=-1,0,IF(AND(IQ41>=$B$5,IQ41<$B$7),IP42+1,IF(IQ41=$B$7,IF($C$7=12,$QD$4,IF($C$7<12,$QD$6," "))," ")))) ->  | IR42: =IQ42 ->  | IS42: =IR42 ->  | IT42: =IS42 ->  | IU42: =IT42 ->  | IV42: =IU42 ->  | IW42: =IV42 ->  | IX42: =IW42 ->  | IY42: =IX42 ->  | IZ42: =IY42 ->  | JA42: =IZ42 ->  | JB42: =JA42 ->  | JC42: =JB42 ->  | JD42: =IF(JD41-$B$5<-1," ",IF(JD41-$B$5=-1,0,IF(AND(JD41>=$B$5,JD41<$B$7),JC42+1,IF(JD41=$B$7,IF($C$7=12,$QD$4,IF($C$7<12,$QD$6," "))," ")))) ->  | JE42: =JD42 ->  | JF42: =JE42 ->  | JG42: =JF42 ->  | JH42: =JG42 ->  | JI42: =JH42 ->  | JJ42: =JI42 ->  | JK42: =JJ42 ->  | JL42: =JK42 ->  | JM42: =JL42 ->  | JN42: =JM42 ->  | JO42: =JN42 ->  | JP42: =JO42 ->  | JQ42: =IF(JQ41-$B$5<-1," ",IF(JQ41-$B$5=-1,0,IF(AND(JQ41>=$B$5,JQ41<$B$7),JP42+1,IF(JQ41=$B$7,IF($C$7=12,$QD$4,IF($C$7<12,$QD$6," "))," ")))) ->  | JR42: =JQ42 ->  | JS42: =JR42 ->  | JT42: =JS42 ->  | JU42: =JT42 ->  | JV42: =JU42 ->  | JW42: =JV42 ->  | JX42: =JW42 ->  | JY42: =JX42 ->  | JZ42: =JY42 ->  | KA42: =JZ42 ->  | KB42: =KA42 ->  | KC42: =KB42 ->  | KD42: =IF(KD41-$B$5<-1," ",IF(KD41-$B$5=-1,0,IF(AND(KD41>=$B$5,KD41<$B$7),KC42+1,IF(KD41=$B$7,IF($C$7=12,$QD$4,IF($C$7<12,$QD$6," "))," ")))) ->  | KE42: =KD42 ->  | KF42: =KE42 ->  | KG42: =KF42 ->  | KH42: =KG42 ->  | KI42: =KH42 ->  | KJ42: =KI42 ->  | KK42: =KJ42 ->  | KL42: =KK42 ->  | KM42: =KL42 ->  | KN42: =KM42 ->  | KO42: =KN42 ->  | KP42: =KO42 ->  | KQ42: =IF(KQ41-$B$5<-1," ",IF(KQ41-$B$5=-1,0,IF(AND(KQ41>=$B$5,KQ41<$B$7),KP42+1,IF(KQ41=$B$7,IF($C$7=12,$QD$4,IF($C$7<12,$QD$6," "))," ")))) ->  | KR42: =KQ42 ->  | KS42: =KR42 ->  | KT42: =KS42 ->  | KU42: =KT42 ->  | KV42: =KU42 ->  | KW42: =KV42 ->  | KX42: =KW42 ->  | KY42: =KX42 ->  | KZ42: =KY42 ->  | LA42: =KZ42 ->  | LB42: =LA42 ->  | LC42: =LB42 ->  | LD42: =IF(LD41-$B$5<-1," ",IF(LD41-$B$5=-1,0,IF(AND(LD41>=$B$5,LD41<$B$7),LC42+1,IF(LD41=$B$7,IF($C$7=12,$QD$4,IF($C$7<12,$QD$6," "))," ")))) ->  | LE42: =LD42 ->  | LF42: =LE42 ->  | LG42: =LF42 ->  | LH42: =LG42 ->  | LI42: =LH42 ->  | LJ42: =LI42 ->  | LK42: =LJ42 ->  | LL42: =LK42 ->  | LM42: =LL42 ->  | LN42: =LM42 ->  | LO42: =LN42 ->  | LP42: =LO42 ->  | LQ42: =IF(LQ41-$B$5<-1," ",IF(LQ41-$B$5=-1,0,IF(AND(LQ41>=$B$5,LQ41<$B$7),LP42+1,IF(LQ41=$B$7,IF($C$7=12,$QD$4,IF($C$7<12,$QD$6," "))," ")))) ->  | LR42: =LQ42 ->  | LS42: =LR42 ->  | LT42: =LS42 ->  | LU42: =LT42 ->  | LV42: =LU42 ->  | LW42: =LV42 ->  | LX42: =LW42 ->  | LY42: =LX42 ->  | LZ42: =LY42 ->  | MA42: =LZ42 ->  | MB42: =MA42 ->  | MC42: =MB42 ->  | MD42: =IF(MD41-$B$5<-1," ",IF(MD41-$B$5=-1,0,IF(AND(MD41>=$B$5,MD41<$B$7),MC42+1,IF(MD41=$B$7,IF($C$7=12,$QD$4,IF($C$7<12,$QD$6," "))," ")))) ->  | ME42: =MD42 ->  | MF42: =ME42 ->  | MG42: =MF42 ->  | MH42: =MG42 ->  | MI42: =MH42 ->  | MJ42: =MI42 ->  | MK42: =MJ42 ->  | ML42: =MK42 ->  | MM42: =ML42 ->  | MN42: =MM42 ->  | MO42: =MN42 ->  | MP42: =MO42 ->  | MQ42: =IF(MQ41-$B$5<-1," ",IF(MQ41-$B$5=-1,0,IF(AND(MQ41>=$B$5,MQ41<$B$7),MP42+1,IF(MQ41=$B$7,IF($C$7=12,$QD$4,IF($C$7<12,$QD$6," "))," ")))) ->  | MR42: =MQ42 ->  | MS42: =MR42 ->  | MT42: =MS42 ->  | MU42: =MT42 ->  | MV42: =MU42 ->  | MW42: =MV42 ->  | MX42: =MW42 ->  | MY42: =MX42 ->  | MZ42: =MY42 ->  | NA42: =MZ42 ->  | NB42: =NA42 ->  | NC42: =NB42 ->  | ND42: =IF(ND41-$B$5<-1," ",IF(ND41-$B$5=-1,0,IF(AND(ND41>=$B$5,ND41<$B$7),NC42+1,IF(ND41=$B$7,IF($C$7=12,$QD$4,IF($C$7<12,$QD$6," "))," ")))) ->  | NE42: =ND42 ->  | NF42: =NE42 ->  | NG42: =NF42 ->  | NH42: =NG42 ->  | NI42: =NH42 ->  | NJ42: =NI42 ->  | NK42: =NJ42 ->  | NL42: =NK42 ->  | NM42: =NL42 ->  | NN42: =NM42 ->  | NO42: =NN42 ->  | NP42: =NO42 ->  | NQ42: =IF(NQ41-$B$5<-1," ",IF(NQ41-$B$5=-1,0,IF(AND(NQ41>=$B$5,NQ41<$B$7),NP42+1,IF(NQ41=$B$7,IF($C$7=12,$QD$4,IF($C$7<12,$QD$6," "))," ")))) ->  | NR42: =NQ42 ->  | NS42: =NR42 ->  | NT42: =NS42 ->  | NU42: =NT42 ->  | NV42: =NU42 ->  | NW42: =NV42 ->  | NX42: =NW42 ->  | NY42: =NX42 ->  | NZ42: =NY42 ->  | OA42: =NZ42 ->  | OB42: =OA42 ->  | OC42: =OB42 ->  | OD42: =IF(OD41-$B$5<-1," ",IF(OD41-$B$5=-1,0,IF(AND(OD41>=$B$5,OD41<$B$7),OC42+1,IF(OD41=$B$7,IF($C$7=12,$QD$4,IF($C$7<12,$QD$6," "))," ")))) ->  | OE42: =OD42 ->  | OF42: =OE42 ->  | OG42: =OF42 ->  | OH42: =OG42 ->  | OI42: =OH42 ->  | OJ42: =OI42 ->  | OK42: =OJ42 ->  | OL42: =OK42 ->  | OM42: =OL42 ->  | ON42: =OM42 ->  | OO42: =ON42 ->  | OP42: =OO42 ->  | OQ42: =IF(OQ41-$B$5<-1," ",IF(OQ41-$B$5=-1,0,IF(AND(OQ41>=$B$5,OQ41<$B$7),OP42+1,IF(OQ41=$B$7,IF($C$7=12,$QD$4,IF($C$7<12,$QD$6," "))," ")))) ->  | OR42: =OQ42 ->  | OS42: =OR42 ->  | OT42: =OS42 ->  | OU42: =OT42 ->  | OV42: =OU42 ->  | OW42: =OV42 ->  | OX42: =OW42 ->  | OY42: =OX42 ->  | OZ42: =OY42 ->  | PA42: =OZ42 ->  | PB42: =PA42 ->  | PC42: =PB42 ->  | PD42: =IF(PD41-$B$5<-1," ",IF(PD41-$B$5=-1,0,IF(AND(PD41>=$B$5,PD41<$B$7),PC42+1,IF(PD41=$B$7,IF($C$7=12,$QD$4,IF($C$7<12,$QD$6," "))," ")))) ->  | PE42: =PD42 ->  | PF42: =PE42 ->  | PG42: =PF42 ->  | PH42: =PG42 ->  | PI42: =PH42 ->  | PJ42: =PI42 ->  | PK42: =PJ42 ->  | PL42: =PK42 ->  | PM42: =PL42 ->  | PN42: =PM42 ->  | PO42: =PN42 ->  | PP42: =PO42 ->  | PQ42: =IF(PQ41-$B$5<-1," ",IF(PQ41-$B$5=-1,0,IF(AND(PQ41>=$B$5,PQ41<$B$7),PP42+1,IF(PQ41=$B$7,IF($C$7=12,$QD$4,IF($C$7<12,$QD$6," "))," ")))) ->  | PR42: =PQ42 ->  | PS42: =PR42 ->  | PT42: =PS42 ->  | PU42: =PT42 ->  | PV42: =PU42 ->  | PW42: =PV42 ->  | PX42: =PW42 ->  | PY42: =PX42 ->  | PZ42: =PY42 ->  | QA42: =PZ42 ->  | QB42: =QA42 ->  | QC42: =QB42 -> 
A43: Projekta gads | C43: =IF(C41-$B$6<-1," ",IF(C41-$B$6=-1,0,IF(B43=0,B43+1,IF(B43=$QD$4,21," ")))) -> 1 | D43: =IF(D41-$B$6<-1," ",IF(D41-$B$6=-1,0,IF(AND(D41>=$B$6,D41<$B$7),C43+1,IF(D41=$B$7,IF($C$7=12,20,IF($C$7<20,21," "))," ")))) ->  | Q43: =IF(Q41-$B$6<-1," ",IF(Q41-$B$6=-1,0,IF(AND(Q41>=$B$6,Q41<$B$7),D43+1,IF(Q41=$B$7,IF($C$7=12,20,IF($C$7<20,21," "))," ")))) ->  | S43: =IF(S44-$B$6<-1," ",IF(S44-$B$6=-1,0,IF(R43=0,R43+1,IF(R43=$QD$4,21," ")))) -> 1 | AD43: =IF(AD41-$B$6<-1," ",IF(AD41-$B$6=-1,0,IF(AND(AD41>=$B$6,AD41<$B$7),Q43+1,IF(AD41=$B$7,IF($C$7=12,20,IF($C$7<20,21," "))," ")))) ->  | AE43: =IF(AE44-$B$6<-1," ",IF(AE44-$B$6=-1,0,IF(AD43=0,AD43+1,IF(AD43=$QD$4,21," ")))) ->  | AQ43: =IF(AQ41-$B$6<-1," ",IF(AQ41-$B$6=-1,0,IF(AND(AQ41>=$B$6,AQ41<$B$7),AD43+1,IF(AQ41=$B$7,IF($C$7=12,20,IF($C$7<20,21," "))," ")))) ->  | AR43: =IF(AR44-$B$6<-1," ",IF(AR44-$B$6=-1,0,IF(AQ43=0,AQ43+1,IF(AQ43=$QD$4,21," ")))) ->  | BD43: =IF(BD41-$B$6<-1," ",IF(BD41-$B$6=-1,0,IF(AND(BD41>=$B$6,BD41<$B$7),AQ43+1,IF(BD41=$B$7,IF($C$7=12,20,IF($C$7<20,21," "))," ")))) ->  | BE43: =IF(BE44-$B$6<-1," ",IF(BE44-$B$6=-1,0,IF(BD43=0,BD43+1,IF(BD43=$QD$4,21," ")))) ->  | BQ43: =IF(BQ41-$B$6<-1," ",IF(BQ41-$B$6=-1,0,IF(AND(BQ41>=$B$6,BQ41<$B$7),BD43+1,IF(BQ41=$B$7,IF($C$7=12,20,IF($C$7<20,21," "))," ")))) ->  | CD43: =IF(CD41-$B$6<-1," ",IF(CD41-$B$6=-1,0,IF(AND(CD41>=$B$6,CD41<$B$7),BQ43+1,IF(CD41=$B$7,IF($C$7=12,20,IF($C$7<20,21," "))," ")))) ->  | CQ43: =IF(CQ41-$B$6<-1," ",IF(CQ41-$B$6=-1,0,IF(AND(CQ41>=$B$6,CQ41<$B$7),CD43+1,IF(CQ41=$B$7,IF($C$7=12,20,IF($C$7<20,21," "))," ")))) ->  | DD43: =IF(DD41-$B$6<-1," ",IF(DD41-$B$6=-1,0,IF(AND(DD41>=$B$6,DD41<$B$7),CQ43+1,IF(DD41=$B$7,IF($C$7=12,20,IF($C$7<20,21," "))," ")))) ->  | DQ43: =IF(DQ41-$B$6<-1," ",IF(DQ41-$B$6=-1,0,IF(AND(DQ41>=$B$6,DQ41<$B$7),DD43+1,IF(DQ41=$B$7,IF($C$7=12,20,IF($C$7<20,21," "))," ")))) ->  | ED43: =IF(ED41-$B$6<-1," ",IF(ED41-$B$6=-1,0,IF(AND(ED41>=$B$6,ED41<$B$7),DQ43+1,IF(ED41=$B$7,IF($C$7=12,20,IF($C$7<20,21," "))," ")))) ->  | EQ43: =IF(EQ41-$B$6<-1," ",IF(EQ41-$B$6=-1,0,IF(AND(EQ41>=$B$6,EQ41<$B$7),ED43+1,IF(EQ41=$B$7,IF($C$7=12,20,IF($C$7<20,21," "))," ")))) ->  | FD43: =IF(FD41-$B$6<-1," ",IF(FD41-$B$6=-1,0,IF(AND(FD41>=$B$6,FD41<$B$7),EQ43+1,IF(FD41=$B$7,IF($C$7=12,20,IF($C$7<20,21," "))," ")))) ->  | FQ43: =IF(FQ41-$B$6<-1," ",IF(FQ41-$B$6=-1,0,IF(AND(FQ41>=$B$6,FQ41<$B$7),FD43+1,IF(FQ41=$B$7,IF($C$7=12,20,IF($C$7<20,21," "))," ")))) ->  | GD43: =IF(GD41-$B$6<-1," ",IF(GD41-$B$6=-1,0,IF(AND(GD41>=$B$6,GD41<$B$7),FQ43+1,IF(GD41=$B$7,IF($C$7=12,20,IF($C$7<20,21," "))," ")))) ->  | GQ43: =IF(GQ41-$B$6<-1," ",IF(GQ41-$B$6=-1,0,IF(AND(GQ41>=$B$6,GQ41<$B$7),GD43+1,IF(GQ41=$B$7,IF($C$7=12,20,IF($C$7<20,21," "))," ")))) ->  | HD43: =IF(HD41-$B$6<-1," ",IF(HD41-$B$6=-1,0,IF(AND(HD41>=$B$6,HD41<$B$7),GQ43+1,IF(HD41=$B$7,IF($C$7=12,20,IF($C$7<20,21," "))," ")))) ->  | HQ43: =IF(HQ41-$B$6<-1," ",IF(HQ41-$B$6=-1,0,IF(AND(HQ41>=$B$6,HQ41<$B$7),HD43+1,IF(HQ41=$B$7,IF($C$7=12,20,IF($C$7<20,21," "))," ")))) ->  | ID43: =IF(ID41-$B$6<-1," ",IF(ID41-$B$6=-1,0,IF(AND(ID41>=$B$6,ID41<$B$7),HQ43+1,IF(ID41=$B$7,IF($C$7=12,20,IF($C$7<20,21," "))," ")))) ->  | IQ43: =IF(IQ41-$B$6<-1," ",IF(IQ41-$B$6=-1,0,IF(AND(IQ41>=$B$6,IQ41<$B$7),ID43+1,IF(IQ41=$B$7,IF($C$7=12,20,IF($C$7<20,21," "))," ")))) ->  | JD43: =IF(JD41-$B$6<-1," ",IF(JD41-$B$6=-1,0,IF(AND(JD41>=$B$6,JD41<$B$7),IQ43+1,IF(JD41=$B$7,IF($C$7=12,20,IF($C$7<20,21," "))," ")))) ->  | JQ43: =IF(JQ41-$B$6<-1," ",IF(JQ41-$B$6=-1,0,IF(AND(JQ41>=$B$6,JQ41<$B$7),JD43+1,IF(JQ41=$B$7,IF($C$7=12,20,IF($C$7<20,21," "))," ")))) ->  | KD43: =IF(KD41-$B$6<-1," ",IF(KD41-$B$6=-1,0,IF(AND(KD41>=$B$6,KD41<$B$7),JQ43+1,IF(KD41=$B$7,IF($C$7=12,20,IF($C$7<20,21," "))," ")))) ->  | KQ43: =IF(KQ41-$B$6<-1," ",IF(KQ41-$B$6=-1,0,IF(AND(KQ41>=$B$6,KQ41<$B$7),KD43+1,IF(KQ41=$B$7,IF($C$7=12,20,IF($C$7<20,21," "))," ")))) ->  | LD43: =IF(LD41-$B$6<-1," ",IF(LD41-$B$6=-1,0,IF(AND(LD41>=$B$6,LD41<$B$7),KQ43+1,IF(LD41=$B$7,IF($C$7=12,20,IF($C$7<20,21," "))," ")))) ->  | LQ43: =IF(LQ41-$B$6<-1," ",IF(LQ41-$B$6=-1,0,IF(AND(LQ41>=$B$6,LQ41<$B$7),LD43+1,IF(LQ41=$B$7,IF($C$7=12,20,IF($C$7<20,21," "))," ")))) ->  | MD43: =IF(MD41-$B$6<-1," ",IF(MD41-$B$6=-1,0,IF(AND(MD41>=$B$6,MD41<$B$7),LQ43+1,IF(MD41=$B$7,IF($C$7=12,20,IF($C$7<20,21," "))," ")))) ->  | MQ43: =IF(MQ41-$B$6<-1," ",IF(MQ41-$B$6=-1,0,IF(AND(MQ41>=$B$6,MQ41<$B$7),MD43+1,IF(MQ41=$B$7,IF($C$7=12,20,IF($C$7<20,21," "))," ")))) ->  | ND43: =IF(ND41-$B$6<-1," ",IF(ND41-$B$6=-1,0,IF(AND(ND41>=$B$6,ND41<$B$7),MQ43+1,IF(ND41=$B$7,IF($C$7=12,20,IF($C$7<20,21," "))," ")))) ->  | NQ43: =IF(NQ41-$B$6<-1," ",IF(NQ41-$B$6=-1,0,IF(AND(NQ41>=$B$6,NQ41<$B$7),ND43+1,IF(NQ41=$B$7,IF($C$7=12,20,IF($C$7<20,21," "))," ")))) ->  | OD43: =IF(OD41-$B$6<-1," ",IF(OD41-$B$6=-1,0,IF(AND(OD41>=$B$6,OD41<$B$7),NQ43+1,IF(OD41=$B$7,IF($C$7=12,20,IF($C$7<20,21," "))," ")))) ->  | OQ43: =IF(OQ41-$B$6<-1," ",IF(OQ41-$B$6=-1,0,IF(AND(OQ41>=$B$6,OQ41<$B$7),OD43+1,IF(OQ41=$B$7,IF($C$7=12,20,IF($C$7<20,21," "))," ")))) ->  | PD43: =IF(PD41-$B$6<-1," ",IF(PD41-$B$6=-1,0,IF(AND(PD41>=$B$6,PD41<$B$7),OQ43+1,IF(PD41=$B$7,IF($C$7=12,20,IF($C$7<20,21," "))," ")))) ->  | PQ43: =IF(PQ41-$B$6<-1," ",IF(PQ41-$B$6=-1,0,IF(AND(PQ41>=$B$6,PQ41<$B$7),PD43+1,IF(PQ41=$B$7,IF($C$7=12,20,IF($C$7<20,21," "))," ")))) -> 
A44: Mēnesis | C44: =IF(C43=1,0," ") -> 0 | D44: =IF(Q43=1,0," ") ->  | E44: 1 | F44: 2 | G44: 3 | H44: 4 | I44: 5 | J44: 6 | K44: 7 | L44: 8 | M44: 9 | N44: 10 | O44: 11 | P44: 12 | R44: 1 | S44: 2 | T44: 3 | U44: 4 | V44: 5 | W44: 6 | X44: 7 | Y44: 8 | Z44: 9 | AA44: 10 | AB44: 11 | AC44: 12 | AE44: 1 | AF44: 2 | AG44: 3 | AH44: 4 | AI44: 5 | AJ44: 6 | AK44: 7 | AL44: 8 | AM44: 9 | AN44: 10 | AO44: 11 | AP44: 12 | AR44: 1 | AS44: 2 | AT44: 3 | AU44: 4 | AV44: 5 | AW44: 6 | AX44: 7 | AY44: 8 | AZ44: 9 | BA44: 10 | BB44: 11 | BC44: 12 | BE44: 1 | BF44: 2 | BG44: 3 | BH44: 4 | BI44: 5 | BJ44: 6 | BK44: 7 | BL44: 8 | BM44: 9 | BN44: 10 | BO44: 11 | BP44: 12 | BR44: 1 | BS44: 2 | BT44: 3 | BU44: 4 | BV44: 5 | BW44: 6 | BX44: 7 | BY44: 8 | BZ44: 9 | CA44: 10 | CB44: 11 | CC44: 12 | CE44: 1 | CF44: 2 | CG44: 3 | CH44: 4 | CI44: 5 | CJ44: 6 | CK44: 7 | CL44: 8 | CM44: 9 | CN44: 10 | CO44: 11 | CP44: 12 | CR44: 1 | CS44: 2 | CT44: 3 | CU44: 4 | CV44: 5 | CW44: 6 | CX44: 7 | CY44: 8 | CZ44: 9 | DA44: 10 | DB44: 11 | DC44: 12 | DE44: 1 | DF44: 2 | DG44: 3 | DH44: 4 | DI44: 5 | DJ44: 6 | DK44: 7 | DL44: 8 | DM44: 9 | DN44: 10 | DO44: 11 | DP44: 12 | DR44: 1 | DS44: 2 | DT44: 3 | DU44: 4 | DV44: 5 | DW44: 6 | DX44: 7 | DY44: 8 | DZ44: 9 | EA44: 10 | EB44: 11 | EC44: 12 | EE44: 1 | EF44: 2 | EG44: 3 | EH44: 4 | EI44: 5 | EJ44: 6 | EK44: 7 | EL44: 8 | EM44: 9 | EN44: 10 | EO44: 11 | EP44: 12 | ER44: 1 | ES44: 2 | ET44: 3 | EU44: 4 | EV44: 5 | EW44: 6 | EX44: 7 | EY44: 8 | EZ44: 9 | FA44: 10 | FB44: 11 | FC44: 12 | FE44: 1 | FF44: 2 | FG44: 3 | FH44: 4 | FI44: 5 | FJ44: 6 | FK44: 7 | FL44: 8 | FM44: 9 | FN44: 10 | FO44: 11 | FP44: 12 | FR44: 1 | FS44: 2 | FT44: 3 | FU44: 4 | FV44: 5 | FW44: 6 | FX44: 7 | FY44: 8 | FZ44: 9 | GA44: 10 | GB44: 11 | GC44: 12 | GE44: 1 | GF44: 2 | GG44: 3 | GH44: 4 | GI44: 5 | GJ44: 6 | GK44: 7 | GL44: 8 | GM44: 9 | GN44: 10 | GO44: 11 | GP44: 12 | GR44: 1 | GS44: 2 | GT44: 3 | GU44: 4 | GV44: 5 | GW44: 6 | GX44: 7 | GY44: 8 | GZ44: 9 | HA44: 10 | HB44: 11 | HC44: 12 | HE44: 1 | HF44: 2 | HG44: 3 | HH44: 4 | HI44: 5 | HJ44: 6 | HK44: 7 | HL44: 8 | HM44: 9 | HN44: 10 | HO44: 11 | HP44: 12 | HR44: 1 | HS44: 2 | HT44: 3 | HU44: 4 | HV44: 5 | HW44: 6 | HX44: 7 | HY44: 8 | HZ44: 9 | IA44: 10 | IB44: 11 | IC44: 12 | IE44: 1 | IF44: 2 | IG44: 3 | IH44: 4 | II44: 5 | IJ44: 6 | IK44: 7 | IL44: 8 | IM44: 9 | IN44: 10 | IO44: 11 | IP44: 12 | IR44: 1 | IS44: 2 | IT44: 3 | IU44: 4 | IV44: 5 | IW44: 6 | IX44: 7 | IY44: 8 | IZ44: 9 | JA44: 10 | JB44: 11 | JC44: 12 | JE44: 1 | JF44: 2 | JG44: 3 | JH44: 4 | JI44: 5 | JJ44: 6 | JK44: 7 | JL44: 8 | JM44: 9 | JN44: 10 | JO44: 11 | JP44: 12 | JR44: 1 | JS44: 2 | JT44: 3 | JU44: 4 | JV44: 5 | JW44: 6 | JX44: 7 | JY44: 8 | JZ44: 9 | KA44: 10 | KB44: 11 | KC44: 12 | KE44: 1 | KF44: 2 | KG44: 3 | KH44: 4 | KI44: 5 | KJ44: 6 | KK44: 7 | KL44: 8 | KM44: 9 | KN44: 10 | KO44: 11 | KP44: 12 | KR44: 1 | KS44: 2 | KT44: 3 | KU44: 4 | KV44: 5 | KW44: 6 | KX44: 7 | KY44: 8 | KZ44: 9 | LA44: 10 | LB44: 11 | LC44: 12 | LE44: 1 | LF44: 2 | LG44: 3 | LH44: 4 | LI44: 5 | LJ44: 6 | LK44: 7 | LL44: 8 | LM44: 9 | LN44: 10 | LO44: 11 | LP44: 12 | LR44: 1 | LS44: 2 | LT44: 3 | LU44: 4 | LV44: 5 | LW44: 6 | LX44: 7 | LY44: 8 | LZ44: 9 | MA44: 10 | MB44: 11 | MC44: 12 | ME44: 1 | MF44: 2 | MG44: 3 | MH44: 4 | MI44: 5 | MJ44: 6 | MK44: 7 | ML44: 8 | MM44: 9 | MN44: 10 | MO44: 11 | MP44: 12 | MR44: 1 | MS44: 2 | MT44: 3 | MU44: 4 | MV44: 5 | MW44: 6 | MX44: 7 | MY44: 8 | MZ44: 9 | NA44: 10 | NB44: 11 | NC44: 12 | NE44: 1 | NF44: 2 | NG44: 3 | NH44: 4 | NI44: 5 | NJ44: 6 | NK44: 7 | NL44: 8 | NM44: 9 | NN44: 10 | NO44: 11 | NP44: 12 | NR44: 1 | NS44: 2 | NT44: 3 | NU44: 4 | NV44: 5 | NW44: 6 | NX44: 7 | NY44: 8 | NZ44: 9 | OA44: 10 | OB44: 11 | OC44: 12 | OE44: 1 | OF44: 2 | OG44: 3 | OH44: 4 | OI44: 5 | OJ44: 6 | OK44: 7 | OL44: 8 | OM44: 9 | ON44: 10 | OO44: 11 | OP44: 12 | OR44: 1 | OS44: 2 | OT44: 3 | OU44: 4 | OV44: 5 | OW44: 6 | OX44: 7 | OY44: 8 | OZ44: 9 | PA44: 10 | PB44: 11 | PC44: 12 | PE44: 1 | PF44: 2 | PG44: 3 | PH44: 4 | PI44: 5 | PJ44: 6 | PK44: 7 | PL44: 8 | PM44: 9 | PN44: 10 | PO44: 11 | PP44: 12 | PR44: 1 | PS44: 2 | PT44: 3 | PU44: 4 | PV44: 5 | PW44: 6 | PX44: 7 | PY44: 8 | PZ44: 9 | QA44: 10 | QB44: 11 | QC44: 12
E45: =E41&E44 -> 20071 | F45: =F41&F44 -> 20072 | G45: =G41&G44 -> 20073 | H45: =H41&H44 -> 20074 | I45: =I41&I44 -> 20075 | J45: =J41&J44 -> 20076 | K45: =K41&K44 -> 20077 | L45: =L41&L44 -> 20078 | M45: =M41&M44 -> 20079 | N45: =N41&N44 -> 200710 | O45: =O41&O44 -> 200711 | P45: =P41&P44 -> 200712 | R45: =R41&R44 -> 20081 | S45: =S41&S44 -> 20082 | T45: =T41&T44 -> 20083 | U45: =U41&U44 -> 20084 | V45: =V41&V44 -> 20085 | W45: =W41&W44 -> 20086 | X45: =X41&X44 -> 20087 | Y45: =Y41&Y44 -> 20088 | Z45: =Z41&Z44 -> 20089 | AA45: =AA41&AA44 -> 200810 | AB45: =AB41&AB44 -> 200811 | AC45: =AC41&AC44 -> 200812 | AE45: =AE41&AE44 -> 20091 | AF45: =AF41&AF44 -> 20092 | AG45: =AG41&AG44 -> 20093 | AH45: =AH41&AH44 -> 20094 | AI45: =AI41&AI44 -> 20095 | AJ45: =AJ41&AJ44 -> 20096 | AK45: =AK41&AK44 -> 20097 | AL45: =AL41&AL44 -> 20098 | AM45: =AM41&AM44 -> 20099 | AN45: =AN41&AN44 -> 200910 | AO45: =AO41&AO44 -> 200911 | AP45: =AP41&AP44 -> 200912 | AR45: =AR41&AR44 -> 20101 | AS45: =AS41&AS44 -> 20102 | AT45: =AT41&AT44 -> 20103 | AU45: =AU41&AU44 -> 20104 | AV45: =AV41&AV44 -> 20105 | AW45: =AW41&AW44 -> 20106 | AX45: =AX41&AX44 -> 20107 | AY45: =AY41&AY44 -> 20108 | AZ45: =AZ41&AZ44 -> 20109 | BA45: =BA41&BA44 -> 201010 | BB45: =BB41&BB44 -> 201011 | BC45: =BC41&BC44 -> 201012 | BE45: =BE41&BE44 -> 20111 | BF45: =BF41&BF44 -> 20112 | BG45: =BG41&BG44 -> 20113 | BH45: =BH41&BH44 -> 20114 | BI45: =BI41&BI44 -> 20115 | BJ45: =BJ41&BJ44 -> 20116 | BK45: =BK41&BK44 -> 20117 | BL45: =BL41&BL44 -> 20118 | BM45: =BM41&BM44 -> 20119 | BN45: =BN41&BN44 -> 201110 | BO45: =BO41&BO44 -> 201111 | BP45: =BP41&BP44 -> 201112 | BR45: =BR41&BR44 -> 20121 | BS45: =BS41&BS44 -> 20122 | BT45: =BT41&BT44 -> 20123 | BU45: =BU41&BU44 -> 20124 | BV45: =BV41&BV44 -> 20125 | BW45: =BW41&BW44 -> 20126 | BX45: =BX41&BX44 -> 20127 | BY45: =BY41&BY44 -> 20128 | BZ45: =BZ41&BZ44 -> 20129 | CA45: =CA41&CA44 -> 201210 | CB45: =CB41&CB44 -> 201211 | CC45: =CC41&CC44 -> 201212 | CE45: =CE41&CE44 -> 20131 | CF45: =CF41&CF44 -> 20132 | CG45: =CG41&CG44 -> 20133 | CH45: =CH41&CH44 -> 20134 | CI45: =CI41&CI44 -> 20135 | CJ45: =CJ41&CJ44 -> 20136 | CK45: =CK41&CK44 -> 20137 | CL45: =CL41&CL44 -> 20138 | CM45: =CM41&CM44 -> 20139 | CN45: =CN41&CN44 -> 201310 | CO45: =CO41&CO44 -> 201311 | CP45: =CP41&CP44 -> 201312 | CR45: =CR41&CR44 -> 20141 | CS45: =CS41&CS44 -> 20142 | CT45: =CT41&CT44 -> 20143 | CU45: =CU41&CU44 -> 20144 | CV45: =CV41&CV44 -> 20145 | CW45: =CW41&CW44 -> 20146 | CX45: =CX41&CX44 -> 20147 | CY45: =CY41&CY44 -> 20148 | CZ45: =CZ41&CZ44 -> 20149 | DA45: =DA41&DA44 -> 201410 | DB45: =DB41&DB44 -> 201411 | DC45: =DC41&DC44 -> 201412 | DE45: =DE41&DE44 -> 20151 | DF45: =DF41&DF44 -> 20152 | DG45: =DG41&DG44 -> 20153 | DH45: =DH41&DH44 -> 20154 | DI45: =DI41&DI44 -> 20155 | DJ45: =DJ41&DJ44 -> 20156 | DK45: =DK41&DK44 -> 20157 | DL45: =DL41&DL44 -> 20158 | DM45: =DM41&DM44 -> 20159 | DN45: =DN41&DN44 -> 201510 | DO45: =DO41&DO44 -> 201511 | DP45: =DP41&DP44 -> 201512 | DR45: =DR41&DR44 -> 20161 | DS45: =DS41&DS44 -> 20162 | DT45: =DT41&DT44 -> 20163 | DU45: =DU41&DU44 -> 20164 | DV45: =DV41&DV44 -> 20165 | DW45: =DW41&DW44 -> 20166 | DX45: =DX41&DX44 -> 20167 | DY45: =DY41&DY44 -> 20168 | DZ45: =DZ41&DZ44 -> 20169 | EA45: =EA41&EA44 -> 201610 | EB45: =EB41&EB44 -> 201611 | EC45: =EC41&EC44 -> 201612 | EE45: =EE41&EE44 -> 20171 | EF45: =EF41&EF44 -> 20172 | EG45: =EG41&EG44 -> 20173 | EH45: =EH41&EH44 -> 20174 | EI45: =EI41&EI44 -> 20175 | EJ45: =EJ41&EJ44 -> 20176 | EK45: =EK41&EK44 -> 20177 | EL45: =EL41&EL44 -> 20178 | EM45: =EM41&EM44 -> 20179 | EN45: =EN41&EN44 -> 201710 | EO45: =EO41&EO44 -> 201711 | EP45: =EP41&EP44 -> 201712 | ER45: =ER41&ER44 -> 20181 | ES45: =ES41&ES44 -> 20182 | ET45: =ET41&ET44 -> 20183 | EU45: =EU41&EU44 -> 20184 | EV45: =EV41&EV44 -> 20185 | EW45: =EW41&EW44 -> 20186 | EX45: =EX41&EX44 -> 20187 | EY45: =EY41&EY44 -> 20188 | EZ45: =EZ41&EZ44 -> 20189 | FA45: =FA41&FA44 -> 201810 | FB45: =FB41&FB44 -> 201811 | FC45: =FC41&FC44 -> 201812 | FE45: =FE41&FE44 -> 20191 | FF45: =FF41&FF44 -> 20192 | FG45: =FG41&FG44 -> 20193 | FH45: =FH41&FH44 -> 20194 | FI45: =FI41&FI44 -> 20195 | FJ45: =FJ41&FJ44 -> 20196 | FK45: =FK41&FK44 -> 20197 | FL45: =FL41&FL44 -> 20198 | FM45: =FM41&FM44 -> 20199 | FN45: =FN41&FN44 -> 201910 | FO45: =FO41&FO44 -> 201911 | FP45: =FP41&FP44 -> 201912 | FR45: =FR41&FR44 -> 20201 | FS45: =FS41&FS44 -> 20202 | FT45: =FT41&FT44 -> 20203 | FU45: =FU41&FU44 -> 20204 | FV45: =FV41&FV44 -> 20205 | FW45: =FW41&FW44 -> 20206 | FX45: =FX41&FX44 -> 20207 | FY45: =FY41&FY44 -> 20208 | FZ45: =FZ41&FZ44 -> 20209 | GA45: =GA41&GA44 -> 202010 | GB45: =GB41&GB44 -> 202011 | GC45: =GC41&GC44 -> 202012 | GE45: =GE41&GE44 -> 20211 | GF45: =GF41&GF44 -> 20212 | GG45: =GG41&GG44 -> 20213 | GH45: =GH41&GH44 -> 20214 | GI45: =GI41&GI44 -> 20215 | GJ45: =GJ41&GJ44 -> 20216 | GK45: =GK41&GK44 -> 20217 | GL45: =GL41&GL44 -> 20218 | GM45: =GM41&GM44 -> 20219 | GN45: =GN41&GN44 -> 202110 | GO45: =GO41&GO44 -> 202111 | GP45: =GP41&GP44 -> 202112 | GR45: =GR41&GR44 -> 20221 | GS45: =GS41&GS44 -> 20222 | GT45: =GT41&GT44 -> 20223 | GU45: =GU41&GU44 -> 20224 | GV45: =GV41&GV44 -> 20225 | GW45: =GW41&GW44 -> 20226 | GX45: =GX41&GX44 -> 20227 | GY45: =GY41&GY44 -> 20228 | GZ45: =GZ41&GZ44 -> 20229 | HA45: =HA41&HA44 -> 202210 | HB45: =HB41&HB44 -> 202211 | HC45: =HC41&HC44 -> 202212 | HE45: =HE41&HE44 -> 20231 | HF45: =HF41&HF44 -> 20232 | HG45: =HG41&HG44 -> 20233 | HH45: =HH41&HH44 -> 20234 | HI45: =HI41&HI44 -> 20235 | HJ45: =HJ41&HJ44 -> 20236 | HK45: =HK41&HK44 -> 20237 | HL45: =HL41&HL44 -> 20238 | HM45: =HM41&HM44 -> 20239 | HN45: =HN41&HN44 -> 202310 | HO45: =HO41&HO44 -> 202311 | HP45: =HP41&HP44 -> 202312 | HR45: =HR41&HR44 -> 20241 | HS45: =HS41&HS44 -> 20242 | HT45: =HT41&HT44 -> 20243 | HU45: =HU41&HU44 -> 20244 | HV45: =HV41&HV44 -> 20245 | HW45: =HW41&HW44 -> 20246 | HX45: =HX41&HX44 -> 20247 | HY45: =HY41&HY44 -> 20248 | HZ45: =HZ41&HZ44 -> 20249 | IA45: =IA41&IA44 -> 202410 | IB45: =IB41&IB44 -> 202411 | IC45: =IC41&IC44 -> 202412 | IE45: =IE41&IE44 -> 20251 | IF45: =IF41&IF44 -> 20252 | IG45: =IG41&IG44 -> 20253 | IH45: =IH41&IH44 -> 20254 | II45: =II41&II44 -> 20255 | IJ45: =IJ41&IJ44 -> 20256 | IK45: =IK41&IK44 -> 20257 | IL45: =IL41&IL44 -> 20258 | IM45: =IM41&IM44 -> 20259 | IN45: =IN41&IN44 -> 202510 | IO45: =IO41&IO44 -> 202511 | IP45: =IP41&IP44 -> 202512 | IR45: =IR41&IR44 -> 20261 | IS45: =IS41&IS44 -> 20262 | IT45: =IT41&IT44 -> 20263 | IU45: =IU41&IU44 -> 20264 | IV45: =IV41&IV44 -> 20265 | IW45: =IW41&IW44 -> 20266 | IX45: =IX41&IX44 -> 20267 | IY45: =IY41&IY44 -> 20268 | IZ45: =IZ41&IZ44 -> 20269 | JA45: =JA41&JA44 -> 202610 | JB45: =JB41&JB44 -> 202611 | JC45: =JC41&JC44 -> 202612 | JE45: =JE41&JE44 -> 20271 | JF45: =JF41&JF44 -> 20272 | JG45: =JG41&JG44 -> 20273 | JH45: =JH41&JH44 -> 20274 | JI45: =JI41&JI44 -> 20275 | JJ45: =JJ41&JJ44 -> 20276 | JK45: =JK41&JK44 -> 20277 | JL45: =JL41&JL44 -> 20278 | JM45: =JM41&JM44 -> 20279 | JN45: =JN41&JN44 -> 202710 | JO45: =JO41&JO44 -> 202711 | JP45: =JP41&JP44 -> 202712 | JR45: =JR41&JR44 -> 20281 | JS45: =JS41&JS44 -> 20282 | JT45: =JT41&JT44 -> 20283 | JU45: =JU41&JU44 -> 20284 | JV45: =JV41&JV44 -> 20285 | JW45: =JW41&JW44 -> 20286 | JX45: =JX41&JX44 -> 20287 | JY45: =JY41&JY44 -> 20288 | JZ45: =JZ41&JZ44 -> 20289 | KA45: =KA41&KA44 -> 202810 | KB45: =KB41&KB44 -> 202811 | KC45: =KC41&KC44 -> 202812 | KE45: =KE41&KE44 -> 20291 | KF45: =KF41&KF44 -> 20292 | KG45: =KG41&KG44 -> 20293 | KH45: =KH41&KH44 -> 20294 | KI45: =KI41&KI44 -> 20295 | KJ45: =KJ41&KJ44 -> 20296 | KK45: =KK41&KK44 -> 20297 | KL45: =KL41&KL44 -> 20298 | KM45: =KM41&KM44 -> 20299 | KN45: =KN41&KN44 -> 202910 | KO45: =KO41&KO44 -> 202911 | KP45: =KP41&KP44 -> 202912 | KR45: =KR41&KR44 -> 20301 | KS45: =KS41&KS44 -> 20302 | KT45: =KT41&KT44 -> 20303 | KU45: =KU41&KU44 -> 20304 | KV45: =KV41&KV44 -> 20305 | KW45: =KW41&KW44 -> 20306 | KX45: =KX41&KX44 -> 20307 | KY45: =KY41&KY44 -> 20308 | KZ45: =KZ41&KZ44 -> 20309 | LA45: =LA41&LA44 -> 203010 | LB45: =LB41&LB44 -> 203011 | LC45: =LC41&LC44 -> 203012 | LE45: =LE41&LE44 -> 20311 | LF45: =LF41&LF44 -> 20312 | LG45: =LG41&LG44 -> 20313 | LH45: =LH41&LH44 -> 20314 | LI45: =LI41&LI44 -> 20315 | LJ45: =LJ41&LJ44 -> 20316 | LK45: =LK41&LK44 -> 20317 | LL45: =LL41&LL44 -> 20318 | LM45: =LM41&LM44 -> 20319 | LN45: =LN41&LN44 -> 203110 | LO45: =LO41&LO44 -> 203111 | LP45: =LP41&LP44 -> 203112 | LR45: =LR41&LR44 -> 20321 | LS45: =LS41&LS44 -> 20322 | LT45: =LT41&LT44 -> 20323 | LU45: =LU41&LU44 -> 20324 | LV45: =LV41&LV44 -> 20325 | LW45: =LW41&LW44 -> 20326 | LX45: =LX41&LX44 -> 20327 | LY45: =LY41&LY44 -> 20328 | LZ45: =LZ41&LZ44 -> 20329 | MA45: =MA41&MA44 -> 203210 | MB45: =MB41&MB44 -> 203211 | MC45: =MC41&MC44 -> 203212 | ME45: =ME41&ME44 -> 20331 | MF45: =MF41&MF44 -> 20332 | MG45: =MG41&MG44 -> 20333 | MH45: =MH41&MH44 -> 20334 | MI45: =MI41&MI44 -> 20335 | MJ45: =MJ41&MJ44 -> 20336 | MK45: =MK41&MK44 -> 20337 | ML45: =ML41&ML44 -> 20338 | MM45: =MM41&MM44 -> 20339 | MN45: =MN41&MN44 -> 203310 | MO45: =MO41&MO44 -> 203311 | MP45: =MP41&MP44 -> 203312 | MR45: =MR41&MR44 -> 20341 | MS45: =MS41&MS44 -> 20342 | MT45: =MT41&MT44 -> 20343 | MU45: =MU41&MU44 -> 20344 | MV45: =MV41&MV44 -> 20345 | MW45: =MW41&MW44 -> 20346 | MX45: =MX41&MX44 -> 20347 | MY45: =MY41&MY44 -> 20348 | MZ45: =MZ41&MZ44 -> 20349 | NA45: =NA41&NA44 -> 203410 | NB45: =NB41&NB44 -> 203411 | NC45: =NC41&NC44 -> 203412 | NE45: =NE41&NE44 -> 20351 | NF45: =NF41&NF44 -> 20352 | NG45: =NG41&NG44 -> 20353 | NH45: =NH41&NH44 -> 20354 | NI45: =NI41&NI44 -> 20355 | NJ45: =NJ41&NJ44 -> 20356 | NK45: =NK41&NK44 -> 20357 | NL45: =NL41&NL44 -> 20358 | NM45: =NM41&NM44 -> 20359 | NN45: =NN41&NN44 -> 203510 | NO45: =NO41&NO44 -> 203511 | NP45: =NP41&NP44 -> 203512 | NR45: =NR41&NR44 -> 20361 | NS45: =NS41&NS44 -> 20362 | NT45: =NT41&NT44 -> 20363 | NU45: =NU41&NU44 -> 20364 | NV45: =NV41&NV44 -> 20365 | NW45: =NW41&NW44 -> 20366 | NX45: =NX41&NX44 -> 20367 | NY45: =NY41&NY44 -> 20368 | NZ45: =NZ41&NZ44 -> 20369 | OA45: =OA41&OA44 -> 203610 | OB45: =OB41&OB44 -> 203611 | OC45: =OC41&OC44 -> 203612 | OE45: =OE41&OE44 -> 20371 | OF45: =OF41&OF44 -> 20372 | OG45: =OG41&OG44 -> 20373 | OH45: =OH41&OH44 -> 20374 | OI45: =OI41&OI44 -> 20375 | OJ45: =OJ41&OJ44 -> 20376 | OK45: =OK41&OK44 -> 20377 | OL45: =OL41&OL44 -> 20378 | OM45: =OM41&OM44 -> 20379 | ON45: =ON41&ON44 -> 203710 | OO45: =OO41&OO44 -> 203711 | OP45: =OP41&OP44 -> 203712 | OR45: =OR41&OR44 -> 20381 | OS45: =OS41&OS44 -> 20382 | OT45: =OT41&OT44 -> 20383 | OU45: =OU41&OU44 -> 20384 | OV45: =OV41&OV44 -> 20385 | OW45: =OW41&OW44 -> 20386 | OX45: =OX41&OX44 -> 20387 | OY45: =OY41&OY44 -> 20388 | OZ45: =OZ41&OZ44 -> 20389 | PA45: =PA41&PA44 -> 203810 | PB45: =PB41&PB44 -> 203811 | PC45: =PC41&PC44 -> 203812 | PE45: =PE41&PE44 -> 20391 | PF45: =PF41&PF44 -> 20392 | PG45: =PG41&PG44 -> 20393 | PH45: =PH41&PH44 -> 20394 | PI45: =PI41&PI44 -> 20395 | PJ45: =PJ41&PJ44 -> 20396 | PK45: =PK41&PK44 -> 20397 | PL45: =PL41&PL44 -> 20398 | PM45: =PM41&PM44 -> 20399 | PN45: =PN41&PN44 -> 203910 | PO45: =PO41&PO44 -> 203911 | PP45: =PP41&PP44 -> 203912 | PR45: =PR41&PR44 -> 20401 | PS45: =PS41&PS44 -> 20402 | PT45: =PT41&PT44 -> 20403 | PU45: =PU41&PU44 -> 20404 | PV45: =PV41&PV44 -> 20405 | PW45: =PW41&PW44 -> 20406 | PX45: =PX41&PX44 -> 20407 | PY45: =PY41&PY44 -> 20408 | PZ45: =PZ41&PZ44 -> 20409 | QA45: =QA41&QA44 -> 204010 | QB45: =QB41&QB44 -> 204011 | QC45: =QC41&QC44 -> 204012 | QE45: =$E$16&QE44 -> 2007
A46: Ieņēmumi kopā | D46: =IF(D49=" "," ",SUM(E46:P46)) ->  | E46: =IF(E49=" "," ",(E47*(1-E50))) -> 0 | F46: 0 | G46: 0 | H46: 0 | I46: 0 | J46: 0 | K46: 0 | L46: 0 | M46: 0 | N46: 0 | O46: 0 | P46: 0 | Q46: =IF(Q49=" "," ",SUM(R46:AC46)) ->  | R46: =IF(R49=" "," ",(R47*(1-R50))) ->  | AD46: =IF(AD49=" "," ",SUM(AE46:AP46)) ->  | AE46: =IF(AE49=" "," ",(AE47*(1-AE50))) ->  | AQ46: =IF(AQ49=" "," ",SUM(AR46:BC46)) ->  | AR46: =IF(AR49=" "," ",(AR47*(1-AR50))) ->  | BD46: =IF(BD49=" "," ",SUM(BE46:BP46)) ->  | BE46: =IF(BE49=" "," ",(BE47*(1-BE50))) ->  | BQ46: =IF(BQ49=" "," ",SUM(BR46:CC46)) ->  | BR46: =IF(BR49=" "," ",(BR47*(1-BR50))) ->  | CQ46: =IF(CQ49=" "," ",SUM(CR46:DC46)) ->  | CR46: =IF(CR49=" "," ",(CR47*(1-CR50))) ->  | DD46: =IF(DD49=" "," ",SUM(DE46:DP46)) ->  | DE46: =IF(DE49=" "," ",(DE47*(1-DE50))) ->  | DQ46: =IF(DQ49=" "," ",SUM(DR46:EC46)) ->  | DR46: =IF(DR49=" "," ",(DR47*(1-DR50))) ->  | ED46: =IF(ED49=" "," ",SUM(EE46:EP46)) ->  | EE46: =IF(EE49=" "," ",(EE47*(1-EE50))) ->  | EQ46: =IF(EQ49=" "," ",SUM(ER46:FC46)) ->  | ER46: =IF(ER49=" "," ",(ER47*(1-ER50))) ->  | FD46: =IF(FD49=" "," ",SUM(FE46:FP46)) ->  | FE46: =IF(FE49=" "," ",(FE47*(1-FE50))) ->  | FQ46: =IF(FQ49=" "," ",SUM(FR46:GC46)) ->  | FR46: =IF(FR49=" "," ",(FR47*(1-FR50))) ->  | GD46: =IF(GD49=" "," ",SUM(GE46:GP46)) ->  | GE46: =IF(GE49=" "," ",(GE47*(1-GE50))) ->  | GQ46: =IF(GQ49=" "," ",SUM(GR46:HC46)) ->  | GR46: =IF(GR49=" "," ",(GR47*(1-GR50))) ->  | HD46: =IF(HD49=" "," ",SUM(HE46:HP46)) ->  | HE46: =IF(HE49=" "," ",(HE47*(1-HE50))) ->  | HQ46: =IF(HQ49=" "," ",SUM(HR46:IC46)) ->  | HR46: =IF(HR49=" "," ",(HR47*(1-HR50))) ->  | ID46: =IF(ID49=" "," ",SUM(IE46:IP46)) ->  | IE46: =IF(IE49=" "," ",(IE47*(1-IE50))) ->  | IQ46: =IF(IQ49=" "," ",SUM(IR46:JC46)) ->  | IR46: =IF(IR49=" "," ",(IR47*(1-IR50))) ->  | JD46: =IF(JD49=" "," ",SUM(JE46:JP46)) ->  | JE46: =IF(JE49=" "," ",(JE47*(1-JE50))) ->  | KK46: =IF(KK49=" "," ",(KK47*(1-KK50))) ->  | LQ46: =IF(LQ49=" "," ",(LQ47*(1-LQ50))) ->  | MW46: =IF(MW49=" "," ",(MW47*(1-MW50))) ->  | OC46: =IF(OC49=" "," ",(OC47*(1-OC50))) ->  | PI46: =IF(PI49=" "," ",(PI47*(1-PI50))) -> 
